Workbook

Sheet Descrição
A1: Análise Financeira de Sistemas Produtivos Integrados (V. 4.16 11/2016)
A2: Descrição do Sistema de Produção
A4: Identificação
A5: Município/Local: | D5: Sooretama - ES
A6: Modelo do Sistema: | D6: SAF projeto biomas subprojeto MA 11
A8: Espécies e Composição do Modelo
D10: Espécies | K10: Espaçamento (m) | N10: Dens. | O10: Qtde. Produtos | P10: %
D11: Nome Vulgar | G11: Nome Científico
D12: Seringueira | G12: Hevea brasiliensis | K12: 4,00x17,5 | N12: 142 | O12: 1 | P12: =IF(AND(N12<>0,O12<>0),N12/$N$36/O12,0) -> 0.001509514192
D13: Genipapo | G13: Genipa americana | K13: 8,75x20,0 | N13: 58 | O13: 1 | P13: =IF(AND(N13<>0,O13<>0),N13/$N$36/O13,0) -> 0.0006165621346
D14: Araçauna | G14: Psidium eugeniaefolia | K14: 8,75x20,0 | N14: 58 | O14: 1 | P14: 0.0006165621346
D15: pitanga | G15: Eugenia sp | K15: 8,75x20,0 | N15: 58 | O15: 1 | P15: 0.0006165621346
D16: Sapucaia | G16: Lecythis pisonis | K16: 8,75x20,0 | N16: 58 | O16: 1 | P16: 0.0006165621346
D17: Cajá mirim | G17: Spondias mombin | K17: 8,75x20,0 | N17: 58 | O17: 1 | P17: 0.0006165621346
D18: Urucum | G18: Bixa orellana | K18: 8,75x4,0 | N18: 284 | O18: 1 | P18: 0.003019028383
D19: Aroeira | G19: Schinnus terebentifolius | K19: 8,75x4,0 | N19: 284 | O19: 1 | P19: 0.003019028383
D20: Mandioca | G20: Manihot esculenta | K20: (FACA) 0,90x0,40 | N20: 11400 | O20: 1 | P20: 0.1211863506
D21: Abacaxi | G21: Ananas sp cultivar Vitoria | K21: 15,5x0,30 | N21: 3660 | O21: 1 | P21: 0.03890719677
D22: milho | G22: Zea mays | K22: (FACA) 0,50x0,50x0,50x0,40 | N22: 8550 | O22: 1 | P22: 0.09088976294
D23: Sansão do campo | G23: Mimosa caesalpiniaefoliae | K23: 17,5x10,0 | N23: 60 | O23: 1 | P23: 0.0006378228978
D24: Madeira nova | G24: Pterogyne nitens | K24: 17,5x20,0 | N24: 30 | O24: 1 | P24: 0.0003189114489
D25: Fedegoso | G25: Senna occidentalis | K25: 17,5x20,0 | N25: 30 | O25: 1 | P25: 0.0003189114489
D26: Pau d'alho | G26: Gallesia integrifolia | K26: 17,5x20,0 | N26: 30 | O26: 1 | P26: 0.0003189114489
D27: Boleira | G27: Joanesia princips | K27: 17,5x20,0 | N27: 30 | O27: 1 | P27: 0.0003189114489
D28: Angico roxo | G28: Piptadenia pterosperma | K28: 17,5x20,0 | N28: 30 | O28: 1 | P28: 0.0003189114489
D29: Ipê roxo | G29: Handroanthus impetiginosus | K29: 17,5x20,0 | N29: 30 | O29: 1 | P29: 0.0003189114489
D30: Ipê amarelo | G30: Handroantus albus | K30: 17,5x20,0 | N30: 30 | O30: 1 | P30: 0.0003189114489
D31: Gonçalo alves | G31: Astronium graveolens | K31: 17,5x20,0 | N31: 30 | O31: 1 | P31: 0.0003189114489
D32: Vinhatico | G32: Plathymenia foliolosa | K32: 17,5x20,0 | N32: 30 | O32: 1 | P32: 0.0003189114489
D33: Jequitibá | G33: Cariniana legalis | L33: 17,5x20,0 | N33: 30 | O33: 1 | P33: 0.0003189114489
D34: Feijão guandu | G34: Cajanus cajan | K34: 0,60 x 0,60 | N34: 6600 | O34: 1 | P34: 0.07016051876
D35: Feijão caupi | G35: Vigna unguiculata | K35: 0,40x0,20 | N35: 62500 | O35: 1 | P35: 0.6643988519
D36: Total de Espécies no Módulo do Sistema: | N36: =SUM(N12:N35) -> 94070 | O36: =SUM(O12:O35) -> 24 | P36: =O12*P12+O13*P13+O14*P14+O15*P15+O16*P16+O17*P17+O18*P18+O19*P19+O20*P20+O21*P21+O22*P22+O23*P23+O24*P24+O25*P25+O26*P26+O27*P27+O28*P28+O29+P29+O30*P30+O31*P31+O32*P32+O33*P33+O34*P34+35*P35 -> 24.58956097
D38: Observações:
D39: MILHO: plantado na faixa de culturas anuais com 3 linhas no espaçamento de 0,50 entre linhas e 0,40 na linha. A FACA é de 1,0x100, sendo um total de 11 FACA.
D40: FEIJÃO CAUPI foi plantado no inicio com objetivo de gerar biomassa e renda ao sistema. Foi plantado em área total antes das demais espécies.
D41: FEIJÃO GUANDU foi utilizado como fonte de biomassa para o sistema. Não foi realizado a colheita de sementes.
D42: As espécies de árvores nativas estão distribuídas em 6 linhas (a cada 17,5m) no espaçamento de 1,5m por planta na linha
D51: ESPÉCIES QUE COMPÕE A FAIXA DAS NATIVAS
D52: NOME POPULAR | G52: NOME CIENTIFICO | J52: produto
D54: ipê Amarelo | G54: Handroantus albus | J54: madeira
D55: Ipe roxo | G55: Handroantus impetiginosus | J55: madeira
D56: Madeira Nova | G56: Pterogyne nitens | J56: lenha/estaca
D57: Fedegoso | G57: Senna occidentalis | J57: lenha/estaca
D58: Pau D'alho | G58: Gallesia integrifolia | J58: lenha/estaca
D59: Angico roxo | G59: Piptadenia pterosperma | J59: madeira
D60: Gonçalo Alves | G60: Astronium graveolens | J60: madeira
D61: Vinhatico | G61: Plathymenia foliolosa | J61: madeira
D62: jequitibá | G62: Cariniana legalis | J62: madeira
D63: Sansão do Campo | G63: Mimosa caesalpiniaefolia | J63: lenha/estaca
D64: Angico Canjiquinha | G64: Peltophorum dubium | J64: lenha/estaca
D65: Boleira | G65: Joanesia princips | J65: caixotaria

Sheet Croqui
A1: =Descrição!A1 -> Análise Financeira de Sistemas Produtivos Integrados (V. 4.16 11/2016)
A2: Croqui do Sistema de Produção
A3: (desenho esquemático do arranjo espacial e temporal do SAF)

Sheet Parâmetros Gerais
A1: =Descrição!A1 -> Análise Financeira de Sistemas Produtivos Integrados (V. 4.16 11/2016)
A2: Parâmetros Gerais
B4: Valor da Mão de Obra (diária): | F4: 50 | H4: Unidade: | I4: homem/dia
B5: Valor da Hora de Máquina (com operador): | F5: 120 | H5: Unidade: | I5: hora/máquina
B6: Valor da diária da tração animal (com operador): | H6: Unidade: | I6: animal/dia
B7: Taxa de Juros (financiamento): | G7: por período
B8: Taxa Mínima de Atratividade (TMA): | G8: por período
B9: Taxa de Desconto do Projeto: | F9: =F7+F8 -> 0 | G9: por período
B10: Área do Módulo de Produção: | F10: 0.63 | G10: ha
A12: Espécie | B12: Preço de Venda dos Produtos | H12: Unidades dos Insumos
B13: Produto | E13: Unidade | F13: Preço
A14: Seringueira | B14: latex | E14: kg | F14: 2.25 | H14: t
A15: Genipapo | B15: fruto genipapo | E15: kg | F15: 4 | H15: kg
A16: Araçauna | B16: fruto araçauna | E16: kg | F16: 4 | H16: l
A17: pitanga | B17: fruto pitanga | E17: kg | F17: 3 | H17: unid
A18: Sapucaia | B18: castanha sapucaia | E18: kg | F18: 30 | H18: m3
A19: Cajá mirim | B19: fruto cajá | E19: kg | F19: 4 | H19: mil
A20: Urucum | B20: semente urucum | E20: kg | F20: 8 | H20: st
A21: Aroeira | B21: semente aroeira | E21: kg | F21: 6 | H21: caixa
A22: Mandioca | B22: raiz mandioca | E22: kg | F22: 0.8 | H22: m
A23: Abacaxi | B23: fruto abacaxi | E23: kg | F23: 1.5 | H23: carrada
A24: milho | B24: espigas milho | E24: unidade | F24: 0.5
A25: Sansão do campo | B25: estaca sansão do campo | E25: unidade | F25: 6
A26: Madeira nova | B26: madeira madeira nova | E26: m3 | F26: 250
A27: Fedegoso | B27: lenha fedegoso | E27: m3 | F27: 50
A28: Pau d'alho | B28: estaca pau d'alho | E28: unidade
A29: Boleira | B29: caixotaria boleira | E29: m3 | F29: 50
A30: Angico roxo | B30: madeira angico roxo | E30: m3 | F30: 350
A31: Ipê roxo | B31: madeira ipê roxo | E31: m3 | F31: 350
A32: Ipê amarelo | B32: madeira ipê amarelo | E32: m3 | F32: 350
A33: Gonçalo alves | B33: madeira gonçalo alves | E33: m3 | F33: 250
A34: Vinhatico | B34: madeira vinhatico | E34: m3 | F34: 350
A35: Jequitibá | B35: madeira jequitiba | E35: m3 | F35: 350
A36: Feijão guandu | B36: biomassa | E36: t
A37: Feijão caupi | B37: grão caupi | E37: kg | F37: 2.5
A39: O preço dos produtos foi calculado como se fosse vendido diretamente na propriedade.
A40: Urucum é o preço da semente batida sem a cachola
A41: Feijão guandu calcular quantas toneladas de biomassa serão produzidas no sistema para calcular a produção de N
A42: Os dados de madeira são com base em monocultivos e quando em plantios mistos são silvicultura.
A43: Estaca de sansão fonte: http://www.mfrural.com.br/busca.aspx?palavras=madeira+caixotaria&pg=2
A44: Boleira no ano 7 produz 10 m3/hectare de madeira para caixotaria no espaçamento 17,5 x 20m. Fonte: guia de árvores com valor econômico input= iniciativa para uso da terra.
A45: Fedegoso no ano 7 produz 5 m3 de lenha. Fonte: guia de árvores com valor econômico input
A46: Angico roxo no ano 10 produz 4 m3 de madeira por hectare. Fonte: idem fedegoso
A47: Ipe roxo. Fonte: idem
A48: Ipe amarelo. Fonte: idem
A49: Jequitiba. Fonte: idem
A50: Vinhatico. Fonte: Embrapa comunicado técnico 231, 2009 (Paulo Hernani Ramalho Carvalho); input
A51: Mandioca com produtividade de 1kg/planta. Fonte: Cedagro

Sheet Produção
A1: ='Parâmetros Gerais'!A1 -> Análise Financeira de Sistemas Produtivos Integrados (V. 4.16 11/2016)
A2: Produção Esperada por Período
D3: Período
D4: 1 | E4: 2 | F4: 3 | G4: 4 | H4: 5 | I4: 6 | J4: 7 | K4: 8 | L4: 9 | M4: 10 | N4: 11 | O4: 12 | P4: 13 | Q4: 14 | R4: 15 | S4: 16 | T4: 17 | U4: 18 | V4: 19 | W4: 20 | X4: 21 | Y4: 22 | Z4: 23 | AA4: 24 | AB4: 25 | AC4: 26 | AD4: 27 | AE4: 28 | AF4: 29 | AG4: 30
A5: Produtos | B5: Unidade
A6: =IF(LEN('Parâmetros Gerais'!B14)=0," ",'Parâmetros Gerais'!B14) -> latex | B6: =IF('Parâmetros Gerais'!E14<>"",'Parâmetros Gerais'!E14,"") -> kg | J6: 142 | K6: 284 | L6: 340 | M6: 426 | N6: 426 | O6: 426 | P6: 426 | Q6: 426 | R6: 426 | S6: 426 | T6: 426 | U6: 426 | V6: 426 | W6: 426
A7: =IF(LEN('Parâmetros Gerais'!B15)=0," ",'Parâmetros Gerais'!B15) -> fruto genipapo | B7: =IF('Parâmetros Gerais'!E15<>"",'Parâmetros Gerais'!E15,"") -> kg | O7: 580 | P7: 696 | Q7: 870 | R7: 1334 | S7: 1334 | T7: 1334 | U7: 1508 | V7: 1508 | W7: 1508
A8: =IF(LEN('Parâmetros Gerais'!B16)=0," ",'Parâmetros Gerais'!B16) -> fruto araçauna | B8: =IF('Parâmetros Gerais'!E16<>"",'Parâmetros Gerais'!E16,"") -> kg | F8: 230 | G8: 230 | H8: 290 | I8: 230
A9: =IF(LEN('Parâmetros Gerais'!B17)=0," ",'Parâmetros Gerais'!B17) -> fruto pitanga | B9: =IF('Parâmetros Gerais'!E17<>"",'Parâmetros Gerais'!E17,"") -> kg | E9: 190 | F9: 380 | G9: 380 | H9: 380
A10: =IF(LEN('Parâmetros Gerais'!B18)=0," ",'Parâmetros Gerais'!B18) -> castanha sapucaia | B10: =IF('Parâmetros Gerais'!E18<>"",'Parâmetros Gerais'!E18,"") -> kg | O10: 58 | P10: 80 | Q10: 200 | R10: 320 | S10: 350 | T10: 350 | U10: 350 | V10: 350 | W10: 350
A11: =IF(LEN('Parâmetros Gerais'!B19)=0," ",'Parâmetros Gerais'!B19) -> fruto cajá | B11: =IF('Parâmetros Gerais'!E19<>"",'Parâmetros Gerais'!E19,"") -> kg | G11: 336 | H11: 480 | I11: 600 | J11: 650 | K11: 780 | L11: 850 | M11: 850 | N11: 850 | O11: 850 | P11: 850 | Q11: 850 | R11: 850 | S11: 850 | T11: 850 | U11: 850 | V11: 850 | W11: 850
A12: =IF(LEN('Parâmetros Gerais'!B20)=0," ",'Parâmetros Gerais'!B20) -> semente urucum | B12: =IF('Parâmetros Gerais'!E20<>"",'Parâmetros Gerais'!E20,"") -> kg | E12: 568 | F12: 568 | G12: 852 | H12: 852
A13: =IF(LEN('Parâmetros Gerais'!B21)=0," ",'Parâmetros Gerais'!B21) -> semente aroeira | B13: =IF('Parâmetros Gerais'!E21<>"",'Parâmetros Gerais'!E21,"") -> kg | E13: 116 | F13: 116 | G13: 174 | H13: 174 | I13: 290
A14: =IF(LEN('Parâmetros Gerais'!B22)=0," ",'Parâmetros Gerais'!B22) -> raiz mandioca | B14: =IF('Parâmetros Gerais'!E22<>"",'Parâmetros Gerais'!E22,"") -> kg | E14: 11400
A15: =IF(LEN('Parâmetros Gerais'!B23)=0," ",'Parâmetros Gerais'!B23) -> fruto abacaxi | B15: =IF('Parâmetros Gerais'!E23<>"",'Parâmetros Gerais'!E23,"") -> kg | E15: 3660
A16: =IF(LEN('Parâmetros Gerais'!B24)=0," ",'Parâmetros Gerais'!B24) -> espigas milho | B16: =IF('Parâmetros Gerais'!E24<>"",'Parâmetros Gerais'!E24,"") -> unidade | D16: 8550
A17: =IF(LEN('Parâmetros Gerais'!B25)=0," ",'Parâmetros Gerais'!B25) -> estaca sansão do campo | B17: =IF('Parâmetros Gerais'!E25<>"",'Parâmetros Gerais'!E25,"") -> unidade | K17: 180
A18: =IF(LEN('Parâmetros Gerais'!B26)=0," ",'Parâmetros Gerais'!B26) -> madeira madeira nova | B18: =IF('Parâmetros Gerais'!E26<>"",'Parâmetros Gerais'!E26,"") -> m3 | R18: 10
A19: =IF(LEN('Parâmetros Gerais'!B27)=0," ",'Parâmetros Gerais'!B27) -> lenha fedegoso | B19: =IF('Parâmetros Gerais'!E27<>"",'Parâmetros Gerais'!E27,"") -> m3 | J19: 5
A20: =IF(LEN('Parâmetros Gerais'!B28)=0," ",'Parâmetros Gerais'!B28) -> estaca pau d'alho | B20: =IF('Parâmetros Gerais'!E28<>"",'Parâmetros Gerais'!E28,"") -> unidade
A21: =IF(LEN('Parâmetros Gerais'!B29)=0," ",'Parâmetros Gerais'!B29) -> caixotaria boleira | B21: =IF('Parâmetros Gerais'!E29<>"",'Parâmetros Gerais'!E29,"") -> m3 | J21: 10
A22: =IF(LEN('Parâmetros Gerais'!B30)=0," ",'Parâmetros Gerais'!B30) -> madeira angico roxo | B22: =IF('Parâmetros Gerais'!E30<>"",'Parâmetros Gerais'!E30,"") -> m3 | M22: 4 | W22: 5
A23: =IF(LEN('Parâmetros Gerais'!B31)=0," ",'Parâmetros Gerais'!B31) -> madeira ipê roxo | B23: =IF('Parâmetros Gerais'!E31<>"",'Parâmetros Gerais'!E31,"") -> m3
A24: =IF(LEN('Parâmetros Gerais'!B32)=0," ",'Parâmetros Gerais'!B32) -> madeira ipê amarelo | B24: =IF('Parâmetros Gerais'!E32<>"",'Parâmetros Gerais'!E32,"") -> m3 | W24: 36
A25: =IF(LEN('Parâmetros Gerais'!B33)=0," ",'Parâmetros Gerais'!B33) -> madeira gonçalo alves | B25: =IF('Parâmetros Gerais'!E33<>"",'Parâmetros Gerais'!E33,"") -> m3
A26: =IF(LEN('Parâmetros Gerais'!B34)=0," ",'Parâmetros Gerais'!B34) -> madeira vinhatico | B26: =IF('Parâmetros Gerais'!E34<>"",'Parâmetros Gerais'!E34,"") -> m3 | W26: 10
A27: =IF(LEN('Parâmetros Gerais'!B35)=0," ",'Parâmetros Gerais'!B35) -> madeira jequitiba | B27: =IF('Parâmetros Gerais'!E35<>"",'Parâmetros Gerais'!E35,"") -> m3 | W27: 4
A28: =IF(LEN('Parâmetros Gerais'!B36)=0," ",'Parâmetros Gerais'!B36) -> biomassa | B28: =IF('Parâmetros Gerais'!E36<>"",'Parâmetros Gerais'!E36,"") -> t
A29: =IF(LEN('Parâmetros Gerais'!B37)=0," ",'Parâmetros Gerais'!B37) -> grão caupi | B29: =IF('Parâmetros Gerais'!E37<>"",'Parâmetros Gerais'!E37,"") -> kg | D29: 128
A33: Fruto Aroeira: 2kg/ano2 e 3. Ano 4 e 5:média de 3Kg/planta. Do ano 6 em diante: média de 5kg/planta. Preco de R$6,00/kg.
A37: Abacaxi Vitória: 1kg a 1.200 Kg/planta. 1 fruto/planta/ano e meio. Produção de 5 mudas por planta sendo em média 60 centavos por muda.
A41: Milho com produção de 1 espiga/planta e preço de 0,50 centavos a unidade
A44: Pitanga produz a partir do 3o ano até o sexto quando estabiliza a produção que pode variar de 15 a 20 kg por planta com 2 safras por ano. http://www.agencia.cnptia.embrapa.br/gestor/territorio_mata_sul_pernambucana/arvore/CONT000gtq6c11c02wx7ha087apz22u0146j.html
A51: Sapucaia 1kg=180 castanhas
A53: Urucum no ano 2 e 3 foram 2 kg/planta e no ano 4 e 5 ano foram 3 kg/planta. Fonte: Embrapa coleção plantar 2a. Edição. Preço praticado na região R$8,00/kg
A57: Caja mirim foi calculado 6kg/planta no ano 4 e aumentando gradativamente até estabilizar no ano 9 com a produção de 15kg/planta até o ano 20
A61: Genipapo foi calculado 10kg/planta no ano 12 e 12kg/planta no ano 13 até produção de 26 kg/planta no ano 18 em diante. Sendo que nos anos 15, 16 e 17 foram calculados 23kg/planta
A63: Feijão caupi na parcela foram produzidos 128kg/há e a média de produção no Brasil é de 366kg/há sendo que varia de 1200 no centro-oeste para 328 no nordeste. Fonte: http://www.agencia.cnptia.embrapa.br/gestor/feijao-caupi/arvore/CONTAG01_16_510200683536.html

Sheet Rateio Custos
A1: ='Parâmetros Gerais'!A1 -> Análise Financeira de Sistemas Produtivos Integrados (V. 4.16 11/2016)
A2: Rateio de Custos Gerais (% da Receita Bruta)
D3: Período
D4: 1 | E4: 2 | F4: 3 | G4: 4 | H4: 5 | I4: 6 | J4: 7 | K4: 8 | L4: 9 | M4: 10 | N4: 11 | O4: 12 | P4: 13 | Q4: 14 | R4: 15 | S4: 16 | T4: 17 | U4: 18 | V4: 19 | W4: 20 | X4: 21 | Y4: 22 | Z4: 23 | AA4: 24 | AB4: 25 | AC4: 26 | AD4: 27 | AE4: 28 | AF4: 29 | AG4: 30
A5: Produtos | B5: Unidade | D5: =SUM(D6:D29) -> 1 | E5: 1 | F5: 1 | G5: 1 | H5: 1 | I5: 1 | J5: 1 | K5: 1 | L5: 1 | M5: 1 | N5: 1 | O5: 1 | P5: 1 | Q5: 1 | R5: 1 | S5: 1 | T5: 1 | U5: 1 | V5: 1 | W5: 1 | X5: 0 | Y5: 0 | Z5: 0 | AA5: 0 | AB5: 0 | AC5: 0 | AD5: 0 | AE5: 0 | AF5: 0 | AG5: 0
A6: =IF(LEN('Parâmetros Gerais'!B14)=0," ",'Parâmetros Gerais'!B14) -> latex | B6: =IF('Parâmetros Gerais'!E14<>"",IF('Parâmetros Gerais'!$F$10=1,CONCATENATE('Parâmetros Gerais'!E14,"/",'Parâmetros Gerais'!$G$10,),CONCATENATE('Parâmetros Gerais'!E14,"/",'Parâmetros Gerais'!$F$10,'Parâmetros Gerais'!$G$10,)),"") -> kg/0,63ha | D6: =IF(Produção!D6<>0,('Resultados Fin'!E71/'Resultados Fin'!$E$68),0) -> 0 | E6: =IF(Produção!E6<>0,('Resultados Fin'!F71/'Resultados Fin'!$F$68),0) -> 0 | F6: =IF(Produção!F6<>0,('Resultados Fin'!G71/'Resultados Fin'!$G$68),0) -> 0 | G6: =IF(Produção!G6<>0,('Resultados Fin'!H71/'Resultados Fin'!$H$68),0) -> 0 | H6: =IF(Produção!H6<>0,('Resultados Fin'!I71/'Resultados Fin'!$I$68),0) -> 0 | I6: =IF(Produção!I6<>0,('Resultados Fin'!J71/'Resultados Fin'!$J$68),0) -> 0 | J6: =IF(Produção!J6<>0,('Resultados Fin'!K71/'Resultados Fin'!$K$68),0) -> 0.08706908298 | K6: =IF(Produção!K6<>0,('Resultados Fin'!L71/'Resultados Fin'!$L$68),0) -> 0.1320520769 | L6: =IF(Produção!L6<>0,('Resultados Fin'!M71/'Resultados Fin'!$M$68),0) -> 0.1836734694 | M6: =IF(Produção!M6<>0,('Resultados Fin'!N71/'Resultados Fin'!$N$68),0) -> 0.1664495962 | N6: =IF(Produção!N6<>0,('Resultados Fin'!O71/'Resultados Fin'!$O$68),0) -> 0.2199151084 | O6: =IF(Produção!O6<>0,('Resultados Fin'!P71/'Resultados Fin'!$P$68),0) -> 0.1138563877 | P6: =IF(Produção!P6<>0,('Resultados Fin'!Q71/'Resultados Fin'!$Q$68),0) -> 0.1004453759 | Q6: =IF(Produção!Q6<>0,('Resultados Fin'!R71/'Resultados Fin'!$R$68),0) -> 0.06926328721 | R6: =IF(Produção!R6<>0,('Resultados Fin'!S71/'Resultados Fin'!$S$68),0) -> 0.04397898552 | S6: =IF(Produção!S6<>0,('Resultados Fin'!T71/'Resultados Fin'!$T$68),0) -> 0.04746341826 | T6: =IF(Produção!T6<>0,('Resultados Fin'!U71/'Resultados Fin'!$U$68),0) -> 0.04746341826 | U6: =IF(Produção!U6<>0,('Resultados Fin'!V71/'Resultados Fin'!$V$68),0) -> 0.04588209952 | V6: =IF(Produção!V6<>0,('Resultados Fin'!W71/'Resultados Fin'!$W$68),0) -> 0.04588209952 | W6: =IF(Produção!W6<>0,('Resultados Fin'!X71/'Resultados Fin'!$X$68),0) -> 0.02387862633 | X6: =IF(Produção!X6<>0,('Resultados Fin'!Y71/'Resultados Fin'!$Y$68),0) -> 0 | Y6: =IF(Produção!Y6<>0,('Resultados Fin'!Z71/'Resultados Fin'!$Z$68),0) -> 0 | Z6: =IF(Produção!Z6<>0,('Resultados Fin'!AA71/'Resultados Fin'!$AA$68),0) -> 0 | AA6: =IF(Produção!AA6<>0,('Resultados Fin'!AB71/'Resultados Fin'!$AB$68),0) -> 0 | AB6: =IF(Produção!AB6<>0,('Resultados Fin'!AC71/'Resultados Fin'!$AC$68),0) -> 0 | AC6: =IF(Produção!AC6<>0,('Resultados Fin'!AD71/'Resultados Fin'!$AD$68),0) -> 0 | AD6: =IF(Produção!AD6<>0,('Resultados Fin'!AE71/'Resultados Fin'!$AE$68),0) -> 0 | AE6: =IF(Produção!AE6<>0,('Resultados Fin'!AF71/'Resultados Fin'!$AF$68),0) -> 0 | AF6: =IF(Produção!AF6<>0,('Resultados Fin'!AG71/'Resultados Fin'!$AG$68),0) -> 0 | AG6: =IF(Produção!AG6<>0,('Resultados Fin'!AH71/'Resultados Fin'!$AH$68),0) -> 0
A7: =IF(LEN('Parâmetros Gerais'!B15)=0," ",'Parâmetros Gerais'!B15) -> fruto genipapo | B7: =IF('Parâmetros Gerais'!E15<>"",IF('Parâmetros Gerais'!$F$10=1,CONCATENATE('Parâmetros Gerais'!E15,"/",'Parâmetros Gerais'!$G$10,),CONCATENATE('Parâmetros Gerais'!E15,"/",'Parâmetros Gerais'!$F$10,'Parâmetros Gerais'!$G$10,)),"") -> kg/0,63ha | D7: =IF(Produção!D7<>0,('Resultados Fin'!E72/'Resultados Fin'!$E$68),0) -> 0 | E7: =IF(Produção!E7<>0,('Resultados Fin'!F72/'Resultados Fin'!$F$68),0) -> 0 | F7: =IF(Produção!F7<>0,('Resultados Fin'!G72/'Resultados Fin'!$G$68),0) -> 0 | G7: =IF(Produção!G7<>0,('Resultados Fin'!H72/'Resultados Fin'!$H$68),0) -> 0 | H7: =IF(Produção!H7<>0,('Resultados Fin'!I72/'Resultados Fin'!$I$68),0) -> 0 | I7: =IF(Produção!I7<>0,('Resultados Fin'!J72/'Resultados Fin'!$J$68),0) -> 0 | J7: =IF(Produção!J7<>0,('Resultados Fin'!K72/'Resultados Fin'!$K$68),0) -> 0 | K7: =IF(Produção!K7<>0,('Resultados Fin'!L72/'Resultados Fin'!$L$68),0) -> 0 | L7: =IF(Produção!L7<>0,('Resultados Fin'!M72/'Resultados Fin'!$M$68),0) -> 0 | M7: =IF(Produção!M7<>0,('Resultados Fin'!N72/'Resultados Fin'!$N$68),0) -> 0 | N7: =IF(Produção!N7<>0,('Resultados Fin'!O72/'Resultados Fin'!$O$68),0) -> 0 | O7: =IF(Produção!O7<>0,('Resultados Fin'!P72/'Resultados Fin'!$P$68),0) -> 0.2755835363 | P7: =IF(Produção!P7<>0,('Resultados Fin'!Q72/'Resultados Fin'!$Q$68),0) -> 0.2917474456 | Q7: =IF(Produção!Q7<>0,('Resultados Fin'!R72/'Resultados Fin'!$R$68),0) -> 0.2514723417 | R7: =IF(Produção!R7<>0,('Resultados Fin'!S72/'Resultados Fin'!$S$68),0) -> 0.2448324118 | S7: =IF(Produção!S7<>0,('Resultados Fin'!T72/'Resultados Fin'!$T$68),0) -> 0.2642303598 | T7: =IF(Produção!T7<>0,('Resultados Fin'!U72/'Resultados Fin'!$U$68),0) -> 0.2642303598 | U7: =IF(Produção!U7<>0,('Resultados Fin'!V72/'Resultados Fin'!$V$68),0) -> 0.2887436873 | V7: =IF(Produção!V7<>0,('Resultados Fin'!W72/'Resultados Fin'!$W$68),0) -> 0.2887436873 | W7: =IF(Produção!W7<>0,('Resultados Fin'!X72/'Resultados Fin'!$X$68),0) -> 0.150272169 | X7: =IF(Produção!X7<>0,('Resultados Fin'!Y72/'Resultados Fin'!$Y$68),0) -> 0 | Y7: =IF(Produção!Y7<>0,('Resultados Fin'!Z72/'Resultados Fin'!$Z$68),0) -> 0 | Z7: =IF(Produção!Z7<>0,('Resultados Fin'!AA72/'Resultados Fin'!$AA$68),0) -> 0 | AA7: =IF(Produção!AA7<>0,('Resultados Fin'!AB72/'Resultados Fin'!$AB$68),0) -> 0 | AB7: =IF(Produção!AB7<>0,('Resultados Fin'!AC72/'Resultados Fin'!$AC$68),0) -> 0 | AC7: =IF(Produção!AC7<>0,('Resultados Fin'!AD72/'Resultados Fin'!$AD$68),0) -> 0 | AD7: =IF(Produção!AD7<>0,('Resultados Fin'!AE72/'Resultados Fin'!$AE$68),0) -> 0 | AE7: =IF(Produção!AE7<>0,('Resultados Fin'!AF72/'Resultados Fin'!$AF$68),0) -> 0 | AF7: =IF(Produção!AF7<>0,('Resultados Fin'!AG72/'Resultados Fin'!$AG$68),0) -> 0 | AG7: =IF(Produção!AG7<>0,('Resultados Fin'!AH72/'Resultados Fin'!$AH$68),0) -> 0
A8: =IF(LEN('Parâmetros Gerais'!B16)=0," ",'Parâmetros Gerais'!B16) -> fruto araçauna | B8: =IF('Parâmetros Gerais'!E16<>"",IF('Parâmetros Gerais'!$F$10=1,CONCATENATE('Parâmetros Gerais'!E16,"/",'Parâmetros Gerais'!$G$10,),CONCATENATE('Parâmetros Gerais'!E16,"/",'Parâmetros Gerais'!$F$10,'Parâmetros Gerais'!$G$10,)),"") -> kg/0,63ha | D8: =IF(Produção!D8<>0,('Resultados Fin'!E73/'Resultados Fin'!$E$68),0) -> 0 | E8: =IF(Produção!E8<>0,('Resultados Fin'!F73/'Resultados Fin'!$F$68),0) -> 0 | F8: =IF(Produção!F8<>0,('Resultados Fin'!G73/'Resultados Fin'!$G$68),0) -> 0.1260273973 | G8: =IF(Produção!G8<>0,('Resultados Fin'!H73/'Resultados Fin'!$H$68),0) -> 0.08167613636 | H8: =IF(Produção!H8<>0,('Resultados Fin'!I73/'Resultados Fin'!$I$68),0) -> 0.09602649007 | I8: =IF(Produção!I8<>0,('Resultados Fin'!J73/'Resultados Fin'!$J$68),0) -> 0.1818181818 | J8: =IF(Produção!J8<>0,('Resultados Fin'!K73/'Resultados Fin'!$K$68),0) -> 0 | K8: =IF(Produção!K8<>0,('Resultados Fin'!L73/'Resultados Fin'!$L$68),0) -> 0 | L8: =IF(Produção!L8<>0,('Resultados Fin'!M73/'Resultados Fin'!$M$68),0) -> 0 | M8: =IF(Produção!M8<>0,('Resultados Fin'!N73/'Resultados Fin'!$N$68),0) -> 0 | N8: =IF(Produção!N8<>0,('Resultados Fin'!O73/'Resultados Fin'!$O$68),0) -> 0 | O8: =IF(Produção!O8<>0,('Resultados Fin'!P73/'Resultados Fin'!$P$68),0) -> 0 | P8: =IF(Produção!P8<>0,('Resultados Fin'!Q73/'Resultados Fin'!$Q$68),0) -> 0 | Q8: =IF(Produção!Q8<>0,('Resultados Fin'!R73/'Resultados Fin'!$R$68),0) -> 0 | R8: =IF(Produção!R8<>0,('Resultados Fin'!S73/'Resultados Fin'!$S$68),0) -> 0 | S8: =IF(Produção!S8<>0,('Resultados Fin'!T73/'Resultados Fin'!$T$68),0) -> 0 | T8: =IF(Produção!T8<>0,('Resultados Fin'!U73/'Resultados Fin'!$U$68),0) -> 0 | U8: =IF(Produção!U8<>0,('Resultados Fin'!V73/'Resultados Fin'!$V$68),0) -> 0 | V8: =IF(Produção!V8<>0,('Resultados Fin'!W73/'Resultados Fin'!$W$68),0) -> 0 | W8: =IF(Produção!W8<>0,('Resultados Fin'!X73/'Resultados Fin'!$X$68),0) -> 0 | X8: =IF(Produção!X8<>0,('Resultados Fin'!Y73/'Resultados Fin'!$Y$68),0) -> 0 | Y8: =IF(Produção!Y8<>0,('Resultados Fin'!Z73/'Resultados Fin'!$Z$68),0) -> 0 | Z8: =IF(Produção!Z8<>0,('Resultados Fin'!AA73/'Resultados Fin'!$AA$68),0) -> 0 | AA8: =IF(Produção!AA8<>0,('Resultados Fin'!AB73/'Resultados Fin'!$AB$68),0) -> 0 | AB8: =IF(Produção!AB8<>0,('Resultados Fin'!AC73/'Resultados Fin'!$AC$68),0) -> 0 | AC8: =IF(Produção!AC8<>0,('Resultados Fin'!AD73/'Resultados Fin'!$AD$68),0) -> 0 | AD8: =IF(Produção!AD8<>0,('Resultados Fin'!AE73/'Resultados Fin'!$AE$68),0) -> 0 | AE8: =IF(Produção!AE8<>0,('Resultados Fin'!AF73/'Resultados Fin'!$AF$68),0) -> 0 | AF8: =IF(Produção!AF8<>0,('Resultados Fin'!AG73/'Resultados Fin'!$AG$68),0) -> 0 | AG8: =IF(Produção!AG8<>0,('Resultados Fin'!AH73/'Resultados Fin'!$AH$68),0) -> 0
A9: =IF(LEN('Parâmetros Gerais'!B17)=0," ",'Parâmetros Gerais'!B17) -> fruto pitanga | B9: =IF('Parâmetros Gerais'!E17<>"",IF('Parâmetros Gerais'!$F$10=1,CONCATENATE('Parâmetros Gerais'!E17,"/",'Parâmetros Gerais'!$G$10,),CONCATENATE('Parâmetros Gerais'!E17,"/",'Parâmetros Gerais'!$F$10,'Parâmetros Gerais'!$G$10,)),"") -> kg/0,63ha | D9: =IF(Produção!D9<>0,('Resultados Fin'!E74/'Resultados Fin'!$E$68),0) -> 0 | E9: =IF(Produção!E9<>0,('Resultados Fin'!F74/'Resultados Fin'!$F$68),0) -> 0.02791380999 | F9: =IF(Produção!F9<>0,('Resultados Fin'!G74/'Resultados Fin'!$G$68),0) -> 0.1561643836 | G9: =IF(Produção!G9<>0,('Resultados Fin'!H74/'Resultados Fin'!$H$68),0) -> 0.1012073864 | H9: =IF(Produção!H9<>0,('Resultados Fin'!I74/'Resultados Fin'!$I$68),0) -> 0.09437086093 | I9: =IF(Produção!I9<>0,('Resultados Fin'!J74/'Resultados Fin'!$J$68),0) -> 0 | J9: =IF(Produção!J9<>0,('Resultados Fin'!K74/'Resultados Fin'!$K$68),0) -> 0 | K9: =IF(Produção!K9<>0,('Resultados Fin'!L74/'Resultados Fin'!$L$68),0) -> 0 | L9: =IF(Produção!L9<>0,('Resultados Fin'!M74/'Resultados Fin'!$M$68),0) -> 0 | M9: =IF(Produção!M9<>0,('Resultados Fin'!N74/'Resultados Fin'!$N$68),0) -> 0 | N9: =IF(Produção!N9<>0,('Resultados Fin'!O74/'Resultados Fin'!$O$68),0) -> 0 | O9: =IF(Produção!O9<>0,('Resultados Fin'!P74/'Resultados Fin'!$P$68),0) -> 0 | P9: =IF(Produção!P9<>0,('Resultados Fin'!Q74/'Resultados Fin'!$Q$68),0) -> 0 | Q9: =IF(Produção!Q9<>0,('Resultados Fin'!R74/'Resultados Fin'!$R$68),0) -> 0 | R9: =IF(Produção!R9<>0,('Resultados Fin'!S74/'Resultados Fin'!$S$68),0) -> 0 | S9: =IF(Produção!S9<>0,('Resultados Fin'!T74/'Resultados Fin'!$T$68),0) -> 0 | T9: =IF(Produção!T9<>0,('Resultados Fin'!U74/'Resultados Fin'!$U$68),0) -> 0 | U9: =IF(Produção!U9<>0,('Resultados Fin'!V74/'Resultados Fin'!$V$68),0) -> 0 | V9: =IF(Produção!V9<>0,('Resultados Fin'!W74/'Resultados Fin'!$W$68),0) -> 0 | W9: =IF(Produção!W9<>0,('Resultados Fin'!X74/'Resultados Fin'!$X$68),0) -> 0 | X9: =IF(Produção!X9<>0,('Resultados Fin'!Y74/'Resultados Fin'!$Y$68),0) -> 0 | Y9: =IF(Produção!Y9<>0,('Resultados Fin'!Z74/'Resultados Fin'!$Z$68),0) -> 0 | Z9: =IF(Produção!Z9<>0,('Resultados Fin'!AA74/'Resultados Fin'!$AA$68),0) -> 0 | AA9: =IF(Produção!AA9<>0,('Resultados Fin'!AB74/'Resultados Fin'!$AB$68),0) -> 0 | AB9: =IF(Produção!AB9<>0,('Resultados Fin'!AC74/'Resultados Fin'!$AC$68),0) -> 0 | AC9: =IF(Produção!AC9<>0,('Resultados Fin'!AD74/'Resultados Fin'!$AD$68),0) -> 0 | AD9: =IF(Produção!AD9<>0,('Resultados Fin'!AE74/'Resultados Fin'!$AE$68),0) -> 0 | AE9: =IF(Produção!AE9<>0,('Resultados Fin'!AF74/'Resultados Fin'!$AF$68),0) -> 0 | AF9: =IF(Produção!AF9<>0,('Resultados Fin'!AG74/'Resultados Fin'!$AG$68),0) -> 0 | AG9: =IF(Produção!AG9<>0,('Resultados Fin'!AH74/'Resultados Fin'!$AH$68),0) -> 0
A10: =IF(LEN('Parâmetros Gerais'!B18)=0," ",'Parâmetros Gerais'!B18) -> castanha sapucaia | B10: =IF('Parâmetros Gerais'!E18<>"",IF('Parâmetros Gerais'!$F$10=1,CONCATENATE('Parâmetros Gerais'!E18,"/",'Parâmetros Gerais'!$G$10,),CONCATENATE('Parâmetros Gerais'!E18,"/",'Parâmetros Gerais'!$F$10,'Parâmetros Gerais'!$G$10,)),"") -> kg/0,63ha | D10: =IF(Produção!D10<>0,('Resultados Fin'!E75/'Resultados Fin'!$E$68),0) -> 0 | E10: =IF(Produção!E10<>0,('Resultados Fin'!F75/'Resultados Fin'!$F$68),0) -> 0 | F10: =IF(Produção!F10<>0,('Resultados Fin'!G75/'Resultados Fin'!$G$68),0) -> 0 | G10: =IF(Produção!G10<>0,('Resultados Fin'!H75/'Resultados Fin'!$H$68),0) -> 0 | H10: =IF(Produção!H10<>0,('Resultados Fin'!I75/'Resultados Fin'!$I$68),0) -> 0 | I10: =IF(Produção!I10<>0,('Resultados Fin'!J75/'Resultados Fin'!$J$68),0) -> 0 | J10: =IF(Produção!J10<>0,('Resultados Fin'!K75/'Resultados Fin'!$K$68),0) -> 0 | K10: =IF(Produção!K10<>0,('Resultados Fin'!L75/'Resultados Fin'!$L$68),0) -> 0 | L10: =IF(Produção!L10<>0,('Resultados Fin'!M75/'Resultados Fin'!$M$68),0) -> 0 | M10: =IF(Produção!M10<>0,('Resultados Fin'!N75/'Resultados Fin'!$N$68),0) -> 0 | N10: =IF(Produção!N10<>0,('Resultados Fin'!O75/'Resultados Fin'!$O$68),0) -> 0 | O10: =IF(Produção!O10<>0,('Resultados Fin'!P75/'Resultados Fin'!$P$68),0) -> 0.2066876522 | P10: =IF(Produção!P10<>0,('Resultados Fin'!Q75/'Resultados Fin'!$Q$68),0) -> 0.2515064187 | Q10: =IF(Produção!Q10<>0,('Resultados Fin'!R75/'Resultados Fin'!$R$68),0) -> 0.4335730029 | R10: =IF(Produção!R10<>0,('Resultados Fin'!S75/'Resultados Fin'!$S$68),0) -> 0.4404781023 | S10: =IF(Produção!S10<>0,('Resultados Fin'!T75/'Resultados Fin'!$T$68),0) -> 0.519943549 | T10: =IF(Produção!T10<>0,('Resultados Fin'!U75/'Resultados Fin'!$U$68),0) -> 0.519943549 | U10: =IF(Produção!U10<>0,('Resultados Fin'!V75/'Resultados Fin'!$V$68),0) -> 0.5026208085 | V10: =IF(Produção!V10<>0,('Resultados Fin'!W75/'Resultados Fin'!$W$68),0) -> 0.5026208085 | W10: =IF(Produção!W10<>0,('Resultados Fin'!X75/'Resultados Fin'!$X$68),0) -> 0.261581196 | X10: =IF(Produção!X10<>0,('Resultados Fin'!Y75/'Resultados Fin'!$Y$68),0) -> 0 | Y10: =IF(Produção!Y10<>0,('Resultados Fin'!Z75/'Resultados Fin'!$Z$68),0) -> 0 | Z10: =IF(Produção!Z10<>0,('Resultados Fin'!AA75/'Resultados Fin'!$AA$68),0) -> 0 | AA10: =IF(Produção!AA10<>0,('Resultados Fin'!AB75/'Resultados Fin'!$AB$68),0) -> 0 | AB10: =IF(Produção!AB10<>0,('Resultados Fin'!AC75/'Resultados Fin'!$AC$68),0) -> 0 | AC10: =IF(Produção!AC10<>0,('Resultados Fin'!AD75/'Resultados Fin'!$AD$68),0) -> 0 | AD10: =IF(Produção!AD10<>0,('Resultados Fin'!AE75/'Resultados Fin'!$AE$68),0) -> 0 | AE10: =IF(Produção!AE10<>0,('Resultados Fin'!AF75/'Resultados Fin'!$AF$68),0) -> 0 | AF10: =IF(Produção!AF10<>0,('Resultados Fin'!AG75/'Resultados Fin'!$AG$68),0) -> 0 | AG10: =IF(Produção!AG10<>0,('Resultados Fin'!AH75/'Resultados Fin'!$AH$68),0) -> 0
A11: =IF(LEN('Parâmetros Gerais'!B19)=0," ",'Parâmetros Gerais'!B19) -> fruto cajá | B11: =IF('Parâmetros Gerais'!E19<>"",IF('Parâmetros Gerais'!$F$10=1,CONCATENATE('Parâmetros Gerais'!E19,"/",'Parâmetros Gerais'!$G$10,),CONCATENATE('Parâmetros Gerais'!E19,"/",'Parâmetros Gerais'!$F$10,'Parâmetros Gerais'!$G$10,)),"") -> kg/0,63ha | D11: =IF(Produção!D11<>0,('Resultados Fin'!E76/'Resultados Fin'!$E$68),0) -> 0 | E11: =IF(Produção!E11<>0,('Resultados Fin'!F76/'Resultados Fin'!$F$68),0) -> 0 | F11: =IF(Produção!F11<>0,('Resultados Fin'!G76/'Resultados Fin'!$G$68),0) -> 0 | G11: =IF(Produção!G11<>0,('Resultados Fin'!H76/'Resultados Fin'!$H$68),0) -> 0.1193181818 | H11: =IF(Produção!H11<>0,('Resultados Fin'!I76/'Resultados Fin'!$I$68),0) -> 0.1589403974 | I11: =IF(Produção!I11<>0,('Resultados Fin'!J76/'Resultados Fin'!$J$68),0) -> 0.4743083004 | J11: =IF(Produção!J11<>0,('Resultados Fin'!K76/'Resultados Fin'!$K$68),0) -> 0.7085433983 | K11: =IF(Produção!K11<>0,('Resultados Fin'!L76/'Resultados Fin'!$L$68),0) -> 0.6447613143 | L11: =IF(Produção!L11<>0,('Resultados Fin'!M76/'Resultados Fin'!$M$68),0) -> 0.8163265306 | M11: =IF(Produção!M11<>0,('Resultados Fin'!N76/'Resultados Fin'!$N$68),0) -> 0.590431536 | N11: =IF(Produção!N11<>0,('Resultados Fin'!O76/'Resultados Fin'!$O$68),0) -> 0.7800848916 | O11: =IF(Produção!O11<>0,('Resultados Fin'!P76/'Resultados Fin'!$P$68),0) -> 0.4038724238 | P11: =IF(Produção!P11<>0,('Resultados Fin'!Q76/'Resultados Fin'!$Q$68),0) -> 0.3563007598 | Q11: =IF(Produção!Q11<>0,('Resultados Fin'!R76/'Resultados Fin'!$R$68),0) -> 0.2456913683 | R11: =IF(Produção!R11<>0,('Resultados Fin'!S76/'Resultados Fin'!$S$68),0) -> 0.1560026612 | S11: =IF(Produção!S11<>0,('Resultados Fin'!T76/'Resultados Fin'!$T$68),0) -> 0.168362673 | T11: =IF(Produção!T11<>0,('Resultados Fin'!U76/'Resultados Fin'!$U$68),0) -> 0.168362673 | U11: =IF(Produção!U11<>0,('Resultados Fin'!V76/'Resultados Fin'!$V$68),0) -> 0.1627534047 | V11: =IF(Produção!V11<>0,('Resultados Fin'!W76/'Resultados Fin'!$W$68),0) -> 0.1627534047 | W11: =IF(Produção!W11<>0,('Resultados Fin'!X76/'Resultados Fin'!$X$68),0) -> 0.08470248253 | X11: =IF(Produção!X11<>0,('Resultados Fin'!Y76/'Resultados Fin'!$Y$68),0) -> 0 | Y11: =IF(Produção!Y11<>0,('Resultados Fin'!Z76/'Resultados Fin'!$Z$68),0) -> 0 | Z11: =IF(Produção!Z11<>0,('Resultados Fin'!AA76/'Resultados Fin'!$AA$68),0) -> 0 | AA11: =IF(Produção!AA11<>0,('Resultados Fin'!AB76/'Resultados Fin'!$AB$68),0) -> 0 | AB11: =IF(Produção!AB11<>0,('Resultados Fin'!AC76/'Resultados Fin'!$AC$68),0) -> 0 | AC11: =IF(Produção!AC11<>0,('Resultados Fin'!AD76/'Resultados Fin'!$AD$68),0) -> 0 | AD11: =IF(Produção!AD11<>0,('Resultados Fin'!AE76/'Resultados Fin'!$AE$68),0) -> 0 | AE11: =IF(Produção!AE11<>0,('Resultados Fin'!AF76/'Resultados Fin'!$AF$68),0) -> 0 | AF11: =IF(Produção!AF11<>0,('Resultados Fin'!AG76/'Resultados Fin'!$AG$68),0) -> 0 | AG11: =IF(Produção!AG11<>0,('Resultados Fin'!AH76/'Resultados Fin'!$AH$68),0) -> 0
A12: =IF(LEN('Parâmetros Gerais'!B20)=0," ",'Parâmetros Gerais'!B20) -> semente urucum | B12: =IF('Parâmetros Gerais'!E20<>"",IF('Parâmetros Gerais'!$F$10=1,CONCATENATE('Parâmetros Gerais'!E20,"/",'Parâmetros Gerais'!$G$10,),CONCATENATE('Parâmetros Gerais'!E20,"/",'Parâmetros Gerais'!$F$10,'Parâmetros Gerais'!$G$10,)),"") -> kg/0,63ha | D12: =IF(Produção!D12<>0,('Resultados Fin'!E77/'Resultados Fin'!$E$68),0) -> 0 | E12: =IF(Produção!E12<>0,('Resultados Fin'!F77/'Resultados Fin'!$F$68),0) -> 0.2225269344 | F12: =IF(Produção!F12<>0,('Resultados Fin'!G77/'Resultados Fin'!$G$68),0) -> 0.6224657534 | G12: =IF(Produção!G12<>0,('Resultados Fin'!H77/'Resultados Fin'!$H$68),0) -> 0.6051136364 | H12: =IF(Produção!H12<>0,('Resultados Fin'!I77/'Resultados Fin'!$I$68),0) -> 0.5642384106 | I12: =IF(Produção!I12<>0,('Resultados Fin'!J77/'Resultados Fin'!$J$68),0) -> 0 | J12: =IF(Produção!J12<>0,('Resultados Fin'!K77/'Resultados Fin'!$K$68),0) -> 0 | K12: =IF(Produção!K12<>0,('Resultados Fin'!L77/'Resultados Fin'!$L$68),0) -> 0 | L12: =IF(Produção!L12<>0,('Resultados Fin'!M77/'Resultados Fin'!$M$68),0) -> 0 | M12: =IF(Produção!M12<>0,('Resultados Fin'!N77/'Resultados Fin'!$N$68),0) -> 0 | N12: =IF(Produção!N12<>0,('Resultados Fin'!O77/'Resultados Fin'!$O$68),0) -> 0 | O12: =IF(Produção!O12<>0,('Resultados Fin'!P77/'Resultados Fin'!$P$68),0) -> 0 | P12: =IF(Produção!P12<>0,('Resultados Fin'!Q77/'Resultados Fin'!$Q$68),0) -> 0 | Q12: =IF(Produção!Q12<>0,('Resultados Fin'!R77/'Resultados Fin'!$R$68),0) -> 0 | R12: =IF(Produção!R12<>0,('Resultados Fin'!S77/'Resultados Fin'!$S$68),0) -> 0 | S12: =IF(Produção!S12<>0,('Resultados Fin'!T77/'Resultados Fin'!$T$68),0) -> 0 | T12: =IF(Produção!T12<>0,('Resultados Fin'!U77/'Resultados Fin'!$U$68),0) -> 0 | U12: =IF(Produção!U12<>0,('Resultados Fin'!V77/'Resultados Fin'!$V$68),0) -> 0 | V12: =IF(Produção!V12<>0,('Resultados Fin'!W77/'Resultados Fin'!$W$68),0) -> 0 | W12: =IF(Produção!W12<>0,('Resultados Fin'!X77/'Resultados Fin'!$X$68),0) -> 0 | X12: =IF(Produção!X12<>0,('Resultados Fin'!Y77/'Resultados Fin'!$Y$68),0) -> 0 | Y12: =IF(Produção!Y12<>0,('Resultados Fin'!Z77/'Resultados Fin'!$Z$68),0) -> 0 | Z12: =IF(Produção!Z12<>0,('Resultados Fin'!AA77/'Resultados Fin'!$AA$68),0) -> 0 | AA12: =IF(Produção!AA12<>0,('Resultados Fin'!AB77/'Resultados Fin'!$AB$68),0) -> 0 | AB12: =IF(Produção!AB12<>0,('Resultados Fin'!AC77/'Resultados Fin'!$AC$68),0) -> 0 | AC12: =IF(Produção!AC12<>0,('Resultados Fin'!AD77/'Resultados Fin'!$AD$68),0) -> 0 | AD12: =IF(Produção!AD12<>0,('Resultados Fin'!AE77/'Resultados Fin'!$AE$68),0) -> 0 | AE12: =IF(Produção!AE12<>0,('Resultados Fin'!AF77/'Resultados Fin'!$AF$68),0) -> 0 | AF12: =IF(Produção!AF12<>0,('Resultados Fin'!AG77/'Resultados Fin'!$AG$68),0) -> 0 | AG12: =IF(Produção!AG12<>0,('Resultados Fin'!AH77/'Resultados Fin'!$AH$68),0) -> 0
A13: =IF(LEN('Parâmetros Gerais'!B21)=0," ",'Parâmetros Gerais'!B21) -> semente aroeira | B13: =IF('Parâmetros Gerais'!E21<>"",IF('Parâmetros Gerais'!$F$10=1,CONCATENATE('Parâmetros Gerais'!E21,"/",'Parâmetros Gerais'!$G$10,),CONCATENATE('Parâmetros Gerais'!E21,"/",'Parâmetros Gerais'!$F$10,'Parâmetros Gerais'!$G$10,)),"") -> kg/0,63ha | D13: =IF(Produção!D13<>0,('Resultados Fin'!E78/'Resultados Fin'!$E$68),0) -> 0 | E13: =IF(Produção!E13<>0,('Resultados Fin'!F78/'Resultados Fin'!$F$68),0) -> 0.03408423115 | F13: =IF(Produção!F13<>0,('Resultados Fin'!G78/'Resultados Fin'!$G$68),0) -> 0.09534246575 | G13: =IF(Produção!G13<>0,('Resultados Fin'!H78/'Resultados Fin'!$H$68),0) -> 0.09268465909 | H13: =IF(Produção!H13<>0,('Resultados Fin'!I78/'Resultados Fin'!$I$68),0) -> 0.08642384106 | I13: =IF(Produção!I13<>0,('Resultados Fin'!J78/'Resultados Fin'!$J$68),0) -> 0.3438735178 | J13: =IF(Produção!J13<>0,('Resultados Fin'!K78/'Resultados Fin'!$K$68),0) -> 0 | K13: =IF(Produção!K13<>0,('Resultados Fin'!L78/'Resultados Fin'!$L$68),0) -> 0 | L13: =IF(Produção!L13<>0,('Resultados Fin'!M78/'Resultados Fin'!$M$68),0) -> 0 | M13: =IF(Produção!M13<>0,('Resultados Fin'!N78/'Resultados Fin'!$N$68),0) -> 0 | N13: =IF(Produção!N13<>0,('Resultados Fin'!O78/'Resultados Fin'!$O$68),0) -> 0 | O13: =IF(Produção!O13<>0,('Resultados Fin'!P78/'Resultados Fin'!$P$68),0) -> 0 | P13: =IF(Produção!P13<>0,('Resultados Fin'!Q78/'Resultados Fin'!$Q$68),0) -> 0 | Q13: =IF(Produção!Q13<>0,('Resultados Fin'!R78/'Resultados Fin'!$R$68),0) -> 0 | R13: =IF(Produção!R13<>0,('Resultados Fin'!S78/'Resultados Fin'!$S$68),0) -> 0 | S13: =IF(Produção!S13<>0,('Resultados Fin'!T78/'Resultados Fin'!$T$68),0) -> 0 | T13: =IF(Produção!T13<>0,('Resultados Fin'!U78/'Resultados Fin'!$U$68),0) -> 0 | U13: =IF(Produção!U13<>0,('Resultados Fin'!V78/'Resultados Fin'!$V$68),0) -> 0 | V13: =IF(Produção!V13<>0,('Resultados Fin'!W78/'Resultados Fin'!$W$68),0) -> 0 | W13: =IF(Produção!W13<>0,('Resultados Fin'!X78/'Resultados Fin'!$X$68),0) -> 0 | X13: =IF(Produção!X13<>0,('Resultados Fin'!Y78/'Resultados Fin'!$Y$68),0) -> 0 | Y13: =IF(Produção!Y13<>0,('Resultados Fin'!Z78/'Resultados Fin'!$Z$68),0) -> 0 | Z13: =IF(Produção!Z13<>0,('Resultados Fin'!AA78/'Resultados Fin'!$AA$68),0) -> 0 | AA13: =IF(Produção!AA13<>0,('Resultados Fin'!AB78/'Resultados Fin'!$AB$68),0) -> 0 | AB13: =IF(Produção!AB13<>0,('Resultados Fin'!AC78/'Resultados Fin'!$AC$68),0) -> 0 | AC13: =IF(Produção!AC13<>0,('Resultados Fin'!AD78/'Resultados Fin'!$AD$68),0) -> 0 | AD13: =IF(Produção!AD13<>0,('Resultados Fin'!AE78/'Resultados Fin'!$AE$68),0) -> 0 | AE13: =IF(Produção!AE13<>0,('Resultados Fin'!AF78/'Resultados Fin'!$AF$68),0) -> 0 | AF13: =IF(Produção!AF13<>0,('Resultados Fin'!AG78/'Resultados Fin'!$AG$68),0) -> 0 | AG13: =IF(Produção!AG13<>0,('Resultados Fin'!AH78/'Resultados Fin'!$AH$68),0) -> 0
A14: =IF(LEN('Parâmetros Gerais'!B22)=0," ",'Parâmetros Gerais'!B22) -> raiz mandioca | B14: =IF('Parâmetros Gerais'!E22<>"",IF('Parâmetros Gerais'!$F$10=1,CONCATENATE('Parâmetros Gerais'!E22,"/",'Parâmetros Gerais'!$G$10,),CONCATENATE('Parâmetros Gerais'!E22,"/",'Parâmetros Gerais'!$F$10,'Parâmetros Gerais'!$G$10,)),"") -> kg/0,63ha | D14: =IF(Produção!D14<>0,('Resultados Fin'!E79/'Resultados Fin'!$E$68),0) -> 0 | E14: =IF(Produção!E14<>0,('Resultados Fin'!F79/'Resultados Fin'!$F$68),0) -> 0.4466209598 | F14: =IF(Produção!F14<>0,('Resultados Fin'!G79/'Resultados Fin'!$G$68),0) -> 0 | G14: =IF(Produção!G14<>0,('Resultados Fin'!H79/'Resultados Fin'!$H$68),0) -> 0 | H14: =IF(Produção!H14<>0,('Resultados Fin'!I79/'Resultados Fin'!$I$68),0) -> 0 | I14: =IF(Produção!I14<>0,('Resultados Fin'!J79/'Resultados Fin'!$J$68),0) -> 0 | J14: =IF(Produção!J14<>0,('Resultados Fin'!K79/'Resultados Fin'!$K$68),0) -> 0 | K14: =IF(Produção!K14<>0,('Resultados Fin'!L79/'Resultados Fin'!$L$68),0) -> 0 | L14: =IF(Produção!L14<>0,('Resultados Fin'!M79/'Resultados Fin'!$M$68),0) -> 0 | M14: =IF(Produção!M14<>0,('Resultados Fin'!N79/'Resultados Fin'!$N$68),0) -> 0 | N14: =IF(Produção!N14<>0,('Resultados Fin'!O79/'Resultados Fin'!$O$68),0) -> 0 | O14: =IF(Produção!O14<>0,('Resultados Fin'!P79/'Resultados Fin'!$P$68),0) -> 0 | P14: =IF(Produção!P14<>0,('Resultados Fin'!Q79/'Resultados Fin'!$Q$68),0) -> 0 | Q14: =IF(Produção!Q14<>0,('Resultados Fin'!R79/'Resultados Fin'!$R$68),0) -> 0 | R14: =IF(Produção!R14<>0,('Resultados Fin'!S79/'Resultados Fin'!$S$68),0) -> 0 | S14: =IF(Produção!S14<>0,('Resultados Fin'!T79/'Resultados Fin'!$T$68),0) -> 0 | T14: =IF(Produção!T14<>0,('Resultados Fin'!U79/'Resultados Fin'!$U$68),0) -> 0 | U14: =IF(Produção!U14<>0,('Resultados Fin'!V79/'Resultados Fin'!$V$68),0) -> 0 | V14: =IF(Produção!V14<>0,('Resultados Fin'!W79/'Resultados Fin'!$W$68),0) -> 0 | W14: =IF(Produção!W14<>0,('Resultados Fin'!X79/'Resultados Fin'!$X$68),0) -> 0 | X14: =IF(Produção!X14<>0,('Resultados Fin'!Y79/'Resultados Fin'!$Y$68),0) -> 0 | Y14: =IF(Produção!Y14<>0,('Resultados Fin'!Z79/'Resultados Fin'!$Z$68),0) -> 0 | Z14: =IF(Produção!Z14<>0,('Resultados Fin'!AA79/'Resultados Fin'!$AA$68),0) -> 0 | AA14: =IF(Produção!AA14<>0,('Resultados Fin'!AB79/'Resultados Fin'!$AB$68),0) -> 0 | AB14: =IF(Produção!AB14<>0,('Resultados Fin'!AC79/'Resultados Fin'!$AC$68),0) -> 0 | AC14: =IF(Produção!AC14<>0,('Resultados Fin'!AD79/'Resultados Fin'!$AD$68),0) -> 0 | AD14: =IF(Produção!AD14<>0,('Resultados Fin'!AE79/'Resultados Fin'!$AE$68),0) -> 0 | AE14: =IF(Produção!AE14<>0,('Resultados Fin'!AF79/'Resultados Fin'!$AF$68),0) -> 0 | AF14: =IF(Produção!AF14<>0,('Resultados Fin'!AG79/'Resultados Fin'!$AG$68),0) -> 0 | AG14: =IF(Produção!AG14<>0,('Resultados Fin'!AH79/'Resultados Fin'!$AH$68),0) -> 0
A15: =IF(LEN('Parâmetros Gerais'!B23)=0," ",'Parâmetros Gerais'!B23) -> fruto abacaxi | B15: =IF('Parâmetros Gerais'!E23<>"",IF('Parâmetros Gerais'!$F$10=1,CONCATENATE('Parâmetros Gerais'!E23,"/",'Parâmetros Gerais'!$G$10,),CONCATENATE('Parâmetros Gerais'!E23,"/",'Parâmetros Gerais'!$F$10,'Parâmetros Gerais'!$G$10,)),"") -> kg/0,63ha | D15: =IF(Produção!D15<>0,('Resultados Fin'!E80/'Resultados Fin'!$E$68),0) -> 0 | E15: =IF(Produção!E15<>0,('Resultados Fin'!F80/'Resultados Fin'!$F$68),0) -> 0.2688540646 | F15: =IF(Produção!F15<>0,('Resultados Fin'!G80/'Resultados Fin'!$G$68),0) -> 0 | G15: =IF(Produção!G15<>0,('Resultados Fin'!H80/'Resultados Fin'!$H$68),0) -> 0 | H15: =IF(Produção!H15<>0,('Resultados Fin'!I80/'Resultados Fin'!$I$68),0) -> 0 | I15: =IF(Produção!I15<>0,('Resultados Fin'!J80/'Resultados Fin'!$J$68),0) -> 0 | J15: =IF(Produção!J15<>0,('Resultados Fin'!K80/'Resultados Fin'!$K$68),0) -> 0 | K15: =IF(Produção!K15<>0,('Resultados Fin'!L80/'Resultados Fin'!$L$68),0) -> 0 | L15: =IF(Produção!L15<>0,('Resultados Fin'!M80/'Resultados Fin'!$M$68),0) -> 0 | M15: =IF(Produção!M15<>0,('Resultados Fin'!N80/'Resultados Fin'!$N$68),0) -> 0 | N15: =IF(Produção!N15<>0,('Resultados Fin'!O80/'Resultados Fin'!$O$68),0) -> 0 | O15: =IF(Produção!O15<>0,('Resultados Fin'!P80/'Resultados Fin'!$P$68),0) -> 0 | P15: =IF(Produção!P15<>0,('Resultados Fin'!Q80/'Resultados Fin'!$Q$68),0) -> 0 | Q15: =IF(Produção!Q15<>0,('Resultados Fin'!R80/'Resultados Fin'!$R$68),0) -> 0 | R15: =IF(Produção!R15<>0,('Resultados Fin'!S80/'Resultados Fin'!$S$68),0) -> 0 | S15: =IF(Produção!S15<>0,('Resultados Fin'!T80/'Resultados Fin'!$T$68),0) -> 0 | T15: =IF(Produção!T15<>0,('Resultados Fin'!U80/'Resultados Fin'!$U$68),0) -> 0 | U15: =IF(Produção!U15<>0,('Resultados Fin'!V80/'Resultados Fin'!$V$68),0) -> 0 | V15: =IF(Produção!V15<>0,('Resultados Fin'!W80/'Resultados Fin'!$W$68),0) -> 0 | W15: =IF(Produção!W15<>0,('Resultados Fin'!X80/'Resultados Fin'!$X$68),0) -> 0 | X15: =IF(Produção!X15<>0,('Resultados Fin'!Y80/'Resultados Fin'!$Y$68),0) -> 0 | Y15: =IF(Produção!Y15<>0,('Resultados Fin'!Z80/'Resultados Fin'!$Z$68),0) -> 0 | Z15: =IF(Produção!Z15<>0,('Resultados Fin'!AA80/'Resultados Fin'!$AA$68),0) -> 0 | AA15: =IF(Produção!AA15<>0,('Resultados Fin'!AB80/'Resultados Fin'!$AB$68),0) -> 0 | AB15: =IF(Produção!AB15<>0,('Resultados Fin'!AC80/'Resultados Fin'!$AC$68),0) -> 0 | AC15: =IF(Produção!AC15<>0,('Resultados Fin'!AD80/'Resultados Fin'!$AD$68),0) -> 0 | AD15: =IF(Produção!AD15<>0,('Resultados Fin'!AE80/'Resultados Fin'!$AE$68),0) -> 0 | AE15: =IF(Produção!AE15<>0,('Resultados Fin'!AF80/'Resultados Fin'!$AF$68),0) -> 0 | AF15: =IF(Produção!AF15<>0,('Resultados Fin'!AG80/'Resultados Fin'!$AG$68),0) -> 0 | AG15: =IF(Produção!AG15<>0,('Resultados Fin'!AH80/'Resultados Fin'!$AH$68),0) -> 0
A16: =IF(LEN('Parâmetros Gerais'!B24)=0," ",'Parâmetros Gerais'!B24) -> espigas milho | B16: =IF('Parâmetros Gerais'!E24<>"",IF('Parâmetros Gerais'!$F$10=1,CONCATENATE('Parâmetros Gerais'!E24,"/",'Parâmetros Gerais'!$G$10,),CONCATENATE('Parâmetros Gerais'!E24,"/",'Parâmetros Gerais'!$F$10,'Parâmetros Gerais'!$G$10,)),"") -> unidade/0,63ha | D16: =IF(Produção!D16<>0,('Resultados Fin'!E81/'Resultados Fin'!$E$68),0) -> 1 | E16: =IF(Produção!E16<>0,('Resultados Fin'!F81/'Resultados Fin'!$F$68),0) -> 0 | F16: =IF(Produção!F16<>0,('Resultados Fin'!G81/'Resultados Fin'!$G$68),0) -> 0 | G16: =IF(Produção!G16<>0,('Resultados Fin'!H81/'Resultados Fin'!$H$68),0) -> 0 | H16: =IF(Produção!H16<>0,('Resultados Fin'!I81/'Resultados Fin'!$I$68),0) -> 0 | I16: =IF(Produção!I16<>0,('Resultados Fin'!J81/'Resultados Fin'!$J$68),0) -> 0 | J16: =IF(Produção!J16<>0,('Resultados Fin'!K81/'Resultados Fin'!$K$68),0) -> 0 | K16: =IF(Produção!K16<>0,('Resultados Fin'!L81/'Resultados Fin'!$L$68),0) -> 0 | L16: =IF(Produção!L16<>0,('Resultados Fin'!M81/'Resultados Fin'!$M$68),0) -> 0 | M16: =IF(Produção!M16<>0,('Resultados Fin'!N81/'Resultados Fin'!$N$68),0) -> 0 | N16: =IF(Produção!N16<>0,('Resultados Fin'!O81/'Resultados Fin'!$O$68),0) -> 0 | O16: =IF(Produção!O16<>0,('Resultados Fin'!P81/'Resultados Fin'!$P$68),0) -> 0 | P16: =IF(Produção!P16<>0,('Resultados Fin'!Q81/'Resultados Fin'!$Q$68),0) -> 0 | Q16: =IF(Produção!Q16<>0,('Resultados Fin'!R81/'Resultados Fin'!$R$68),0) -> 0 | R16: =IF(Produção!R16<>0,('Resultados Fin'!S81/'Resultados Fin'!$S$68),0) -> 0 | S16: =IF(Produção!S16<>0,('Resultados Fin'!T81/'Resultados Fin'!$T$68),0) -> 0 | T16: =IF(Produção!T16<>0,('Resultados Fin'!U81/'Resultados Fin'!$U$68),0) -> 0 | U16: =IF(Produção!U16<>0,('Resultados Fin'!V81/'Resultados Fin'!$V$68),0) -> 0 | V16: =IF(Produção!V16<>0,('Resultados Fin'!W81/'Resultados Fin'!$W$68),0) -> 0 | W16: =IF(Produção!W16<>0,('Resultados Fin'!X81/'Resultados Fin'!$X$68),0) -> 0 | X16: =IF(Produção!X16<>0,('Resultados Fin'!Y81/'Resultados Fin'!$Y$68),0) -> 0 | Y16: =IF(Produção!Y16<>0,('Resultados Fin'!Z81/'Resultados Fin'!$Z$68),0) -> 0 | Z16: =IF(Produção!Z16<>0,('Resultados Fin'!AA81/'Resultados Fin'!$AA$68),0) -> 0 | AA16: =IF(Produção!AA16<>0,('Resultados Fin'!AB81/'Resultados Fin'!$AB$68),0) -> 0 | AB16: =IF(Produção!AB16<>0,('Resultados Fin'!AC81/'Resultados Fin'!$AC$68),0) -> 0 | AC16: =IF(Produção!AC16<>0,('Resultados Fin'!AD81/'Resultados Fin'!$AD$68),0) -> 0 | AD16: =IF(Produção!AD16<>0,('Resultados Fin'!AE81/'Resultados Fin'!$AE$68),0) -> 0 | AE16: =IF(Produção!AE16<>0,('Resultados Fin'!AF81/'Resultados Fin'!$AF$68),0) -> 0 | AF16: =IF(Produção!AF16<>0,('Resultados Fin'!AG81/'Resultados Fin'!$AG$68),0) -> 0 | AG16: =IF(Produção!AG16<>0,('Resultados Fin'!AH81/'Resultados Fin'!$AH$68),0) -> 0
A17: =IF(LEN('Parâmetros Gerais'!B25)=0," ",'Parâmetros Gerais'!B25) -> estaca sansão do campo | B17: =IF('Parâmetros Gerais'!E25<>"",IF('Parâmetros Gerais'!$F$10=1,CONCATENATE('Parâmetros Gerais'!E25,"/",'Parâmetros Gerais'!$G$10,),CONCATENATE('Parâmetros Gerais'!E25,"/",'Parâmetros Gerais'!$F$10,'Parâmetros Gerais'!$G$10,)),"") -> unidade/0,63ha | D17: =IF(Produção!D17<>0,('Resultados Fin'!E82/'Resultados Fin'!$E$68),0) -> 0 | E17: =IF(Produção!E17<>0,('Resultados Fin'!F82/'Resultados Fin'!$F$68),0) -> 0 | F17: =IF(Produção!F17<>0,('Resultados Fin'!G82/'Resultados Fin'!$G$68),0) -> 0 | G17: =IF(Produção!G17<>0,('Resultados Fin'!H82/'Resultados Fin'!$H$68),0) -> 0 | H17: =IF(Produção!H17<>0,('Resultados Fin'!I82/'Resultados Fin'!$I$68),0) -> 0 | I17: =IF(Produção!I17<>0,('Resultados Fin'!J82/'Resultados Fin'!$J$68),0) -> 0 | J17: =IF(Produção!J17<>0,('Resultados Fin'!K82/'Resultados Fin'!$K$68),0) -> 0 | K17: =IF(Produção!K17<>0,('Resultados Fin'!L82/'Resultados Fin'!$L$68),0) -> 0.2231866088 | L17: =IF(Produção!L17<>0,('Resultados Fin'!M82/'Resultados Fin'!$M$68),0) -> 0 | M17: =IF(Produção!M17<>0,('Resultados Fin'!N82/'Resultados Fin'!$N$68),0) -> 0 | N17: =IF(Produção!N17<>0,('Resultados Fin'!O82/'Resultados Fin'!$O$68),0) -> 0 | O17: =IF(Produção!O17<>0,('Resultados Fin'!P82/'Resultados Fin'!$P$68),0) -> 0 | P17: =IF(Produção!P17<>0,('Resultados Fin'!Q82/'Resultados Fin'!$Q$68),0) -> 0 | Q17: =IF(Produção!Q17<>0,('Resultados Fin'!R82/'Resultados Fin'!$R$68),0) -> 0 | R17: =IF(Produção!R17<>0,('Resultados Fin'!S82/'Resultados Fin'!$S$68),0) -> 0 | S17: =IF(Produção!S17<>0,('Resultados Fin'!T82/'Resultados Fin'!$T$68),0) -> 0 | T17: =IF(Produção!T17<>0,('Resultados Fin'!U82/'Resultados Fin'!$U$68),0) -> 0 | U17: =IF(Produção!U17<>0,('Resultados Fin'!V82/'Resultados Fin'!$V$68),0) -> 0 | V17: =IF(Produção!V17<>0,('Resultados Fin'!W82/'Resultados Fin'!$W$68),0) -> 0 | W17: =IF(Produção!W17<>0,('Resultados Fin'!X82/'Resultados Fin'!$X$68),0) -> 0 | X17: =IF(Produção!X17<>0,('Resultados Fin'!Y82/'Resultados Fin'!$Y$68),0) -> 0 | Y17: =IF(Produção!Y17<>0,('Resultados Fin'!Z82/'Resultados Fin'!$Z$68),0) -> 0 | Z17: =IF(Produção!Z17<>0,('Resultados Fin'!AA82/'Resultados Fin'!$AA$68),0) -> 0 | AA17: =IF(Produção!AA17<>0,('Resultados Fin'!AB82/'Resultados Fin'!$AB$68),0) -> 0 | AB17: =IF(Produção!AB17<>0,('Resultados Fin'!AC82/'Resultados Fin'!$AC$68),0) -> 0 | AC17: =IF(Produção!AC17<>0,('Resultados Fin'!AD82/'Resultados Fin'!$AD$68),0) -> 0 | AD17: =IF(Produção!AD17<>0,('Resultados Fin'!AE82/'Resultados Fin'!$AE$68),0) -> 0 | AE17: =IF(Produção!AE17<>0,('Resultados Fin'!AF82/'Resultados Fin'!$AF$68),0) -> 0 | AF17: =IF(Produção!AF17<>0,('Resultados Fin'!AG82/'Resultados Fin'!$AG$68),0) -> 0 | AG17: =IF(Produção!AG17<>0,('Resultados Fin'!AH82/'Resultados Fin'!$AH$68),0) -> 0
A18: =IF(LEN('Parâmetros Gerais'!B26)=0," ",'Parâmetros Gerais'!B26) -> madeira madeira nova | B18: =IF('Parâmetros Gerais'!E26<>"",IF('Parâmetros Gerais'!$F$10=1,CONCATENATE('Parâmetros Gerais'!E26,"/",'Parâmetros Gerais'!$G$10,),CONCATENATE('Parâmetros Gerais'!E26,"/",'Parâmetros Gerais'!$F$10,'Parâmetros Gerais'!$G$10,)),"") -> m3/0,63ha | D18: =IF(Produção!D18<>0,('Resultados Fin'!E83/'Resultados Fin'!$E$68),0) -> 0 | E18: =IF(Produção!E18<>0,('Resultados Fin'!F83/'Resultados Fin'!$F$68),0) -> 0 | F18: =IF(Produção!F18<>0,('Resultados Fin'!G83/'Resultados Fin'!$G$68),0) -> 0 | G18: =IF(Produção!G18<>0,('Resultados Fin'!H83/'Resultados Fin'!$H$68),0) -> 0 | H18: =IF(Produção!H18<>0,('Resultados Fin'!I83/'Resultados Fin'!$I$68),0) -> 0 | I18: =IF(Produção!I18<>0,('Resultados Fin'!J83/'Resultados Fin'!$J$68),0) -> 0 | J18: =IF(Produção!J18<>0,('Resultados Fin'!K83/'Resultados Fin'!$K$68),0) -> 0 | K18: =IF(Produção!K18<>0,('Resultados Fin'!L83/'Resultados Fin'!$L$68),0) -> 0 | L18: =IF(Produção!L18<>0,('Resultados Fin'!M83/'Resultados Fin'!$M$68),0) -> 0 | M18: =IF(Produção!M18<>0,('Resultados Fin'!N83/'Resultados Fin'!$N$68),0) -> 0 | N18: =IF(Produção!N18<>0,('Resultados Fin'!O83/'Resultados Fin'!$O$68),0) -> 0 | O18: =IF(Produção!O18<>0,('Resultados Fin'!P83/'Resultados Fin'!$P$68),0) -> 0 | P18: =IF(Produção!P18<>0,('Resultados Fin'!Q83/'Resultados Fin'!$Q$68),0) -> 0 | Q18: =IF(Produção!Q18<>0,('Resultados Fin'!R83/'Resultados Fin'!$R$68),0) -> 0 | R18: =IF(Produção!R18<>0,('Resultados Fin'!S83/'Resultados Fin'!$S$68),0) -> 0.1147078391 | S18: =IF(Produção!S18<>0,('Resultados Fin'!T83/'Resultados Fin'!$T$68),0) -> 0 | T18: =IF(Produção!T18<>0,('Resultados Fin'!U83/'Resultados Fin'!$U$68),0) -> 0 | U18: =IF(Produção!U18<>0,('Resultados Fin'!V83/'Resultados Fin'!$V$68),0) -> 0 | V18: =IF(Produção!V18<>0,('Resultados Fin'!W83/'Resultados Fin'!$W$68),0) -> 0 | W18: =IF(Produção!W18<>0,('Resultados Fin'!X83/'Resultados Fin'!$X$68),0) -> 0 | X18: =IF(Produção!X18<>0,('Resultados Fin'!Y83/'Resultados Fin'!$Y$68),0) -> 0 | Y18: =IF(Produção!Y18<>0,('Resultados Fin'!Z83/'Resultados Fin'!$Z$68),0) -> 0 | Z18: =IF(Produção!Z18<>0,('Resultados Fin'!AA83/'Resultados Fin'!$AA$68),0) -> 0 | AA18: =IF(Produção!AA18<>0,('Resultados Fin'!AB83/'Resultados Fin'!$AB$68),0) -> 0 | AB18: =IF(Produção!AB18<>0,('Resultados Fin'!AC83/'Resultados Fin'!$AC$68),0) -> 0 | AC18: =IF(Produção!AC18<>0,('Resultados Fin'!AD83/'Resultados Fin'!$AD$68),0) -> 0 | AD18: =IF(Produção!AD18<>0,('Resultados Fin'!AE83/'Resultados Fin'!$AE$68),0) -> 0 | AE18: =IF(Produção!AE18<>0,('Resultados Fin'!AF83/'Resultados Fin'!$AF$68),0) -> 0 | AF18: =IF(Produção!AF18<>0,('Resultados Fin'!AG83/'Resultados Fin'!$AG$68),0) -> 0 | AG18: =IF(Produção!AG18<>0,('Resultados Fin'!AH83/'Resultados Fin'!$AH$68),0) -> 0
A19: =IF(LEN('Parâmetros Gerais'!B27)=0," ",'Parâmetros Gerais'!B27) -> lenha fedegoso | B19: =IF('Parâmetros Gerais'!E27<>"",IF('Parâmetros Gerais'!$F$10=1,CONCATENATE('Parâmetros Gerais'!E27,"/",'Parâmetros Gerais'!$G$10,),CONCATENATE('Parâmetros Gerais'!E27,"/",'Parâmetros Gerais'!$F$10,'Parâmetros Gerais'!$G$10,)),"") -> m3/0,63ha | D19: =IF(Produção!D19<>0,('Resultados Fin'!E84/'Resultados Fin'!$E$68),0) -> 0 | E19: =IF(Produção!E19<>0,('Resultados Fin'!F84/'Resultados Fin'!$F$68),0) -> 0 | F19: =IF(Produção!F19<>0,('Resultados Fin'!G84/'Resultados Fin'!$G$68),0) -> 0 | G19: =IF(Produção!G19<>0,('Resultados Fin'!H84/'Resultados Fin'!$H$68),0) -> 0 | H19: =IF(Produção!H19<>0,('Resultados Fin'!I84/'Resultados Fin'!$I$68),0) -> 0 | I19: =IF(Produção!I19<>0,('Resultados Fin'!J84/'Resultados Fin'!$J$68),0) -> 0 | J19: =IF(Produção!J19<>0,('Resultados Fin'!K84/'Resultados Fin'!$K$68),0) -> 0.06812917291 | K19: =IF(Produção!K19<>0,('Resultados Fin'!L84/'Resultados Fin'!$L$68),0) -> 0 | L19: =IF(Produção!L19<>0,('Resultados Fin'!M84/'Resultados Fin'!$M$68),0) -> 0 | M19: =IF(Produção!M19<>0,('Resultados Fin'!N84/'Resultados Fin'!$N$68),0) -> 0 | N19: =IF(Produção!N19<>0,('Resultados Fin'!O84/'Resultados Fin'!$O$68),0) -> 0 | O19: =IF(Produção!O19<>0,('Resultados Fin'!P84/'Resultados Fin'!$P$68),0) -> 0 | P19: =IF(Produção!P19<>0,('Resultados Fin'!Q84/'Resultados Fin'!$Q$68),0) -> 0 | Q19: =IF(Produção!Q19<>0,('Resultados Fin'!R84/'Resultados Fin'!$R$68),0) -> 0 | R19: =IF(Produção!R19<>0,('Resultados Fin'!S84/'Resultados Fin'!$S$68),0) -> 0 | S19: =IF(Produção!S19<>0,('Resultados Fin'!T84/'Resultados Fin'!$T$68),0) -> 0 | T19: =IF(Produção!T19<>0,('Resultados Fin'!U84/'Resultados Fin'!$U$68),0) -> 0 | U19: =IF(Produção!U19<>0,('Resultados Fin'!V84/'Resultados Fin'!$V$68),0) -> 0 | V19: =IF(Produção!V19<>0,('Resultados Fin'!W84/'Resultados Fin'!$W$68),0) -> 0 | W19: =IF(Produção!W19<>0,('Resultados Fin'!X84/'Resultados Fin'!$X$68),0) -> 0 | X19: =IF(Produção!X19<>0,('Resultados Fin'!Y84/'Resultados Fin'!$Y$68),0) -> 0 | Y19: =IF(Produção!Y19<>0,('Resultados Fin'!Z84/'Resultados Fin'!$Z$68),0) -> 0 | Z19: =IF(Produção!Z19<>0,('Resultados Fin'!AA84/'Resultados Fin'!$AA$68),0) -> 0 | AA19: =IF(Produção!AA19<>0,('Resultados Fin'!AB84/'Resultados Fin'!$AB$68),0) -> 0 | AB19: =IF(Produção!AB19<>0,('Resultados Fin'!AC84/'Resultados Fin'!$AC$68),0) -> 0 | AC19: =IF(Produção!AC19<>0,('Resultados Fin'!AD84/'Resultados Fin'!$AD$68),0) -> 0 | AD19: =IF(Produção!AD19<>0,('Resultados Fin'!AE84/'Resultados Fin'!$AE$68),0) -> 0 | AE19: =IF(Produção!AE19<>0,('Resultados Fin'!AF84/'Resultados Fin'!$AF$68),0) -> 0 | AF19: =IF(Produção!AF19<>0,('Resultados Fin'!AG84/'Resultados Fin'!$AG$68),0) -> 0 | AG19: =IF(Produção!AG19<>0,('Resultados Fin'!AH84/'Resultados Fin'!$AH$68),0) -> 0
A20: =IF(LEN('Parâmetros Gerais'!B28)=0," ",'Parâmetros Gerais'!B28) -> estaca pau d'alho | B20: =IF('Parâmetros Gerais'!E28<>"",IF('Parâmetros Gerais'!$F$10=1,CONCATENATE('Parâmetros Gerais'!E28,"/",'Parâmetros Gerais'!$G$10,),CONCATENATE('Parâmetros Gerais'!E28,"/",'Parâmetros Gerais'!$F$10,'Parâmetros Gerais'!$G$10,)),"") -> unidade/0,63ha | D20: =IF(Produção!D20<>0,('Resultados Fin'!E85/'Resultados Fin'!$E$68),0) -> 0 | E20: =IF(Produção!E20<>0,('Resultados Fin'!F85/'Resultados Fin'!$F$68),0) -> 0 | F20: =IF(Produção!F20<>0,('Resultados Fin'!G85/'Resultados Fin'!$G$68),0) -> 0 | G20: =IF(Produção!G20<>0,('Resultados Fin'!H85/'Resultados Fin'!$H$68),0) -> 0 | H20: =IF(Produção!H20<>0,('Resultados Fin'!I85/'Resultados Fin'!$I$68),0) -> 0 | I20: =IF(Produção!I20<>0,('Resultados Fin'!J85/'Resultados Fin'!$J$68),0) -> 0 | J20: =IF(Produção!J20<>0,('Resultados Fin'!K85/'Resultados Fin'!$K$68),0) -> 0 | K20: =IF(Produção!K20<>0,('Resultados Fin'!L85/'Resultados Fin'!$L$68),0) -> 0 | L20: =IF(Produção!L20<>0,('Resultados Fin'!M85/'Resultados Fin'!$M$68),0) -> 0 | M20: =IF(Produção!M20<>0,('Resultados Fin'!N85/'Resultados Fin'!$N$68),0) -> 0 | N20: =IF(Produção!N20<>0,('Resultados Fin'!O85/'Resultados Fin'!$O$68),0) -> 0 | O20: =IF(Produção!O20<>0,('Resultados Fin'!P85/'Resultados Fin'!$P$68),0) -> 0 | P20: =IF(Produção!P20<>0,('Resultados Fin'!Q85/'Resultados Fin'!$Q$68),0) -> 0 | Q20: =IF(Produção!Q20<>0,('Resultados Fin'!R85/'Resultados Fin'!$R$68),0) -> 0 | R20: =IF(Produção!R20<>0,('Resultados Fin'!S85/'Resultados Fin'!$S$68),0) -> 0 | S20: =IF(Produção!S20<>0,('Resultados Fin'!T85/'Resultados Fin'!$T$68),0) -> 0 | T20: =IF(Produção!T20<>0,('Resultados Fin'!U85/'Resultados Fin'!$U$68),0) -> 0 | U20: =IF(Produção!U20<>0,('Resultados Fin'!V85/'Resultados Fin'!$V$68),0) -> 0 | V20: =IF(Produção!V20<>0,('Resultados Fin'!W85/'Resultados Fin'!$W$68),0) -> 0 | W20: =IF(Produção!W20<>0,('Resultados Fin'!X85/'Resultados Fin'!$X$68),0) -> 0 | X20: =IF(Produção!X20<>0,('Resultados Fin'!Y85/'Resultados Fin'!$Y$68),0) -> 0 | Y20: =IF(Produção!Y20<>0,('Resultados Fin'!Z85/'Resultados Fin'!$Z$68),0) -> 0 | Z20: =IF(Produção!Z20<>0,('Resultados Fin'!AA85/'Resultados Fin'!$AA$68),0) -> 0 | AA20: =IF(Produção!AA20<>0,('Resultados Fin'!AB85/'Resultados Fin'!$AB$68),0) -> 0 | AB20: =IF(Produção!AB20<>0,('Resultados Fin'!AC85/'Resultados Fin'!$AC$68),0) -> 0 | AC20: =IF(Produção!AC20<>0,('Resultados Fin'!AD85/'Resultados Fin'!$AD$68),0) -> 0 | AD20: =IF(Produção!AD20<>0,('Resultados Fin'!AE85/'Resultados Fin'!$AE$68),0) -> 0 | AE20: =IF(Produção!AE20<>0,('Resultados Fin'!AF85/'Resultados Fin'!$AF$68),0) -> 0 | AF20: =IF(Produção!AF20<>0,('Resultados Fin'!AG85/'Resultados Fin'!$AG$68),0) -> 0 | AG20: =IF(Produção!AG20<>0,('Resultados Fin'!AH85/'Resultados Fin'!$AH$68),0) -> 0
A21: =IF(LEN('Parâmetros Gerais'!B29)=0," ",'Parâmetros Gerais'!B29) -> caixotaria boleira | B21: =IF('Parâmetros Gerais'!E29<>"",IF('Parâmetros Gerais'!$F$10=1,CONCATENATE('Parâmetros Gerais'!E29,"/",'Parâmetros Gerais'!$G$10,),CONCATENATE('Parâmetros Gerais'!E29,"/",'Parâmetros Gerais'!$F$10,'Parâmetros Gerais'!$G$10,)),"") -> m3/0,63ha | D21: =IF(Produção!D21<>0,('Resultados Fin'!E86/'Resultados Fin'!$E$68),0) -> 0 | E21: =IF(Produção!E21<>0,('Resultados Fin'!F86/'Resultados Fin'!$F$68),0) -> 0 | F21: =IF(Produção!F21<>0,('Resultados Fin'!G86/'Resultados Fin'!$G$68),0) -> 0 | G21: =IF(Produção!G21<>0,('Resultados Fin'!H86/'Resultados Fin'!$H$68),0) -> 0 | H21: =IF(Produção!H21<>0,('Resultados Fin'!I86/'Resultados Fin'!$I$68),0) -> 0 | I21: =IF(Produção!I21<>0,('Resultados Fin'!J86/'Resultados Fin'!$J$68),0) -> 0 | J21: =IF(Produção!J21<>0,('Resultados Fin'!K86/'Resultados Fin'!$K$68),0) -> 0.1362583458 | K21: =IF(Produção!K21<>0,('Resultados Fin'!L86/'Resultados Fin'!$L$68),0) -> 0 | L21: =IF(Produção!L21<>0,('Resultados Fin'!M86/'Resultados Fin'!$M$68),0) -> 0 | M21: =IF(Produção!M21<>0,('Resultados Fin'!N86/'Resultados Fin'!$N$68),0) -> 0 | N21: =IF(Produção!N21<>0,('Resultados Fin'!O86/'Resultados Fin'!$O$68),0) -> 0 | O21: =IF(Produção!O21<>0,('Resultados Fin'!P86/'Resultados Fin'!$P$68),0) -> 0 | P21: =IF(Produção!P21<>0,('Resultados Fin'!Q86/'Resultados Fin'!$Q$68),0) -> 0 | Q21: =IF(Produção!Q21<>0,('Resultados Fin'!R86/'Resultados Fin'!$R$68),0) -> 0 | R21: =IF(Produção!R21<>0,('Resultados Fin'!S86/'Resultados Fin'!$S$68),0) -> 0 | S21: =IF(Produção!S21<>0,('Resultados Fin'!T86/'Resultados Fin'!$T$68),0) -> 0 | T21: =IF(Produção!T21<>0,('Resultados Fin'!U86/'Resultados Fin'!$U$68),0) -> 0 | U21: =IF(Produção!U21<>0,('Resultados Fin'!V86/'Resultados Fin'!$V$68),0) -> 0 | V21: =IF(Produção!V21<>0,('Resultados Fin'!W86/'Resultados Fin'!$W$68),0) -> 0 | W21: =IF(Produção!W21<>0,('Resultados Fin'!X86/'Resultados Fin'!$X$68),0) -> 0 | X21: =IF(Produção!X21<>0,('Resultados Fin'!Y86/'Resultados Fin'!$Y$68),0) -> 0 | Y21: =IF(Produção!Y21<>0,('Resultados Fin'!Z86/'Resultados Fin'!$Z$68),0) -> 0 | Z21: =IF(Produção!Z21<>0,('Resultados Fin'!AA86/'Resultados Fin'!$AA$68),0) -> 0 | AA21: =IF(Produção!AA21<>0,('Resultados Fin'!AB86/'Resultados Fin'!$AB$68),0) -> 0 | AB21: =IF(Produção!AB21<>0,('Resultados Fin'!AC86/'Resultados Fin'!$AC$68),0) -> 0 | AC21: =IF(Produção!AC21<>0,('Resultados Fin'!AD86/'Resultados Fin'!$AD$68),0) -> 0 | AD21: =IF(Produção!AD21<>0,('Resultados Fin'!AE86/'Resultados Fin'!$AE$68),0) -> 0 | AE21: =IF(Produção!AE21<>0,('Resultados Fin'!AF86/'Resultados Fin'!$AF$68),0) -> 0 | AF21: =IF(Produção!AF21<>0,('Resultados Fin'!AG86/'Resultados Fin'!$AG$68),0) -> 0 | AG21: =IF(Produção!AG21<>0,('Resultados Fin'!AH86/'Resultados Fin'!$AH$68),0) -> 0
A22: =IF(LEN('Parâmetros Gerais'!B30)=0," ",'Parâmetros Gerais'!B30) -> madeira angico roxo | B22: =IF('Parâmetros Gerais'!E30<>"",IF('Parâmetros Gerais'!$F$10=1,CONCATENATE('Parâmetros Gerais'!E30,"/",'Parâmetros Gerais'!$G$10,),CONCATENATE('Parâmetros Gerais'!E30,"/",'Parâmetros Gerais'!$F$10,'Parâmetros Gerais'!$G$10,)),"") -> m3/0,63ha | D22: =IF(Produção!D22<>0,('Resultados Fin'!E87/'Resultados Fin'!$E$68),0) -> 0 | E22: =IF(Produção!E22<>0,('Resultados Fin'!F87/'Resultados Fin'!$F$68),0) -> 0 | F22: =IF(Produção!F22<>0,('Resultados Fin'!G87/'Resultados Fin'!$G$68),0) -> 0 | G22: =IF(Produção!G22<>0,('Resultados Fin'!H87/'Resultados Fin'!$H$68),0) -> 0 | H22: =IF(Produção!H22<>0,('Resultados Fin'!I87/'Resultados Fin'!$I$68),0) -> 0 | I22: =IF(Produção!I22<>0,('Resultados Fin'!J87/'Resultados Fin'!$J$68),0) -> 0 | J22: =IF(Produção!J22<>0,('Resultados Fin'!K87/'Resultados Fin'!$K$68),0) -> 0 | K22: =IF(Produção!K22<>0,('Resultados Fin'!L87/'Resultados Fin'!$L$68),0) -> 0 | L22: =IF(Produção!L22<>0,('Resultados Fin'!M87/'Resultados Fin'!$M$68),0) -> 0 | M22: =IF(Produção!M22<>0,('Resultados Fin'!N87/'Resultados Fin'!$N$68),0) -> 0.2431188678 | N22: =IF(Produção!N22<>0,('Resultados Fin'!O87/'Resultados Fin'!$O$68),0) -> 0 | O22: =IF(Produção!O22<>0,('Resultados Fin'!P87/'Resultados Fin'!$P$68),0) -> 0 | P22: =IF(Produção!P22<>0,('Resultados Fin'!Q87/'Resultados Fin'!$Q$68),0) -> 0 | Q22: =IF(Produção!Q22<>0,('Resultados Fin'!R87/'Resultados Fin'!$R$68),0) -> 0 | R22: =IF(Produção!R22<>0,('Resultados Fin'!S87/'Resultados Fin'!$S$68),0) -> 0 | S22: =IF(Produção!S22<>0,('Resultados Fin'!T87/'Resultados Fin'!$T$68),0) -> 0 | T22: =IF(Produção!T22<>0,('Resultados Fin'!U87/'Resultados Fin'!$U$68),0) -> 0 | U22: =IF(Produção!U22<>0,('Resultados Fin'!V87/'Resultados Fin'!$V$68),0) -> 0 | V22: =IF(Produção!V22<>0,('Resultados Fin'!W87/'Resultados Fin'!$W$68),0) -> 0 | W22: =IF(Produção!W22<>0,('Resultados Fin'!X87/'Resultados Fin'!$X$68),0) -> 0.04359686601 | X22: =IF(Produção!X22<>0,('Resultados Fin'!Y87/'Resultados Fin'!$Y$68),0) -> 0 | Y22: =IF(Produção!Y22<>0,('Resultados Fin'!Z87/'Resultados Fin'!$Z$68),0) -> 0 | Z22: =IF(Produção!Z22<>0,('Resultados Fin'!AA87/'Resultados Fin'!$AA$68),0) -> 0 | AA22: =IF(Produção!AA22<>0,('Resultados Fin'!AB87/'Resultados Fin'!$AB$68),0) -> 0 | AB22: =IF(Produção!AB22<>0,('Resultados Fin'!AC87/'Resultados Fin'!$AC$68),0) -> 0 | AC22: =IF(Produção!AC22<>0,('Resultados Fin'!AD87/'Resultados Fin'!$AD$68),0) -> 0 | AD22: =IF(Produção!AD22<>0,('Resultados Fin'!AE87/'Resultados Fin'!$AE$68),0) -> 0 | AE22: =IF(Produção!AE22<>0,('Resultados Fin'!AF87/'Resultados Fin'!$AF$68),0) -> 0 | AF22: =IF(Produção!AF22<>0,('Resultados Fin'!AG87/'Resultados Fin'!$AG$68),0) -> 0 | AG22: =IF(Produção!AG22<>0,('Resultados Fin'!AH87/'Resultados Fin'!$AH$68),0) -> 0
A23: =IF(LEN('Parâmetros Gerais'!B31)=0," ",'Parâmetros Gerais'!B31) -> madeira ipê roxo | B23: =IF('Parâmetros Gerais'!E31<>"",IF('Parâmetros Gerais'!$F$10=1,CONCATENATE('Parâmetros Gerais'!E31,"/",'Parâmetros Gerais'!$G$10,),CONCATENATE('Parâmetros Gerais'!E31,"/",'Parâmetros Gerais'!$F$10,'Parâmetros Gerais'!$G$10,)),"") -> m3/0,63ha | D23: =IF(Produção!D23<>0,('Resultados Fin'!E88/'Resultados Fin'!$E$68),0) -> 0 | E23: =IF(Produção!E23<>0,('Resultados Fin'!F88/'Resultados Fin'!$F$68),0) -> 0 | F23: =IF(Produção!F23<>0,('Resultados Fin'!G88/'Resultados Fin'!$G$68),0) -> 0 | G23: =IF(Produção!G23<>0,('Resultados Fin'!H88/'Resultados Fin'!$H$68),0) -> 0 | H23: =IF(Produção!H23<>0,('Resultados Fin'!I88/'Resultados Fin'!$I$68),0) -> 0 | I23: =IF(Produção!I23<>0,('Resultados Fin'!J88/'Resultados Fin'!$J$68),0) -> 0 | J23: =IF(Produção!J23<>0,('Resultados Fin'!K88/'Resultados Fin'!$K$68),0) -> 0 | K23: =IF(Produção!K23<>0,('Resultados Fin'!L88/'Resultados Fin'!$L$68),0) -> 0 | L23: =IF(Produção!L23<>0,('Resultados Fin'!M88/'Resultados Fin'!$M$68),0) -> 0 | M23: =IF(Produção!M23<>0,('Resultados Fin'!N88/'Resultados Fin'!$N$68),0) -> 0 | N23: =IF(Produção!N23<>0,('Resultados Fin'!O88/'Resultados Fin'!$O$68),0) -> 0 | O23: =IF(Produção!O23<>0,('Resultados Fin'!P88/'Resultados Fin'!$P$68),0) -> 0 | P23: =IF(Produção!P23<>0,('Resultados Fin'!Q88/'Resultados Fin'!$Q$68),0) -> 0 | Q23: =IF(Produção!Q23<>0,('Resultados Fin'!R88/'Resultados Fin'!$R$68),0) -> 0 | R23: =IF(Produção!R23<>0,('Resultados Fin'!S88/'Resultados Fin'!$S$68),0) -> 0 | S23: =IF(Produção!S23<>0,('Resultados Fin'!T88/'Resultados Fin'!$T$68),0) -> 0 | T23: =IF(Produção!T23<>0,('Resultados Fin'!U88/'Resultados Fin'!$U$68),0) -> 0 | U23: =IF(Produção!U23<>0,('Resultados Fin'!V88/'Resultados Fin'!$V$68),0) -> 0 | V23: =IF(Produção!V23<>0,('Resultados Fin'!W88/'Resultados Fin'!$W$68),0) -> 0 | W23: =IF(Produção!W23<>0,('Resultados Fin'!X88/'Resultados Fin'!$X$68),0) -> 0 | X23: =IF(Produção!X23<>0,('Resultados Fin'!Y88/'Resultados Fin'!$Y$68),0) -> 0 | Y23: =IF(Produção!Y23<>0,('Resultados Fin'!Z88/'Resultados Fin'!$Z$68),0) -> 0 | Z23: =IF(Produção!Z23<>0,('Resultados Fin'!AA88/'Resultados Fin'!$AA$68),0) -> 0 | AA23: =IF(Produção!AA23<>0,('Resultados Fin'!AB88/'Resultados Fin'!$AB$68),0) -> 0 | AB23: =IF(Produção!AB23<>0,('Resultados Fin'!AC88/'Resultados Fin'!$AC$68),0) -> 0 | AC23: =IF(Produção!AC23<>0,('Resultados Fin'!AD88/'Resultados Fin'!$AD$68),0) -> 0 | AD23: =IF(Produção!AD23<>0,('Resultados Fin'!AE88/'Resultados Fin'!$AE$68),0) -> 0 | AE23: =IF(Produção!AE23<>0,('Resultados Fin'!AF88/'Resultados Fin'!$AF$68),0) -> 0 | AF23: =IF(Produção!AF23<>0,('Resultados Fin'!AG88/'Resultados Fin'!$AG$68),0) -> 0 | AG23: =IF(Produção!AG23<>0,('Resultados Fin'!AH88/'Resultados Fin'!$AH$68),0) -> 0
A24: =IF(LEN('Parâmetros Gerais'!B32)=0," ",'Parâmetros Gerais'!B32) -> madeira ipê amarelo | B24: =IF('Parâmetros Gerais'!E32<>"",IF('Parâmetros Gerais'!$F$10=1,CONCATENATE('Parâmetros Gerais'!E32,"/",'Parâmetros Gerais'!$G$10,),CONCATENATE('Parâmetros Gerais'!E32,"/",'Parâmetros Gerais'!$F$10,'Parâmetros Gerais'!$G$10,)),"") -> m3/0,63ha | D24: =IF(Produção!D24<>0,('Resultados Fin'!E89/'Resultados Fin'!$E$68),0) -> 0 | E24: =IF(Produção!E24<>0,('Resultados Fin'!F89/'Resultados Fin'!$F$68),0) -> 0 | F24: =IF(Produção!F24<>0,('Resultados Fin'!G89/'Resultados Fin'!$G$68),0) -> 0 | G24: =IF(Produção!G24<>0,('Resultados Fin'!H89/'Resultados Fin'!$H$68),0) -> 0 | H24: =IF(Produção!H24<>0,('Resultados Fin'!I89/'Resultados Fin'!$I$68),0) -> 0 | I24: =IF(Produção!I24<>0,('Resultados Fin'!J89/'Resultados Fin'!$J$68),0) -> 0 | J24: =IF(Produção!J24<>0,('Resultados Fin'!K89/'Resultados Fin'!$K$68),0) -> 0 | K24: =IF(Produção!K24<>0,('Resultados Fin'!L89/'Resultados Fin'!$L$68),0) -> 0 | L24: =IF(Produção!L24<>0,('Resultados Fin'!M89/'Resultados Fin'!$M$68),0) -> 0 | M24: =IF(Produção!M24<>0,('Resultados Fin'!N89/'Resultados Fin'!$N$68),0) -> 0 | N24: =IF(Produção!N24<>0,('Resultados Fin'!O89/'Resultados Fin'!$O$68),0) -> 0 | O24: =IF(Produção!O24<>0,('Resultados Fin'!P89/'Resultados Fin'!$P$68),0) -> 0 | P24: =IF(Produção!P24<>0,('Resultados Fin'!Q89/'Resultados Fin'!$Q$68),0) -> 0 | Q24: =IF(Produção!Q24<>0,('Resultados Fin'!R89/'Resultados Fin'!$R$68),0) -> 0 | R24: =IF(Produção!R24<>0,('Resultados Fin'!S89/'Resultados Fin'!$S$68),0) -> 0 | S24: =IF(Produção!S24<>0,('Resultados Fin'!T89/'Resultados Fin'!$T$68),0) -> 0 | T24: =IF(Produção!T24<>0,('Resultados Fin'!U89/'Resultados Fin'!$U$68),0) -> 0 | U24: =IF(Produção!U24<>0,('Resultados Fin'!V89/'Resultados Fin'!$V$68),0) -> 0 | V24: =IF(Produção!V24<>0,('Resultados Fin'!W89/'Resultados Fin'!$W$68),0) -> 0 | W24: =IF(Produção!W24<>0,('Resultados Fin'!X89/'Resultados Fin'!$X$68),0) -> 0.3138974353 | X24: =IF(Produção!X24<>0,('Resultados Fin'!Y89/'Resultados Fin'!$Y$68),0) -> 0 | Y24: =IF(Produção!Y24<>0,('Resultados Fin'!Z89/'Resultados Fin'!$Z$68),0) -> 0 | Z24: =IF(Produção!Z24<>0,('Resultados Fin'!AA89/'Resultados Fin'!$AA$68),0) -> 0 | AA24: =IF(Produção!AA24<>0,('Resultados Fin'!AB89/'Resultados Fin'!$AB$68),0) -> 0 | AB24: =IF(Produção!AB24<>0,('Resultados Fin'!AC89/'Resultados Fin'!$AC$68),0) -> 0 | AC24: =IF(Produção!AC24<>0,('Resultados Fin'!AD89/'Resultados Fin'!$AD$68),0) -> 0 | AD24: =IF(Produção!AD24<>0,('Resultados Fin'!AE89/'Resultados Fin'!$AE$68),0) -> 0 | AE24: =IF(Produção!AE24<>0,('Resultados Fin'!AF89/'Resultados Fin'!$AF$68),0) -> 0 | AF24: =IF(Produção!AF24<>0,('Resultados Fin'!AG89/'Resultados Fin'!$AG$68),0) -> 0 | AG24: =IF(Produção!AG24<>0,('Resultados Fin'!AH89/'Resultados Fin'!$AH$68),0) -> 0
A25: =IF(LEN('Parâmetros Gerais'!B33)=0," ",'Parâmetros Gerais'!B33) -> madeira gonçalo alves | B25: =IF('Parâmetros Gerais'!E33<>"",IF('Parâmetros Gerais'!$F$10=1,CONCATENATE('Parâmetros Gerais'!E33,"/",'Parâmetros Gerais'!$G$10,),CONCATENATE('Parâmetros Gerais'!E33,"/",'Parâmetros Gerais'!$F$10,'Parâmetros Gerais'!$G$10,)),"") -> m3/0,63ha | D25: =IF(Produção!D25<>0,('Resultados Fin'!E90/'Resultados Fin'!$E$68),0) -> 0 | E25: =IF(Produção!E25<>0,('Resultados Fin'!F90/'Resultados Fin'!$F$68),0) -> 0 | F25: =IF(Produção!F25<>0,('Resultados Fin'!G90/'Resultados Fin'!$G$68),0) -> 0 | G25: =IF(Produção!G25<>0,('Resultados Fin'!H90/'Resultados Fin'!$H$68),0) -> 0 | H25: =IF(Produção!H25<>0,('Resultados Fin'!I90/'Resultados Fin'!$I$68),0) -> 0 | I25: =IF(Produção!I25<>0,('Resultados Fin'!J90/'Resultados Fin'!$J$68),0) -> 0 | J25: =IF(Produção!J25<>0,('Resultados Fin'!K90/'Resultados Fin'!$K$68),0) -> 0 | K25: =IF(Produção!K25<>0,('Resultados Fin'!L90/'Resultados Fin'!$L$68),0) -> 0 | L25: =IF(Produção!L25<>0,('Resultados Fin'!M90/'Resultados Fin'!$M$68),0) -> 0 | M25: =IF(Produção!M25<>0,('Resultados Fin'!N90/'Resultados Fin'!$N$68),0) -> 0 | N25: =IF(Produção!N25<>0,('Resultados Fin'!O90/'Resultados Fin'!$O$68),0) -> 0 | O25: =IF(Produção!O25<>0,('Resultados Fin'!P90/'Resultados Fin'!$P$68),0) -> 0 | P25: =IF(Produção!P25<>0,('Resultados Fin'!Q90/'Resultados Fin'!$Q$68),0) -> 0 | Q25: =IF(Produção!Q25<>0,('Resultados Fin'!R90/'Resultados Fin'!$R$68),0) -> 0 | R25: =IF(Produção!R25<>0,('Resultados Fin'!S90/'Resultados Fin'!$S$68),0) -> 0 | S25: =IF(Produção!S25<>0,('Resultados Fin'!T90/'Resultados Fin'!$T$68),0) -> 0 | T25: =IF(Produção!T25<>0,('Resultados Fin'!U90/'Resultados Fin'!$U$68),0) -> 0 | U25: =IF(Produção!U25<>0,('Resultados Fin'!V90/'Resultados Fin'!$V$68),0) -> 0 | V25: =IF(Produção!V25<>0,('Resultados Fin'!W90/'Resultados Fin'!$W$68),0) -> 0 | W25: =IF(Produção!W25<>0,('Resultados Fin'!X90/'Resultados Fin'!$X$68),0) -> 0 | X25: =IF(Produção!X25<>0,('Resultados Fin'!Y90/'Resultados Fin'!$Y$68),0) -> 0 | Y25: =IF(Produção!Y25<>0,('Resultados Fin'!Z90/'Resultados Fin'!$Z$68),0) -> 0 | Z25: =IF(Produção!Z25<>0,('Resultados Fin'!AA90/'Resultados Fin'!$AA$68),0) -> 0 | AA25: =IF(Produção!AA25<>0,('Resultados Fin'!AB90/'Resultados Fin'!$AB$68),0) -> 0 | AB25: =IF(Produção!AB25<>0,('Resultados Fin'!AC90/'Resultados Fin'!$AC$68),0) -> 0 | AC25: =IF(Produção!AC25<>0,('Resultados Fin'!AD90/'Resultados Fin'!$AD$68),0) -> 0 | AD25: =IF(Produção!AD25<>0,('Resultados Fin'!AE90/'Resultados Fin'!$AE$68),0) -> 0 | AE25: =IF(Produção!AE25<>0,('Resultados Fin'!AF90/'Resultados Fin'!$AF$68),0) -> 0 | AF25: =IF(Produção!AF25<>0,('Resultados Fin'!AG90/'Resultados Fin'!$AG$68),0) -> 0 | AG25: =IF(Produção!AG25<>0,('Resultados Fin'!AH90/'Resultados Fin'!$AH$68),0) -> 0
A26: =IF(LEN('Parâmetros Gerais'!B34)=0," ",'Parâmetros Gerais'!B34) -> madeira vinhatico | B26: =IF('Parâmetros Gerais'!E34<>"",IF('Parâmetros Gerais'!$F$10=1,CONCATENATE('Parâmetros Gerais'!E34,"/",'Parâmetros Gerais'!$G$10,),CONCATENATE('Parâmetros Gerais'!E34,"/",'Parâmetros Gerais'!$F$10,'Parâmetros Gerais'!$G$10,)),"") -> m3/0,63ha | D26: =IF(Produção!D26<>0,('Resultados Fin'!E91/'Resultados Fin'!$E$68),0) -> 0 | E26: =IF(Produção!E26<>0,('Resultados Fin'!F91/'Resultados Fin'!$F$68),0) -> 0 | F26: =IF(Produção!F26<>0,('Resultados Fin'!G91/'Resultados Fin'!$G$68),0) -> 0 | G26: =IF(Produção!G26<>0,('Resultados Fin'!H91/'Resultados Fin'!$H$68),0) -> 0 | H26: =IF(Produção!H26<>0,('Resultados Fin'!I91/'Resultados Fin'!$I$68),0) -> 0 | I26: =IF(Produção!I26<>0,('Resultados Fin'!J91/'Resultados Fin'!$J$68),0) -> 0 | J26: =IF(Produção!J26<>0,('Resultados Fin'!K91/'Resultados Fin'!$K$68),0) -> 0 | K26: =IF(Produção!K26<>0,('Resultados Fin'!L91/'Resultados Fin'!$L$68),0) -> 0 | L26: =IF(Produção!L26<>0,('Resultados Fin'!M91/'Resultados Fin'!$M$68),0) -> 0 | M26: =IF(Produção!M26<>0,('Resultados Fin'!N91/'Resultados Fin'!$N$68),0) -> 0 | N26: =IF(Produção!N26<>0,('Resultados Fin'!O91/'Resultados Fin'!$O$68),0) -> 0 | O26: =IF(Produção!O26<>0,('Resultados Fin'!P91/'Resultados Fin'!$P$68),0) -> 0 | P26: =IF(Produção!P26<>0,('Resultados Fin'!Q91/'Resultados Fin'!$Q$68),0) -> 0 | Q26: =IF(Produção!Q26<>0,('Resultados Fin'!R91/'Resultados Fin'!$R$68),0) -> 0 | R26: =IF(Produção!R26<>0,('Resultados Fin'!S91/'Resultados Fin'!$S$68),0) -> 0 | S26: =IF(Produção!S26<>0,('Resultados Fin'!T91/'Resultados Fin'!$T$68),0) -> 0 | T26: =IF(Produção!T26<>0,('Resultados Fin'!U91/'Resultados Fin'!$U$68),0) -> 0 | U26: =IF(Produção!U26<>0,('Resultados Fin'!V91/'Resultados Fin'!$V$68),0) -> 0 | V26: =IF(Produção!V26<>0,('Resultados Fin'!W91/'Resultados Fin'!$W$68),0) -> 0 | W26: =IF(Produção!W26<>0,('Resultados Fin'!X91/'Resultados Fin'!$X$68),0) -> 0.08719373202 | X26: =IF(Produção!X26<>0,('Resultados Fin'!Y91/'Resultados Fin'!$Y$68),0) -> 0 | Y26: =IF(Produção!Y26<>0,('Resultados Fin'!Z91/'Resultados Fin'!$Z$68),0) -> 0 | Z26: =IF(Produção!Z26<>0,('Resultados Fin'!AA91/'Resultados Fin'!$AA$68),0) -> 0 | AA26: =IF(Produção!AA26<>0,('Resultados Fin'!AB91/'Resultados Fin'!$AB$68),0) -> 0 | AB26: =IF(Produção!AB26<>0,('Resultados Fin'!AC91/'Resultados Fin'!$AC$68),0) -> 0 | AC26: =IF(Produção!AC26<>0,('Resultados Fin'!AD91/'Resultados Fin'!$AD$68),0) -> 0 | AD26: =IF(Produção!AD26<>0,('Resultados Fin'!AE91/'Resultados Fin'!$AE$68),0) -> 0 | AE26: =IF(Produção!AE26<>0,('Resultados Fin'!AF91/'Resultados Fin'!$AF$68),0) -> 0 | AF26: =IF(Produção!AF26<>0,('Resultados Fin'!AG91/'Resultados Fin'!$AG$68),0) -> 0 | AG26: =IF(Produção!AG26<>0,('Resultados Fin'!AH91/'Resultados Fin'!$AH$68),0) -> 0
A27: =IF(LEN('Parâmetros Gerais'!B35)=0," ",'Parâmetros Gerais'!B35) -> madeira jequitiba | B27: =IF('Parâmetros Gerais'!E35<>"",IF('Parâmetros Gerais'!$F$10=1,CONCATENATE('Parâmetros Gerais'!E35,"/",'Parâmetros Gerais'!$G$10,),CONCATENATE('Parâmetros Gerais'!E35,"/",'Parâmetros Gerais'!$F$10,'Parâmetros Gerais'!$G$10,)),"") -> m3/0,63ha | D27: =IF(Produção!D27<>0,('Resultados Fin'!E92/'Resultados Fin'!$E$68),0) -> 0 | E27: =IF(Produção!E27<>0,('Resultados Fin'!F92/'Resultados Fin'!$F$68),0) -> 0 | F27: =IF(Produção!F27<>0,('Resultados Fin'!G92/'Resultados Fin'!$G$68),0) -> 0 | G27: =IF(Produção!G27<>0,('Resultados Fin'!H92/'Resultados Fin'!$H$68),0) -> 0 | H27: =IF(Produção!H27<>0,('Resultados Fin'!I92/'Resultados Fin'!$I$68),0) -> 0 | I27: =IF(Produção!I27<>0,('Resultados Fin'!J92/'Resultados Fin'!$J$68),0) -> 0 | J27: =IF(Produção!J27<>0,('Resultados Fin'!K92/'Resultados Fin'!$K$68),0) -> 0 | K27: =IF(Produção!K27<>0,('Resultados Fin'!L92/'Resultados Fin'!$L$68),0) -> 0 | L27: =IF(Produção!L27<>0,('Resultados Fin'!M92/'Resultados Fin'!$M$68),0) -> 0 | M27: =IF(Produção!M27<>0,('Resultados Fin'!N92/'Resultados Fin'!$N$68),0) -> 0 | N27: =IF(Produção!N27<>0,('Resultados Fin'!O92/'Resultados Fin'!$O$68),0) -> 0 | O27: =IF(Produção!O27<>0,('Resultados Fin'!P92/'Resultados Fin'!$P$68),0) -> 0 | P27: =IF(Produção!P27<>0,('Resultados Fin'!Q92/'Resultados Fin'!$Q$68),0) -> 0 | Q27: =IF(Produção!Q27<>0,('Resultados Fin'!R92/'Resultados Fin'!$R$68),0) -> 0 | R27: =IF(Produção!R27<>0,('Resultados Fin'!S92/'Resultados Fin'!$S$68),0) -> 0 | S27: =IF(Produção!S27<>0,('Resultados Fin'!T92/'Resultados Fin'!$T$68),0) -> 0 | T27: =IF(Produção!T27<>0,('Resultados Fin'!U92/'Resultados Fin'!$U$68),0) -> 0 | U27: =IF(Produção!U27<>0,('Resultados Fin'!V92/'Resultados Fin'!$V$68),0) -> 0 | V27: =IF(Produção!V27<>0,('Resultados Fin'!W92/'Resultados Fin'!$W$68),0) -> 0 | W27: =IF(Produção!W27<>0,('Resultados Fin'!X92/'Resultados Fin'!$X$68),0) -> 0.03487749281 | X27: =IF(Produção!X27<>0,('Resultados Fin'!Y92/'Resultados Fin'!$Y$68),0) -> 0 | Y27: =IF(Produção!Y27<>0,('Resultados Fin'!Z92/'Resultados Fin'!$Z$68),0) -> 0 | Z27: =IF(Produção!Z27<>0,('Resultados Fin'!AA92/'Resultados Fin'!$AA$68),0) -> 0 | AA27: =IF(Produção!AA27<>0,('Resultados Fin'!AB92/'Resultados Fin'!$AB$68),0) -> 0 | AB27: =IF(Produção!AB27<>0,('Resultados Fin'!AC92/'Resultados Fin'!$AC$68),0) -> 0 | AC27: =IF(Produção!AC27<>0,('Resultados Fin'!AD92/'Resultados Fin'!$AD$68),0) -> 0 | AD27: =IF(Produção!AD27<>0,('Resultados Fin'!AE92/'Resultados Fin'!$AE$68),0) -> 0 | AE27: =IF(Produção!AE27<>0,('Resultados Fin'!AF92/'Resultados Fin'!$AF$68),0) -> 0 | AF27: =IF(Produção!AF27<>0,('Resultados Fin'!AG92/'Resultados Fin'!$AG$68),0) -> 0 | AG27: =IF(Produção!AG27<>0,('Resultados Fin'!AH92/'Resultados Fin'!$AH$68),0) -> 0
A28: =IF(LEN('Parâmetros Gerais'!B36)=0," ",'Parâmetros Gerais'!B36) -> biomassa | B28: =IF('Parâmetros Gerais'!E36<>"",IF('Parâmetros Gerais'!$F$10=1,CONCATENATE('Parâmetros Gerais'!E36,"/",'Parâmetros Gerais'!$G$10,),CONCATENATE('Parâmetros Gerais'!E36,"/",'Parâmetros Gerais'!$F$10,'Parâmetros Gerais'!$G$10,)),"") -> t/0,63ha | D28: =IF(Produção!D28<>0,('Resultados Fin'!E93/'Resultados Fin'!$E$68),0) -> 0 | E28: =IF(Produção!E28<>0,('Resultados Fin'!F93/'Resultados Fin'!$F$68),0) -> 0 | F28: =IF(Produção!F28<>0,('Resultados Fin'!G93/'Resultados Fin'!$G$68),0) -> 0 | G28: =IF(Produção!G28<>0,('Resultados Fin'!H93/'Resultados Fin'!$H$68),0) -> 0 | H28: =IF(Produção!H28<>0,('Resultados Fin'!I93/'Resultados Fin'!$I$68),0) -> 0 | I28: =IF(Produção!I28<>0,('Resultados Fin'!J93/'Resultados Fin'!$J$68),0) -> 0 | J28: =IF(Produção!J28<>0,('Resultados Fin'!K93/'Resultados Fin'!$K$68),0) -> 0 | K28: =IF(Produção!K28<>0,('Resultados Fin'!L93/'Resultados Fin'!$L$68),0) -> 0 | L28: =IF(Produção!L28<>0,('Resultados Fin'!M93/'Resultados Fin'!$M$68),0) -> 0 | M28: =IF(Produção!M28<>0,('Resultados Fin'!N93/'Resultados Fin'!$N$68),0) -> 0 | N28: =IF(Produção!N28<>0,('Resultados Fin'!O93/'Resultados Fin'!$O$68),0) -> 0 | O28: =IF(Produção!O28<>0,('Resultados Fin'!P93/'Resultados Fin'!$P$68),0) -> 0 | P28: =IF(Produção!P28<>0,('Resultados Fin'!Q93/'Resultados Fin'!$Q$68),0) -> 0 | Q28: =IF(Produção!Q28<>0,('Resultados Fin'!R93/'Resultados Fin'!$R$68),0) -> 0 | R28: =IF(Produção!R28<>0,('Resultados Fin'!S93/'Resultados Fin'!$S$68),0) -> 0 | S28: =IF(Produção!S28<>0,('Resultados Fin'!T93/'Resultados Fin'!$T$68),0) -> 0 | T28: =IF(Produção!T28<>0,('Resultados Fin'!U93/'Resultados Fin'!$U$68),0) -> 0 | U28: =IF(Produção!U28<>0,('Resultados Fin'!V93/'Resultados Fin'!$V$68),0) -> 0 | V28: =IF(Produção!V28<>0,('Resultados Fin'!W93/'Resultados Fin'!$W$68),0) -> 0 | W28: =IF(Produção!W28<>0,('Resultados Fin'!X93/'Resultados Fin'!$X$68),0) -> 0 | X28: =IF(Produção!X28<>0,('Resultados Fin'!Y93/'Resultados Fin'!$Y$68),0) -> 0 | Y28: =IF(Produção!Y28<>0,('Resultados Fin'!Z93/'Resultados Fin'!$Z$68),0) -> 0 | Z28: =IF(Produção!Z28<>0,('Resultados Fin'!AA93/'Resultados Fin'!$AA$68),0) -> 0 | AA28: =IF(Produção!AA28<>0,('Resultados Fin'!AB93/'Resultados Fin'!$AB$68),0) -> 0 | AB28: =IF(Produção!AB28<>0,('Resultados Fin'!AC93/'Resultados Fin'!$AC$68),0) -> 0 | AC28: =IF(Produção!AC28<>0,('Resultados Fin'!AD93/'Resultados Fin'!$AD$68),0) -> 0 | AD28: =IF(Produção!AD28<>0,('Resultados Fin'!AE93/'Resultados Fin'!$AE$68),0) -> 0 | AE28: =IF(Produção!AE28<>0,('Resultados Fin'!AF93/'Resultados Fin'!$AF$68),0) -> 0 | AF28: =IF(Produção!AF28<>0,('Resultados Fin'!AG93/'Resultados Fin'!$AG$68),0) -> 0 | AG28: =IF(Produção!AG28<>0,('Resultados Fin'!AH93/'Resultados Fin'!$AH$68),0) -> 0
A29: =IF(LEN('Parâmetros Gerais'!B37)=0," ",'Parâmetros Gerais'!B37) -> grão caupi | B29: =IF('Parâmetros Gerais'!E37<>"",IF('Parâmetros Gerais'!$F$10=1,CONCATENATE('Parâmetros Gerais'!E37,"/",'Parâmetros Gerais'!$G$10,),CONCATENATE('Parâmetros Gerais'!E37,"/",'Parâmetros Gerais'!$F$10,'Parâmetros Gerais'!$G$10,)),"") -> kg/0,63ha | D29: =IF(Produção!D29<>0,('Resultados Fin'!E94/'Resultados Fin'!$E$68),0) -> 0 | E29: =IF(Produção!E29<>0,('Resultados Fin'!F94/'Resultados Fin'!$F$68),0) -> 0 | F29: =IF(Produção!F29<>0,('Resultados Fin'!G94/'Resultados Fin'!$G$68),0) -> 0 | G29: =IF(Produção!G29<>0,('Resultados Fin'!H94/'Resultados Fin'!$H$68),0) -> 0 | H29: =IF(Produção!H29<>0,('Resultados Fin'!I94/'Resultados Fin'!$I$68),0) -> 0 | I29: =IF(Produção!I29<>0,('Resultados Fin'!J94/'Resultados Fin'!$J$68),0) -> 0 | J29: =IF(Produção!J29<>0,('Resultados Fin'!K94/'Resultados Fin'!$K$68),0) -> 0 | K29: =IF(Produção!K29<>0,('Resultados Fin'!L94/'Resultados Fin'!$L$68),0) -> 0 | L29: =IF(Produção!L29<>0,('Resultados Fin'!M94/'Resultados Fin'!$M$68),0) -> 0 | M29: =IF(Produção!M29<>0,('Resultados Fin'!N94/'Resultados Fin'!$N$68),0) -> 0 | N29: =IF(Produção!N29<>0,('Resultados Fin'!O94/'Resultados Fin'!$O$68),0) -> 0 | O29: =IF(Produção!O29<>0,('Resultados Fin'!P94/'Resultados Fin'!$P$68),0) -> 0 | P29: =IF(Produção!P29<>0,('Resultados Fin'!Q94/'Resultados Fin'!$Q$68),0) -> 0 | Q29: =IF(Produção!Q29<>0,('Resultados Fin'!R94/'Resultados Fin'!$R$68),0) -> 0 | R29: =IF(Produção!R29<>0,('Resultados Fin'!S94/'Resultados Fin'!$S$68),0) -> 0 | S29: =IF(Produção!S29<>0,('Resultados Fin'!T94/'Resultados Fin'!$T$68),0) -> 0 | T29: =IF(Produção!T29<>0,('Resultados Fin'!U94/'Resultados Fin'!$U$68),0) -> 0 | U29: =IF(Produção!U29<>0,('Resultados Fin'!V94/'Resultados Fin'!$V$68),0) -> 0 | V29: =IF(Produção!V29<>0,('Resultados Fin'!W94/'Resultados Fin'!$W$68),0) -> 0 | W29: =IF(Produção!W29<>0,('Resultados Fin'!X94/'Resultados Fin'!$X$68),0) -> 0 | X29: =IF(Produção!X29<>0,('Resultados Fin'!Y94/'Resultados Fin'!$Y$68),0) -> 0 | Y29: =IF(Produção!Y29<>0,('Resultados Fin'!Z94/'Resultados Fin'!$Z$68),0) -> 0 | Z29: =IF(Produção!Z29<>0,('Resultados Fin'!AA94/'Resultados Fin'!$AA$68),0) -> 0 | AA29: =IF(Produção!AA29<>0,('Resultados Fin'!AB94/'Resultados Fin'!$AB$68),0) -> 0 | AB29: =IF(Produção!AB29<>0,('Resultados Fin'!AC94/'Resultados Fin'!$AC$68),0) -> 0 | AC29: =IF(Produção!AC29<>0,('Resultados Fin'!AD94/'Resultados Fin'!$AD$68),0) -> 0 | AD29: =IF(Produção!AD29<>0,('Resultados Fin'!AE94/'Resultados Fin'!$AE$68),0) -> 0 | AE29: =IF(Produção!AE29<>0,('Resultados Fin'!AF94/'Resultados Fin'!$AF$68),0) -> 0 | AF29: =IF(Produção!AF29<>0,('Resultados Fin'!AG94/'Resultados Fin'!$AG$68),0) -> 0 | AG29: =IF(Produção!AG29<>0,('Resultados Fin'!AH94/'Resultados Fin'!$AH$68),0) -> 0

Sheet Preparo e Gerais
A1: ='Parâmetros Gerais'!A1 -> Análise Financeira de Sistemas Produtivos Integrados (V. 4.16 11/2016)
A2: Preparo da Área e Atividades Gerais
E3: =Produção!D3 -> Período
A4: Descrição | B4: Unidade | C4: Preço | D4: Preparo | E4: 1 | F4: 2 | G4: 3 | H4: 4 | I4: 5 | J4: 6 | K4: 7 | L4: 8 | M4: 9 | N4: 10 | O4: 11 | P4: 12 | Q4: 13 | R4: 14 | S4: 15 | T4: 16 | U4: 17 | V4: 18 | W4: 19 | X4: 20 | Y4: 21 | Z4: 22 | AA4: 23 | AB4: 24 | AC4: 25 | AD4: 26 | AE4: 27 | AF4: 28 | AG4: 29 | AH4: 30
A6: Atividades | D6: =$C$7*D7+$C$8*D8+$C$9*D9+$C$10*D10+$C$11*D11+$C$12*D12+$C$13*D13+$C$14*D14+$C$15*D15+$C$16*D16+$C$17*D17+$C$18*D18 -> 0 | E6: 0 | F6: 0 | G6: 0 | H6: 0 | I6: 0 | J6: 0 | K6: 0 | L6: 0 | M6: 0 | N6: 0 | O6: 0 | P6: 0 | Q6: 0 | R6: 0 | S6: 0 | T6: 0 | U6: 0 | V6: 0 | W6: 0 | X6: 0 | Y6: 0 | Z6: 0 | AA6: 0 | AB6: 0 | AC6: 0 | AD6: 0 | AE6: 0 | AF6: 0 | AG6: 0 | AH6: 0
C7: =IF(B7='Parâmetros Gerais'!$I$4,'Parâmetros Gerais'!$F$4,IF(B7='Parâmetros Gerais'!$I$5,'Parâmetros Gerais'!$F$5,IF(B7='Parâmetros Gerais'!$I$6,'Parâmetros Gerais'!$F$6,0))) -> 0
C8: =IF(B8='Parâmetros Gerais'!$I$4,'Parâmetros Gerais'!$F$4,IF(B8='Parâmetros Gerais'!$I$5,'Parâmetros Gerais'!$F$5,IF(B8='Parâmetros Gerais'!$I$6,'Parâmetros Gerais'!$F$6,0))) -> 0
C9: =IF(B9='Parâmetros Gerais'!$I$4,'Parâmetros Gerais'!$F$4,IF(B9='Parâmetros Gerais'!$I$5,'Parâmetros Gerais'!$F$5,IF(B9='Parâmetros Gerais'!$I$6,'Parâmetros Gerais'!$F$6,0))) -> 0
C10: =IF(B10='Parâmetros Gerais'!$I$4,'Parâmetros Gerais'!$F$4,IF(B10='Parâmetros Gerais'!$I$5,'Parâmetros Gerais'!$F$5,IF(B10='Parâmetros Gerais'!$I$6,'Parâmetros Gerais'!$F$6,0))) -> 0
C11: =IF(B11='Parâmetros Gerais'!$I$4,'Parâmetros Gerais'!$F$4,IF(B11='Parâmetros Gerais'!$I$5,'Parâmetros Gerais'!$F$5,IF(B11='Parâmetros Gerais'!$I$6,'Parâmetros Gerais'!$F$6,0))) -> 0
C12: =IF(B12='Parâmetros Gerais'!$I$4,'Parâmetros Gerais'!$F$4,IF(B12='Parâmetros Gerais'!$I$5,'Parâmetros Gerais'!$F$5,IF(B12='Parâmetros Gerais'!$I$6,'Parâmetros Gerais'!$F$6,0))) -> 0
C13: =IF(B13='Parâmetros Gerais'!$I$4,'Parâmetros Gerais'!$F$4,IF(B13='Parâmetros Gerais'!$I$5,'Parâmetros Gerais'!$F$5,IF(B13='Parâmetros Gerais'!$I$6,'Parâmetros Gerais'!$F$6,0))) -> 0
C14: =IF(B14='Parâmetros Gerais'!$I$4,'Parâmetros Gerais'!$F$4,IF(B14='Parâmetros Gerais'!$I$5,'Parâmetros Gerais'!$F$5,IF(B14='Parâmetros Gerais'!$I$6,'Parâmetros Gerais'!$F$6,0))) -> 0
C15: =IF(B15='Parâmetros Gerais'!$I$4,'Parâmetros Gerais'!$F$4,IF(B15='Parâmetros Gerais'!$I$5,'Parâmetros Gerais'!$F$5,IF(B15='Parâmetros Gerais'!$I$6,'Parâmetros Gerais'!$F$6,0))) -> 0
C16: =IF(B16='Parâmetros Gerais'!$I$4,'Parâmetros Gerais'!$F$4,IF(B16='Parâmetros Gerais'!$I$5,'Parâmetros Gerais'!$F$5,IF(B16='Parâmetros Gerais'!$I$6,'Parâmetros Gerais'!$F$6,0))) -> 0
C17: =IF(B17='Parâmetros Gerais'!$I$4,'Parâmetros Gerais'!$F$4,IF(B17='Parâmetros Gerais'!$I$5,'Parâmetros Gerais'!$F$5,IF(B17='Parâmetros Gerais'!$I$6,'Parâmetros Gerais'!$F$6,0))) -> 0
C18: =IF(B18='Parâmetros Gerais'!$I$4,'Parâmetros Gerais'!$F$4,IF(B18='Parâmetros Gerais'!$I$5,'Parâmetros Gerais'!$F$5,IF(B18='Parâmetros Gerais'!$I$6,'Parâmetros Gerais'!$F$6,0))) -> 0
D19: =SUM(D7:D18) -> 0
A20: Insumos | D20: =$C$21*D21+$C$22*D22+$C$23*D23+$C$24*D24+$C$25*D25+$C$26*D26+$C$27*D27+$C$28*D28+$C$29*D29+$C$30*D30+$C$31*D31+$C$32*D32+$C$33*D33+$C$34*D34+$C$35*D35 -> 0 | E20: =$C$21*E21+$C$22*E22+$C$23*E23+$C$24*E24+$C$25*E25+$C$26*E26+$C$27*E27+$C$28*E28+$C$29*E29+$C$30*E30+$C$31*E31+$C$32*E32+$C$33*E33+$C$34*E34+$C$35*E35 -> 0 | F20: 0 | G20: 0 | H20: 0 | I20: 0 | J20: 0 | K20: 0 | L20: 0 | M20: 0 | N20: 0 | O20: 0 | P20: 0 | Q20: 0 | R20: 0 | S20: 0 | T20: 0 | U20: 0 | V20: 0 | W20: 0 | X20: 0 | Y20: 0 | Z20: 0 | AA20: 0 | AB20: 0 | AC20: 0 | AD20: 0 | AE20: 0 | AF20: 0 | AG20: 0 | AH20: 0

Sheet Plan1

Sheet latex
A1: ='Parâmetros Gerais'!A1 -> Análise Financeira de Sistemas Produtivos Integrados (V. 4.16 11/2016)
A2: =IF('Parâmetros Gerais'!B14<>"",'Parâmetros Gerais'!B14,"") -> latex
D3: =Produção!D3 -> Período
A4: Descrição | B4: Unidade | C4: Preço | D4: 1 | E4: 2 | F4: 3 | G4: 4 | H4: 5 | I4: 6 | J4: 7 | K4: 8 | L4: 9 | M4: 10 | N4: 11 | O4: 12 | P4: 13 | Q4: 14 | R4: 15 | S4: 16 | T4: 17 | U4: 18 | V4: 19 | W4: 20 | X4: 21 | Y4: 22 | Z4: 23 | AA4: 24 | AB4: 25 | AC4: 26 | AD4: 27 | AE4: 28 | AF4: 29 | AG4: 30
A7: Atividades | D7: =$C$8*D8+$C$9*D9+$C$10*D10+$C$11*D11+$C$12*D12+$C$13*D13+$C$14*D14+$C$15*D15+$C$16*D16+$C$17*D17+$C$18*D18+$C$19*D19+$C$20*D20+$C$21*D21+$C$22*D22 -> 0 | E7: 0 | F7: 0 | G7: 0 | H7: 0 | I7: 0 | J7: 0 | K7: 0 | L7: 0 | M7: 0 | N7: 0 | O7: =$C$8*O8+$C$9*O9+$C$10*O10+$C$11*O11+$C$12*O12+$C$13*O13+$C$14*O14+$C$15*O15+$C$16*O16+$C$17*O17+$C$18*O18+$C$19*O19+$C$20*O20+$C$21*O21+$C$22*O22 -> 0 | P7: 0 | Q7: 0 | R7: 0 | S7: 0 | T7: 0 | U7: 0 | V7: 0 | W7: 0 | X7: 0 | Y7: 0 | Z7: 0 | AA7: 0 | AB7: 0 | AC7: 0 | AD7: 0 | AE7: 0 | AF7: 0 | AG7: 0
C8: =IF(B8='Parâmetros Gerais'!$I$4,'Parâmetros Gerais'!$F$4,IF(B8='Parâmetros Gerais'!$I$5,'Parâmetros Gerais'!$F$5,IF(B8='Parâmetros Gerais'!$I$6,'Parâmetros Gerais'!$F$6,0))) -> 0
C9: =IF(B9='Parâmetros Gerais'!$I$4,'Parâmetros Gerais'!$F$4,IF(B9='Parâmetros Gerais'!$I$5,'Parâmetros Gerais'!$F$5,IF(B9='Parâmetros Gerais'!$I$6,'Parâmetros Gerais'!$F$6,0))) -> 0
C10: =IF(B10='Parâmetros Gerais'!$I$4,'Parâmetros Gerais'!$F$4,IF(B10='Parâmetros Gerais'!$I$5,'Parâmetros Gerais'!$F$5,IF(B10='Parâmetros Gerais'!$I$6,'Parâmetros Gerais'!$F$6,0))) -> 0
C11: =IF(B11='Parâmetros Gerais'!$I$4,'Parâmetros Gerais'!$F$4,IF(B11='Parâmetros Gerais'!$I$5,'Parâmetros Gerais'!$F$5,IF(B11='Parâmetros Gerais'!$I$6,'Parâmetros Gerais'!$F$6,0))) -> 0
C12: =IF(B12='Parâmetros Gerais'!$I$4,'Parâmetros Gerais'!$F$4,IF(B12='Parâmetros Gerais'!$I$5,'Parâmetros Gerais'!$F$5,IF(B12='Parâmetros Gerais'!$I$6,'Parâmetros Gerais'!$F$6,0))) -> 0
C13: =IF(B13='Parâmetros Gerais'!$I$4,'Parâmetros Gerais'!$F$4,IF(B13='Parâmetros Gerais'!$I$5,'Parâmetros Gerais'!$F$5,IF(B13='Parâmetros Gerais'!$I$6,'Parâmetros Gerais'!$F$6,0))) -> 0
C14: =IF(B14='Parâmetros Gerais'!$I$4,'Parâmetros Gerais'!$F$4,IF(B14='Parâmetros Gerais'!$I$5,'Parâmetros Gerais'!$F$5,IF(B14='Parâmetros Gerais'!$I$6,'Parâmetros Gerais'!$F$6,0))) -> 0
C15: =IF(B15='Parâmetros Gerais'!$I$4,'Parâmetros Gerais'!$F$4,IF(B15='Parâmetros Gerais'!$I$5,'Parâmetros Gerais'!$F$5,IF(B15='Parâmetros Gerais'!$I$6,'Parâmetros Gerais'!$F$6,0))) -> 0
C16: =IF(B16='Parâmetros Gerais'!$I$4,'Parâmetros Gerais'!$F$4,IF(B16='Parâmetros Gerais'!$I$5,'Parâmetros Gerais'!$F$5,IF(B16='Parâmetros Gerais'!$I$6,'Parâmetros Gerais'!$F$6,0))) -> 0
C17: =IF(B17='Parâmetros Gerais'!$I$4,'Parâmetros Gerais'!$F$4,IF(B17='Parâmetros Gerais'!$I$5,'Parâmetros Gerais'!$F$5,IF(B17='Parâmetros Gerais'!$I$6,'Parâmetros Gerais'!$F$6,0))) -> 0
C18: =IF(B18='Parâmetros Gerais'!$I$4,'Parâmetros Gerais'!$F$4,IF(B18='Parâmetros Gerais'!$I$5,'Parâmetros Gerais'!$F$5,IF(B18='Parâmetros Gerais'!$I$6,'Parâmetros Gerais'!$F$6,0))) -> 0
C19: =IF(B19='Parâmetros Gerais'!$I$4,'Parâmetros Gerais'!$F$4,IF(B19='Parâmetros Gerais'!$I$5,'Parâmetros Gerais'!$F$5,IF(B19='Parâmetros Gerais'!$I$6,'Parâmetros Gerais'!$F$6,0))) -> 0
C20: =IF(B20='Parâmetros Gerais'!$I$4,'Parâmetros Gerais'!$F$4,IF(B20='Parâmetros Gerais'!$I$5,'Parâmetros Gerais'!$F$5,IF(B20='Parâmetros Gerais'!$I$6,'Parâmetros Gerais'!$F$6,0))) -> 0
C21: =IF(B21='Parâmetros Gerais'!$I$4,'Parâmetros Gerais'!$F$4,IF(B21='Parâmetros Gerais'!$I$5,'Parâmetros Gerais'!$F$5,IF(B21='Parâmetros Gerais'!$I$6,'Parâmetros Gerais'!$F$6,0))) -> 0
C22: =IF(B22='Parâmetros Gerais'!$I$4,'Parâmetros Gerais'!$F$4,IF(B22='Parâmetros Gerais'!$I$5,'Parâmetros Gerais'!$F$5,IF(B22='Parâmetros Gerais'!$I$6,'Parâmetros Gerais'!$F$6,0))) -> 0
D23: =SUM(D8:D22) -> 0 | E23: =SUM(E8:E22) -> 0 | F23: 0 | G23: 0 | H23: 0 | I23: 0 | J23: 0 | K23: 0 | L23: 0 | M23: 0 | N23: 0 | O23: 0 | P23: 0 | Q23: 0 | R23: 0 | S23: 0 | T23: 0 | U23: 0 | V23: 0 | W23: 0 | X23: 0 | Y23: 0 | Z23: 0 | AA23: 0 | AB23: 0 | AC23: 0 | AD23: 0 | AE23: 0 | AF23: 0 | AG23: 0
A24: Insumos | D24: =$C$25*D25+$C$26*D26+$C$27*D27+$C$28*D28+$C$29*D29+$C$30*D30+$C$31*D31+$C$32*D32+$C$33*D33+$C$34*D34+$C$35*D35+$C$36*D36+$C$37*D37+$C$38*D38+$C$39*D39+$C$40*D40+$C$41*D41+$C$42*D42+$C$43*D43+$C$44*D44 -> 0 | E24: =$C$25*E25+$C$26*E26+$C$27*E27+$C$28*E28+$C$29*E29+$C$30*E30+$C$31*E31+$C$32*E32+$C$33*E33+$C$34*E34+$C$35*E35+$C$36*E36+$C$37*E37+$C$38*E38+$C$39*E39+$C$40*E40+$C$41*E41+$C$42*E42+$C$43*E43+$C$44*E44 -> 0 | F24: 0 | G24: 0 | H24: 0 | I24: 0 | J24: 0 | K24: 0 | L24: 0 | M24: 0 | N24: 0 | O24: 0 | P24: 0 | Q24: 0 | R24: 0 | S24: 0 | T24: 0 | U24: 0 | V24: 0 | W24: 0 | X24: 0 | Y24: 0 | Z24: 0 | AA24: 0 | AB24: 0 | AC24: 0 | AD24: 0 | AE24: 0 | AF24: 0 | AG24: 0

Sheet fruto genipapo
A1: ='Parâmetros Gerais'!A1 -> Análise Financeira de Sistemas Produtivos Integrados (V. 4.16 11/2016)
A2: =IF('Parâmetros Gerais'!B15<>"",'Parâmetros Gerais'!B15,"") -> fruto genipapo
D3: =Produção!D3 -> Período
A4: Descrição | B4: Unidade | C4: Preço | D4: 1 | E4: 2 | F4: 3 | G4: 4 | H4: 5 | I4: 6 | J4: 7 | K4: 8 | L4: 9 | M4: 10 | N4: 11 | O4: 12 | P4: 13 | Q4: 14 | R4: 15 | S4: 16 | T4: 17 | U4: 18 | V4: 19 | W4: 20 | X4: 21 | Y4: 22 | Z4: 23 | AA4: 24 | AB4: 25 | AC4: 26 | AD4: 27 | AE4: 28 | AF4: 29 | AG4: 30
A7: Atividades | D7: =$C$8*D8+$C$9*D9+$C$10*D10+$C$11*D11+$C$12*D12+$C$13*D13+$C$14*D14+$C$15*D15+$C$16*D16+$C$17*D17+$C$18*D18+$C$19*D19+$C$20*D20+$C$21*D21+$C$22*D22 -> 0 | E7: =$C$8*E8+$C$9*E9+$C$10*E10+$C$11*E11+$C$12*E12+$C$13*E13+$C$14*E14+$C$15*E15+$C$16*E16+$C$17*E17+$C$18*E18+$C$19*E19+$C$20*E20+$C$21*E21+$C$22*E22 -> 0 | F7: =$C$8*F8+$C$9*F9+$C$10*F10+$C$11*F11+$C$12*F12+$C$13*F13+$C$14*F14+$C$15*F15+$C$16*F16+$C$17*F17+$C$18*F18+$C$19*F19+$C$20*F20+$C$21*F21+$C$22*F22 -> 0 | G7: =$C$8*G8+$C$9*G9+$C$10*G10+$C$11*G11+$C$12*G12+$C$13*G13+$C$14*G14+$C$15*G15+$C$16*G16+$C$17*G17+$C$18*G18+$C$19*G19+$C$20*G20+$C$21*G21+$C$22*G22 -> 0 | H7: 0 | I7: 0 | J7: 0 | K7: 0 | L7: 0 | M7: 0 | N7: 0 | O7: 0 | P7: 0 | Q7: 0 | R7: 0 | S7: 0 | T7: 0 | U7: 0 | V7: 0 | W7: 0 | X7: 0 | Y7: 0 | Z7: 0 | AA7: 0 | AB7: 0 | AC7: 0 | AD7: 0 | AE7: 0 | AF7: 0 | AG7: 0
C8: =IF(B8='Parâmetros Gerais'!$I$4,'Parâmetros Gerais'!$F$4,IF(B8='Parâmetros Gerais'!$I$5,'Parâmetros Gerais'!$F$5,IF(B8='Parâmetros Gerais'!$I$6,'Parâmetros Gerais'!$F$6,0))) -> 0
C9: =IF(B9='Parâmetros Gerais'!$I$4,'Parâmetros Gerais'!$F$4,IF(B9='Parâmetros Gerais'!$I$5,'Parâmetros Gerais'!$F$5,IF(B9='Parâmetros Gerais'!$I$6,'Parâmetros Gerais'!$F$6,0))) -> 0
C10: =IF(B10='Parâmetros Gerais'!$I$4,'Parâmetros Gerais'!$F$4,IF(B10='Parâmetros Gerais'!$I$5,'Parâmetros Gerais'!$F$5,IF(B10='Parâmetros Gerais'!$I$6,'Parâmetros Gerais'!$F$6,0))) -> 0
C11: =IF(B11='Parâmetros Gerais'!$I$4,'Parâmetros Gerais'!$F$4,IF(B11='Parâmetros Gerais'!$I$5,'Parâmetros Gerais'!$F$5,IF(B11='Parâmetros Gerais'!$I$6,'Parâmetros Gerais'!$F$6,0))) -> 0
C12: =IF(B12='Parâmetros Gerais'!$I$4,'Parâmetros Gerais'!$F$4,IF(B12='Parâmetros Gerais'!$I$5,'Parâmetros Gerais'!$F$5,IF(B12='Parâmetros Gerais'!$I$6,'Parâmetros Gerais'!$F$6,0))) -> 0
C13: =IF(B13='Parâmetros Gerais'!$I$4,'Parâmetros Gerais'!$F$4,IF(B13='Parâmetros Gerais'!$I$5,'Parâmetros Gerais'!$F$5,IF(B13='Parâmetros Gerais'!$I$6,'Parâmetros Gerais'!$F$6,0))) -> 0
C14: =IF(B14='Parâmetros Gerais'!$I$4,'Parâmetros Gerais'!$F$4,IF(B14='Parâmetros Gerais'!$I$5,'Parâmetros Gerais'!$F$5,IF(B14='Parâmetros Gerais'!$I$6,'Parâmetros Gerais'!$F$6,0))) -> 0
C15: =IF(B15='Parâmetros Gerais'!$I$4,'Parâmetros Gerais'!$F$4,IF(B15='Parâmetros Gerais'!$I$5,'Parâmetros Gerais'!$F$5,IF(B15='Parâmetros Gerais'!$I$6,'Parâmetros Gerais'!$F$6,0))) -> 0
C16: =IF(B16='Parâmetros Gerais'!$I$4,'Parâmetros Gerais'!$F$4,IF(B16='Parâmetros Gerais'!$I$5,'Parâmetros Gerais'!$F$5,IF(B16='Parâmetros Gerais'!$I$6,'Parâmetros Gerais'!$F$6,0))) -> 0
C17: =IF(B17='Parâmetros Gerais'!$I$4,'Parâmetros Gerais'!$F$4,IF(B17='Parâmetros Gerais'!$I$5,'Parâmetros Gerais'!$F$5,IF(B17='Parâmetros Gerais'!$I$6,'Parâmetros Gerais'!$F$6,0))) -> 0
C18: =IF(B18='Parâmetros Gerais'!$I$4,'Parâmetros Gerais'!$F$4,IF(B18='Parâmetros Gerais'!$I$5,'Parâmetros Gerais'!$F$5,IF(B18='Parâmetros Gerais'!$I$6,'Parâmetros Gerais'!$F$6,0))) -> 0
C19: =IF(B19='Parâmetros Gerais'!$I$4,'Parâmetros Gerais'!$F$4,IF(B19='Parâmetros Gerais'!$I$5,'Parâmetros Gerais'!$F$5,IF(B19='Parâmetros Gerais'!$I$6,'Parâmetros Gerais'!$F$6,0))) -> 0
C20: =IF(B20='Parâmetros Gerais'!$I$4,'Parâmetros Gerais'!$F$4,IF(B20='Parâmetros Gerais'!$I$5,'Parâmetros Gerais'!$F$5,IF(B20='Parâmetros Gerais'!$I$6,'Parâmetros Gerais'!$F$6,0))) -> 0
C21: =IF(B21='Parâmetros Gerais'!$I$4,'Parâmetros Gerais'!$F$4,IF(B21='Parâmetros Gerais'!$I$5,'Parâmetros Gerais'!$F$5,IF(B21='Parâmetros Gerais'!$I$6,'Parâmetros Gerais'!$F$6,0))) -> 0
C22: =IF(B22='Parâmetros Gerais'!$I$4,'Parâmetros Gerais'!$F$4,IF(B22='Parâmetros Gerais'!$I$5,'Parâmetros Gerais'!$F$5,IF(B22='Parâmetros Gerais'!$I$6,'Parâmetros Gerais'!$F$6,0))) -> 0
D23: =SUM(D8:D22) -> 0 | E23: 0 | F23: 0 | G23: 0 | H23: 0 | I23: 0 | J23: 0 | K23: 0 | L23: 0 | M23: 0 | N23: 0 | O23: 0 | P23: 0 | Q23: 0 | R23: 0 | S23: 0 | T23: 0 | U23: 0 | V23: 0 | W23: 0 | X23: 0 | Y23: 0 | Z23: 0 | AA23: 0 | AB23: 0 | AC23: 0 | AD23: 0 | AE23: 0 | AF23: 0 | AG23: 0
A24: Insumos | D24: =$C$25*D25+$C$26*D26+$C$27*D27+$C$28*D28+$C$29*D29+$C$30*D30+$C$31*D31+$C$32*D32+$C$33*D33+$C$34*D34+$C$35*D35+$C$36*D36+$C$37*D37+$C$38*D38+$C$39*D39+$C$40*D40+$C$41*D41+$C$42*D42+$C$43*D43+$C$44*D44 -> 0 | E24: =$C$25*E25+$C$26*E26+$C$27*E27+$C$28*E28+$C$29*E29+$C$30*E30+$C$31*E31+$C$32*E32+$C$33*E33+$C$34*E34+$C$35*E35+$C$36*E36+$C$37*E37+$C$38*E38+$C$39*E39+$C$40*E40+$C$41*E41+$C$42*E42+$C$43*E43+$C$44*E44 -> 0 | F24: 0 | G24: 0 | H24: 0 | I24: 0 | J24: 0 | K24: 0 | L24: 0 | M24: 0 | N24: 0 | O24: 0 | P24: 0 | Q24: 0 | R24: 0 | S24: 0 | T24: 0 | U24: 0 | V24: 0 | W24: 0 | X24: 0 | Y24: 0 | Z24: 0 | AA24: 0 | AB24: 0 | AC24: 0 | AD24: 0 | AE24: 0 | AF24: 0 | AG24: 0

Sheet fruto araçauna
A1: ='Parâmetros Gerais'!A1 -> Análise Financeira de Sistemas Produtivos Integrados (V. 4.16 11/2016)
A2: =IF('Parâmetros Gerais'!B16<>"",'Parâmetros Gerais'!B16,"") -> fruto araçauna
D3: =Produção!D3 -> Período
A4: Descrição | B4: Unidade | C4: Preço | D4: 1 | E4: 2 | F4: 3 | G4: 4 | H4: 5 | I4: 6 | J4: 7 | K4: 8 | L4: 9 | M4: 10 | N4: 11 | O4: 12 | P4: 13 | Q4: 14 | R4: 15 | S4: 16 | T4: 17 | U4: 18 | V4: 19 | W4: 20 | X4: 21 | Y4: 22 | Z4: 23 | AA4: 24 | AB4: 25 | AC4: 26 | AD4: 27 | AE4: 28 | AF4: 29 | AG4: 30
A7: Atividades | D7: =$C$8*D8+$C$9*D9+$C$10*D10+$C$11*D11+$C$12*D12+$C$13*D13+$C$14*D14+$C$15*D15+$C$16*D16+$C$17*D17+$C$18*D18+$C$19*D19+$C$20*D20+$C$21*D21+$C$22*D22 -> 0 | E7: =$C$8*E8+$C$9*E9+$C$10*E10+$C$11*E11+$C$12*E12+$C$13*E13+$C$14*E14+$C$15*E15+$C$16*E16+$C$17*E17+$C$18*E18+$C$19*E19+$C$20*E20+$C$21*E21+$C$22*E22 -> 0 | F7: 0 | G7: 0 | H7: 0 | I7: 0 | J7: 0 | K7: 0 | L7: 0 | M7: 0 | N7: 0 | O7: 0 | P7: 0 | Q7: 0 | R7: 0 | S7: 0 | T7: 0 | U7: 0 | V7: 0 | W7: 0 | X7: 0 | Y7: 0 | Z7: 0 | AA7: 0 | AB7: 0 | AC7: 0 | AD7: 0 | AE7: 0 | AF7: 0 | AG7: 0
C8: =IF(B8='Parâmetros Gerais'!$I$4,'Parâmetros Gerais'!$F$4,IF(B8='Parâmetros Gerais'!$I$5,'Parâmetros Gerais'!$F$5,IF(B8='Parâmetros Gerais'!$I$6,'Parâmetros Gerais'!$F$6,0))) -> 0
C9: =IF(B9='Parâmetros Gerais'!$I$4,'Parâmetros Gerais'!$F$4,IF(B9='Parâmetros Gerais'!$I$5,'Parâmetros Gerais'!$F$5,IF(B9='Parâmetros Gerais'!$I$6,'Parâmetros Gerais'!$F$6,0))) -> 0
C10: =IF(B10='Parâmetros Gerais'!$I$4,'Parâmetros Gerais'!$F$4,IF(B10='Parâmetros Gerais'!$I$5,'Parâmetros Gerais'!$F$5,IF(B10='Parâmetros Gerais'!$I$6,'Parâmetros Gerais'!$F$6,0))) -> 0
C11: =IF(B11='Parâmetros Gerais'!$I$4,'Parâmetros Gerais'!$F$4,IF(B11='Parâmetros Gerais'!$I$5,'Parâmetros Gerais'!$F$5,IF(B11='Parâmetros Gerais'!$I$6,'Parâmetros Gerais'!$F$6,0))) -> 0
C12: =IF(B12='Parâmetros Gerais'!$I$4,'Parâmetros Gerais'!$F$4,IF(B12='Parâmetros Gerais'!$I$5,'Parâmetros Gerais'!$F$5,IF(B12='Parâmetros Gerais'!$I$6,'Parâmetros Gerais'!$F$6,0))) -> 0
C13: =IF(B13='Parâmetros Gerais'!$I$4,'Parâmetros Gerais'!$F$4,IF(B13='Parâmetros Gerais'!$I$5,'Parâmetros Gerais'!$F$5,IF(B13='Parâmetros Gerais'!$I$6,'Parâmetros Gerais'!$F$6,0))) -> 0
C14: =IF(B14='Parâmetros Gerais'!$I$4,'Parâmetros Gerais'!$F$4,IF(B14='Parâmetros Gerais'!$I$5,'Parâmetros Gerais'!$F$5,IF(B14='Parâmetros Gerais'!$I$6,'Parâmetros Gerais'!$F$6,0))) -> 0
C15: =IF(B15='Parâmetros Gerais'!$I$4,'Parâmetros Gerais'!$F$4,IF(B15='Parâmetros Gerais'!$I$5,'Parâmetros Gerais'!$F$5,IF(B15='Parâmetros Gerais'!$I$6,'Parâmetros Gerais'!$F$6,0))) -> 0
C16: =IF(B16='Parâmetros Gerais'!$I$4,'Parâmetros Gerais'!$F$4,IF(B16='Parâmetros Gerais'!$I$5,'Parâmetros Gerais'!$F$5,IF(B16='Parâmetros Gerais'!$I$6,'Parâmetros Gerais'!$F$6,0))) -> 0
C17: =IF(B17='Parâmetros Gerais'!$I$4,'Parâmetros Gerais'!$F$4,IF(B17='Parâmetros Gerais'!$I$5,'Parâmetros Gerais'!$F$5,IF(B17='Parâmetros Gerais'!$I$6,'Parâmetros Gerais'!$F$6,0))) -> 0
C18: =IF(B18='Parâmetros Gerais'!$I$4,'Parâmetros Gerais'!$F$4,IF(B18='Parâmetros Gerais'!$I$5,'Parâmetros Gerais'!$F$5,IF(B18='Parâmetros Gerais'!$I$6,'Parâmetros Gerais'!$F$6,0))) -> 0
C19: =IF(B19='Parâmetros Gerais'!$I$4,'Parâmetros Gerais'!$F$4,IF(B19='Parâmetros Gerais'!$I$5,'Parâmetros Gerais'!$F$5,IF(B19='Parâmetros Gerais'!$I$6,'Parâmetros Gerais'!$F$6,0))) -> 0
C20: =IF(B20='Parâmetros Gerais'!$I$4,'Parâmetros Gerais'!$F$4,IF(B20='Parâmetros Gerais'!$I$5,'Parâmetros Gerais'!$F$5,IF(B20='Parâmetros Gerais'!$I$6,'Parâmetros Gerais'!$F$6,0))) -> 0
C21: =IF(B21='Parâmetros Gerais'!$I$4,'Parâmetros Gerais'!$F$4,IF(B21='Parâmetros Gerais'!$I$5,'Parâmetros Gerais'!$F$5,IF(B21='Parâmetros Gerais'!$I$6,'Parâmetros Gerais'!$F$6,0))) -> 0
C22: =IF(B22='Parâmetros Gerais'!$I$4,'Parâmetros Gerais'!$F$4,IF(B22='Parâmetros Gerais'!$I$5,'Parâmetros Gerais'!$F$5,IF(B22='Parâmetros Gerais'!$I$6,'Parâmetros Gerais'!$F$6,0))) -> 0
D23: =SUM(D8:D22) -> 0 | E23: 0 | F23: 0 | G23: 0 | H23: 0 | I23: 0 | J23: 0 | K23: 0 | L23: 0 | M23: 0 | N23: 0 | O23: 0 | P23: 0 | Q23: 0 | R23: 0 | S23: 0 | T23: 0 | U23: 0 | V23: 0 | W23: 0 | X23: 0 | Y23: 0 | Z23: 0 | AA23: 0 | AB23: 0 | AC23: 0 | AD23: 0 | AE23: 0 | AF23: 0 | AG23: 0
A24: Insumos | D24: =$C$25*D25+$C$26*D26+$C$27*D27+$C$28*D28+$C$29*D29+$C$30*D30+$C$31*D31+$C$32*D32+$C$33*D33+$C$34*D34+$C$35*D35+$C$36*D36+$C$37*D37+$C$38*D38+$C$39*D39+$C$40*D40+$C$41*D41+$C$42*D42+$C$43*D43+$C$44*D44 -> 0 | E24: =$C$25*E25+$C$26*E26+$C$27*E27+$C$28*E28+$C$29*E29+$C$30*E30+$C$31*E31+$C$32*E32+$C$33*E33+$C$34*E34+$C$35*E35+$C$36*E36+$C$37*E37+$C$38*E38+$C$39*E39+$C$40*E40+$C$41*E41+$C$42*E42+$C$43*E43+$C$44*E44 -> 0 | F24: 0 | G24: 0 | H24: 0 | I24: 0 | J24: 0 | K24: 0 | L24: 0 | M24: 0 | N24: 0 | O24: 0 | P24: 0 | Q24: 0 | R24: 0 | S24: 0 | T24: 0 | U24: 0 | V24: 0 | W24: 0 | X24: 0 | Y24: 0 | Z24: 0 | AA24: 0 | AB24: 0 | AC24: 0 | AD24: 0 | AE24: 0 | AF24: 0 | AG24: 0

Sheet fruto pitanga
A1: ='Parâmetros Gerais'!A1 -> Análise Financeira de Sistemas Produtivos Integrados (V. 4.16 11/2016)
A2: =IF('Parâmetros Gerais'!B17<>"",'Parâmetros Gerais'!B17,"") -> fruto pitanga
D3: =Produção!D3 -> Período
A4: Descrição | B4: Unidade | C4: Preço | D4: 1 | E4: 2 | F4: 3 | G4: 4 | H4: 5 | I4: 6 | J4: 7 | K4: 8 | L4: 9 | M4: 10 | N4: 11 | O4: 12 | P4: 13 | Q4: 14 | R4: 15 | S4: 16 | T4: 17 | U4: 18 | V4: 19 | W4: 20 | X4: 21 | Y4: 22 | Z4: 23 | AA4: 24 | AB4: 25 | AC4: 26 | AD4: 27 | AE4: 28 | AF4: 29 | AG4: 30
A7: Atividades | D7: =$C$8*D8+$C$9*D9+$C$10*D10+$C$11*D11+$C$12*D12+$C$13*D13+$C$14*D14+$C$15*D15+$C$16*D16+$C$17*D17+$C$18*D18+$C$19*D19+$C$20*D20+$C$21*D21+$C$22*D22 -> 0 | E7: 0 | F7: 0 | G7: 0 | H7: 0 | I7: 0 | J7: 0 | K7: 0 | L7: 0 | M7: 0 | N7: 0 | O7: 0 | P7: 0 | Q7: 0 | R7: 0 | S7: 0 | T7: 0 | U7: 0 | V7: 0 | W7: 0 | X7: 0 | Y7: 0 | Z7: 0 | AA7: 0 | AB7: 0 | AC7: 0 | AD7: 0 | AE7: 0 | AF7: 0 | AG7: 0
C8: =IF(B8='Parâmetros Gerais'!$I$4,'Parâmetros Gerais'!$F$4,IF(B8='Parâmetros Gerais'!$I$5,'Parâmetros Gerais'!$F$5,IF(B8='Parâmetros Gerais'!$I$6,'Parâmetros Gerais'!$F$6,0))) -> 0
C9: =IF(B9='Parâmetros Gerais'!$I$4,'Parâmetros Gerais'!$F$4,IF(B9='Parâmetros Gerais'!$I$5,'Parâmetros Gerais'!$F$5,IF(B9='Parâmetros Gerais'!$I$6,'Parâmetros Gerais'!$F$6,0))) -> 0
C10: =IF(B10='Parâmetros Gerais'!$I$4,'Parâmetros Gerais'!$F$4,IF(B10='Parâmetros Gerais'!$I$5,'Parâmetros Gerais'!$F$5,IF(B10='Parâmetros Gerais'!$I$6,'Parâmetros Gerais'!$F$6,0))) -> 0
C11: =IF(B11='Parâmetros Gerais'!$I$4,'Parâmetros Gerais'!$F$4,IF(B11='Parâmetros Gerais'!$I$5,'Parâmetros Gerais'!$F$5,IF(B11='Parâmetros Gerais'!$I$6,'Parâmetros Gerais'!$F$6,0))) -> 0
C12: =IF(B12='Parâmetros Gerais'!$I$4,'Parâmetros Gerais'!$F$4,IF(B12='Parâmetros Gerais'!$I$5,'Parâmetros Gerais'!$F$5,IF(B12='Parâmetros Gerais'!$I$6,'Parâmetros Gerais'!$F$6,0))) -> 0
C13: =IF(B13='Parâmetros Gerais'!$I$4,'Parâmetros Gerais'!$F$4,IF(B13='Parâmetros Gerais'!$I$5,'Parâmetros Gerais'!$F$5,IF(B13='Parâmetros Gerais'!$I$6,'Parâmetros Gerais'!$F$6,0))) -> 0
C14: =IF(B14='Parâmetros Gerais'!$I$4,'Parâmetros Gerais'!$F$4,IF(B14='Parâmetros Gerais'!$I$5,'Parâmetros Gerais'!$F$5,IF(B14='Parâmetros Gerais'!$I$6,'Parâmetros Gerais'!$F$6,0))) -> 0
C15: =IF(B15='Parâmetros Gerais'!$I$4,'Parâmetros Gerais'!$F$4,IF(B15='Parâmetros Gerais'!$I$5,'Parâmetros Gerais'!$F$5,IF(B15='Parâmetros Gerais'!$I$6,'Parâmetros Gerais'!$F$6,0))) -> 0
C16: =IF(B16='Parâmetros Gerais'!$I$4,'Parâmetros Gerais'!$F$4,IF(B16='Parâmetros Gerais'!$I$5,'Parâmetros Gerais'!$F$5,IF(B16='Parâmetros Gerais'!$I$6,'Parâmetros Gerais'!$F$6,0))) -> 0
C17: =IF(B17='Parâmetros Gerais'!$I$4,'Parâmetros Gerais'!$F$4,IF(B17='Parâmetros Gerais'!$I$5,'Parâmetros Gerais'!$F$5,IF(B17='Parâmetros Gerais'!$I$6,'Parâmetros Gerais'!$F$6,0))) -> 0
C18: =IF(B18='Parâmetros Gerais'!$I$4,'Parâmetros Gerais'!$F$4,IF(B18='Parâmetros Gerais'!$I$5,'Parâmetros Gerais'!$F$5,IF(B18='Parâmetros Gerais'!$I$6,'Parâmetros Gerais'!$F$6,0))) -> 0
C19: =IF(B19='Parâmetros Gerais'!$I$4,'Parâmetros Gerais'!$F$4,IF(B19='Parâmetros Gerais'!$I$5,'Parâmetros Gerais'!$F$5,IF(B19='Parâmetros Gerais'!$I$6,'Parâmetros Gerais'!$F$6,0))) -> 0
C20: =IF(B20='Parâmetros Gerais'!$I$4,'Parâmetros Gerais'!$F$4,IF(B20='Parâmetros Gerais'!$I$5,'Parâmetros Gerais'!$F$5,IF(B20='Parâmetros Gerais'!$I$6,'Parâmetros Gerais'!$F$6,0))) -> 0
C21: =IF(B21='Parâmetros Gerais'!$I$4,'Parâmetros Gerais'!$F$4,IF(B21='Parâmetros Gerais'!$I$5,'Parâmetros Gerais'!$F$5,IF(B21='Parâmetros Gerais'!$I$6,'Parâmetros Gerais'!$F$6,0))) -> 0
C22: =IF(B22='Parâmetros Gerais'!$I$4,'Parâmetros Gerais'!$F$4,IF(B22='Parâmetros Gerais'!$I$5,'Parâmetros Gerais'!$F$5,IF(B22='Parâmetros Gerais'!$I$6,'Parâmetros Gerais'!$F$6,0))) -> 0
D23: =SUM(D8:D22) -> 0 | E23: 0 | F23: 0 | G23: 0 | H23: 0 | I23: 0 | J23: 0 | K23: 0 | L23: 0 | M23: 0 | N23: 0 | O23: 0 | P23: 0 | Q23: 0 | R23: 0 | S23: 0 | T23: 0 | U23: 0 | V23: 0 | W23: 0 | X23: 0 | Y23: 0 | Z23: 0 | AA23: 0 | AB23: 0 | AC23: 0 | AD23: 0 | AE23: 0 | AF23: 0 | AG23: 0
A24: Insumos | D24: =$C$25*D25+$C$26*D26+$C$27*D27+$C$28*D28+$C$29*D29+$C$30*D30+$C$31*D31+$C$32*D32+$C$33*D33+$C$34*D34+$C$35*D35+$C$36*D36+$C$37*D37+$C$38*D38+$C$39*D39+$C$40*D40+$C$41*D41+$C$42*D42+$C$43*D43+$C$44*D44 -> 0 | E24: =$C$25*E25+$C$26*E26+$C$27*E27+$C$28*E28+$C$29*E29+$C$30*E30+$C$31*E31+$C$32*E32+$C$33*E33+$C$34*E34+$C$35*E35+$C$36*E36+$C$37*E37+$C$38*E38+$C$39*E39+$C$40*E40+$C$41*E41+$C$42*E42+$C$43*E43+$C$44*E44 -> 0 | F24: 0 | G24: 0 | H24: 0 | I24: 0 | J24: 0 | K24: 0 | L24: 0 | M24: 0 | N24: 0 | O24: 0 | P24: 0 | Q24: 0 | R24: 0 | S24: 0 | T24: 0 | U24: 0 | V24: 0 | W24: 0 | X24: 0 | Y24: 0 | Z24: 0 | AA24: 0 | AB24: 0 | AC24: 0 | AD24: 0 | AE24: 0 | AF24: 0 | AG24: 0

Sheet Castanha
A1: ='Parâmetros Gerais'!A1 -> Análise Financeira de Sistemas Produtivos Integrados (V. 4.16 11/2016)
A2: =IF('Parâmetros Gerais'!B18<>"",'Parâmetros Gerais'!B18,"") -> castanha sapucaia
D3: =Produção!D3 -> Período
A4: Descrição | B4: Unidade | C4: Preço | D4: 1 | E4: 2 | F4: 3 | G4: 4 | H4: 5 | I4: 6 | J4: 7 | K4: 8 | L4: 9 | M4: 10 | N4: 11 | O4: 12 | P4: 13 | Q4: 14 | R4: 15 | S4: 16 | T4: 17 | U4: 18 | V4: 19 | W4: 20 | X4: 21 | Y4: 22 | Z4: 23 | AA4: 24 | AB4: 25 | AC4: 26 | AD4: 27 | AE4: 28 | AF4: 29 | AG4: 30
A7: Atividades | D7: =$C$8*D8+$C$9*D9+$C$10*D10+$C$11*D11+$C$12*D12+$C$13*D13+$C$14*D14+$C$15*D15+$C$16*D16+$C$17*D17+$C$18*D18+$C$19*D19+$C$20*D20+$C$21*D21+$C$22*D22 -> 0 | E7: =$C$8*E8+$C$9*E9+$C$10*E10+$C$11*E11+$C$12*E12+$C$13*E13+$C$14*E14+$C$15*E15+$C$16*E16+$C$17*E17+$C$18*E18+$C$19*E19+$C$20*E20+$C$21*E21+$C$22*E22 -> 0 | F7: 0 | G7: 0 | H7: 0 | I7: 0 | J7: 0 | K7: 0 | L7: 0 | M7: 0 | N7: 0 | O7: 0 | P7: 0 | Q7: 0 | R7: 0 | S7: 0 | T7: 0 | U7: 0 | V7: 0 | W7: 0 | X7: 0 | Y7: 0 | Z7: 0 | AA7: 0 | AB7: 0 | AC7: 0 | AD7: 0 | AE7: 0 | AF7: 0 | AG7: 0
C8: =IF(B8='Parâmetros Gerais'!$I$4,'Parâmetros Gerais'!$F$4,IF(B8='Parâmetros Gerais'!$I$5,'Parâmetros Gerais'!$F$5,IF(B8='Parâmetros Gerais'!$I$6,'Parâmetros Gerais'!$F$6,0))) -> 0
C9: =IF(B9='Parâmetros Gerais'!$I$4,'Parâmetros Gerais'!$F$4,IF(B9='Parâmetros Gerais'!$I$5,'Parâmetros Gerais'!$F$5,IF(B9='Parâmetros Gerais'!$I$6,'Parâmetros Gerais'!$F$6,0))) -> 0
C10: =IF(B10='Parâmetros Gerais'!$I$4,'Parâmetros Gerais'!$F$4,IF(B10='Parâmetros Gerais'!$I$5,'Parâmetros Gerais'!$F$5,IF(B10='Parâmetros Gerais'!$I$6,'Parâmetros Gerais'!$F$6,0))) -> 0
C11: =IF(B11='Parâmetros Gerais'!$I$4,'Parâmetros Gerais'!$F$4,IF(B11='Parâmetros Gerais'!$I$5,'Parâmetros Gerais'!$F$5,IF(B11='Parâmetros Gerais'!$I$6,'Parâmetros Gerais'!$F$6,0))) -> 0
C12: =IF(B12='Parâmetros Gerais'!$I$4,'Parâmetros Gerais'!$F$4,IF(B12='Parâmetros Gerais'!$I$5,'Parâmetros Gerais'!$F$5,IF(B12='Parâmetros Gerais'!$I$6,'Parâmetros Gerais'!$F$6,0))) -> 0
C13: =IF(B13='Parâmetros Gerais'!$I$4,'Parâmetros Gerais'!$F$4,IF(B13='Parâmetros Gerais'!$I$5,'Parâmetros Gerais'!$F$5,IF(B13='Parâmetros Gerais'!$I$6,'Parâmetros Gerais'!$F$6,0))) -> 0
C14: =IF(B14='Parâmetros Gerais'!$I$4,'Parâmetros Gerais'!$F$4,IF(B14='Parâmetros Gerais'!$I$5,'Parâmetros Gerais'!$F$5,IF(B14='Parâmetros Gerais'!$I$6,'Parâmetros Gerais'!$F$6,0))) -> 0
C15: =IF(B15='Parâmetros Gerais'!$I$4,'Parâmetros Gerais'!$F$4,IF(B15='Parâmetros Gerais'!$I$5,'Parâmetros Gerais'!$F$5,IF(B15='Parâmetros Gerais'!$I$6,'Parâmetros Gerais'!$F$6,0))) -> 0
C16: =IF(B16='Parâmetros Gerais'!$I$4,'Parâmetros Gerais'!$F$4,IF(B16='Parâmetros Gerais'!$I$5,'Parâmetros Gerais'!$F$5,IF(B16='Parâmetros Gerais'!$I$6,'Parâmetros Gerais'!$F$6,0))) -> 0
C17: =IF(B17='Parâmetros Gerais'!$I$4,'Parâmetros Gerais'!$F$4,IF(B17='Parâmetros Gerais'!$I$5,'Parâmetros Gerais'!$F$5,IF(B17='Parâmetros Gerais'!$I$6,'Parâmetros Gerais'!$F$6,0))) -> 0
C18: =IF(B18='Parâmetros Gerais'!$I$4,'Parâmetros Gerais'!$F$4,IF(B18='Parâmetros Gerais'!$I$5,'Parâmetros Gerais'!$F$5,IF(B18='Parâmetros Gerais'!$I$6,'Parâmetros Gerais'!$F$6,0))) -> 0
C19: =IF(B19='Parâmetros Gerais'!$I$4,'Parâmetros Gerais'!$F$4,IF(B19='Parâmetros Gerais'!$I$5,'Parâmetros Gerais'!$F$5,IF(B19='Parâmetros Gerais'!$I$6,'Parâmetros Gerais'!$F$6,0))) -> 0
C20: =IF(B20='Parâmetros Gerais'!$I$4,'Parâmetros Gerais'!$F$4,IF(B20='Parâmetros Gerais'!$I$5,'Parâmetros Gerais'!$F$5,IF(B20='Parâmetros Gerais'!$I$6,'Parâmetros Gerais'!$F$6,0))) -> 0
C21: =IF(B21='Parâmetros Gerais'!$I$4,'Parâmetros Gerais'!$F$4,IF(B21='Parâmetros Gerais'!$I$5,'Parâmetros Gerais'!$F$5,IF(B21='Parâmetros Gerais'!$I$6,'Parâmetros Gerais'!$F$6,0))) -> 0
C22: =IF(B22='Parâmetros Gerais'!$I$4,'Parâmetros Gerais'!$F$4,IF(B22='Parâmetros Gerais'!$I$5,'Parâmetros Gerais'!$F$5,IF(B22='Parâmetros Gerais'!$I$6,'Parâmetros Gerais'!$F$6,0))) -> 0
D23: =SUM(D8:D22) -> 0 | E23: 0 | F23: 0 | G23: 0 | H23: 0 | I23: 0 | J23: 0 | K23: 0 | L23: 0 | M23: 0 | N23: 0 | O23: 0 | P23: 0 | Q23: 0 | R23: 0 | S23: 0 | T23: 0 | U23: 0 | V23: 0 | W23: 0 | X23: 0 | Y23: 0 | Z23: 0 | AA23: 0 | AB23: 0 | AC23: 0 | AD23: 0 | AE23: 0 | AF23: 0 | AG23: 0
A24: Insumos | D24: =$C$25*D25+$C$26*D26+$C$27*D27+$C$28*D28+$C$29*D29+$C$30*D30+$C$31*D31+$C$32*D32+$C$33*D33+$C$34*D34+$C$35*D35+$C$36*D36+$C$37*D37+$C$38*D38+$C$39*D39+$C$40*D40+$C$41*D41+$C$42*D42+$C$43*D43+$C$44*D44 -> 0 | E24: =$C$25*E25+$C$26*E26+$C$27*E27+$C$28*E28+$C$29*E29+$C$30*E30+$C$31*E31+$C$32*E32+$C$33*E33+$C$34*E34+$C$35*E35+$C$36*E36+$C$37*E37+$C$38*E38+$C$39*E39+$C$40*E40+$C$41*E41+$C$42*E42+$C$43*E43+$C$44*E44 -> 0 | F24: 0 | G24: 0 | H24: 0 | I24: 0 | J24: 0 | K24: 0 | L24: 0 | M24: 0 | N24: 0 | O24: 0 | P24: 0 | Q24: 0 | R24: 0 | S24: 0 | T24: 0 | U24: 0 | V24: 0 | W24: 0 | X24: 0 | Y24: 0 | Z24: 0 | AA24: 0 | AB24: 0 | AC24: 0 | AD24: 0 | AE24: 0 | AF24: 0 | AG24: 0

Sheet fruto cajá
A1: ='Parâmetros Gerais'!A1 -> Análise Financeira de Sistemas Produtivos Integrados (V. 4.16 11/2016)
A2: =IF('Parâmetros Gerais'!B19<>"",'Parâmetros Gerais'!B19,"") -> fruto cajá
D3: =Produção!D3 -> Período
A4: Descrição | B4: Unidade | C4: Preço | D4: 1 | E4: 2 | F4: 3 | G4: 4 | H4: 5 | I4: 6 | J4: 7 | K4: 8 | L4: 9 | M4: 10 | N4: 11 | O4: 12 | P4: 13 | Q4: 14 | R4: 15 | S4: 16 | T4: 17 | U4: 18 | V4: 19 | W4: 20 | X4: 21 | Y4: 22 | Z4: 23 | AA4: 24 | AB4: 25 | AC4: 26 | AD4: 27 | AE4: 28 | AF4: 29 | AG4: 30
A7: Atividades | D7: =$C$8*D8+$C$9*D9+$C$10*D10+$C$11*D11+$C$12*D12+$C$13*D13+$C$14*D14+$C$15*D15+$C$16*D16+$C$17*D17+$C$18*D18+$C$19*D19+$C$20*D20+$C$21*D21+$C$22*D22 -> 0 | E7: =$C$8*E8+$C$9*E9+$C$10*E10+$C$11*E11+$C$12*E12+$C$13*E13+$C$14*E14+$C$15*E15+$C$16*E16+$C$17*E17+$C$18*E18+$C$19*E19+$C$20*E20+$C$21*E21+$C$22*E22 -> 0 | F7: 0 | G7: 0 | H7: 0 | I7: 0 | J7: 0 | K7: 0 | L7: 0 | M7: 0 | N7: 0 | O7: 0 | P7: 0 | Q7: 0 | R7: 0 | S7: 0 | T7: 0 | U7: 0 | V7: 0 | W7: 0 | X7: 0 | Y7: 0 | Z7: 0 | AA7: 0 | AB7: 0 | AC7: 0 | AD7: 0 | AE7: 0 | AF7: 0 | AG7: 0
C8: =IF(B8='Parâmetros Gerais'!$I$4,'Parâmetros Gerais'!$F$4,IF(B8='Parâmetros Gerais'!$I$5,'Parâmetros Gerais'!$F$5,IF(B8='Parâmetros Gerais'!$I$6,'Parâmetros Gerais'!$F$6,0))) -> 0
C9: =IF(B9='Parâmetros Gerais'!$I$4,'Parâmetros Gerais'!$F$4,IF(B9='Parâmetros Gerais'!$I$5,'Parâmetros Gerais'!$F$5,IF(B9='Parâmetros Gerais'!$I$6,'Parâmetros Gerais'!$F$6,0))) -> 0
C10: =IF(B10='Parâmetros Gerais'!$I$4,'Parâmetros Gerais'!$F$4,IF(B10='Parâmetros Gerais'!$I$5,'Parâmetros Gerais'!$F$5,IF(B10='Parâmetros Gerais'!$I$6,'Parâmetros Gerais'!$F$6,0))) -> 0
C11: =IF(B11='Parâmetros Gerais'!$I$4,'Parâmetros Gerais'!$F$4,IF(B11='Parâmetros Gerais'!$I$5,'Parâmetros Gerais'!$F$5,IF(B11='Parâmetros Gerais'!$I$6,'Parâmetros Gerais'!$F$6,0))) -> 0
C12: =IF(B12='Parâmetros Gerais'!$I$4,'Parâmetros Gerais'!$F$4,IF(B12='Parâmetros Gerais'!$I$5,'Parâmetros Gerais'!$F$5,IF(B12='Parâmetros Gerais'!$I$6,'Parâmetros Gerais'!$F$6,0))) -> 0
C13: =IF(B13='Parâmetros Gerais'!$I$4,'Parâmetros Gerais'!$F$4,IF(B13='Parâmetros Gerais'!$I$5,'Parâmetros Gerais'!$F$5,IF(B13='Parâmetros Gerais'!$I$6,'Parâmetros Gerais'!$F$6,0))) -> 0
C14: =IF(B14='Parâmetros Gerais'!$I$4,'Parâmetros Gerais'!$F$4,IF(B14='Parâmetros Gerais'!$I$5,'Parâmetros Gerais'!$F$5,IF(B14='Parâmetros Gerais'!$I$6,'Parâmetros Gerais'!$F$6,0))) -> 0
C15: =IF(B15='Parâmetros Gerais'!$I$4,'Parâmetros Gerais'!$F$4,IF(B15='Parâmetros Gerais'!$I$5,'Parâmetros Gerais'!$F$5,IF(B15='Parâmetros Gerais'!$I$6,'Parâmetros Gerais'!$F$6,0))) -> 0
C16: =IF(B16='Parâmetros Gerais'!$I$4,'Parâmetros Gerais'!$F$4,IF(B16='Parâmetros Gerais'!$I$5,'Parâmetros Gerais'!$F$5,IF(B16='Parâmetros Gerais'!$I$6,'Parâmetros Gerais'!$F$6,0))) -> 0
C17: =IF(B17='Parâmetros Gerais'!$I$4,'Parâmetros Gerais'!$F$4,IF(B17='Parâmetros Gerais'!$I$5,'Parâmetros Gerais'!$F$5,IF(B17='Parâmetros Gerais'!$I$6,'Parâmetros Gerais'!$F$6,0))) -> 0
C18: =IF(B18='Parâmetros Gerais'!$I$4,'Parâmetros Gerais'!$F$4,IF(B18='Parâmetros Gerais'!$I$5,'Parâmetros Gerais'!$F$5,IF(B18='Parâmetros Gerais'!$I$6,'Parâmetros Gerais'!$F$6,0))) -> 0
C19: =IF(B19='Parâmetros Gerais'!$I$4,'Parâmetros Gerais'!$F$4,IF(B19='Parâmetros Gerais'!$I$5,'Parâmetros Gerais'!$F$5,IF(B19='Parâmetros Gerais'!$I$6,'Parâmetros Gerais'!$F$6,0))) -> 0
C20: =IF(B20='Parâmetros Gerais'!$I$4,'Parâmetros Gerais'!$F$4,IF(B20='Parâmetros Gerais'!$I$5,'Parâmetros Gerais'!$F$5,IF(B20='Parâmetros Gerais'!$I$6,'Parâmetros Gerais'!$F$6,0))) -> 0
C21: =IF(B21='Parâmetros Gerais'!$I$4,'Parâmetros Gerais'!$F$4,IF(B21='Parâmetros Gerais'!$I$5,'Parâmetros Gerais'!$F$5,IF(B21='Parâmetros Gerais'!$I$6,'Parâmetros Gerais'!$F$6,0))) -> 0
C22: =IF(B22='Parâmetros Gerais'!$I$4,'Parâmetros Gerais'!$F$4,IF(B22='Parâmetros Gerais'!$I$5,'Parâmetros Gerais'!$F$5,IF(B22='Parâmetros Gerais'!$I$6,'Parâmetros Gerais'!$F$6,0))) -> 0
D23: =SUM(D8:D22) -> 0 | E23: 0 | F23: 0 | G23: 0 | H23: 0 | I23: 0 | J23: 0 | K23: 0 | L23: 0 | M23: 0 | N23: 0 | O23: 0 | P23: 0 | Q23: 0 | R23: 0 | S23: 0 | T23: 0 | U23: 0 | V23: 0 | W23: 0 | X23: 0 | Y23: 0 | Z23: 0 | AA23: 0 | AB23: 0 | AC23: 0 | AD23: 0 | AE23: 0 | AF23: 0 | AG23: 0
A24: Insumos | D24: =$C$25*D25+$C$26*D26+$C$27*D27+$C$28*D28+$C$29*D29+$C$30*D30+$C$31*D31+$C$32*D32+$C$33*D33+$C$34*D34+$C$35*D35+$C$36*D36+$C$37*D37+$C$38*D38+$C$39*D39+$C$40*D40+$C$41*D41+$C$42*D42+$C$43*D43+$C$44*D44 -> 0 | E24: =$C$25*E25+$C$26*E26+$C$27*E27+$C$28*E28+$C$29*E29+$C$30*E30+$C$31*E31+$C$32*E32+$C$33*E33+$C$34*E34+$C$35*E35+$C$36*E36+$C$37*E37+$C$38*E38+$C$39*E39+$C$40*E40+$C$41*E41+$C$42*E42+$C$43*E43+$C$44*E44 -> 0 | F24: 0 | G24: 0 | H24: 0 | I24: 0 | J24: 0 | K24: 0 | L24: 0 | M24: 0 | N24: 0 | O24: 0 | P24: 0 | Q24: 0 | R24: 0 | S24: 0 | T24: 0 | U24: 0 | V24: 0 | W24: 0 | X24: 0 | Y24: 0 | Z24: 0 | AA24: 0 | AB24: 0 | AC24: 0 | AD24: 0 | AE24: 0 | AF24: 0 | AG24: 0

Sheet semente urucum
A1: ='Parâmetros Gerais'!A1 -> Análise Financeira de Sistemas Produtivos Integrados (V. 4.16 11/2016)
A2: =IF('Parâmetros Gerais'!B20<>"",'Parâmetros Gerais'!B20,"") -> semente urucum
D3: =Produção!D3 -> Período
A4: Descrição | B4: Unidade | C4: Preço | D4: 1 | E4: 2 | F4: 3 | G4: 4 | H4: 5 | I4: 6 | J4: 7 | K4: 8 | L4: 9 | M4: 10 | N4: 11 | O4: 12 | P4: 13 | Q4: 14 | R4: 15 | S4: 16 | T4: 17 | U4: 18 | V4: 19 | W4: 20 | X4: 21 | Y4: 22 | Z4: 23 | AA4: 24 | AB4: 25 | AC4: 26 | AD4: 27 | AE4: 28 | AF4: 29 | AG4: 30
A7: Atividades | D7: =$C$8*D8+$C$9*D9+$C$10*D10+$C$11*D11+$C$12*D12+$C$13*D13+$C$14*D14+$C$15*D15+$C$16*D16+$C$17*D17+$C$18*D18+$C$19*D19+$C$20*D20+$C$21*D21+$C$22*D22 -> 0 | E7: =$C$8*E8+$C$9*E9+$C$10*E10+$C$11*E11+$C$12*E12+$C$13*E13+$C$14*E14+$C$15*E15+$C$16*E16+$C$17*E17+$C$18*E18+$C$19*E19+$C$20*E20+$C$21*E21+$C$22*E22 -> 0 | F7: 0 | G7: 0 | H7: 0 | I7: 0 | J7: 0 | K7: 0 | L7: 0 | M7: 0 | N7: 0 | O7: 0 | P7: 0 | Q7: 0 | R7: 0 | S7: 0 | T7: 0 | U7: 0 | V7: 0 | W7: 0 | X7: 0 | Y7: 0 | Z7: 0 | AA7: 0 | AB7: 0 | AC7: 0 | AD7: 0 | AE7: 0 | AF7: 0 | AG7: 0
C8: =IF(B8='Parâmetros Gerais'!$I$4,'Parâmetros Gerais'!$F$4,IF(B8='Parâmetros Gerais'!$I$5,'Parâmetros Gerais'!$F$5,IF(B8='Parâmetros Gerais'!$I$6,'Parâmetros Gerais'!$F$6,0))) -> 0
C9: =IF(B9='Parâmetros Gerais'!$I$4,'Parâmetros Gerais'!$F$4,IF(B9='Parâmetros Gerais'!$I$5,'Parâmetros Gerais'!$F$5,IF(B9='Parâmetros Gerais'!$I$6,'Parâmetros Gerais'!$F$6,0))) -> 0
C10: =IF(B10='Parâmetros Gerais'!$I$4,'Parâmetros Gerais'!$F$4,IF(B10='Parâmetros Gerais'!$I$5,'Parâmetros Gerais'!$F$5,IF(B10='Parâmetros Gerais'!$I$6,'Parâmetros Gerais'!$F$6,0))) -> 0
C11: =IF(B11='Parâmetros Gerais'!$I$4,'Parâmetros Gerais'!$F$4,IF(B11='Parâmetros Gerais'!$I$5,'Parâmetros Gerais'!$F$5,IF(B11='Parâmetros Gerais'!$I$6,'Parâmetros Gerais'!$F$6,0))) -> 0
C12: =IF(B12='Parâmetros Gerais'!$I$4,'Parâmetros Gerais'!$F$4,IF(B12='Parâmetros Gerais'!$I$5,'Parâmetros Gerais'!$F$5,IF(B12='Parâmetros Gerais'!$I$6,'Parâmetros Gerais'!$F$6,0))) -> 0
C13: =IF(B13='Parâmetros Gerais'!$I$4,'Parâmetros Gerais'!$F$4,IF(B13='Parâmetros Gerais'!$I$5,'Parâmetros Gerais'!$F$5,IF(B13='Parâmetros Gerais'!$I$6,'Parâmetros Gerais'!$F$6,0))) -> 0
C14: =IF(B14='Parâmetros Gerais'!$I$4,'Parâmetros Gerais'!$F$4,IF(B14='Parâmetros Gerais'!$I$5,'Parâmetros Gerais'!$F$5,IF(B14='Parâmetros Gerais'!$I$6,'Parâmetros Gerais'!$F$6,0))) -> 0
C15: =IF(B15='Parâmetros Gerais'!$I$4,'Parâmetros Gerais'!$F$4,IF(B15='Parâmetros Gerais'!$I$5,'Parâmetros Gerais'!$F$5,IF(B15='Parâmetros Gerais'!$I$6,'Parâmetros Gerais'!$F$6,0))) -> 0
C16: =IF(B16='Parâmetros Gerais'!$I$4,'Parâmetros Gerais'!$F$4,IF(B16='Parâmetros Gerais'!$I$5,'Parâmetros Gerais'!$F$5,IF(B16='Parâmetros Gerais'!$I$6,'Parâmetros Gerais'!$F$6,0))) -> 0
C17: =IF(B17='Parâmetros Gerais'!$I$4,'Parâmetros Gerais'!$F$4,IF(B17='Parâmetros Gerais'!$I$5,'Parâmetros Gerais'!$F$5,IF(B17='Parâmetros Gerais'!$I$6,'Parâmetros Gerais'!$F$6,0))) -> 0
C18: =IF(B18='Parâmetros Gerais'!$I$4,'Parâmetros Gerais'!$F$4,IF(B18='Parâmetros Gerais'!$I$5,'Parâmetros Gerais'!$F$5,IF(B18='Parâmetros Gerais'!$I$6,'Parâmetros Gerais'!$F$6,0))) -> 0
C19: =IF(B19='Parâmetros Gerais'!$I$4,'Parâmetros Gerais'!$F$4,IF(B19='Parâmetros Gerais'!$I$5,'Parâmetros Gerais'!$F$5,IF(B19='Parâmetros Gerais'!$I$6,'Parâmetros Gerais'!$F$6,0))) -> 0
C20: =IF(B20='Parâmetros Gerais'!$I$4,'Parâmetros Gerais'!$F$4,IF(B20='Parâmetros Gerais'!$I$5,'Parâmetros Gerais'!$F$5,IF(B20='Parâmetros Gerais'!$I$6,'Parâmetros Gerais'!$F$6,0))) -> 0
C21: =IF(B21='Parâmetros Gerais'!$I$4,'Parâmetros Gerais'!$F$4,IF(B21='Parâmetros Gerais'!$I$5,'Parâmetros Gerais'!$F$5,IF(B21='Parâmetros Gerais'!$I$6,'Parâmetros Gerais'!$F$6,0))) -> 0
C22: =IF(B22='Parâmetros Gerais'!$I$4,'Parâmetros Gerais'!$F$4,IF(B22='Parâmetros Gerais'!$I$5,'Parâmetros Gerais'!$F$5,IF(B22='Parâmetros Gerais'!$I$6,'Parâmetros Gerais'!$F$6,0))) -> 0
D23: =SUM(D8:D22) -> 0 | E23: 0 | F23: 0 | G23: 0 | H23: 0 | I23: 0 | J23: 0 | K23: 0 | L23: 0 | M23: 0 | N23: 0 | O23: 0 | P23: 0 | Q23: 0 | R23: 0 | S23: 0 | T23: 0 | U23: 0 | V23: 0 | W23: 0 | X23: 0 | Y23: 0 | Z23: 0 | AA23: 0 | AB23: 0 | AC23: 0 | AD23: 0 | AE23: 0 | AF23: 0 | AG23: 0
A24: Insumos | D24: =$C$25*D25+$C$26*D26+$C$27*D27+$C$28*D28+$C$29*D29+$C$30*D30+$C$31*D31+$C$32*D32+$C$33*D33+$C$34*D34+$C$35*D35+$C$36*D36+$C$37*D37+$C$38*D38+$C$39*D39+$C$40*D40+$C$41*D41+$C$42*D42+$C$43*D43+$C$44*D44 -> 0 | E24: =$C$25*E25+$C$26*E26+$C$27*E27+$C$28*E28+$C$29*E29+$C$30*E30+$C$31*E31+$C$32*E32+$C$33*E33+$C$34*E34+$C$35*E35+$C$36*E36+$C$37*E37+$C$38*E38+$C$39*E39+$C$40*E40+$C$41*E41+$C$42*E42+$C$43*E43+$C$44*E44 -> 0 | F24: 0 | G24: 0 | H24: 0 | I24: 0 | J24: 0 | K24: 0 | L24: 0 | M24: 0 | N24: 0 | O24: 0 | P24: 0 | Q24: 0 | R24: 0 | S24: 0 | T24: 0 | U24: 0 | V24: 0 | W24: 0 | X24: 0 | Y24: 0 | Z24: 0 | AA24: 0 | AB24: 0 | AC24: 0 | AD24: 0 | AE24: 0 | AF24: 0 | AG24: 0

Sheet semente aroeira
A1: ='Parâmetros Gerais'!A1 -> Análise Financeira de Sistemas Produtivos Integrados (V. 4.16 11/2016)
A2: =IF('Parâmetros Gerais'!B21<>"",'Parâmetros Gerais'!B21,"") -> semente aroeira
D3: =Produção!D3 -> Período
A4: Descrição | B4: Unidade | C4: Preço | D4: 1 | E4: 2 | F4: 3 | G4: 4 | H4: 5 | I4: 6 | J4: 7 | K4: 8 | L4: 9 | M4: 10 | N4: 11 | O4: 12 | P4: 13 | Q4: 14 | R4: 15 | S4: 16 | T4: 17 | U4: 18 | V4: 19 | W4: 20 | X4: 21 | Y4: 22 | Z4: 23 | AA4: 24 | AB4: 25 | AC4: 26 | AD4: 27 | AE4: 28 | AF4: 29 | AG4: 30
A7: Atividades | D7: =$C$8*D8+$C$9*D9+$C$10*D10+$C$11*D11+$C$12*D12+$C$13*D13+$C$14*D14+$C$15*D15+$C$16*D16+$C$17*D17+$C$18*D18+$C$19*D19+$C$20*D20+$C$21*D21+$C$22*D22 -> 0 | E7: =$C$8*E8+$C$9*E9+$C$10*E10+$C$11*E11+$C$12*E12+$C$13*E13+$C$14*E14+$C$15*E15+$C$16*E16+$C$17*E17+$C$18*E18+$C$19*E19+$C$20*E20+$C$21*E21+$C$22*E22 -> 0 | F7: 0 | G7: 0 | H7: 0 | I7: 0 | J7: 0 | K7: 0 | L7: 0 | M7: 0 | N7: 0 | O7: 0 | P7: 0 | Q7: 0 | R7: 0 | S7: 0 | T7: 0 | U7: 0 | V7: 0 | W7: 0 | X7: 0 | Y7: 0 | Z7: 0 | AA7: 0 | AB7: 0 | AC7: 0 | AD7: 0 | AE7: 0 | AF7: 0 | AG7: 0
C8: =IF(B8='Parâmetros Gerais'!$I$4,'Parâmetros Gerais'!$F$4,IF(B8='Parâmetros Gerais'!$I$5,'Parâmetros Gerais'!$F$5,IF(B8='Parâmetros Gerais'!$I$6,'Parâmetros Gerais'!$F$6,0))) -> 0
C9: =IF(B9='Parâmetros Gerais'!$I$4,'Parâmetros Gerais'!$F$4,IF(B9='Parâmetros Gerais'!$I$5,'Parâmetros Gerais'!$F$5,IF(B9='Parâmetros Gerais'!$I$6,'Parâmetros Gerais'!$F$6,0))) -> 0
C10: =IF(B10='Parâmetros Gerais'!$I$4,'Parâmetros Gerais'!$F$4,IF(B10='Parâmetros Gerais'!$I$5,'Parâmetros Gerais'!$F$5,IF(B10='Parâmetros Gerais'!$I$6,'Parâmetros Gerais'!$F$6,0))) -> 0
C11: =IF(B11='Parâmetros Gerais'!$I$4,'Parâmetros Gerais'!$F$4,IF(B11='Parâmetros Gerais'!$I$5,'Parâmetros Gerais'!$F$5,IF(B11='Parâmetros Gerais'!$I$6,'Parâmetros Gerais'!$F$6,0))) -> 0
C12: =IF(B12='Parâmetros Gerais'!$I$4,'Parâmetros Gerais'!$F$4,IF(B12='Parâmetros Gerais'!$I$5,'Parâmetros Gerais'!$F$5,IF(B12='Parâmetros Gerais'!$I$6,'Parâmetros Gerais'!$F$6,0))) -> 0
C13: =IF(B13='Parâmetros Gerais'!$I$4,'Parâmetros Gerais'!$F$4,IF(B13='Parâmetros Gerais'!$I$5,'Parâmetros Gerais'!$F$5,IF(B13='Parâmetros Gerais'!$I$6,'Parâmetros Gerais'!$F$6,0))) -> 0
C14: =IF(B14='Parâmetros Gerais'!$I$4,'Parâmetros Gerais'!$F$4,IF(B14='Parâmetros Gerais'!$I$5,'Parâmetros Gerais'!$F$5,IF(B14='Parâmetros Gerais'!$I$6,'Parâmetros Gerais'!$F$6,0))) -> 0
C15: =IF(B15='Parâmetros Gerais'!$I$4,'Parâmetros Gerais'!$F$4,IF(B15='Parâmetros Gerais'!$I$5,'Parâmetros Gerais'!$F$5,IF(B15='Parâmetros Gerais'!$I$6,'Parâmetros Gerais'!$F$6,0))) -> 0
C16: =IF(B16='Parâmetros Gerais'!$I$4,'Parâmetros Gerais'!$F$4,IF(B16='Parâmetros Gerais'!$I$5,'Parâmetros Gerais'!$F$5,IF(B16='Parâmetros Gerais'!$I$6,'Parâmetros Gerais'!$F$6,0))) -> 0
C17: =IF(B17='Parâmetros Gerais'!$I$4,'Parâmetros Gerais'!$F$4,IF(B17='Parâmetros Gerais'!$I$5,'Parâmetros Gerais'!$F$5,IF(B17='Parâmetros Gerais'!$I$6,'Parâmetros Gerais'!$F$6,0))) -> 0
C18: =IF(B18='Parâmetros Gerais'!$I$4,'Parâmetros Gerais'!$F$4,IF(B18='Parâmetros Gerais'!$I$5,'Parâmetros Gerais'!$F$5,IF(B18='Parâmetros Gerais'!$I$6,'Parâmetros Gerais'!$F$6,0))) -> 0
C19: =IF(B19='Parâmetros Gerais'!$I$4,'Parâmetros Gerais'!$F$4,IF(B19='Parâmetros Gerais'!$I$5,'Parâmetros Gerais'!$F$5,IF(B19='Parâmetros Gerais'!$I$6,'Parâmetros Gerais'!$F$6,0))) -> 0
C20: =IF(B20='Parâmetros Gerais'!$I$4,'Parâmetros Gerais'!$F$4,IF(B20='Parâmetros Gerais'!$I$5,'Parâmetros Gerais'!$F$5,IF(B20='Parâmetros Gerais'!$I$6,'Parâmetros Gerais'!$F$6,0))) -> 0
C21: =IF(B21='Parâmetros Gerais'!$I$4,'Parâmetros Gerais'!$F$4,IF(B21='Parâmetros Gerais'!$I$5,'Parâmetros Gerais'!$F$5,IF(B21='Parâmetros Gerais'!$I$6,'Parâmetros Gerais'!$F$6,0))) -> 0
C22: =IF(B22='Parâmetros Gerais'!$I$4,'Parâmetros Gerais'!$F$4,IF(B22='Parâmetros Gerais'!$I$5,'Parâmetros Gerais'!$F$5,IF(B22='Parâmetros Gerais'!$I$6,'Parâmetros Gerais'!$F$6,0))) -> 0
D23: =SUM(D8:D22) -> 0 | E23: 0 | F23: 0 | G23: 0 | H23: 0 | I23: 0 | J23: 0 | K23: 0 | L23: 0 | M23: 0 | N23: 0 | O23: 0 | P23: 0 | Q23: 0 | R23: 0 | S23: 0 | T23: 0 | U23: 0 | V23: 0 | W23: 0 | X23: 0 | Y23: 0 | Z23: 0 | AA23: 0 | AB23: 0 | AC23: 0 | AD23: 0 | AE23: 0 | AF23: 0 | AG23: 0
A24: Insumos | D24: =$C$25*D25+$C$26*D26+$C$27*D27+$C$28*D28+$C$29*D29+$C$30*D30+$C$31*D31+$C$32*D32+$C$33*D33+$C$34*D34+$C$35*D35+$C$36*D36+$C$37*D37+$C$38*D38+$C$39*D39+$C$40*D40+$C$41*D41+$C$42*D42+$C$43*D43+$C$44*D44 -> 0 | E24: =$C$25*E25+$C$26*E26+$C$27*E27+$C$28*E28+$C$29*E29+$C$30*E30+$C$31*E31+$C$32*E32+$C$33*E33+$C$34*E34+$C$35*E35+$C$36*E36+$C$37*E37+$C$38*E38+$C$39*E39+$C$40*E40+$C$41*E41+$C$42*E42+$C$43*E43+$C$44*E44 -> 0 | F24: 0 | G24: 0 | H24: 0 | I24: 0 | J24: 0 | K24: 0 | L24: 0 | M24: 0 | N24: 0 | O24: 0 | P24: 0 | Q24: 0 | R24: 0 | S24: 0 | T24: 0 | U24: 0 | V24: 0 | W24: 0 | X24: 0 | Y24: 0 | Z24: 0 | AA24: 0 | AB24: 0 | AC24: 0 | AD24: 0 | AE24: 0 | AF24: 0 | AG24: 0

Sheet raiz mandioca
A1: ='Parâmetros Gerais'!A1 -> Análise Financeira de Sistemas Produtivos Integrados (V. 4.16 11/2016)
A2: =IF('Parâmetros Gerais'!B22<>"",'Parâmetros Gerais'!B22,"") -> raiz mandioca
D3: =Produção!D3 -> Período
A4: Descrição | B4: Unidade | C4: Preço | D4: 1 | E4: 2 | F4: 3 | G4: 4 | H4: 5 | I4: 6 | J4: 7 | K4: 8 | L4: 9 | M4: 10 | N4: 11 | O4: 12 | P4: 13 | Q4: 14 | R4: 15 | S4: 16 | T4: 17 | U4: 18 | V4: 19 | W4: 20 | X4: 21 | Y4: 22 | Z4: 23 | AA4: 24 | AB4: 25 | AC4: 26 | AD4: 27 | AE4: 28 | AF4: 29 | AG4: 30
A7: Atividades | D7: =$C$8*D8+$C$9*D9+$C$10*D10+$C$11*D11+$C$12*D12+$C$13*D13+$C$14*D14+$C$15*D15+$C$16*D16+$C$17*D17+$C$18*D18+$C$19*D19+$C$20*D20+$C$21*D21+$C$22*D22 -> 0 | E7: =$C$8*E8+$C$9*E9+$C$10*E10+$C$11*E11+$C$12*E12+$C$13*E13+$C$14*E14+$C$15*E15+$C$16*E16+$C$17*E17+$C$18*E18+$C$19*E19+$C$20*E20+$C$21*E21+$C$22*E22 -> 0 | F7: 0 | G7: 0 | H7: 0 | I7: 0 | J7: 0 | K7: 0 | L7: 0 | M7: 0 | N7: 0 | O7: 0 | P7: 0 | Q7: 0 | R7: 0 | S7: 0 | T7: 0 | U7: 0 | V7: 0 | W7: 0 | X7: 0 | Y7: 0 | Z7: 0 | AA7: 0 | AB7: 0 | AC7: 0 | AD7: 0 | AE7: 0 | AF7: 0 | AG7: 0
C8: =IF(B8='Parâmetros Gerais'!$I$4,'Parâmetros Gerais'!$F$4,IF(B8='Parâmetros Gerais'!$I$5,'Parâmetros Gerais'!$F$5,IF(B8='Parâmetros Gerais'!$I$6,'Parâmetros Gerais'!$F$6,0))) -> 0
C9: =IF(B9='Parâmetros Gerais'!$I$4,'Parâmetros Gerais'!$F$4,IF(B9='Parâmetros Gerais'!$I$5,'Parâmetros Gerais'!$F$5,IF(B9='Parâmetros Gerais'!$I$6,'Parâmetros Gerais'!$F$6,0))) -> 0
C10: =IF(B10='Parâmetros Gerais'!$I$4,'Parâmetros Gerais'!$F$4,IF(B10='Parâmetros Gerais'!$I$5,'Parâmetros Gerais'!$F$5,IF(B10='Parâmetros Gerais'!$I$6,'Parâmetros Gerais'!$F$6,0))) -> 0
C11: =IF(B11='Parâmetros Gerais'!$I$4,'Parâmetros Gerais'!$F$4,IF(B11='Parâmetros Gerais'!$I$5,'Parâmetros Gerais'!$F$5,IF(B11='Parâmetros Gerais'!$I$6,'Parâmetros Gerais'!$F$6,0))) -> 0
C12: =IF(B12='Parâmetros Gerais'!$I$4,'Parâmetros Gerais'!$F$4,IF(B12='Parâmetros Gerais'!$I$5,'Parâmetros Gerais'!$F$5,IF(B12='Parâmetros Gerais'!$I$6,'Parâmetros Gerais'!$F$6,0))) -> 0
C13: =IF(B13='Parâmetros Gerais'!$I$4,'Parâmetros Gerais'!$F$4,IF(B13='Parâmetros Gerais'!$I$5,'Parâmetros Gerais'!$F$5,IF(B13='Parâmetros Gerais'!$I$6,'Parâmetros Gerais'!$F$6,0))) -> 0
C14: =IF(B14='Parâmetros Gerais'!$I$4,'Parâmetros Gerais'!$F$4,IF(B14='Parâmetros Gerais'!$I$5,'Parâmetros Gerais'!$F$5,IF(B14='Parâmetros Gerais'!$I$6,'Parâmetros Gerais'!$F$6,0))) -> 0
C15: =IF(B15='Parâmetros Gerais'!$I$4,'Parâmetros Gerais'!$F$4,IF(B15='Parâmetros Gerais'!$I$5,'Parâmetros Gerais'!$F$5,IF(B15='Parâmetros Gerais'!$I$6,'Parâmetros Gerais'!$F$6,0))) -> 0
C16: =IF(B16='Parâmetros Gerais'!$I$4,'Parâmetros Gerais'!$F$4,IF(B16='Parâmetros Gerais'!$I$5,'Parâmetros Gerais'!$F$5,IF(B16='Parâmetros Gerais'!$I$6,'Parâmetros Gerais'!$F$6,0))) -> 0
C17: =IF(B17='Parâmetros Gerais'!$I$4,'Parâmetros Gerais'!$F$4,IF(B17='Parâmetros Gerais'!$I$5,'Parâmetros Gerais'!$F$5,IF(B17='Parâmetros Gerais'!$I$6,'Parâmetros Gerais'!$F$6,0))) -> 0
C18: =IF(B18='Parâmetros Gerais'!$I$4,'Parâmetros Gerais'!$F$4,IF(B18='Parâmetros Gerais'!$I$5,'Parâmetros Gerais'!$F$5,IF(B18='Parâmetros Gerais'!$I$6,'Parâmetros Gerais'!$F$6,0))) -> 0
C19: =IF(B19='Parâmetros Gerais'!$I$4,'Parâmetros Gerais'!$F$4,IF(B19='Parâmetros Gerais'!$I$5,'Parâmetros Gerais'!$F$5,IF(B19='Parâmetros Gerais'!$I$6,'Parâmetros Gerais'!$F$6,0))) -> 0
C20: =IF(B20='Parâmetros Gerais'!$I$4,'Parâmetros Gerais'!$F$4,IF(B20='Parâmetros Gerais'!$I$5,'Parâmetros Gerais'!$F$5,IF(B20='Parâmetros Gerais'!$I$6,'Parâmetros Gerais'!$F$6,0))) -> 0
C21: =IF(B21='Parâmetros Gerais'!$I$4,'Parâmetros Gerais'!$F$4,IF(B21='Parâmetros Gerais'!$I$5,'Parâmetros Gerais'!$F$5,IF(B21='Parâmetros Gerais'!$I$6,'Parâmetros Gerais'!$F$6,0))) -> 0
C22: =IF(B22='Parâmetros Gerais'!$I$4,'Parâmetros Gerais'!$F$4,IF(B22='Parâmetros Gerais'!$I$5,'Parâmetros Gerais'!$F$5,IF(B22='Parâmetros Gerais'!$I$6,'Parâmetros Gerais'!$F$6,0))) -> 0
D23: =SUM(D8:D22) -> 0 | E23: 0 | F23: 0 | G23: 0 | H23: 0 | I23: 0 | J23: 0 | K23: 0 | L23: 0 | M23: 0 | N23: 0 | O23: 0 | P23: 0 | Q23: 0 | R23: 0 | S23: 0 | T23: 0 | U23: 0 | V23: 0 | W23: 0 | X23: 0 | Y23: 0 | Z23: 0 | AA23: 0 | AB23: 0 | AC23: 0 | AD23: 0 | AE23: 0 | AF23: 0 | AG23: 0
A24: Insumos | D24: =$C$25*D25+$C$26*D26+$C$27*D27+$C$28*D28+$C$29*D29+$C$30*D30+$C$31*D31+$C$32*D32+$C$33*D33+$C$34*D34+$C$35*D35+$C$36*D36+$C$37*D37+$C$38*D38+$C$39*D39+$C$40*D40+$C$41*D41+$C$42*D42+$C$43*D43+$C$44*D44 -> 0 | E24: =$C$25*E25+$C$26*E26+$C$27*E27+$C$28*E28+$C$29*E29+$C$30*E30+$C$31*E31+$C$32*E32+$C$33*E33+$C$34*E34+$C$35*E35+$C$36*E36+$C$37*E37+$C$38*E38+$C$39*E39+$C$40*E40+$C$41*E41+$C$42*E42+$C$43*E43+$C$44*E44 -> 0 | F24: 0 | G24: 0 | H24: 0 | I24: 0 | J24: 0 | K24: 0 | L24: 0 | M24: 0 | N24: 0 | O24: 0 | P24: 0 | Q24: 0 | R24: 0 | S24: 0 | T24: 0 | U24: 0 | V24: 0 | W24: 0 | X24: 0 | Y24: 0 | Z24: 0 | AA24: 0 | AB24: 0 | AC24: 0 | AD24: 0 | AE24: 0 | AF24: 0 | AG24: 0

Sheet abacaxi
A1: ='Parâmetros Gerais'!A1 -> Análise Financeira de Sistemas Produtivos Integrados (V. 4.16 11/2016)
A2: =IF('Parâmetros Gerais'!B23<>"",'Parâmetros Gerais'!B23,"") -> fruto abacaxi
D3: =Produção!D3 -> Período
A4: Descrição | B4: Unidade | C4: Preço | D4: 1 | E4: 2 | F4: 3 | G4: 4 | H4: 5 | I4: 6 | J4: 7 | K4: 8 | L4: 9 | M4: 10 | N4: 11 | O4: 12 | P4: 13 | Q4: 14 | R4: 15 | S4: 16 | T4: 17 | U4: 18 | V4: 19 | W4: 20 | X4: 21 | Y4: 22 | Z4: 23 | AA4: 24 | AB4: 25 | AC4: 26 | AD4: 27 | AE4: 28 | AF4: 29 | AG4: 30
A7: Atividades | D7: =$C$8*D8+$C$9*D9+$C$10*D10+$C$11*D11+$C$12*D12+$C$13*D13+$C$14*D14+$C$15*D15+$C$16*D16+$C$17*D17+$C$18*D18+$C$19*D19+$C$20*D20+$C$21*D21+$C$22*D22 -> 0 | E7: =$C$8*E8+$C$9*E9+$C$10*E10+$C$11*E11+$C$12*E12+$C$13*E13+$C$14*E14+$C$15*E15+$C$16*E16+$C$17*E17+$C$18*E18+$C$19*E19+$C$20*E20+$C$21*E21+$C$22*E22 -> 0 | F7: 0 | G7: 0 | H7: 0 | I7: 0 | J7: 0 | K7: 0 | L7: 0 | M7: 0 | N7: 0 | O7: 0 | P7: 0 | Q7: 0 | R7: 0 | S7: 0 | T7: 0 | U7: 0 | V7: 0 | W7: 0 | X7: 0 | Y7: 0 | Z7: 0 | AA7: 0 | AB7: 0 | AC7: 0 | AD7: 0 | AE7: 0 | AF7: 0 | AG7: 0
C8: =IF(B8='Parâmetros Gerais'!$I$4,'Parâmetros Gerais'!$F$4,IF(B8='Parâmetros Gerais'!$I$5,'Parâmetros Gerais'!$F$5,IF(B8='Parâmetros Gerais'!$I$6,'Parâmetros Gerais'!$F$6,0))) -> 0
C9: =IF(B9='Parâmetros Gerais'!$I$4,'Parâmetros Gerais'!$F$4,IF(B9='Parâmetros Gerais'!$I$5,'Parâmetros Gerais'!$F$5,IF(B9='Parâmetros Gerais'!$I$6,'Parâmetros Gerais'!$F$6,0))) -> 0
C10: =IF(B10='Parâmetros Gerais'!$I$4,'Parâmetros Gerais'!$F$4,IF(B10='Parâmetros Gerais'!$I$5,'Parâmetros Gerais'!$F$5,IF(B10='Parâmetros Gerais'!$I$6,'Parâmetros Gerais'!$F$6,0))) -> 0
C11: =IF(B11='Parâmetros Gerais'!$I$4,'Parâmetros Gerais'!$F$4,IF(B11='Parâmetros Gerais'!$I$5,'Parâmetros Gerais'!$F$5,IF(B11='Parâmetros Gerais'!$I$6,'Parâmetros Gerais'!$F$6,0))) -> 0
C12: =IF(B12='Parâmetros Gerais'!$I$4,'Parâmetros Gerais'!$F$4,IF(B12='Parâmetros Gerais'!$I$5,'Parâmetros Gerais'!$F$5,IF(B12='Parâmetros Gerais'!$I$6,'Parâmetros Gerais'!$F$6,0))) -> 0
C13: =IF(B13='Parâmetros Gerais'!$I$4,'Parâmetros Gerais'!$F$4,IF(B13='Parâmetros Gerais'!$I$5,'Parâmetros Gerais'!$F$5,IF(B13='Parâmetros Gerais'!$I$6,'Parâmetros Gerais'!$F$6,0))) -> 0
C14: =IF(B14='Parâmetros Gerais'!$I$4,'Parâmetros Gerais'!$F$4,IF(B14='Parâmetros Gerais'!$I$5,'Parâmetros Gerais'!$F$5,IF(B14='Parâmetros Gerais'!$I$6,'Parâmetros Gerais'!$F$6,0))) -> 0
C15: =IF(B15='Parâmetros Gerais'!$I$4,'Parâmetros Gerais'!$F$4,IF(B15='Parâmetros Gerais'!$I$5,'Parâmetros Gerais'!$F$5,IF(B15='Parâmetros Gerais'!$I$6,'Parâmetros Gerais'!$F$6,0))) -> 0
C16: =IF(B16='Parâmetros Gerais'!$I$4,'Parâmetros Gerais'!$F$4,IF(B16='Parâmetros Gerais'!$I$5,'Parâmetros Gerais'!$F$5,IF(B16='Parâmetros Gerais'!$I$6,'Parâmetros Gerais'!$F$6,0))) -> 0
C17: =IF(B17='Parâmetros Gerais'!$I$4,'Parâmetros Gerais'!$F$4,IF(B17='Parâmetros Gerais'!$I$5,'Parâmetros Gerais'!$F$5,IF(B17='Parâmetros Gerais'!$I$6,'Parâmetros Gerais'!$F$6,0))) -> 0
C18: =IF(B18='Parâmetros Gerais'!$I$4,'Parâmetros Gerais'!$F$4,IF(B18='Parâmetros Gerais'!$I$5,'Parâmetros Gerais'!$F$5,IF(B18='Parâmetros Gerais'!$I$6,'Parâmetros Gerais'!$F$6,0))) -> 0
C19: =IF(B19='Parâmetros Gerais'!$I$4,'Parâmetros Gerais'!$F$4,IF(B19='Parâmetros Gerais'!$I$5,'Parâmetros Gerais'!$F$5,IF(B19='Parâmetros Gerais'!$I$6,'Parâmetros Gerais'!$F$6,0))) -> 0
C20: =IF(B20='Parâmetros Gerais'!$I$4,'Parâmetros Gerais'!$F$4,IF(B20='Parâmetros Gerais'!$I$5,'Parâmetros Gerais'!$F$5,IF(B20='Parâmetros Gerais'!$I$6,'Parâmetros Gerais'!$F$6,0))) -> 0
C21: =IF(B21='Parâmetros Gerais'!$I$4,'Parâmetros Gerais'!$F$4,IF(B21='Parâmetros Gerais'!$I$5,'Parâmetros Gerais'!$F$5,IF(B21='Parâmetros Gerais'!$I$6,'Parâmetros Gerais'!$F$6,0))) -> 0
C22: =IF(B22='Parâmetros Gerais'!$I$4,'Parâmetros Gerais'!$F$4,IF(B22='Parâmetros Gerais'!$I$5,'Parâmetros Gerais'!$F$5,IF(B22='Parâmetros Gerais'!$I$6,'Parâmetros Gerais'!$F$6,0))) -> 0
D23: =SUM(D8:D22) -> 0 | E23: 0 | F23: 0 | G23: 0 | H23: 0 | I23: 0 | J23: 0 | K23: 0 | L23: 0 | M23: 0 | N23: 0 | O23: 0 | P23: 0 | Q23: 0 | R23: 0 | S23: 0 | T23: 0 | U23: 0 | V23: 0 | W23: 0 | X23: 0 | Y23: 0 | Z23: 0 | AA23: 0 | AB23: 0 | AC23: 0 | AD23: 0 | AE23: 0 | AF23: 0 | AG23: 0
A24: Insumos | D24: =$C$25*D25+$C$26*D26+$C$27*D27+$C$28*D28+$C$29*D29+$C$30*D30+$C$31*D31+$C$32*D32+$C$33*D33+$C$34*D34+$C$35*D35+$C$36*D36+$C$37*D37+$C$38*D38+$C$39*D39+$C$40*D40+$C$41*D41+$C$42*D42+$C$43*D43+$C$44*D44 -> 0 | E24: =$C$25*E25+$C$26*E26+$C$27*E27+$C$28*E28+$C$29*E29+$C$30*E30+$C$31*E31+$C$32*E32+$C$33*E33+$C$34*E34+$C$35*E35+$C$36*E36+$C$37*E37+$C$38*E38+$C$39*E39+$C$40*E40+$C$41*E41+$C$42*E42+$C$43*E43+$C$44*E44 -> 0 | F24: 0 | G24: 0 | H24: 0 | I24: 0 | J24: 0 | K24: 0 | L24: 0 | M24: 0 | N24: 0 | O24: 0 | P24: 0 | Q24: 0 | R24: 0 | S24: 0 | T24: 0 | U24: 0 | V24: 0 | W24: 0 | X24: 0 | Y24: 0 | Z24: 0 | AA24: 0 | AB24: 0 | AC24: 0 | AD24: 0 | AE24: 0 | AF24: 0 | AG24: 0

Sheet espigas
A1: ='Parâmetros Gerais'!A1 -> Análise Financeira de Sistemas Produtivos Integrados (V. 4.16 11/2016)
A2: =IF('Parâmetros Gerais'!B24<>"",'Parâmetros Gerais'!B24,"") -> espigas milho
D3: =Produção!D3 -> Período
A4: Descrição | B4: Unidade | C4: Preço | D4: 1 | E4: 2 | F4: 3 | G4: 4 | H4: 5 | I4: 6 | J4: 7 | K4: 8 | L4: 9 | M4: 10 | N4: 11 | O4: 12 | P4: 13 | Q4: 14 | R4: 15 | S4: 16 | T4: 17 | U4: 18 | V4: 19 | W4: 20 | X4: 21 | Y4: 22 | Z4: 23 | AA4: 24 | AB4: 25 | AC4: 26 | AD4: 27 | AE4: 28 | AF4: 29 | AG4: 30
A7: Atividades | D7: =$C$8*D8+$C$9*D9+$C$10*D10+$C$11*D11+$C$12*D12+$C$13*D13+$C$14*D14+$C$15*D15+$C$16*D16+$C$17*D17+$C$18*D18+$C$19*D19+$C$20*D20+$C$21*D21+$C$22*D22 -> 0 | E7: =$C$8*E8+$C$9*E9+$C$10*E10+$C$11*E11+$C$12*E12+$C$13*E13+$C$14*E14+$C$15*E15+$C$16*E16+$C$17*E17+$C$18*E18+$C$19*E19+$C$20*E20+$C$21*E21+$C$22*E22 -> 0 | F7: 0 | G7: 0 | H7: 0 | I7: 0 | J7: 0 | K7: 0 | L7: 0 | M7: 0 | N7: 0 | O7: 0 | P7: 0 | Q7: 0 | R7: 0 | S7: 0 | T7: 0 | U7: 0 | V7: 0 | W7: 0 | X7: 0 | Y7: 0 | Z7: 0 | AA7: 0 | AB7: 0 | AC7: 0 | AD7: 0 | AE7: 0 | AF7: 0 | AG7: 0
C8: =IF(B8='Parâmetros Gerais'!$I$4,'Parâmetros Gerais'!$F$4,IF(B8='Parâmetros Gerais'!$I$5,'Parâmetros Gerais'!$F$5,IF(B8='Parâmetros Gerais'!$I$6,'Parâmetros Gerais'!$F$6,0))) -> 0
C9: =IF(B9='Parâmetros Gerais'!$I$4,'Parâmetros Gerais'!$F$4,IF(B9='Parâmetros Gerais'!$I$5,'Parâmetros Gerais'!$F$5,IF(B9='Parâmetros Gerais'!$I$6,'Parâmetros Gerais'!$F$6,0))) -> 0
C10: =IF(B10='Parâmetros Gerais'!$I$4,'Parâmetros Gerais'!$F$4,IF(B10='Parâmetros Gerais'!$I$5,'Parâmetros Gerais'!$F$5,IF(B10='Parâmetros Gerais'!$I$6,'Parâmetros Gerais'!$F$6,0))) -> 0
C11: =IF(B11='Parâmetros Gerais'!$I$4,'Parâmetros Gerais'!$F$4,IF(B11='Parâmetros Gerais'!$I$5,'Parâmetros Gerais'!$F$5,IF(B11='Parâmetros Gerais'!$I$6,'Parâmetros Gerais'!$F$6,0))) -> 0
C12: =IF(B12='Parâmetros Gerais'!$I$4,'Parâmetros Gerais'!$F$4,IF(B12='Parâmetros Gerais'!$I$5,'Parâmetros Gerais'!$F$5,IF(B12='Parâmetros Gerais'!$I$6,'Parâmetros Gerais'!$F$6,0))) -> 0
C13: =IF(B13='Parâmetros Gerais'!$I$4,'Parâmetros Gerais'!$F$4,IF(B13='Parâmetros Gerais'!$I$5,'Parâmetros Gerais'!$F$5,IF(B13='Parâmetros Gerais'!$I$6,'Parâmetros Gerais'!$F$6,0))) -> 0
C14: =IF(B14='Parâmetros Gerais'!$I$4,'Parâmetros Gerais'!$F$4,IF(B14='Parâmetros Gerais'!$I$5,'Parâmetros Gerais'!$F$5,IF(B14='Parâmetros Gerais'!$I$6,'Parâmetros Gerais'!$F$6,0))) -> 0
C15: =IF(B15='Parâmetros Gerais'!$I$4,'Parâmetros Gerais'!$F$4,IF(B15='Parâmetros Gerais'!$I$5,'Parâmetros Gerais'!$F$5,IF(B15='Parâmetros Gerais'!$I$6,'Parâmetros Gerais'!$F$6,0))) -> 0
C16: =IF(B16='Parâmetros Gerais'!$I$4,'Parâmetros Gerais'!$F$4,IF(B16='Parâmetros Gerais'!$I$5,'Parâmetros Gerais'!$F$5,IF(B16='Parâmetros Gerais'!$I$6,'Parâmetros Gerais'!$F$6,0))) -> 0
C17: =IF(B17='Parâmetros Gerais'!$I$4,'Parâmetros Gerais'!$F$4,IF(B17='Parâmetros Gerais'!$I$5,'Parâmetros Gerais'!$F$5,IF(B17='Parâmetros Gerais'!$I$6,'Parâmetros Gerais'!$F$6,0))) -> 0
C18: =IF(B18='Parâmetros Gerais'!$I$4,'Parâmetros Gerais'!$F$4,IF(B18='Parâmetros Gerais'!$I$5,'Parâmetros Gerais'!$F$5,IF(B18='Parâmetros Gerais'!$I$6,'Parâmetros Gerais'!$F$6,0))) -> 0
C19: =IF(B19='Parâmetros Gerais'!$I$4,'Parâmetros Gerais'!$F$4,IF(B19='Parâmetros Gerais'!$I$5,'Parâmetros Gerais'!$F$5,IF(B19='Parâmetros Gerais'!$I$6,'Parâmetros Gerais'!$F$6,0))) -> 0
C20: =IF(B20='Parâmetros Gerais'!$I$4,'Parâmetros Gerais'!$F$4,IF(B20='Parâmetros Gerais'!$I$5,'Parâmetros Gerais'!$F$5,IF(B20='Parâmetros Gerais'!$I$6,'Parâmetros Gerais'!$F$6,0))) -> 0
C21: =IF(B21='Parâmetros Gerais'!$I$4,'Parâmetros Gerais'!$F$4,IF(B21='Parâmetros Gerais'!$I$5,'Parâmetros Gerais'!$F$5,IF(B21='Parâmetros Gerais'!$I$6,'Parâmetros Gerais'!$F$6,0))) -> 0
C22: =IF(B22='Parâmetros Gerais'!$I$4,'Parâmetros Gerais'!$F$4,IF(B22='Parâmetros Gerais'!$I$5,'Parâmetros Gerais'!$F$5,IF(B22='Parâmetros Gerais'!$I$6,'Parâmetros Gerais'!$F$6,0))) -> 0
D23: =SUM(D8:D22) -> 0 | E23: 0 | F23: 0 | G23: 0 | H23: 0 | I23: 0 | J23: 0 | K23: 0 | L23: 0 | M23: 0 | N23: 0 | O23: 0 | P23: 0 | Q23: 0 | R23: 0 | S23: 0 | T23: 0 | U23: 0 | V23: 0 | W23: 0 | X23: 0 | Y23: 0 | Z23: 0 | AA23: 0 | AB23: 0 | AC23: 0 | AD23: 0 | AE23: 0 | AF23: 0 | AG23: 0
A24: Insumos | D24: =$C$25*D25+$C$26*D26+$C$27*D27+$C$28*D28+$C$29*D29+$C$30*D30+$C$31*D31+$C$32*D32+$C$33*D33+$C$34*D34+$C$35*D35+$C$36*D36+$C$37*D37+$C$38*D38+$C$39*D39+$C$40*D40+$C$41*D41+$C$42*D42+$C$43*D43+$C$44*D44 -> 0 | E24: =$C$25*E25+$C$26*E26+$C$27*E27+$C$28*E28+$C$29*E29+$C$30*E30+$C$31*E31+$C$32*E32+$C$33*E33+$C$34*E34+$C$35*E35+$C$36*E36+$C$37*E37+$C$38*E38+$C$39*E39+$C$40*E40+$C$41*E41+$C$42*E42+$C$43*E43+$C$44*E44 -> 0 | F24: 0 | G24: 0 | H24: 0 | I24: 0 | J24: 0 | K24: 0 | L24: 0 | M24: 0 | N24: 0 | O24: 0 | P24: 0 | Q24: 0 | R24: 0 | S24: 0 | T24: 0 | U24: 0 | V24: 0 | W24: 0 | X24: 0 | Y24: 0 | Z24: 0 | AA24: 0 | AB24: 0 | AC24: 0 | AD24: 0 | AE24: 0 | AF24: 0 | AG24: 0

Sheet semente caupi
A1: ='Parâmetros Gerais'!A1 -> Análise Financeira de Sistemas Produtivos Integrados (V. 4.16 11/2016)
A2: =IF('Parâmetros Gerais'!B25<>"",'Parâmetros Gerais'!B25,"") -> estaca sansão do campo
D3: =Produção!D3 -> Período
A4: Descrição | B4: Unidade | C4: Preço | D4: 1 | E4: 2 | F4: 3 | G4: 4 | H4: 5 | I4: 6 | J4: 7 | K4: 8 | L4: 9 | M4: 10 | N4: 11 | O4: 12 | P4: 13 | Q4: 14 | R4: 15 | S4: 16 | T4: 17 | U4: 18 | V4: 19 | W4: 20 | X4: 21 | Y4: 22 | Z4: 23 | AA4: 24 | AB4: 25 | AC4: 26 | AD4: 27 | AE4: 28 | AF4: 29 | AG4: 30
A7: Atividades | D7: =$C$8*D8+$C$9*D9+$C$10*D10+$C$11*D11+$C$12*D12+$C$13*D13+$C$14*D14+$C$15*D15+$C$16*D16+$C$17*D17+$C$18*D18+$C$19*D19+$C$20*D20+$C$21*D21+$C$22*D22 -> 0 | E7: =$C$8*E8+$C$9*E9+$C$10*E10+$C$11*E11+$C$12*E12+$C$13*E13+$C$14*E14+$C$15*E15+$C$16*E16+$C$17*E17+$C$18*E18+$C$19*E19+$C$20*E20+$C$21*E21+$C$22*E22 -> 0 | F7: 0 | G7: 0 | H7: 0 | I7: 0 | J7: 0 | K7: 0 | L7: 0 | M7: 0 | N7: 0 | O7: 0 | P7: 0 | Q7: 0 | R7: 0 | S7: 0 | T7: 0 | U7: 0 | V7: 0 | W7: 0 | X7: 0 | Y7: 0 | Z7: 0 | AA7: 0 | AB7: 0 | AC7: 0 | AD7: 0 | AE7: 0 | AF7: 0 | AG7: 0
C8: =IF(B8='Parâmetros Gerais'!$I$4,'Parâmetros Gerais'!$F$4,IF(B8='Parâmetros Gerais'!$I$5,'Parâmetros Gerais'!$F$5,IF(B8='Parâmetros Gerais'!$I$6,'Parâmetros Gerais'!$F$6,0))) -> 0
C9: =IF(B9='Parâmetros Gerais'!$I$4,'Parâmetros Gerais'!$F$4,IF(B9='Parâmetros Gerais'!$I$5,'Parâmetros Gerais'!$F$5,IF(B9='Parâmetros Gerais'!$I$6,'Parâmetros Gerais'!$F$6,0))) -> 0
C10: =IF(B10='Parâmetros Gerais'!$I$4,'Parâmetros Gerais'!$F$4,IF(B10='Parâmetros Gerais'!$I$5,'Parâmetros Gerais'!$F$5,IF(B10='Parâmetros Gerais'!$I$6,'Parâmetros Gerais'!$F$6,0))) -> 0
C11: =IF(B11='Parâmetros Gerais'!$I$4,'Parâmetros Gerais'!$F$4,IF(B11='Parâmetros Gerais'!$I$5,'Parâmetros Gerais'!$F$5,IF(B11='Parâmetros Gerais'!$I$6,'Parâmetros Gerais'!$F$6,0))) -> 0
C12: =IF(B12='Parâmetros Gerais'!$I$4,'Parâmetros Gerais'!$F$4,IF(B12='Parâmetros Gerais'!$I$5,'Parâmetros Gerais'!$F$5,IF(B12='Parâmetros Gerais'!$I$6,'Parâmetros Gerais'!$F$6,0))) -> 0
C13: =IF(B13='Parâmetros Gerais'!$I$4,'Parâmetros Gerais'!$F$4,IF(B13='Parâmetros Gerais'!$I$5,'Parâmetros Gerais'!$F$5,IF(B13='Parâmetros Gerais'!$I$6,'Parâmetros Gerais'!$F$6,0))) -> 0
C14: =IF(B14='Parâmetros Gerais'!$I$4,'Parâmetros Gerais'!$F$4,IF(B14='Parâmetros Gerais'!$I$5,'Parâmetros Gerais'!$F$5,IF(B14='Parâmetros Gerais'!$I$6,'Parâmetros Gerais'!$F$6,0))) -> 0
C15: =IF(B15='Parâmetros Gerais'!$I$4,'Parâmetros Gerais'!$F$4,IF(B15='Parâmetros Gerais'!$I$5,'Parâmetros Gerais'!$F$5,IF(B15='Parâmetros Gerais'!$I$6,'Parâmetros Gerais'!$F$6,0))) -> 0
C16: =IF(B16='Parâmetros Gerais'!$I$4,'Parâmetros Gerais'!$F$4,IF(B16='Parâmetros Gerais'!$I$5,'Parâmetros Gerais'!$F$5,IF(B16='Parâmetros Gerais'!$I$6,'Parâmetros Gerais'!$F$6,0))) -> 0
C17: =IF(B17='Parâmetros Gerais'!$I$4,'Parâmetros Gerais'!$F$4,IF(B17='Parâmetros Gerais'!$I$5,'Parâmetros Gerais'!$F$5,IF(B17='Parâmetros Gerais'!$I$6,'Parâmetros Gerais'!$F$6,0))) -> 0
C18: =IF(B18='Parâmetros Gerais'!$I$4,'Parâmetros Gerais'!$F$4,IF(B18='Parâmetros Gerais'!$I$5,'Parâmetros Gerais'!$F$5,IF(B18='Parâmetros Gerais'!$I$6,'Parâmetros Gerais'!$F$6,0))) -> 0
C19: =IF(B19='Parâmetros Gerais'!$I$4,'Parâmetros Gerais'!$F$4,IF(B19='Parâmetros Gerais'!$I$5,'Parâmetros Gerais'!$F$5,IF(B19='Parâmetros Gerais'!$I$6,'Parâmetros Gerais'!$F$6,0))) -> 0
C20: =IF(B20='Parâmetros Gerais'!$I$4,'Parâmetros Gerais'!$F$4,IF(B20='Parâmetros Gerais'!$I$5,'Parâmetros Gerais'!$F$5,IF(B20='Parâmetros Gerais'!$I$6,'Parâmetros Gerais'!$F$6,0))) -> 0
C21: =IF(B21='Parâmetros Gerais'!$I$4,'Parâmetros Gerais'!$F$4,IF(B21='Parâmetros Gerais'!$I$5,'Parâmetros Gerais'!$F$5,IF(B21='Parâmetros Gerais'!$I$6,'Parâmetros Gerais'!$F$6,0))) -> 0
C22: =IF(B22='Parâmetros Gerais'!$I$4,'Parâmetros Gerais'!$F$4,IF(B22='Parâmetros Gerais'!$I$5,'Parâmetros Gerais'!$F$5,IF(B22='Parâmetros Gerais'!$I$6,'Parâmetros Gerais'!$F$6,0))) -> 0
D23: =SUM(D8:D22) -> 0 | E23: 0 | F23: 0 | G23: 0 | H23: 0 | I23: 0 | J23: 0 | K23: 0 | L23: 0 | M23: 0 | N23: 0 | O23: 0 | P23: 0 | Q23: 0 | R23: 0 | S23: 0 | T23: 0 | U23: 0 | V23: 0 | W23: 0 | X23: 0 | Y23: 0 | Z23: 0 | AA23: 0 | AB23: 0 | AC23: 0 | AD23: 0 | AE23: 0 | AF23: 0 | AG23: 0
A24: Insumos | D24: =$C$25*D25+$C$26*D26+$C$27*D27+$C$28*D28+$C$29*D29+$C$30*D30+$C$31*D31+$C$32*D32+$C$33*D33+$C$34*D34+$C$35*D35+$C$36*D36+$C$37*D37+$C$38*D38+$C$39*D39+$C$40*D40+$C$41*D41+$C$42*D42+$C$43*D43+$C$44*D44 -> 0 | E24: =$C$25*E25+$C$26*E26+$C$27*E27+$C$28*E28+$C$29*E29+$C$30*E30+$C$31*E31+$C$32*E32+$C$33*E33+$C$34*E34+$C$35*E35+$C$36*E36+$C$37*E37+$C$38*E38+$C$39*E39+$C$40*E40+$C$41*E41+$C$42*E42+$C$43*E43+$C$44*E44 -> 0 | F24: 0 | G24: 0 | H24: 0 | I24: 0 | J24: 0 | K24: 0 | L24: 0 | M24: 0 | N24: 0 | O24: 0 | P24: 0 | Q24: 0 | R24: 0 | S24: 0 | T24: 0 | U24: 0 | V24: 0 | W24: 0 | X24: 0 | Y24: 0 | Z24: 0 | AA24: 0 | AB24: 0 | AC24: 0 | AD24: 0 | AE24: 0 | AF24: 0 | AG24: 0

Sheet biomassa
A1: ='Parâmetros Gerais'!A1 -> Análise Financeira de Sistemas Produtivos Integrados (V. 4.16 11/2016)
A2: =IF('Parâmetros Gerais'!B26<>"",'Parâmetros Gerais'!B26,"") -> madeira madeira nova
D3: =Produção!D3 -> Período
A4: Descrição | B4: Unidade | C4: Preço | D4: 1 | E4: 2 | F4: 3 | G4: 4 | H4: 5 | I4: 6 | J4: 7 | K4: 8 | L4: 9 | M4: 10 | N4: 11 | O4: 12 | P4: 13 | Q4: 14 | R4: 15 | S4: 16 | T4: 17 | U4: 18 | V4: 19 | W4: 20 | X4: 21 | Y4: 22 | Z4: 23 | AA4: 24 | AB4: 25 | AC4: 26 | AD4: 27 | AE4: 28 | AF4: 29 | AG4: 30
A7: Atividades | D7: =$C$8*D8+$C$9*D9+$C$10*D10+$C$11*D11+$C$12*D12+$C$13*D13+$C$14*D14+$C$15*D15+$C$16*D16+$C$17*D17+$C$18*D18+$C$19*D19+$C$20*D20+$C$21*D21+$C$22*D22 -> 0 | E7: =$C$8*E8+$C$9*E9+$C$10*E10+$C$11*E11+$C$12*E12+$C$13*E13+$C$14*E14+$C$15*E15+$C$16*E16+$C$17*E17+$C$18*E18+$C$19*E19+$C$20*E20+$C$21*E21+$C$22*E22 -> 0 | F7: 0 | G7: 0 | H7: 0 | I7: 0 | J7: 0 | K7: 0 | L7: 0 | M7: 0 | N7: 0 | O7: 0 | P7: 0 | Q7: 0 | R7: 0 | S7: 0 | T7: 0 | U7: 0 | V7: 0 | W7: 0 | X7: 0 | Y7: 0 | Z7: 0 | AA7: 0 | AB7: 0 | AC7: 0 | AD7: 0 | AE7: 0 | AF7: 0 | AG7: 0
C8: =IF(B8='Parâmetros Gerais'!$I$4,'Parâmetros Gerais'!$F$4,IF(B8='Parâmetros Gerais'!$I$5,'Parâmetros Gerais'!$F$5,IF(B8='Parâmetros Gerais'!$I$6,'Parâmetros Gerais'!$F$6,0))) -> 0
C9: =IF(B9='Parâmetros Gerais'!$I$4,'Parâmetros Gerais'!$F$4,IF(B9='Parâmetros Gerais'!$I$5,'Parâmetros Gerais'!$F$5,IF(B9='Parâmetros Gerais'!$I$6,'Parâmetros Gerais'!$F$6,0))) -> 0
C10: =IF(B10='Parâmetros Gerais'!$I$4,'Parâmetros Gerais'!$F$4,IF(B10='Parâmetros Gerais'!$I$5,'Parâmetros Gerais'!$F$5,IF(B10='Parâmetros Gerais'!$I$6,'Parâmetros Gerais'!$F$6,0))) -> 0
C11: =IF(B11='Parâmetros Gerais'!$I$4,'Parâmetros Gerais'!$F$4,IF(B11='Parâmetros Gerais'!$I$5,'Parâmetros Gerais'!$F$5,IF(B11='Parâmetros Gerais'!$I$6,'Parâmetros Gerais'!$F$6,0))) -> 0
C12: =IF(B12='Parâmetros Gerais'!$I$4,'Parâmetros Gerais'!$F$4,IF(B12='Parâmetros Gerais'!$I$5,'Parâmetros Gerais'!$F$5,IF(B12='Parâmetros Gerais'!$I$6,'Parâmetros Gerais'!$F$6,0))) -> 0
C13: =IF(B13='Parâmetros Gerais'!$I$4,'Parâmetros Gerais'!$F$4,IF(B13='Parâmetros Gerais'!$I$5,'Parâmetros Gerais'!$F$5,IF(B13='Parâmetros Gerais'!$I$6,'Parâmetros Gerais'!$F$6,0))) -> 0
C14: =IF(B14='Parâmetros Gerais'!$I$4,'Parâmetros Gerais'!$F$4,IF(B14='Parâmetros Gerais'!$I$5,'Parâmetros Gerais'!$F$5,IF(B14='Parâmetros Gerais'!$I$6,'Parâmetros Gerais'!$F$6,0))) -> 0
C15: =IF(B15='Parâmetros Gerais'!$I$4,'Parâmetros Gerais'!$F$4,IF(B15='Parâmetros Gerais'!$I$5,'Parâmetros Gerais'!$F$5,IF(B15='Parâmetros Gerais'!$I$6,'Parâmetros Gerais'!$F$6,0))) -> 0
C16: =IF(B16='Parâmetros Gerais'!$I$4,'Parâmetros Gerais'!$F$4,IF(B16='Parâmetros Gerais'!$I$5,'Parâmetros Gerais'!$F$5,IF(B16='Parâmetros Gerais'!$I$6,'Parâmetros Gerais'!$F$6,0))) -> 0
C17: =IF(B17='Parâmetros Gerais'!$I$4,'Parâmetros Gerais'!$F$4,IF(B17='Parâmetros Gerais'!$I$5,'Parâmetros Gerais'!$F$5,IF(B17='Parâmetros Gerais'!$I$6,'Parâmetros Gerais'!$F$6,0))) -> 0
C18: =IF(B18='Parâmetros Gerais'!$I$4,'Parâmetros Gerais'!$F$4,IF(B18='Parâmetros Gerais'!$I$5,'Parâmetros Gerais'!$F$5,IF(B18='Parâmetros Gerais'!$I$6,'Parâmetros Gerais'!$F$6,0))) -> 0
C19: =IF(B19='Parâmetros Gerais'!$I$4,'Parâmetros Gerais'!$F$4,IF(B19='Parâmetros Gerais'!$I$5,'Parâmetros Gerais'!$F$5,IF(B19='Parâmetros Gerais'!$I$6,'Parâmetros Gerais'!$F$6,0))) -> 0
C20: =IF(B20='Parâmetros Gerais'!$I$4,'Parâmetros Gerais'!$F$4,IF(B20='Parâmetros Gerais'!$I$5,'Parâmetros Gerais'!$F$5,IF(B20='Parâmetros Gerais'!$I$6,'Parâmetros Gerais'!$F$6,0))) -> 0
C21: =IF(B21='Parâmetros Gerais'!$I$4,'Parâmetros Gerais'!$F$4,IF(B21='Parâmetros Gerais'!$I$5,'Parâmetros Gerais'!$F$5,IF(B21='Parâmetros Gerais'!$I$6,'Parâmetros Gerais'!$F$6,0))) -> 0
C22: =IF(B22='Parâmetros Gerais'!$I$4,'Parâmetros Gerais'!$F$4,IF(B22='Parâmetros Gerais'!$I$5,'Parâmetros Gerais'!$F$5,IF(B22='Parâmetros Gerais'!$I$6,'Parâmetros Gerais'!$F$6,0))) -> 0
D23: =SUM(D8:D22) -> 0 | E23: 0 | F23: 0 | G23: 0 | H23: 0 | I23: 0 | J23: 0 | K23: 0 | L23: 0 | M23: 0 | N23: 0 | O23: 0 | P23: 0 | Q23: 0 | R23: 0 | S23: 0 | T23: 0 | U23: 0 | V23: 0 | W23: 0 | X23: 0 | Y23: 0 | Z23: 0 | AA23: 0 | AB23: 0 | AC23: 0 | AD23: 0 | AE23: 0 | AF23: 0 | AG23: 0
A24: Insumos | D24: =$C$25*D25+$C$26*D26+$C$27*D27+$C$28*D28+$C$29*D29+$C$30*D30+$C$31*D31+$C$32*D32+$C$33*D33+$C$34*D34+$C$35*D35+$C$36*D36+$C$37*D37+$C$38*D38+$C$39*D39+$C$40*D40+$C$41*D41+$C$42*D42+$C$43*D43+$C$44*D44 -> 0 | E24: =$C$25*E25+$C$26*E26+$C$27*E27+$C$28*E28+$C$29*E29+$C$30*E30+$C$31*E31+$C$32*E32+$C$33*E33+$C$34*E34+$C$35*E35+$C$36*E36+$C$37*E37+$C$38*E38+$C$39*E39+$C$40*E40+$C$41*E41+$C$42*E42+$C$43*E43+$C$44*E44 -> 0 | F24: 0 | G24: 0 | H24: 0 | I24: 0 | J24: 0 | K24: 0 | L24: 0 | M24: 0 | N24: 0 | O24: 0 | P24: 0 | Q24: 0 | R24: 0 | S24: 0 | T24: 0 | U24: 0 | V24: 0 | W24: 0 | X24: 0 | Y24: 0 | Z24: 0 | AA24: 0 | AB24: 0 | AC24: 0 | AD24: 0 | AE24: 0 | AF24: 0 | AG24: 0

Sheet madeira
A1: ='Parâmetros Gerais'!A1 -> Análise Financeira de Sistemas Produtivos Integrados (V. 4.16 11/2016)
A2: =IF('Parâmetros Gerais'!B27<>"",'Parâmetros Gerais'!B27,"") -> lenha fedegoso
D3: =Produção!D3 -> Período
A4: Descrição | B4: Unidade | C4: Preço | D4: 1 | E4: 2 | F4: 3 | G4: 4 | H4: 5 | I4: 6 | J4: 7 | K4: 8 | L4: 9 | M4: 10 | N4: 11 | O4: 12 | P4: 13 | Q4: 14 | R4: 15 | S4: 16 | T4: 17 | U4: 18 | V4: 19 | W4: 20 | X4: 21 | Y4: 22 | Z4: 23 | AA4: 24 | AB4: 25 | AC4: 26 | AD4: 27 | AE4: 28 | AF4: 29 | AG4: 30
A7: Atividades | D7: =$C$8*D8+$C$9*D9+$C$10*D10+$C$11*D11+$C$12*D12+$C$13*D13+$C$14*D14+$C$15*D15+$C$16*D16+$C$17*D17+$C$18*D18+$C$19*D19+$C$20*D20+$C$21*D21+$C$22*D22 -> 0 | E7: =$C$8*E8+$C$9*E9+$C$10*E10+$C$11*E11+$C$12*E12+$C$13*E13+$C$14*E14+$C$15*E15+$C$16*E16+$C$17*E17+$C$18*E18+$C$19*E19+$C$20*E20+$C$21*E21+$C$22*E22 -> 0 | F7: 0 | G7: 0 | H7: 0 | I7: 0 | J7: 0 | K7: 0 | L7: 0 | M7: 0 | N7: 0 | O7: 0 | P7: 0 | Q7: 0 | R7: 0 | S7: 0 | T7: 0 | U7: 0 | V7: 0 | W7: 0 | X7: 0 | Y7: 0 | Z7: 0 | AA7: 0 | AB7: 0 | AC7: 0 | AD7: 0 | AE7: 0 | AF7: 0 | AG7: 0
C8: =IF(B8='Parâmetros Gerais'!$I$4,'Parâmetros Gerais'!$F$4,IF(B8='Parâmetros Gerais'!$I$5,'Parâmetros Gerais'!$F$5,IF(B8='Parâmetros Gerais'!$I$6,'Parâmetros Gerais'!$F$6,0))) -> 0
C9: =IF(B9='Parâmetros Gerais'!$I$4,'Parâmetros Gerais'!$F$4,IF(B9='Parâmetros Gerais'!$I$5,'Parâmetros Gerais'!$F$5,IF(B9='Parâmetros Gerais'!$I$6,'Parâmetros Gerais'!$F$6,0))) -> 0
C10: =IF(B10='Parâmetros Gerais'!$I$4,'Parâmetros Gerais'!$F$4,IF(B10='Parâmetros Gerais'!$I$5,'Parâmetros Gerais'!$F$5,IF(B10='Parâmetros Gerais'!$I$6,'Parâmetros Gerais'!$F$6,0))) -> 0
C11: =IF(B11='Parâmetros Gerais'!$I$4,'Parâmetros Gerais'!$F$4,IF(B11='Parâmetros Gerais'!$I$5,'Parâmetros Gerais'!$F$5,IF(B11='Parâmetros Gerais'!$I$6,'Parâmetros Gerais'!$F$6,0))) -> 0
C12: =IF(B12='Parâmetros Gerais'!$I$4,'Parâmetros Gerais'!$F$4,IF(B12='Parâmetros Gerais'!$I$5,'Parâmetros Gerais'!$F$5,IF(B12='Parâmetros Gerais'!$I$6,'Parâmetros Gerais'!$F$6,0))) -> 0
C13: =IF(B13='Parâmetros Gerais'!$I$4,'Parâmetros Gerais'!$F$4,IF(B13='Parâmetros Gerais'!$I$5,'Parâmetros Gerais'!$F$5,IF(B13='Parâmetros Gerais'!$I$6,'Parâmetros Gerais'!$F$6,0))) -> 0
C14: =IF(B14='Parâmetros Gerais'!$I$4,'Parâmetros Gerais'!$F$4,IF(B14='Parâmetros Gerais'!$I$5,'Parâmetros Gerais'!$F$5,IF(B14='Parâmetros Gerais'!$I$6,'Parâmetros Gerais'!$F$6,0))) -> 0
C15: =IF(B15='Parâmetros Gerais'!$I$4,'Parâmetros Gerais'!$F$4,IF(B15='Parâmetros Gerais'!$I$5,'Parâmetros Gerais'!$F$5,IF(B15='Parâmetros Gerais'!$I$6,'Parâmetros Gerais'!$F$6,0))) -> 0
C16: =IF(B16='Parâmetros Gerais'!$I$4,'Parâmetros Gerais'!$F$4,IF(B16='Parâmetros Gerais'!$I$5,'Parâmetros Gerais'!$F$5,IF(B16='Parâmetros Gerais'!$I$6,'Parâmetros Gerais'!$F$6,0))) -> 0
C17: =IF(B17='Parâmetros Gerais'!$I$4,'Parâmetros Gerais'!$F$4,IF(B17='Parâmetros Gerais'!$I$5,'Parâmetros Gerais'!$F$5,IF(B17='Parâmetros Gerais'!$I$6,'Parâmetros Gerais'!$F$6,0))) -> 0
C18: =IF(B18='Parâmetros Gerais'!$I$4,'Parâmetros Gerais'!$F$4,IF(B18='Parâmetros Gerais'!$I$5,'Parâmetros Gerais'!$F$5,IF(B18='Parâmetros Gerais'!$I$6,'Parâmetros Gerais'!$F$6,0))) -> 0
C19: =IF(B19='Parâmetros Gerais'!$I$4,'Parâmetros Gerais'!$F$4,IF(B19='Parâmetros Gerais'!$I$5,'Parâmetros Gerais'!$F$5,IF(B19='Parâmetros Gerais'!$I$6,'Parâmetros Gerais'!$F$6,0))) -> 0
C20: =IF(B20='Parâmetros Gerais'!$I$4,'Parâmetros Gerais'!$F$4,IF(B20='Parâmetros Gerais'!$I$5,'Parâmetros Gerais'!$F$5,IF(B20='Parâmetros Gerais'!$I$6,'Parâmetros Gerais'!$F$6,0))) -> 0
C21: =IF(B21='Parâmetros Gerais'!$I$4,'Parâmetros Gerais'!$F$4,IF(B21='Parâmetros Gerais'!$I$5,'Parâmetros Gerais'!$F$5,IF(B21='Parâmetros Gerais'!$I$6,'Parâmetros Gerais'!$F$6,0))) -> 0
C22: =IF(B22='Parâmetros Gerais'!$I$4,'Parâmetros Gerais'!$F$4,IF(B22='Parâmetros Gerais'!$I$5,'Parâmetros Gerais'!$F$5,IF(B22='Parâmetros Gerais'!$I$6,'Parâmetros Gerais'!$F$6,0))) -> 0
D23: =SUM(D8:D22) -> 0 | E23: 0 | F23: 0 | G23: 0 | H23: 0 | I23: 0 | J23: 0 | K23: 0 | L23: 0 | M23: 0 | N23: 0 | O23: 0 | P23: 0 | Q23: 0 | R23: 0 | S23: 0 | T23: 0 | U23: 0 | V23: 0 | W23: 0 | X23: 0 | Y23: 0 | Z23: 0 | AA23: 0 | AB23: 0 | AC23: 0 | AD23: 0 | AE23: 0 | AF23: 0 | AG23: 0
A24: Insumos | D24: =$C$25*D25+$C$26*D26+$C$27*D27+$C$28*D28+$C$29*D29+$C$30*D30+$C$31*D31+$C$32*D32+$C$33*D33+$C$34*D34+$C$35*D35+$C$36*D36+$C$37*D37+$C$38*D38+$C$39*D39+$C$40*D40+$C$41*D41+$C$42*D42+$C$43*D43+$C$44*D44 -> 0 | E24: =$C$25*E25+$C$26*E26+$C$27*E27+$C$28*E28+$C$29*E29+$C$30*E30+$C$31*E31+$C$32*E32+$C$33*E33+$C$34*E34+$C$35*E35+$C$36*E36+$C$37*E37+$C$38*E38+$C$39*E39+$C$40*E40+$C$41*E41+$C$42*E42+$C$43*E43+$C$44*E44 -> 0 | F24: 0 | G24: 0 | H24: 0 | I24: 0 | J24: 0 | K24: 0 | L24: 0 | M24: 0 | N24: 0 | O24: 0 | P24: 0 | Q24: 0 | R24: 0 | S24: 0 | T24: 0 | U24: 0 | V24: 0 | W24: 0 | X24: 0 | Y24: 0 | Z24: 0 | AA24: 0 | AB24: 0 | AC24: 0 | AD24: 0 | AE24: 0 | AF24: 0 | AG24: 0

Sheet Produto 15
A1: ='Parâmetros Gerais'!A1 -> Análise Financeira de Sistemas Produtivos Integrados (V. 4.16 11/2016)
A2: =IF('Parâmetros Gerais'!B28<>"",'Parâmetros Gerais'!B28,"") -> estaca pau d'alho
D3: =Produção!D3 -> Período
A4: Descrição | B4: Unidade | C4: Preço | D4: 1 | E4: 2 | F4: 3 | G4: 4 | H4: 5 | I4: 6 | J4: 7 | K4: 8 | L4: 9 | M4: 10 | N4: 11 | O4: 12 | P4: 13 | Q4: 14 | R4: 15 | S4: 16 | T4: 17 | U4: 18 | V4: 19 | W4: 20 | X4: 21 | Y4: 22 | Z4: 23 | AA4: 24 | AB4: 25 | AC4: 26 | AD4: 27 | AE4: 28 | AF4: 29 | AG4: 30
A7: Atividades | D7: =$C$8*D8+$C$9*D9+$C$10*D10+$C$11*D11+$C$12*D12+$C$13*D13+$C$14*D14+$C$15*D15+$C$16*D16+$C$17*D17+$C$18*D18+$C$19*D19+$C$20*D20+$C$21*D21+$C$22*D22 -> 0 | E7: =$C$8*E8+$C$9*E9+$C$10*E10+$C$11*E11+$C$12*E12+$C$13*E13+$C$14*E14+$C$15*E15+$C$16*E16+$C$17*E17+$C$18*E18+$C$19*E19+$C$20*E20+$C$21*E21+$C$22*E22 -> 0 | F7: 0 | G7: 0 | H7: 0 | I7: 0 | J7: 0 | K7: 0 | L7: 0 | M7: 0 | N7: 0 | O7: 0 | P7: 0 | Q7: 0 | R7: 0 | S7: 0 | T7: 0 | U7: 0 | V7: 0 | W7: 0 | X7: 0 | Y7: 0 | Z7: 0 | AA7: 0 | AB7: 0 | AC7: 0 | AD7: 0 | AE7: 0 | AF7: 0 | AG7: 0
C8: =IF(B8='Parâmetros Gerais'!$I$4,'Parâmetros Gerais'!$F$4,IF(B8='Parâmetros Gerais'!$I$5,'Parâmetros Gerais'!$F$5,IF(B8='Parâmetros Gerais'!$I$6,'Parâmetros Gerais'!$F$6,0))) -> 0
C9: =IF(B9='Parâmetros Gerais'!$I$4,'Parâmetros Gerais'!$F$4,IF(B9='Parâmetros Gerais'!$I$5,'Parâmetros Gerais'!$F$5,IF(B9='Parâmetros Gerais'!$I$6,'Parâmetros Gerais'!$F$6,0))) -> 0
C10: =IF(B10='Parâmetros Gerais'!$I$4,'Parâmetros Gerais'!$F$4,IF(B10='Parâmetros Gerais'!$I$5,'Parâmetros Gerais'!$F$5,IF(B10='Parâmetros Gerais'!$I$6,'Parâmetros Gerais'!$F$6,0))) -> 0
C11: =IF(B11='Parâmetros Gerais'!$I$4,'Parâmetros Gerais'!$F$4,IF(B11='Parâmetros Gerais'!$I$5,'Parâmetros Gerais'!$F$5,IF(B11='Parâmetros Gerais'!$I$6,'Parâmetros Gerais'!$F$6,0))) -> 0
C12: =IF(B12='Parâmetros Gerais'!$I$4,'Parâmetros Gerais'!$F$4,IF(B12='Parâmetros Gerais'!$I$5,'Parâmetros Gerais'!$F$5,IF(B12='Parâmetros Gerais'!$I$6,'Parâmetros Gerais'!$F$6,0))) -> 0
C13: =IF(B13='Parâmetros Gerais'!$I$4,'Parâmetros Gerais'!$F$4,IF(B13='Parâmetros Gerais'!$I$5,'Parâmetros Gerais'!$F$5,IF(B13='Parâmetros Gerais'!$I$6,'Parâmetros Gerais'!$F$6,0))) -> 0
C14: =IF(B14='Parâmetros Gerais'!$I$4,'Parâmetros Gerais'!$F$4,IF(B14='Parâmetros Gerais'!$I$5,'Parâmetros Gerais'!$F$5,IF(B14='Parâmetros Gerais'!$I$6,'Parâmetros Gerais'!$F$6,0))) -> 0
C15: =IF(B15='Parâmetros Gerais'!$I$4,'Parâmetros Gerais'!$F$4,IF(B15='Parâmetros Gerais'!$I$5,'Parâmetros Gerais'!$F$5,IF(B15='Parâmetros Gerais'!$I$6,'Parâmetros Gerais'!$F$6,0))) -> 0
C16: =IF(B16='Parâmetros Gerais'!$I$4,'Parâmetros Gerais'!$F$4,IF(B16='Parâmetros Gerais'!$I$5,'Parâmetros Gerais'!$F$5,IF(B16='Parâmetros Gerais'!$I$6,'Parâmetros Gerais'!$F$6,0))) -> 0
C17: =IF(B17='Parâmetros Gerais'!$I$4,'Parâmetros Gerais'!$F$4,IF(B17='Parâmetros Gerais'!$I$5,'Parâmetros Gerais'!$F$5,IF(B17='Parâmetros Gerais'!$I$6,'Parâmetros Gerais'!$F$6,0))) -> 0
C18: =IF(B18='Parâmetros Gerais'!$I$4,'Parâmetros Gerais'!$F$4,IF(B18='Parâmetros Gerais'!$I$5,'Parâmetros Gerais'!$F$5,IF(B18='Parâmetros Gerais'!$I$6,'Parâmetros Gerais'!$F$6,0))) -> 0
C19: =IF(B19='Parâmetros Gerais'!$I$4,'Parâmetros Gerais'!$F$4,IF(B19='Parâmetros Gerais'!$I$5,'Parâmetros Gerais'!$F$5,IF(B19='Parâmetros Gerais'!$I$6,'Parâmetros Gerais'!$F$6,0))) -> 0
C20: =IF(B20='Parâmetros Gerais'!$I$4,'Parâmetros Gerais'!$F$4,IF(B20='Parâmetros Gerais'!$I$5,'Parâmetros Gerais'!$F$5,IF(B20='Parâmetros Gerais'!$I$6,'Parâmetros Gerais'!$F$6,0))) -> 0
C21: =IF(B21='Parâmetros Gerais'!$I$4,'Parâmetros Gerais'!$F$4,IF(B21='Parâmetros Gerais'!$I$5,'Parâmetros Gerais'!$F$5,IF(B21='Parâmetros Gerais'!$I$6,'Parâmetros Gerais'!$F$6,0))) -> 0
C22: =IF(B22='Parâmetros Gerais'!$I$4,'Parâmetros Gerais'!$F$4,IF(B22='Parâmetros Gerais'!$I$5,'Parâmetros Gerais'!$F$5,IF(B22='Parâmetros Gerais'!$I$6,'Parâmetros Gerais'!$F$6,0))) -> 0
D23: =SUM(D8:D22) -> 0 | E23: 0 | F23: 0 | G23: 0 | H23: 0 | I23: 0 | J23: 0 | K23: 0 | L23: 0 | M23: 0 | N23: 0 | O23: 0 | P23: 0 | Q23: 0 | R23: 0 | S23: 0 | T23: 0 | U23: 0 | V23: 0 | W23: 0 | X23: 0 | Y23: 0 | Z23: 0 | AA23: 0 | AB23: 0 | AC23: 0 | AD23: 0 | AE23: 0 | AF23: 0 | AG23: 0
A24: Insumos | D24: =$C$25*D25+$C$26*D26+$C$27*D27+$C$28*D28+$C$29*D29+$C$30*D30+$C$31*D31+$C$32*D32+$C$33*D33+$C$34*D34+$C$35*D35+$C$36*D36+$C$37*D37+$C$38*D38+$C$39*D39+$C$40*D40+$C$41*D41+$C$42*D42+$C$43*D43+$C$44*D44 -> 0 | E24: =$C$25*E25+$C$26*E26+$C$27*E27+$C$28*E28+$C$29*E29+$C$30*E30+$C$31*E31+$C$32*E32+$C$33*E33+$C$34*E34+$C$35*E35+$C$36*E36+$C$37*E37+$C$38*E38+$C$39*E39+$C$40*E40+$C$41*E41+$C$42*E42+$C$43*E43+$C$44*E44 -> 0 | F24: 0 | G24: 0 | H24: 0 | I24: 0 | J24: 0 | K24: 0 | L24: 0 | M24: 0 | N24: 0 | O24: 0 | P24: 0 | Q24: 0 | R24: 0 | S24: 0 | T24: 0 | U24: 0 | V24: 0 | W24: 0 | X24: 0 | Y24: 0 | Z24: 0 | AA24: 0 | AB24: 0 | AC24: 0 | AD24: 0 | AE24: 0 | AF24: 0 | AG24: 0

Sheet Produto 16
A1: ='Parâmetros Gerais'!A1 -> Análise Financeira de Sistemas Produtivos Integrados (V. 4.16 11/2016)
A2: =IF('Parâmetros Gerais'!B29<>"",'Parâmetros Gerais'!B29,"") -> caixotaria boleira
D3: =Produção!D3 -> Período
A4: Descrição | B4: Unidade | C4: Preço | D4: 1 | E4: 2 | F4: 3 | G4: 4 | H4: 5 | I4: 6 | J4: 7 | K4: 8 | L4: 9 | M4: 10 | N4: 11 | O4: 12 | P4: 13 | Q4: 14 | R4: 15 | S4: 16 | T4: 17 | U4: 18 | V4: 19 | W4: 20 | X4: 21 | Y4: 22 | Z4: 23 | AA4: 24 | AB4: 25 | AC4: 26 | AD4: 27 | AE4: 28 | AF4: 29 | AG4: 30
A7: Atividades | D7: =$C$8*D8+$C$9*D9+$C$10*D10+$C$11*D11+$C$12*D12+$C$13*D13+$C$14*D14+$C$15*D15+$C$16*D16+$C$17*D17+$C$18*D18+$C$19*D19+$C$20*D20+$C$21*D21+$C$22*D22 -> 0 | E7: =$C$8*E8+$C$9*E9+$C$10*E10+$C$11*E11+$C$12*E12+$C$13*E13+$C$14*E14+$C$15*E15+$C$16*E16+$C$17*E17+$C$18*E18+$C$19*E19+$C$20*E20+$C$21*E21+$C$22*E22 -> 0 | F7: 0 | G7: 0 | H7: 0 | I7: 0 | J7: 0 | K7: 0 | L7: 0 | M7: 0 | N7: 0 | O7: 0 | P7: 0 | Q7: 0 | R7: 0 | S7: 0 | T7: 0 | U7: 0 | V7: 0 | W7: 0 | X7: 0 | Y7: 0 | Z7: 0 | AA7: 0 | AB7: 0 | AC7: 0 | AD7: 0 | AE7: 0 | AF7: 0 | AG7: 0
C8: =IF(B8='Parâmetros Gerais'!$I$4,'Parâmetros Gerais'!$F$4,IF(B8='Parâmetros Gerais'!$I$5,'Parâmetros Gerais'!$F$5,IF(B8='Parâmetros Gerais'!$I$6,'Parâmetros Gerais'!$F$6,0))) -> 0
C9: =IF(B9='Parâmetros Gerais'!$I$4,'Parâmetros Gerais'!$F$4,IF(B9='Parâmetros Gerais'!$I$5,'Parâmetros Gerais'!$F$5,IF(B9='Parâmetros Gerais'!$I$6,'Parâmetros Gerais'!$F$6,0))) -> 0
C10: =IF(B10='Parâmetros Gerais'!$I$4,'Parâmetros Gerais'!$F$4,IF(B10='Parâmetros Gerais'!$I$5,'Parâmetros Gerais'!$F$5,IF(B10='Parâmetros Gerais'!$I$6,'Parâmetros Gerais'!$F$6,0))) -> 0
C11: =IF(B11='Parâmetros Gerais'!$I$4,'Parâmetros Gerais'!$F$4,IF(B11='Parâmetros Gerais'!$I$5,'Parâmetros Gerais'!$F$5,IF(B11='Parâmetros Gerais'!$I$6,'Parâmetros Gerais'!$F$6,0))) -> 0
C12: =IF(B12='Parâmetros Gerais'!$I$4,'Parâmetros Gerais'!$F$4,IF(B12='Parâmetros Gerais'!$I$5,'Parâmetros Gerais'!$F$5,IF(B12='Parâmetros Gerais'!$I$6,'Parâmetros Gerais'!$F$6,0))) -> 0
C13: =IF(B13='Parâmetros Gerais'!$I$4,'Parâmetros Gerais'!$F$4,IF(B13='Parâmetros Gerais'!$I$5,'Parâmetros Gerais'!$F$5,IF(B13='Parâmetros Gerais'!$I$6,'Parâmetros Gerais'!$F$6,0))) -> 0
C14: =IF(B14='Parâmetros Gerais'!$I$4,'Parâmetros Gerais'!$F$4,IF(B14='Parâmetros Gerais'!$I$5,'Parâmetros Gerais'!$F$5,IF(B14='Parâmetros Gerais'!$I$6,'Parâmetros Gerais'!$F$6,0))) -> 0
C15: =IF(B15='Parâmetros Gerais'!$I$4,'Parâmetros Gerais'!$F$4,IF(B15='Parâmetros Gerais'!$I$5,'Parâmetros Gerais'!$F$5,IF(B15='Parâmetros Gerais'!$I$6,'Parâmetros Gerais'!$F$6,0))) -> 0
C16: =IF(B16='Parâmetros Gerais'!$I$4,'Parâmetros Gerais'!$F$4,IF(B16='Parâmetros Gerais'!$I$5,'Parâmetros Gerais'!$F$5,IF(B16='Parâmetros Gerais'!$I$6,'Parâmetros Gerais'!$F$6,0))) -> 0
C17: =IF(B17='Parâmetros Gerais'!$I$4,'Parâmetros Gerais'!$F$4,IF(B17='Parâmetros Gerais'!$I$5,'Parâmetros Gerais'!$F$5,IF(B17='Parâmetros Gerais'!$I$6,'Parâmetros Gerais'!$F$6,0))) -> 0
C18: =IF(B18='Parâmetros Gerais'!$I$4,'Parâmetros Gerais'!$F$4,IF(B18='Parâmetros Gerais'!$I$5,'Parâmetros Gerais'!$F$5,IF(B18='Parâmetros Gerais'!$I$6,'Parâmetros Gerais'!$F$6,0))) -> 0
C19: =IF(B19='Parâmetros Gerais'!$I$4,'Parâmetros Gerais'!$F$4,IF(B19='Parâmetros Gerais'!$I$5,'Parâmetros Gerais'!$F$5,IF(B19='Parâmetros Gerais'!$I$6,'Parâmetros Gerais'!$F$6,0))) -> 0
C20: =IF(B20='Parâmetros Gerais'!$I$4,'Parâmetros Gerais'!$F$4,IF(B20='Parâmetros Gerais'!$I$5,'Parâmetros Gerais'!$F$5,IF(B20='Parâmetros Gerais'!$I$6,'Parâmetros Gerais'!$F$6,0))) -> 0
C21: =IF(B21='Parâmetros Gerais'!$I$4,'Parâmetros Gerais'!$F$4,IF(B21='Parâmetros Gerais'!$I$5,'Parâmetros Gerais'!$F$5,IF(B21='Parâmetros Gerais'!$I$6,'Parâmetros Gerais'!$F$6,0))) -> 0
C22: =IF(B22='Parâmetros Gerais'!$I$4,'Parâmetros Gerais'!$F$4,IF(B22='Parâmetros Gerais'!$I$5,'Parâmetros Gerais'!$F$5,IF(B22='Parâmetros Gerais'!$I$6,'Parâmetros Gerais'!$F$6,0))) -> 0
D23: =SUM(D8:D22) -> 0 | E23: 0 | F23: 0 | G23: 0 | H23: 0 | I23: 0 | J23: 0 | K23: 0 | L23: 0 | M23: 0 | N23: 0 | O23: 0 | P23: 0 | Q23: 0 | R23: 0 | S23: 0 | T23: 0 | U23: 0 | V23: 0 | W23: 0 | X23: 0 | Y23: 0 | Z23: 0 | AA23: 0 | AB23: 0 | AC23: 0 | AD23: 0 | AE23: 0 | AF23: 0 | AG23: 0
A24: Insumos | D24: =$C$25*D25+$C$26*D26+$C$27*D27+$C$28*D28+$C$29*D29+$C$30*D30+$C$31*D31+$C$32*D32+$C$33*D33+$C$34*D34+$C$35*D35+$C$36*D36+$C$37*D37+$C$38*D38+$C$39*D39+$C$40*D40+$C$41*D41+$C$42*D42+$C$43*D43+$C$44*D44 -> 0 | E24: =$C$25*E25+$C$26*E26+$C$27*E27+$C$28*E28+$C$29*E29+$C$30*E30+$C$31*E31+$C$32*E32+$C$33*E33+$C$34*E34+$C$35*E35+$C$36*E36+$C$37*E37+$C$38*E38+$C$39*E39+$C$40*E40+$C$41*E41+$C$42*E42+$C$43*E43+$C$44*E44 -> 0 | F24: 0 | G24: 0 | H24: 0 | I24: 0 | J24: 0 | K24: 0 | L24: 0 | M24: 0 | N24: 0 | O24: 0 | P24: 0 | Q24: 0 | R24: 0 | S24: 0 | T24: 0 | U24: 0 | V24: 0 | W24: 0 | X24: 0 | Y24: 0 | Z24: 0 | AA24: 0 | AB24: 0 | AC24: 0 | AD24: 0 | AE24: 0 | AF24: 0 | AG24: 0

Sheet Produto 17
A1: ='Parâmetros Gerais'!A1 -> Análise Financeira de Sistemas Produtivos Integrados (V. 4.16 11/2016)
A2: =IF('Parâmetros Gerais'!B30<>"",'Parâmetros Gerais'!B30,"") -> madeira angico roxo
D3: =Produção!D3 -> Período
A4: Descrição | B4: Unidade | C4: Preço | D4: 1 | E4: 2 | F4: 3 | G4: 4 | H4: 5 | I4: 6 | J4: 7 | K4: 8 | L4: 9 | M4: 10 | N4: 11 | O4: 12 | P4: 13 | Q4: 14 | R4: 15 | S4: 16 | T4: 17 | U4: 18 | V4: 19 | W4: 20 | X4: 21 | Y4: 22 | Z4: 23 | AA4: 24 | AB4: 25 | AC4: 26 | AD4: 27 | AE4: 28 | AF4: 29 | AG4: 30
A7: Atividades | D7: =$C$8*D8+$C$9*D9+$C$10*D10+$C$11*D11+$C$12*D12+$C$13*D13+$C$14*D14+$C$15*D15+$C$16*D16+$C$17*D17+$C$18*D18+$C$19*D19+$C$20*D20+$C$21*D21+$C$22*D22 -> 0 | E7: =$C$8*E8+$C$9*E9+$C$10*E10+$C$11*E11+$C$12*E12+$C$13*E13+$C$14*E14+$C$15*E15+$C$16*E16+$C$17*E17+$C$18*E18+$C$19*E19+$C$20*E20+$C$21*E21+$C$22*E22 -> 0 | F7: 0 | G7: 0 | H7: 0 | I7: 0 | J7: 0 | K7: 0 | L7: 0 | M7: 0 | N7: 0 | O7: 0 | P7: 0 | Q7: 0 | R7: 0 | S7: 0 | T7: 0 | U7: 0 | V7: 0 | W7: 0 | X7: 0 | Y7: 0 | Z7: 0 | AA7: 0 | AB7: 0 | AC7: 0 | AD7: 0 | AE7: 0 | AF7: 0 | AG7: 0
C8: =IF(B8='Parâmetros Gerais'!$I$4,'Parâmetros Gerais'!$F$4,IF(B8='Parâmetros Gerais'!$I$5,'Parâmetros Gerais'!$F$5,IF(B8='Parâmetros Gerais'!$I$6,'Parâmetros Gerais'!$F$6,0))) -> 0
C9: =IF(B9='Parâmetros Gerais'!$I$4,'Parâmetros Gerais'!$F$4,IF(B9='Parâmetros Gerais'!$I$5,'Parâmetros Gerais'!$F$5,IF(B9='Parâmetros Gerais'!$I$6,'Parâmetros Gerais'!$F$6,0))) -> 0
C10: =IF(B10='Parâmetros Gerais'!$I$4,'Parâmetros Gerais'!$F$4,IF(B10='Parâmetros Gerais'!$I$5,'Parâmetros Gerais'!$F$5,IF(B10='Parâmetros Gerais'!$I$6,'Parâmetros Gerais'!$F$6,0))) -> 0
C11: =IF(B11='Parâmetros Gerais'!$I$4,'Parâmetros Gerais'!$F$4,IF(B11='Parâmetros Gerais'!$I$5,'Parâmetros Gerais'!$F$5,IF(B11='Parâmetros Gerais'!$I$6,'Parâmetros Gerais'!$F$6,0))) -> 0
C12: =IF(B12='Parâmetros Gerais'!$I$4,'Parâmetros Gerais'!$F$4,IF(B12='Parâmetros Gerais'!$I$5,'Parâmetros Gerais'!$F$5,IF(B12='Parâmetros Gerais'!$I$6,'Parâmetros Gerais'!$F$6,0))) -> 0
C13: =IF(B13='Parâmetros Gerais'!$I$4,'Parâmetros Gerais'!$F$4,IF(B13='Parâmetros Gerais'!$I$5,'Parâmetros Gerais'!$F$5,IF(B13='Parâmetros Gerais'!$I$6,'Parâmetros Gerais'!$F$6,0))) -> 0
C14: =IF(B14='Parâmetros Gerais'!$I$4,'Parâmetros Gerais'!$F$4,IF(B14='Parâmetros Gerais'!$I$5,'Parâmetros Gerais'!$F$5,IF(B14='Parâmetros Gerais'!$I$6,'Parâmetros Gerais'!$F$6,0))) -> 0
C15: =IF(B15='Parâmetros Gerais'!$I$4,'Parâmetros Gerais'!$F$4,IF(B15='Parâmetros Gerais'!$I$5,'Parâmetros Gerais'!$F$5,IF(B15='Parâmetros Gerais'!$I$6,'Parâmetros Gerais'!$F$6,0))) -> 0
C16: =IF(B16='Parâmetros Gerais'!$I$4,'Parâmetros Gerais'!$F$4,IF(B16='Parâmetros Gerais'!$I$5,'Parâmetros Gerais'!$F$5,IF(B16='Parâmetros Gerais'!$I$6,'Parâmetros Gerais'!$F$6,0))) -> 0
C17: =IF(B17='Parâmetros Gerais'!$I$4,'Parâmetros Gerais'!$F$4,IF(B17='Parâmetros Gerais'!$I$5,'Parâmetros Gerais'!$F$5,IF(B17='Parâmetros Gerais'!$I$6,'Parâmetros Gerais'!$F$6,0))) -> 0
C18: =IF(B18='Parâmetros Gerais'!$I$4,'Parâmetros Gerais'!$F$4,IF(B18='Parâmetros Gerais'!$I$5,'Parâmetros Gerais'!$F$5,IF(B18='Parâmetros Gerais'!$I$6,'Parâmetros Gerais'!$F$6,0))) -> 0
C19: =IF(B19='Parâmetros Gerais'!$I$4,'Parâmetros Gerais'!$F$4,IF(B19='Parâmetros Gerais'!$I$5,'Parâmetros Gerais'!$F$5,IF(B19='Parâmetros Gerais'!$I$6,'Parâmetros Gerais'!$F$6,0))) -> 0
C20: =IF(B20='Parâmetros Gerais'!$I$4,'Parâmetros Gerais'!$F$4,IF(B20='Parâmetros Gerais'!$I$5,'Parâmetros Gerais'!$F$5,IF(B20='Parâmetros Gerais'!$I$6,'Parâmetros Gerais'!$F$6,0))) -> 0
C21: =IF(B21='Parâmetros Gerais'!$I$4,'Parâmetros Gerais'!$F$4,IF(B21='Parâmetros Gerais'!$I$5,'Parâmetros Gerais'!$F$5,IF(B21='Parâmetros Gerais'!$I$6,'Parâmetros Gerais'!$F$6,0))) -> 0
C22: =IF(B22='Parâmetros Gerais'!$I$4,'Parâmetros Gerais'!$F$4,IF(B22='Parâmetros Gerais'!$I$5,'Parâmetros Gerais'!$F$5,IF(B22='Parâmetros Gerais'!$I$6,'Parâmetros Gerais'!$F$6,0))) -> 0
D23: =SUM(D8:D22) -> 0 | E23: 0 | F23: 0 | G23: 0 | H23: 0 | I23: 0 | J23: 0 | K23: 0 | L23: 0 | M23: 0 | N23: 0 | O23: 0 | P23: 0 | Q23: 0 | R23: 0 | S23: 0 | T23: 0 | U23: 0 | V23: 0 | W23: 0 | X23: 0 | Y23: 0 | Z23: 0 | AA23: 0 | AB23: 0 | AC23: 0 | AD23: 0 | AE23: 0 | AF23: 0 | AG23: 0
A24: Insumos | D24: =$C$25*D25+$C$26*D26+$C$27*D27+$C$28*D28+$C$29*D29+$C$30*D30+$C$31*D31+$C$32*D32+$C$33*D33+$C$34*D34+$C$35*D35+$C$36*D36+$C$37*D37+$C$38*D38+$C$39*D39+$C$40*D40+$C$41*D41+$C$42*D42+$C$43*D43+$C$44*D44 -> 0 | E24: =$C$25*E25+$C$26*E26+$C$27*E27+$C$28*E28+$C$29*E29+$C$30*E30+$C$31*E31+$C$32*E32+$C$33*E33+$C$34*E34+$C$35*E35+$C$36*E36+$C$37*E37+$C$38*E38+$C$39*E39+$C$40*E40+$C$41*E41+$C$42*E42+$C$43*E43+$C$44*E44 -> 0 | F24: 0 | G24: 0 | H24: 0 | I24: 0 | J24: 0 | K24: 0 | L24: 0 | M24: 0 | N24: 0 | O24: 0 | P24: 0 | Q24: 0 | R24: 0 | S24: 0 | T24: 0 | U24: 0 | V24: 0 | W24: 0 | X24: 0 | Y24: 0 | Z24: 0 | AA24: 0 | AB24: 0 | AC24: 0 | AD24: 0 | AE24: 0 | AF24: 0 | AG24: 0

Sheet Produto 18
A1: ='Parâmetros Gerais'!A1 -> Análise Financeira de Sistemas Produtivos Integrados (V. 4.16 11/2016)
A2: =IF('Parâmetros Gerais'!B31<>"",'Parâmetros Gerais'!B31,"") -> madeira ipê roxo
D3: =Produção!D3 -> Período
A4: Descrição | B4: Unidade | C4: Preço | D4: 1 | E4: 2 | F4: 3 | G4: 4 | H4: 5 | I4: 6 | J4: 7 | K4: 8 | L4: 9 | M4: 10 | N4: 11 | O4: 12 | P4: 13 | Q4: 14 | R4: 15 | S4: 16 | T4: 17 | U4: 18 | V4: 19 | W4: 20 | X4: 21 | Y4: 22 | Z4: 23 | AA4: 24 | AB4: 25 | AC4: 26 | AD4: 27 | AE4: 28 | AF4: 29 | AG4: 30
A7: Atividades | D7: =$C$8*D8+$C$9*D9+$C$10*D10+$C$11*D11+$C$12*D12+$C$13*D13+$C$14*D14+$C$15*D15+$C$16*D16+$C$17*D17+$C$18*D18+$C$19*D19+$C$20*D20+$C$21*D21+$C$22*D22 -> 0 | E7: =$C$8*E8+$C$9*E9+$C$10*E10+$C$11*E11+$C$12*E12+$C$13*E13+$C$14*E14+$C$15*E15+$C$16*E16+$C$17*E17+$C$18*E18+$C$19*E19+$C$20*E20+$C$21*E21+$C$22*E22 -> 0 | F7: 0 | G7: 0 | H7: 0 | I7: 0 | J7: 0 | K7: 0 | L7: 0 | M7: 0 | N7: 0 | O7: 0 | P7: 0 | Q7: 0 | R7: 0 | S7: 0 | T7: 0 | U7: 0 | V7: 0 | W7: 0 | X7: 0 | Y7: 0 | Z7: 0 | AA7: 0 | AB7: 0 | AC7: 0 | AD7: 0 | AE7: 0 | AF7: 0 | AG7: 0
C8: =IF(B8='Parâmetros Gerais'!$I$4,'Parâmetros Gerais'!$F$4,IF(B8='Parâmetros Gerais'!$I$5,'Parâmetros Gerais'!$F$5,IF(B8='Parâmetros Gerais'!$I$6,'Parâmetros Gerais'!$F$6,0))) -> 0
C9: =IF(B9='Parâmetros Gerais'!$I$4,'Parâmetros Gerais'!$F$4,IF(B9='Parâmetros Gerais'!$I$5,'Parâmetros Gerais'!$F$5,IF(B9='Parâmetros Gerais'!$I$6,'Parâmetros Gerais'!$F$6,0))) -> 0
C10: =IF(B10='Parâmetros Gerais'!$I$4,'Parâmetros Gerais'!$F$4,IF(B10='Parâmetros Gerais'!$I$5,'Parâmetros Gerais'!$F$5,IF(B10='Parâmetros Gerais'!$I$6,'Parâmetros Gerais'!$F$6,0))) -> 0
C11: =IF(B11='Parâmetros Gerais'!$I$4,'Parâmetros Gerais'!$F$4,IF(B11='Parâmetros Gerais'!$I$5,'Parâmetros Gerais'!$F$5,IF(B11='Parâmetros Gerais'!$I$6,'Parâmetros Gerais'!$F$6,0))) -> 0
C12: =IF(B12='Parâmetros Gerais'!$I$4,'Parâmetros Gerais'!$F$4,IF(B12='Parâmetros Gerais'!$I$5,'Parâmetros Gerais'!$F$5,IF(B12='Parâmetros Gerais'!$I$6,'Parâmetros Gerais'!$F$6,0))) -> 0
C13: =IF(B13='Parâmetros Gerais'!$I$4,'Parâmetros Gerais'!$F$4,IF(B13='Parâmetros Gerais'!$I$5,'Parâmetros Gerais'!$F$5,IF(B13='Parâmetros Gerais'!$I$6,'Parâmetros Gerais'!$F$6,0))) -> 0
C14: =IF(B14='Parâmetros Gerais'!$I$4,'Parâmetros Gerais'!$F$4,IF(B14='Parâmetros Gerais'!$I$5,'Parâmetros Gerais'!$F$5,IF(B14='Parâmetros Gerais'!$I$6,'Parâmetros Gerais'!$F$6,0))) -> 0
C15: =IF(B15='Parâmetros Gerais'!$I$4,'Parâmetros Gerais'!$F$4,IF(B15='Parâmetros Gerais'!$I$5,'Parâmetros Gerais'!$F$5,IF(B15='Parâmetros Gerais'!$I$6,'Parâmetros Gerais'!$F$6,0))) -> 0
C16: =IF(B16='Parâmetros Gerais'!$I$4,'Parâmetros Gerais'!$F$4,IF(B16='Parâmetros Gerais'!$I$5,'Parâmetros Gerais'!$F$5,IF(B16='Parâmetros Gerais'!$I$6,'Parâmetros Gerais'!$F$6,0))) -> 0
C17: =IF(B17='Parâmetros Gerais'!$I$4,'Parâmetros Gerais'!$F$4,IF(B17='Parâmetros Gerais'!$I$5,'Parâmetros Gerais'!$F$5,IF(B17='Parâmetros Gerais'!$I$6,'Parâmetros Gerais'!$F$6,0))) -> 0
C18: =IF(B18='Parâmetros Gerais'!$I$4,'Parâmetros Gerais'!$F$4,IF(B18='Parâmetros Gerais'!$I$5,'Parâmetros Gerais'!$F$5,IF(B18='Parâmetros Gerais'!$I$6,'Parâmetros Gerais'!$F$6,0))) -> 0
C19: =IF(B19='Parâmetros Gerais'!$I$4,'Parâmetros Gerais'!$F$4,IF(B19='Parâmetros Gerais'!$I$5,'Parâmetros Gerais'!$F$5,IF(B19='Parâmetros Gerais'!$I$6,'Parâmetros Gerais'!$F$6,0))) -> 0
C20: =IF(B20='Parâmetros Gerais'!$I$4,'Parâmetros Gerais'!$F$4,IF(B20='Parâmetros Gerais'!$I$5,'Parâmetros Gerais'!$F$5,IF(B20='Parâmetros Gerais'!$I$6,'Parâmetros Gerais'!$F$6,0))) -> 0
C21: =IF(B21='Parâmetros Gerais'!$I$4,'Parâmetros Gerais'!$F$4,IF(B21='Parâmetros Gerais'!$I$5,'Parâmetros Gerais'!$F$5,IF(B21='Parâmetros Gerais'!$I$6,'Parâmetros Gerais'!$F$6,0))) -> 0
C22: =IF(B22='Parâmetros Gerais'!$I$4,'Parâmetros Gerais'!$F$4,IF(B22='Parâmetros Gerais'!$I$5,'Parâmetros Gerais'!$F$5,IF(B22='Parâmetros Gerais'!$I$6,'Parâmetros Gerais'!$F$6,0))) -> 0
D23: =SUM(D8:D22) -> 0 | E23: 0 | F23: 0 | G23: 0 | H23: 0 | I23: 0 | J23: 0 | K23: 0 | L23: 0 | M23: 0 | N23: 0 | O23: 0 | P23: 0 | Q23: 0 | R23: 0 | S23: 0 | T23: 0 | U23: 0 | V23: 0 | W23: 0 | X23: 0 | Y23: 0 | Z23: 0 | AA23: 0 | AB23: 0 | AC23: 0 | AD23: 0 | AE23: 0 | AF23: 0 | AG23: 0
A24: Insumos | D24: =$C$25*D25+$C$26*D26+$C$27*D27+$C$28*D28+$C$29*D29+$C$30*D30+$C$31*D31+$C$32*D32+$C$33*D33+$C$34*D34+$C$35*D35+$C$36*D36+$C$37*D37+$C$38*D38+$C$39*D39+$C$40*D40+$C$41*D41+$C$42*D42+$C$43*D43+$C$44*D44 -> 0 | E24: =$C$25*E25+$C$26*E26+$C$27*E27+$C$28*E28+$C$29*E29+$C$30*E30+$C$31*E31+$C$32*E32+$C$33*E33+$C$34*E34+$C$35*E35+$C$36*E36+$C$37*E37+$C$38*E38+$C$39*E39+$C$40*E40+$C$41*E41+$C$42*E42+$C$43*E43+$C$44*E44 -> 0 | F24: 0 | G24: 0 | H24: 0 | I24: 0 | J24: 0 | K24: 0 | L24: 0 | M24: 0 | N24: 0 | O24: 0 | P24: 0 | Q24: 0 | R24: 0 | S24: 0 | T24: 0 | U24: 0 | V24: 0 | W24: 0 | X24: 0 | Y24: 0 | Z24: 0 | AA24: 0 | AB24: 0 | AC24: 0 | AD24: 0 | AE24: 0 | AF24: 0 | AG24: 0

Sheet Produto 19
A1: ='Parâmetros Gerais'!A1 -> Análise Financeira de Sistemas Produtivos Integrados (V. 4.16 11/2016)
A2: =IF('Parâmetros Gerais'!B32<>"",'Parâmetros Gerais'!B32,"") -> madeira ipê amarelo
D3: =Produção!D3 -> Período
A4: Descrição | B4: Unidade | C4: Preço | D4: 1 | E4: 2 | F4: 3 | G4: 4 | H4: 5 | I4: 6 | J4: 7 | K4: 8 | L4: 9 | M4: 10 | N4: 11 | O4: 12 | P4: 13 | Q4: 14 | R4: 15 | S4: 16 | T4: 17 | U4: 18 | V4: 19 | W4: 20 | X4: 21 | Y4: 22 | Z4: 23 | AA4: 24 | AB4: 25 | AC4: 26 | AD4: 27 | AE4: 28 | AF4: 29 | AG4: 30
A7: Atividades | D7: =$C$8*D8+$C$9*D9+$C$10*D10+$C$11*D11+$C$12*D12+$C$13*D13+$C$14*D14+$C$15*D15+$C$16*D16+$C$17*D17+$C$18*D18+$C$19*D19+$C$20*D20+$C$21*D21+$C$22*D22 -> 0 | E7: =$C$8*E8+$C$9*E9+$C$10*E10+$C$11*E11+$C$12*E12+$C$13*E13+$C$14*E14+$C$15*E15+$C$16*E16+$C$17*E17+$C$18*E18+$C$19*E19+$C$20*E20+$C$21*E21+$C$22*E22 -> 0 | F7: 0 | G7: 0 | H7: 0 | I7: 0 | J7: 0 | K7: 0 | L7: 0 | M7: 0 | N7: 0 | O7: 0 | P7: 0 | Q7: 0 | R7: 0 | S7: 0 | T7: 0 | U7: 0 | V7: 0 | W7: 0 | X7: 0 | Y7: 0 | Z7: 0 | AA7: 0 | AB7: 0 | AC7: 0 | AD7: 0 | AE7: 0 | AF7: 0 | AG7: 0
C8: =IF(B8='Parâmetros Gerais'!$I$4,'Parâmetros Gerais'!$F$4,IF(B8='Parâmetros Gerais'!$I$5,'Parâmetros Gerais'!$F$5,IF(B8='Parâmetros Gerais'!$I$6,'Parâmetros Gerais'!$F$6,0))) -> 0
C9: =IF(B9='Parâmetros Gerais'!$I$4,'Parâmetros Gerais'!$F$4,IF(B9='Parâmetros Gerais'!$I$5,'Parâmetros Gerais'!$F$5,IF(B9='Parâmetros Gerais'!$I$6,'Parâmetros Gerais'!$F$6,0))) -> 0
C10: =IF(B10='Parâmetros Gerais'!$I$4,'Parâmetros Gerais'!$F$4,IF(B10='Parâmetros Gerais'!$I$5,'Parâmetros Gerais'!$F$5,IF(B10='Parâmetros Gerais'!$I$6,'Parâmetros Gerais'!$F$6,0))) -> 0
C11: =IF(B11='Parâmetros Gerais'!$I$4,'Parâmetros Gerais'!$F$4,IF(B11='Parâmetros Gerais'!$I$5,'Parâmetros Gerais'!$F$5,IF(B11='Parâmetros Gerais'!$I$6,'Parâmetros Gerais'!$F$6,0))) -> 0
C12: =IF(B12='Parâmetros Gerais'!$I$4,'Parâmetros Gerais'!$F$4,IF(B12='Parâmetros Gerais'!$I$5,'Parâmetros Gerais'!$F$5,IF(B12='Parâmetros Gerais'!$I$6,'Parâmetros Gerais'!$F$6,0))) -> 0
C13: =IF(B13='Parâmetros Gerais'!$I$4,'Parâmetros Gerais'!$F$4,IF(B13='Parâmetros Gerais'!$I$5,'Parâmetros Gerais'!$F$5,IF(B13='Parâmetros Gerais'!$I$6,'Parâmetros Gerais'!$F$6,0))) -> 0
C14: =IF(B14='Parâmetros Gerais'!$I$4,'Parâmetros Gerais'!$F$4,IF(B14='Parâmetros Gerais'!$I$5,'Parâmetros Gerais'!$F$5,IF(B14='Parâmetros Gerais'!$I$6,'Parâmetros Gerais'!$F$6,0))) -> 0
C15: =IF(B15='Parâmetros Gerais'!$I$4,'Parâmetros Gerais'!$F$4,IF(B15='Parâmetros Gerais'!$I$5,'Parâmetros Gerais'!$F$5,IF(B15='Parâmetros Gerais'!$I$6,'Parâmetros Gerais'!$F$6,0))) -> 0
C16: =IF(B16='Parâmetros Gerais'!$I$4,'Parâmetros Gerais'!$F$4,IF(B16='Parâmetros Gerais'!$I$5,'Parâmetros Gerais'!$F$5,IF(B16='Parâmetros Gerais'!$I$6,'Parâmetros Gerais'!$F$6,0))) -> 0
C17: =IF(B17='Parâmetros Gerais'!$I$4,'Parâmetros Gerais'!$F$4,IF(B17='Parâmetros Gerais'!$I$5,'Parâmetros Gerais'!$F$5,IF(B17='Parâmetros Gerais'!$I$6,'Parâmetros Gerais'!$F$6,0))) -> 0
C18: =IF(B18='Parâmetros Gerais'!$I$4,'Parâmetros Gerais'!$F$4,IF(B18='Parâmetros Gerais'!$I$5,'Parâmetros Gerais'!$F$5,IF(B18='Parâmetros Gerais'!$I$6,'Parâmetros Gerais'!$F$6,0))) -> 0
C19: =IF(B19='Parâmetros Gerais'!$I$4,'Parâmetros Gerais'!$F$4,IF(B19='Parâmetros Gerais'!$I$5,'Parâmetros Gerais'!$F$5,IF(B19='Parâmetros Gerais'!$I$6,'Parâmetros Gerais'!$F$6,0))) -> 0
C20: =IF(B20='Parâmetros Gerais'!$I$4,'Parâmetros Gerais'!$F$4,IF(B20='Parâmetros Gerais'!$I$5,'Parâmetros Gerais'!$F$5,IF(B20='Parâmetros Gerais'!$I$6,'Parâmetros Gerais'!$F$6,0))) -> 0
C21: =IF(B21='Parâmetros Gerais'!$I$4,'Parâmetros Gerais'!$F$4,IF(B21='Parâmetros Gerais'!$I$5,'Parâmetros Gerais'!$F$5,IF(B21='Parâmetros Gerais'!$I$6,'Parâmetros Gerais'!$F$6,0))) -> 0
C22: =IF(B22='Parâmetros Gerais'!$I$4,'Parâmetros Gerais'!$F$4,IF(B22='Parâmetros Gerais'!$I$5,'Parâmetros Gerais'!$F$5,IF(B22='Parâmetros Gerais'!$I$6,'Parâmetros Gerais'!$F$6,0))) -> 0
D23: =SUM(D8:D22) -> 0 | E23: 0 | F23: 0 | G23: 0 | H23: 0 | I23: 0 | J23: 0 | K23: 0 | L23: 0 | M23: 0 | N23: 0 | O23: 0 | P23: 0 | Q23: 0 | R23: 0 | S23: 0 | T23: 0 | U23: 0 | V23: 0 | W23: 0 | X23: 0 | Y23: 0 | Z23: 0 | AA23: 0 | AB23: 0 | AC23: 0 | AD23: 0 | AE23: 0 | AF23: 0 | AG23: 0
A24: Insumos | D24: =$C$25*D25+$C$26*D26+$C$27*D27+$C$28*D28+$C$29*D29+$C$30*D30+$C$31*D31+$C$32*D32+$C$33*D33+$C$34*D34+$C$35*D35+$C$36*D36+$C$37*D37+$C$38*D38+$C$39*D39+$C$40*D40+$C$41*D41+$C$42*D42+$C$43*D43+$C$44*D44 -> 0 | E24: =$C$25*E25+$C$26*E26+$C$27*E27+$C$28*E28+$C$29*E29+$C$30*E30+$C$31*E31+$C$32*E32+$C$33*E33+$C$34*E34+$C$35*E35+$C$36*E36+$C$37*E37+$C$38*E38+$C$39*E39+$C$40*E40+$C$41*E41+$C$42*E42+$C$43*E43+$C$44*E44 -> 0 | F24: 0 | G24: 0 | H24: 0 | I24: 0 | J24: 0 | K24: 0 | L24: 0 | M24: 0 | N24: 0 | O24: 0 | P24: 0 | Q24: 0 | R24: 0 | S24: 0 | T24: 0 | U24: 0 | V24: 0 | W24: 0 | X24: 0 | Y24: 0 | Z24: 0 | AA24: 0 | AB24: 0 | AC24: 0 | AD24: 0 | AE24: 0 | AF24: 0 | AG24: 0

Sheet Produto 20
A1: ='Parâmetros Gerais'!A1 -> Análise Financeira de Sistemas Produtivos Integrados (V. 4.16 11/2016)
A2: =IF('Parâmetros Gerais'!B33<>"",'Parâmetros Gerais'!B33,"") -> madeira gonçalo alves
D3: =Produção!D3 -> Período
A4: Descrição | B4: Unidade | C4: Preço | D4: 1 | E4: 2 | F4: 3 | G4: 4 | H4: 5 | I4: 6 | J4: 7 | K4: 8 | L4: 9 | M4: 10 | N4: 11 | O4: 12 | P4: 13 | Q4: 14 | R4: 15 | S4: 16 | T4: 17 | U4: 18 | V4: 19 | W4: 20 | X4: 21 | Y4: 22 | Z4: 23 | AA4: 24 | AB4: 25 | AC4: 26 | AD4: 27 | AE4: 28 | AF4: 29 | AG4: 30
A7: Atividades | D7: =$C$8*D8+$C$9*D9+$C$10*D10+$C$11*D11+$C$12*D12+$C$13*D13+$C$14*D14+$C$15*D15+$C$16*D16+$C$17*D17+$C$18*D18+$C$19*D19+$C$20*D20+$C$21*D21+$C$22*D22 -> 0 | E7: =$C$8*E8+$C$9*E9+$C$10*E10+$C$11*E11+$C$12*E12+$C$13*E13+$C$14*E14+$C$15*E15+$C$16*E16+$C$17*E17+$C$18*E18+$C$19*E19+$C$20*E20+$C$21*E21+$C$22*E22 -> 0 | F7: 0 | G7: 0 | H7: 0 | I7: 0 | J7: 0 | K7: 0 | L7: 0 | M7: 0 | N7: 0 | O7: 0 | P7: 0 | Q7: 0 | R7: 0 | S7: 0 | T7: 0 | U7: 0 | V7: 0 | W7: 0 | X7: 0 | Y7: 0 | Z7: 0 | AA7: 0 | AB7: 0 | AC7: 0 | AD7: 0 | AE7: 0 | AF7: 0 | AG7: 0
C8: =IF(B8='Parâmetros Gerais'!$I$4,'Parâmetros Gerais'!$F$4,IF(B8='Parâmetros Gerais'!$I$5,'Parâmetros Gerais'!$F$5,IF(B8='Parâmetros Gerais'!$I$6,'Parâmetros Gerais'!$F$6,0))) -> 0
C9: =IF(B9='Parâmetros Gerais'!$I$4,'Parâmetros Gerais'!$F$4,IF(B9='Parâmetros Gerais'!$I$5,'Parâmetros Gerais'!$F$5,IF(B9='Parâmetros Gerais'!$I$6,'Parâmetros Gerais'!$F$6,0))) -> 0
C10: =IF(B10='Parâmetros Gerais'!$I$4,'Parâmetros Gerais'!$F$4,IF(B10='Parâmetros Gerais'!$I$5,'Parâmetros Gerais'!$F$5,IF(B10='Parâmetros Gerais'!$I$6,'Parâmetros Gerais'!$F$6,0))) -> 0
C11: =IF(B11='Parâmetros Gerais'!$I$4,'Parâmetros Gerais'!$F$4,IF(B11='Parâmetros Gerais'!$I$5,'Parâmetros Gerais'!$F$5,IF(B11='Parâmetros Gerais'!$I$6,'Parâmetros Gerais'!$F$6,0))) -> 0
C12: =IF(B12='Parâmetros Gerais'!$I$4,'Parâmetros Gerais'!$F$4,IF(B12='Parâmetros Gerais'!$I$5,'Parâmetros Gerais'!$F$5,IF(B12='Parâmetros Gerais'!$I$6,'Parâmetros Gerais'!$F$6,0))) -> 0
C13: =IF(B13='Parâmetros Gerais'!$I$4,'Parâmetros Gerais'!$F$4,IF(B13='Parâmetros Gerais'!$I$5,'Parâmetros Gerais'!$F$5,IF(B13='Parâmetros Gerais'!$I$6,'Parâmetros Gerais'!$F$6,0))) -> 0
C14: =IF(B14='Parâmetros Gerais'!$I$4,'Parâmetros Gerais'!$F$4,IF(B14='Parâmetros Gerais'!$I$5,'Parâmetros Gerais'!$F$5,IF(B14='Parâmetros Gerais'!$I$6,'Parâmetros Gerais'!$F$6,0))) -> 0
C15: =IF(B15='Parâmetros Gerais'!$I$4,'Parâmetros Gerais'!$F$4,IF(B15='Parâmetros Gerais'!$I$5,'Parâmetros Gerais'!$F$5,IF(B15='Parâmetros Gerais'!$I$6,'Parâmetros Gerais'!$F$6,0))) -> 0
C16: =IF(B16='Parâmetros Gerais'!$I$4,'Parâmetros Gerais'!$F$4,IF(B16='Parâmetros Gerais'!$I$5,'Parâmetros Gerais'!$F$5,IF(B16='Parâmetros Gerais'!$I$6,'Parâmetros Gerais'!$F$6,0))) -> 0
C17: =IF(B17='Parâmetros Gerais'!$I$4,'Parâmetros Gerais'!$F$4,IF(B17='Parâmetros Gerais'!$I$5,'Parâmetros Gerais'!$F$5,IF(B17='Parâmetros Gerais'!$I$6,'Parâmetros Gerais'!$F$6,0))) -> 0
C18: =IF(B18='Parâmetros Gerais'!$I$4,'Parâmetros Gerais'!$F$4,IF(B18='Parâmetros Gerais'!$I$5,'Parâmetros Gerais'!$F$5,IF(B18='Parâmetros Gerais'!$I$6,'Parâmetros Gerais'!$F$6,0))) -> 0
C19: =IF(B19='Parâmetros Gerais'!$I$4,'Parâmetros Gerais'!$F$4,IF(B19='Parâmetros Gerais'!$I$5,'Parâmetros Gerais'!$F$5,IF(B19='Parâmetros Gerais'!$I$6,'Parâmetros Gerais'!$F$6,0))) -> 0
C20: =IF(B20='Parâmetros Gerais'!$I$4,'Parâmetros Gerais'!$F$4,IF(B20='Parâmetros Gerais'!$I$5,'Parâmetros Gerais'!$F$5,IF(B20='Parâmetros Gerais'!$I$6,'Parâmetros Gerais'!$F$6,0))) -> 0
C21: =IF(B21='Parâmetros Gerais'!$I$4,'Parâmetros Gerais'!$F$4,IF(B21='Parâmetros Gerais'!$I$5,'Parâmetros Gerais'!$F$5,IF(B21='Parâmetros Gerais'!$I$6,'Parâmetros Gerais'!$F$6,0))) -> 0
C22: =IF(B22='Parâmetros Gerais'!$I$4,'Parâmetros Gerais'!$F$4,IF(B22='Parâmetros Gerais'!$I$5,'Parâmetros Gerais'!$F$5,IF(B22='Parâmetros Gerais'!$I$6,'Parâmetros Gerais'!$F$6,0))) -> 0
D23: =SUM(D8:D22) -> 0 | E23: 0 | F23: 0 | G23: 0 | H23: 0 | I23: 0 | J23: 0 | K23: 0 | L23: 0 | M23: 0 | N23: 0 | O23: 0 | P23: 0 | Q23: 0 | R23: 0 | S23: 0 | T23: 0 | U23: 0 | V23: 0 | W23: 0 | X23: 0 | Y23: 0 | Z23: 0 | AA23: 0 | AB23: 0 | AC23: 0 | AD23: 0 | AE23: 0 | AF23: 0 | AG23: 0
A24: Insumos | D24: =$C$25*D25+$C$26*D26+$C$27*D27+$C$28*D28+$C$29*D29+$C$30*D30+$C$31*D31+$C$32*D32+$C$33*D33+$C$34*D34+$C$35*D35+$C$36*D36+$C$37*D37+$C$38*D38+$C$39*D39+$C$40*D40+$C$41*D41+$C$42*D42+$C$43*D43+$C$44*D44 -> 0 | E24: =$C$25*E25+$C$26*E26+$C$27*E27+$C$28*E28+$C$29*E29+$C$30*E30+$C$31*E31+$C$32*E32+$C$33*E33+$C$34*E34+$C$35*E35+$C$36*E36+$C$37*E37+$C$38*E38+$C$39*E39+$C$40*E40+$C$41*E41+$C$42*E42+$C$43*E43+$C$44*E44 -> 0 | F24: 0 | G24: 0 | H24: 0 | I24: 0 | J24: 0 | K24: 0 | L24: 0 | M24: 0 | N24: 0 | O24: 0 | P24: 0 | Q24: 0 | R24: 0 | S24: 0 | T24: 0 | U24: 0 | V24: 0 | W24: 0 | X24: 0 | Y24: 0 | Z24: 0 | AA24: 0 | AB24: 0 | AC24: 0 | AD24: 0 | AE24: 0 | AF24: 0 | AG24: 0

Sheet Produto 21
A1: ='Parâmetros Gerais'!A1 -> Análise Financeira de Sistemas Produtivos Integrados (V. 4.16 11/2016)
A2: =IF('Parâmetros Gerais'!B34<>"",'Parâmetros Gerais'!B34,"") -> madeira vinhatico
D3: =Produção!D3 -> Período
A4: Descrição | B4: Unidade | C4: Preço | D4: 1 | E4: 2 | F4: 3 | G4: 4 | H4: 5 | I4: 6 | J4: 7 | K4: 8 | L4: 9 | M4: 10 | N4: 11 | O4: 12 | P4: 13 | Q4: 14 | R4: 15 | S4: 16 | T4: 17 | U4: 18 | V4: 19 | W4: 20 | X4: 21 | Y4: 22 | Z4: 23 | AA4: 24 | AB4: 25 | AC4: 26 | AD4: 27 | AE4: 28 | AF4: 29 | AG4: 30
A7: Atividades | D7: =$C$8*D8+$C$9*D9+$C$10*D10+$C$11*D11+$C$12*D12+$C$13*D13+$C$14*D14+$C$15*D15+$C$16*D16+$C$17*D17+$C$18*D18+$C$19*D19+$C$20*D20+$C$21*D21+$C$22*D22 -> 0 | E7: =$C$8*E8+$C$9*E9+$C$10*E10+$C$11*E11+$C$12*E12+$C$13*E13+$C$14*E14+$C$15*E15+$C$16*E16+$C$17*E17+$C$18*E18+$C$19*E19+$C$20*E20+$C$21*E21+$C$22*E22 -> 0 | F7: 0 | G7: 0 | H7: 0 | I7: 0 | J7: 0 | K7: 0 | L7: 0 | M7: 0 | N7: 0 | O7: 0 | P7: 0 | Q7: 0 | R7: 0 | S7: 0 | T7: 0 | U7: 0 | V7: 0 | W7: 0 | X7: 0 | Y7: 0 | Z7: 0 | AA7: 0 | AB7: 0 | AC7: 0 | AD7: 0 | AE7: 0 | AF7: 0 | AG7: 0
C8: =IF(B8='Parâmetros Gerais'!$I$4,'Parâmetros Gerais'!$F$4,IF(B8='Parâmetros Gerais'!$I$5,'Parâmetros Gerais'!$F$5,IF(B8='Parâmetros Gerais'!$I$6,'Parâmetros Gerais'!$F$6,0))) -> 0
C9: =IF(B9='Parâmetros Gerais'!$I$4,'Parâmetros Gerais'!$F$4,IF(B9='Parâmetros Gerais'!$I$5,'Parâmetros Gerais'!$F$5,IF(B9='Parâmetros Gerais'!$I$6,'Parâmetros Gerais'!$F$6,0))) -> 0
C10: =IF(B10='Parâmetros Gerais'!$I$4,'Parâmetros Gerais'!$F$4,IF(B10='Parâmetros Gerais'!$I$5,'Parâmetros Gerais'!$F$5,IF(B10='Parâmetros Gerais'!$I$6,'Parâmetros Gerais'!$F$6,0))) -> 0
C11: =IF(B11='Parâmetros Gerais'!$I$4,'Parâmetros Gerais'!$F$4,IF(B11='Parâmetros Gerais'!$I$5,'Parâmetros Gerais'!$F$5,IF(B11='Parâmetros Gerais'!$I$6,'Parâmetros Gerais'!$F$6,0))) -> 0
C12: =IF(B12='Parâmetros Gerais'!$I$4,'Parâmetros Gerais'!$F$4,IF(B12='Parâmetros Gerais'!$I$5,'Parâmetros Gerais'!$F$5,IF(B12='Parâmetros Gerais'!$I$6,'Parâmetros Gerais'!$F$6,0))) -> 0
C13: =IF(B13='Parâmetros Gerais'!$I$4,'Parâmetros Gerais'!$F$4,IF(B13='Parâmetros Gerais'!$I$5,'Parâmetros Gerais'!$F$5,IF(B13='Parâmetros Gerais'!$I$6,'Parâmetros Gerais'!$F$6,0))) -> 0
C14: =IF(B14='Parâmetros Gerais'!$I$4,'Parâmetros Gerais'!$F$4,IF(B14='Parâmetros Gerais'!$I$5,'Parâmetros Gerais'!$F$5,IF(B14='Parâmetros Gerais'!$I$6,'Parâmetros Gerais'!$F$6,0))) -> 0
C15: =IF(B15='Parâmetros Gerais'!$I$4,'Parâmetros Gerais'!$F$4,IF(B15='Parâmetros Gerais'!$I$5,'Parâmetros Gerais'!$F$5,IF(B15='Parâmetros Gerais'!$I$6,'Parâmetros Gerais'!$F$6,0))) -> 0
C16: =IF(B16='Parâmetros Gerais'!$I$4,'Parâmetros Gerais'!$F$4,IF(B16='Parâmetros Gerais'!$I$5,'Parâmetros Gerais'!$F$5,IF(B16='Parâmetros Gerais'!$I$6,'Parâmetros Gerais'!$F$6,0))) -> 0
C17: =IF(B17='Parâmetros Gerais'!$I$4,'Parâmetros Gerais'!$F$4,IF(B17='Parâmetros Gerais'!$I$5,'Parâmetros Gerais'!$F$5,IF(B17='Parâmetros Gerais'!$I$6,'Parâmetros Gerais'!$F$6,0))) -> 0
C18: =IF(B18='Parâmetros Gerais'!$I$4,'Parâmetros Gerais'!$F$4,IF(B18='Parâmetros Gerais'!$I$5,'Parâmetros Gerais'!$F$5,IF(B18='Parâmetros Gerais'!$I$6,'Parâmetros Gerais'!$F$6,0))) -> 0
C19: =IF(B19='Parâmetros Gerais'!$I$4,'Parâmetros Gerais'!$F$4,IF(B19='Parâmetros Gerais'!$I$5,'Parâmetros Gerais'!$F$5,IF(B19='Parâmetros Gerais'!$I$6,'Parâmetros Gerais'!$F$6,0))) -> 0
C20: =IF(B20='Parâmetros Gerais'!$I$4,'Parâmetros Gerais'!$F$4,IF(B20='Parâmetros Gerais'!$I$5,'Parâmetros Gerais'!$F$5,IF(B20='Parâmetros Gerais'!$I$6,'Parâmetros Gerais'!$F$6,0))) -> 0
C21: =IF(B21='Parâmetros Gerais'!$I$4,'Parâmetros Gerais'!$F$4,IF(B21='Parâmetros Gerais'!$I$5,'Parâmetros Gerais'!$F$5,IF(B21='Parâmetros Gerais'!$I$6,'Parâmetros Gerais'!$F$6,0))) -> 0
C22: =IF(B22='Parâmetros Gerais'!$I$4,'Parâmetros Gerais'!$F$4,IF(B22='Parâmetros Gerais'!$I$5,'Parâmetros Gerais'!$F$5,IF(B22='Parâmetros Gerais'!$I$6,'Parâmetros Gerais'!$F$6,0))) -> 0
D23: =SUM(D8:D22) -> 0 | E23: 0 | F23: 0 | G23: 0 | H23: 0 | I23: 0 | J23: 0 | K23: 0 | L23: 0 | M23: 0 | N23: 0 | O23: 0 | P23: 0 | Q23: 0 | R23: 0 | S23: 0 | T23: 0 | U23: 0 | V23: 0 | W23: 0 | X23: 0 | Y23: 0 | Z23: 0 | AA23: 0 | AB23: 0 | AC23: 0 | AD23: 0 | AE23: 0 | AF23: 0 | AG23: 0
A24: Insumos | D24: =$C$25*D25+$C$26*D26+$C$27*D27+$C$28*D28+$C$29*D29+$C$30*D30+$C$31*D31+$C$32*D32+$C$33*D33+$C$34*D34+$C$35*D35+$C$36*D36+$C$37*D37+$C$38*D38+$C$39*D39+$C$40*D40+$C$41*D41+$C$42*D42+$C$43*D43+$C$44*D44 -> 0 | E24: =$C$25*E25+$C$26*E26+$C$27*E27+$C$28*E28+$C$29*E29+$C$30*E30+$C$31*E31+$C$32*E32+$C$33*E33+$C$34*E34+$C$35*E35+$C$36*E36+$C$37*E37+$C$38*E38+$C$39*E39+$C$40*E40+$C$41*E41+$C$42*E42+$C$43*E43+$C$44*E44 -> 0 | F24: 0 | G24: 0 | H24: 0 | I24: 0 | J24: 0 | K24: 0 | L24: 0 | M24: 0 | N24: 0 | O24: 0 | P24: 0 | Q24: 0 | R24: 0 | S24: 0 | T24: 0 | U24: 0 | V24: 0 | W24: 0 | X24: 0 | Y24: 0 | Z24: 0 | AA24: 0 | AB24: 0 | AC24: 0 | AD24: 0 | AE24: 0 | AF24: 0 | AG24: 0

Sheet Produto 22
A1: ='Parâmetros Gerais'!A1 -> Análise Financeira de Sistemas Produtivos Integrados (V. 4.16 11/2016)
A2: =IF('Parâmetros Gerais'!B35<>"",'Parâmetros Gerais'!B35,"") -> madeira jequitiba
D3: =Produção!D3 -> Período
A4: Descrição | B4: Unidade | C4: Preço | D4: 1 | E4: 2 | F4: 3 | G4: 4 | H4: 5 | I4: 6 | J4: 7 | K4: 8 | L4: 9 | M4: 10 | N4: 11 | O4: 12 | P4: 13 | Q4: 14 | R4: 15 | S4: 16 | T4: 17 | U4: 18 | V4: 19 | W4: 20 | X4: 21 | Y4: 22 | Z4: 23 | AA4: 24 | AB4: 25 | AC4: 26 | AD4: 27 | AE4: 28 | AF4: 29 | AG4: 30
A7: Atividades | D7: =$C$8*D8+$C$9*D9+$C$10*D10+$C$11*D11+$C$12*D12+$C$13*D13+$C$14*D14+$C$15*D15+$C$16*D16+$C$17*D17+$C$18*D18+$C$19*D19+$C$20*D20+$C$21*D21+$C$22*D22 -> 0 | E7: =$C$8*E8+$C$9*E9+$C$10*E10+$C$11*E11+$C$12*E12+$C$13*E13+$C$14*E14+$C$15*E15+$C$16*E16+$C$17*E17+$C$18*E18+$C$19*E19+$C$20*E20+$C$21*E21+$C$22*E22 -> 0 | F7: 0 | G7: 0 | H7: 0 | I7: 0 | J7: 0 | K7: 0 | L7: 0 | M7: 0 | N7: 0 | O7: 0 | P7: 0 | Q7: 0 | R7: 0 | S7: 0 | T7: 0 | U7: 0 | V7: 0 | W7: 0 | X7: 0 | Y7: 0 | Z7: 0 | AA7: 0 | AB7: 0 | AC7: 0 | AD7: 0 | AE7: 0 | AF7: 0 | AG7: 0
C8: =IF(B8='Parâmetros Gerais'!$I$4,'Parâmetros Gerais'!$F$4,IF(B8='Parâmetros Gerais'!$I$5,'Parâmetros Gerais'!$F$5,IF(B8='Parâmetros Gerais'!$I$6,'Parâmetros Gerais'!$F$6,0))) -> 0
C9: =IF(B9='Parâmetros Gerais'!$I$4,'Parâmetros Gerais'!$F$4,IF(B9='Parâmetros Gerais'!$I$5,'Parâmetros Gerais'!$F$5,IF(B9='Parâmetros Gerais'!$I$6,'Parâmetros Gerais'!$F$6,0))) -> 0
C10: =IF(B10='Parâmetros Gerais'!$I$4,'Parâmetros Gerais'!$F$4,IF(B10='Parâmetros Gerais'!$I$5,'Parâmetros Gerais'!$F$5,IF(B10='Parâmetros Gerais'!$I$6,'Parâmetros Gerais'!$F$6,0))) -> 0
C11: =IF(B11='Parâmetros Gerais'!$I$4,'Parâmetros Gerais'!$F$4,IF(B11='Parâmetros Gerais'!$I$5,'Parâmetros Gerais'!$F$5,IF(B11='Parâmetros Gerais'!$I$6,'Parâmetros Gerais'!$F$6,0))) -> 0
C12: =IF(B12='Parâmetros Gerais'!$I$4,'Parâmetros Gerais'!$F$4,IF(B12='Parâmetros Gerais'!$I$5,'Parâmetros Gerais'!$F$5,IF(B12='Parâmetros Gerais'!$I$6,'Parâmetros Gerais'!$F$6,0))) -> 0
C13: =IF(B13='Parâmetros Gerais'!$I$4,'Parâmetros Gerais'!$F$4,IF(B13='Parâmetros Gerais'!$I$5,'Parâmetros Gerais'!$F$5,IF(B13='Parâmetros Gerais'!$I$6,'Parâmetros Gerais'!$F$6,0))) -> 0
C14: =IF(B14='Parâmetros Gerais'!$I$4,'Parâmetros Gerais'!$F$4,IF(B14='Parâmetros Gerais'!$I$5,'Parâmetros Gerais'!$F$5,IF(B14='Parâmetros Gerais'!$I$6,'Parâmetros Gerais'!$F$6,0))) -> 0
C15: =IF(B15='Parâmetros Gerais'!$I$4,'Parâmetros Gerais'!$F$4,IF(B15='Parâmetros Gerais'!$I$5,'Parâmetros Gerais'!$F$5,IF(B15='Parâmetros Gerais'!$I$6,'Parâmetros Gerais'!$F$6,0))) -> 0
C16: =IF(B16='Parâmetros Gerais'!$I$4,'Parâmetros Gerais'!$F$4,IF(B16='Parâmetros Gerais'!$I$5,'Parâmetros Gerais'!$F$5,IF(B16='Parâmetros Gerais'!$I$6,'Parâmetros Gerais'!$F$6,0))) -> 0
C17: =IF(B17='Parâmetros Gerais'!$I$4,'Parâmetros Gerais'!$F$4,IF(B17='Parâmetros Gerais'!$I$5,'Parâmetros Gerais'!$F$5,IF(B17='Parâmetros Gerais'!$I$6,'Parâmetros Gerais'!$F$6,0))) -> 0
C18: =IF(B18='Parâmetros Gerais'!$I$4,'Parâmetros Gerais'!$F$4,IF(B18='Parâmetros Gerais'!$I$5,'Parâmetros Gerais'!$F$5,IF(B18='Parâmetros Gerais'!$I$6,'Parâmetros Gerais'!$F$6,0))) -> 0
C19: =IF(B19='Parâmetros Gerais'!$I$4,'Parâmetros Gerais'!$F$4,IF(B19='Parâmetros Gerais'!$I$5,'Parâmetros Gerais'!$F$5,IF(B19='Parâmetros Gerais'!$I$6,'Parâmetros Gerais'!$F$6,0))) -> 0
C20: =IF(B20='Parâmetros Gerais'!$I$4,'Parâmetros Gerais'!$F$4,IF(B20='Parâmetros Gerais'!$I$5,'Parâmetros Gerais'!$F$5,IF(B20='Parâmetros Gerais'!$I$6,'Parâmetros Gerais'!$F$6,0))) -> 0
C21: =IF(B21='Parâmetros Gerais'!$I$4,'Parâmetros Gerais'!$F$4,IF(B21='Parâmetros Gerais'!$I$5,'Parâmetros Gerais'!$F$5,IF(B21='Parâmetros Gerais'!$I$6,'Parâmetros Gerais'!$F$6,0))) -> 0
C22: =IF(B22='Parâmetros Gerais'!$I$4,'Parâmetros Gerais'!$F$4,IF(B22='Parâmetros Gerais'!$I$5,'Parâmetros Gerais'!$F$5,IF(B22='Parâmetros Gerais'!$I$6,'Parâmetros Gerais'!$F$6,0))) -> 0
D23: =SUM(D8:D22) -> 0 | E23: 0 | F23: 0 | G23: 0 | H23: 0 | I23: 0 | J23: 0 | K23: 0 | L23: 0 | M23: 0 | N23: 0 | O23: 0 | P23: 0 | Q23: 0 | R23: 0 | S23: 0 | T23: 0 | U23: 0 | V23: 0 | W23: 0 | X23: 0 | Y23: 0 | Z23: 0 | AA23: 0 | AB23: 0 | AC23: 0 | AD23: 0 | AE23: 0 | AF23: 0 | AG23: 0
A24: Insumos | D24: =$C$25*D25+$C$26*D26+$C$27*D27+$C$28*D28+$C$29*D29+$C$30*D30+$C$31*D31+$C$32*D32+$C$33*D33+$C$34*D34+$C$35*D35+$C$36*D36+$C$37*D37+$C$38*D38+$C$39*D39+$C$40*D40+$C$41*D41+$C$42*D42+$C$43*D43+$C$44*D44 -> 0 | E24: =$C$25*E25+$C$26*E26+$C$27*E27+$C$28*E28+$C$29*E29+$C$30*E30+$C$31*E31+$C$32*E32+$C$33*E33+$C$34*E34+$C$35*E35+$C$36*E36+$C$37*E37+$C$38*E38+$C$39*E39+$C$40*E40+$C$41*E41+$C$42*E42+$C$43*E43+$C$44*E44 -> 0 | F24: 0 | G24: 0 | H24: 0 | I24: 0 | J24: 0 | K24: 0 | L24: 0 | M24: 0 | N24: 0 | O24: 0 | P24: 0 | Q24: 0 | R24: 0 | S24: 0 | T24: 0 | U24: 0 | V24: 0 | W24: 0 | X24: 0 | Y24: 0 | Z24: 0 | AA24: 0 | AB24: 0 | AC24: 0 | AD24: 0 | AE24: 0 | AF24: 0 | AG24: 0

Sheet Produto 23
A1: ='Parâmetros Gerais'!A1 -> Análise Financeira de Sistemas Produtivos Integrados (V. 4.16 11/2016)
A2: =IF('Parâmetros Gerais'!B36<>"",'Parâmetros Gerais'!B36,"") -> biomassa
D3: =Produção!D3 -> Período
A4: Descrição | B4: Unidade | C4: Preço | D4: 1 | E4: 2 | F4: 3 | G4: 4 | H4: 5 | I4: 6 | J4: 7 | K4: 8 | L4: 9 | M4: 10 | N4: 11 | O4: 12 | P4: 13 | Q4: 14 | R4: 15 | S4: 16 | T4: 17 | U4: 18 | V4: 19 | W4: 20 | X4: 21 | Y4: 22 | Z4: 23 | AA4: 24 | AB4: 25 | AC4: 26 | AD4: 27 | AE4: 28 | AF4: 29 | AG4: 30
A7: Atividades | D7: =$C$8*D8+$C$9*D9+$C$10*D10+$C$11*D11+$C$12*D12+$C$13*D13+$C$14*D14+$C$15*D15+$C$16*D16+$C$17*D17+$C$18*D18+$C$19*D19+$C$20*D20+$C$21*D21+$C$22*D22 -> 0 | E7: =$C$8*E8+$C$9*E9+$C$10*E10+$C$11*E11+$C$12*E12+$C$13*E13+$C$14*E14+$C$15*E15+$C$16*E16+$C$17*E17+$C$18*E18+$C$19*E19+$C$20*E20+$C$21*E21+$C$22*E22 -> 0 | F7: 0 | G7: 0 | H7: 0 | I7: 0 | J7: 0 | K7: 0 | L7: 0 | M7: 0 | N7: 0 | O7: 0 | P7: 0 | Q7: 0 | R7: 0 | S7: 0 | T7: 0 | U7: 0 | V7: 0 | W7: 0 | X7: 0 | Y7: 0 | Z7: 0 | AA7: 0 | AB7: 0 | AC7: 0 | AD7: 0 | AE7: 0 | AF7: 0 | AG7: 0
C8: =IF(B8='Parâmetros Gerais'!$I$4,'Parâmetros Gerais'!$F$4,IF(B8='Parâmetros Gerais'!$I$5,'Parâmetros Gerais'!$F$5,IF(B8='Parâmetros Gerais'!$I$6,'Parâmetros Gerais'!$F$6,0))) -> 0
C9: =IF(B9='Parâmetros Gerais'!$I$4,'Parâmetros Gerais'!$F$4,IF(B9='Parâmetros Gerais'!$I$5,'Parâmetros Gerais'!$F$5,IF(B9='Parâmetros Gerais'!$I$6,'Parâmetros Gerais'!$F$6,0))) -> 0
C10: =IF(B10='Parâmetros Gerais'!$I$4,'Parâmetros Gerais'!$F$4,IF(B10='Parâmetros Gerais'!$I$5,'Parâmetros Gerais'!$F$5,IF(B10='Parâmetros Gerais'!$I$6,'Parâmetros Gerais'!$F$6,0))) -> 0
C11: =IF(B11='Parâmetros Gerais'!$I$4,'Parâmetros Gerais'!$F$4,IF(B11='Parâmetros Gerais'!$I$5,'Parâmetros Gerais'!$F$5,IF(B11='Parâmetros Gerais'!$I$6,'Parâmetros Gerais'!$F$6,0))) -> 0
C12: =IF(B12='Parâmetros Gerais'!$I$4,'Parâmetros Gerais'!$F$4,IF(B12='Parâmetros Gerais'!$I$5,'Parâmetros Gerais'!$F$5,IF(B12='Parâmetros Gerais'!$I$6,'Parâmetros Gerais'!$F$6,0))) -> 0
C13: =IF(B13='Parâmetros Gerais'!$I$4,'Parâmetros Gerais'!$F$4,IF(B13='Parâmetros Gerais'!$I$5,'Parâmetros Gerais'!$F$5,IF(B13='Parâmetros Gerais'!$I$6,'Parâmetros Gerais'!$F$6,0))) -> 0
C14: =IF(B14='Parâmetros Gerais'!$I$4,'Parâmetros Gerais'!$F$4,IF(B14='Parâmetros Gerais'!$I$5,'Parâmetros Gerais'!$F$5,IF(B14='Parâmetros Gerais'!$I$6,'Parâmetros Gerais'!$F$6,0))) -> 0
C15: =IF(B15='Parâmetros Gerais'!$I$4,'Parâmetros Gerais'!$F$4,IF(B15='Parâmetros Gerais'!$I$5,'Parâmetros Gerais'!$F$5,IF(B15='Parâmetros Gerais'!$I$6,'Parâmetros Gerais'!$F$6,0))) -> 0
C16: =IF(B16='Parâmetros Gerais'!$I$4,'Parâmetros Gerais'!$F$4,IF(B16='Parâmetros Gerais'!$I$5,'Parâmetros Gerais'!$F$5,IF(B16='Parâmetros Gerais'!$I$6,'Parâmetros Gerais'!$F$6,0))) -> 0
C17: =IF(B17='Parâmetros Gerais'!$I$4,'Parâmetros Gerais'!$F$4,IF(B17='Parâmetros Gerais'!$I$5,'Parâmetros Gerais'!$F$5,IF(B17='Parâmetros Gerais'!$I$6,'Parâmetros Gerais'!$F$6,0))) -> 0
C18: =IF(B18='Parâmetros Gerais'!$I$4,'Parâmetros Gerais'!$F$4,IF(B18='Parâmetros Gerais'!$I$5,'Parâmetros Gerais'!$F$5,IF(B18='Parâmetros Gerais'!$I$6,'Parâmetros Gerais'!$F$6,0))) -> 0
C19: =IF(B19='Parâmetros Gerais'!$I$4,'Parâmetros Gerais'!$F$4,IF(B19='Parâmetros Gerais'!$I$5,'Parâmetros Gerais'!$F$5,IF(B19='Parâmetros Gerais'!$I$6,'Parâmetros Gerais'!$F$6,0))) -> 0
C20: =IF(B20='Parâmetros Gerais'!$I$4,'Parâmetros Gerais'!$F$4,IF(B20='Parâmetros Gerais'!$I$5,'Parâmetros Gerais'!$F$5,IF(B20='Parâmetros Gerais'!$I$6,'Parâmetros Gerais'!$F$6,0))) -> 0
C21: =IF(B21='Parâmetros Gerais'!$I$4,'Parâmetros Gerais'!$F$4,IF(B21='Parâmetros Gerais'!$I$5,'Parâmetros Gerais'!$F$5,IF(B21='Parâmetros Gerais'!$I$6,'Parâmetros Gerais'!$F$6,0))) -> 0
C22: =IF(B22='Parâmetros Gerais'!$I$4,'Parâmetros Gerais'!$F$4,IF(B22='Parâmetros Gerais'!$I$5,'Parâmetros Gerais'!$F$5,IF(B22='Parâmetros Gerais'!$I$6,'Parâmetros Gerais'!$F$6,0))) -> 0
D23: =SUM(D8:D22) -> 0 | E23: 0 | F23: 0 | G23: 0 | H23: 0 | I23: 0 | J23: 0 | K23: 0 | L23: 0 | M23: 0 | N23: 0 | O23: 0 | P23: 0 | Q23: 0 | R23: 0 | S23: 0 | T23: 0 | U23: 0 | V23: 0 | W23: 0 | X23: 0 | Y23: 0 | Z23: 0 | AA23: 0 | AB23: 0 | AC23: 0 | AD23: 0 | AE23: 0 | AF23: 0 | AG23: 0
A24: Insumos | D24: =$C$25*D25+$C$26*D26+$C$27*D27+$C$28*D28+$C$29*D29+$C$30*D30+$C$31*D31+$C$32*D32+$C$33*D33+$C$34*D34+$C$35*D35+$C$36*D36+$C$37*D37+$C$38*D38+$C$39*D39+$C$40*D40+$C$41*D41+$C$42*D42+$C$43*D43+$C$44*D44 -> 0 | E24: =$C$25*E25+$C$26*E26+$C$27*E27+$C$28*E28+$C$29*E29+$C$30*E30+$C$31*E31+$C$32*E32+$C$33*E33+$C$34*E34+$C$35*E35+$C$36*E36+$C$37*E37+$C$38*E38+$C$39*E39+$C$40*E40+$C$41*E41+$C$42*E42+$C$43*E43+$C$44*E44 -> 0 | F24: 0 | G24: 0 | H24: 0 | I24: 0 | J24: 0 | K24: 0 | L24: 0 | M24: 0 | N24: 0 | O24: 0 | P24: 0 | Q24: 0 | R24: 0 | S24: 0 | T24: 0 | U24: 0 | V24: 0 | W24: 0 | X24: 0 | Y24: 0 | Z24: 0 | AA24: 0 | AB24: 0 | AC24: 0 | AD24: 0 | AE24: 0 | AF24: 0 | AG24: 0

Sheet Produto 24
A1: ='Parâmetros Gerais'!A1 -> Análise Financeira de Sistemas Produtivos Integrados (V. 4.16 11/2016)
A2: =IF('Parâmetros Gerais'!B37<>"",'Parâmetros Gerais'!B37,"") -> grão caupi
D3: =Produção!D3 -> Período
A4: Descrição | B4: Unidade | C4: Preço | D4: 1 | E4: 2 | F4: 3 | G4: 4 | H4: 5 | I4: 6 | J4: 7 | K4: 8 | L4: 9 | M4: 10 | N4: 11 | O4: 12 | P4: 13 | Q4: 14 | R4: 15 | S4: 16 | T4: 17 | U4: 18 | V4: 19 | W4: 20 | X4: 21 | Y4: 22 | Z4: 23 | AA4: 24 | AB4: 25 | AC4: 26 | AD4: 27 | AE4: 28 | AF4: 29 | AG4: 30
A7: Atividades | D7: =$C$8*D8+$C$9*D9+$C$10*D10+$C$11*D11+$C$12*D12+$C$13*D13+$C$14*D14+$C$15*D15+$C$16*D16+$C$17*D17+$C$18*D18+$C$19*D19+$C$20*D20+$C$21*D21+$C$22*D22 -> 0 | E7: =$C$8*E8+$C$9*E9+$C$10*E10+$C$11*E11+$C$12*E12+$C$13*E13+$C$14*E14+$C$15*E15+$C$16*E16+$C$17*E17+$C$18*E18+$C$19*E19+$C$20*E20+$C$21*E21+$C$22*E22 -> 0 | F7: 0 | G7: 0 | H7: 0 | I7: 0 | J7: 0 | K7: 0 | L7: 0 | M7: 0 | N7: 0 | O7: 0 | P7: 0 | Q7: 0 | R7: 0 | S7: 0 | T7: 0 | U7: 0 | V7: 0 | W7: 0 | X7: 0 | Y7: 0 | Z7: 0 | AA7: 0 | AB7: 0 | AC7: 0 | AD7: 0 | AE7: 0 | AF7: 0 | AG7: 0
C8: =IF(B8='Parâmetros Gerais'!$I$4,'Parâmetros Gerais'!$F$4,IF(B8='Parâmetros Gerais'!$I$5,'Parâmetros Gerais'!$F$5,IF(B8='Parâmetros Gerais'!$I$6,'Parâmetros Gerais'!$F$6,0))) -> 0
C9: =IF(B9='Parâmetros Gerais'!$I$4,'Parâmetros Gerais'!$F$4,IF(B9='Parâmetros Gerais'!$I$5,'Parâmetros Gerais'!$F$5,IF(B9='Parâmetros Gerais'!$I$6,'Parâmetros Gerais'!$F$6,0))) -> 0
C10: =IF(B10='Parâmetros Gerais'!$I$4,'Parâmetros Gerais'!$F$4,IF(B10='Parâmetros Gerais'!$I$5,'Parâmetros Gerais'!$F$5,IF(B10='Parâmetros Gerais'!$I$6,'Parâmetros Gerais'!$F$6,0))) -> 0
C11: =IF(B11='Parâmetros Gerais'!$I$4,'Parâmetros Gerais'!$F$4,IF(B11='Parâmetros Gerais'!$I$5,'Parâmetros Gerais'!$F$5,IF(B11='Parâmetros Gerais'!$I$6,'Parâmetros Gerais'!$F$6,0))) -> 0
C12: =IF(B12='Parâmetros Gerais'!$I$4,'Parâmetros Gerais'!$F$4,IF(B12='Parâmetros Gerais'!$I$5,'Parâmetros Gerais'!$F$5,IF(B12='Parâmetros Gerais'!$I$6,'Parâmetros Gerais'!$F$6,0))) -> 0
C13: =IF(B13='Parâmetros Gerais'!$I$4,'Parâmetros Gerais'!$F$4,IF(B13='Parâmetros Gerais'!$I$5,'Parâmetros Gerais'!$F$5,IF(B13='Parâmetros Gerais'!$I$6,'Parâmetros Gerais'!$F$6,0))) -> 0
C14: =IF(B14='Parâmetros Gerais'!$I$4,'Parâmetros Gerais'!$F$4,IF(B14='Parâmetros Gerais'!$I$5,'Parâmetros Gerais'!$F$5,IF(B14='Parâmetros Gerais'!$I$6,'Parâmetros Gerais'!$F$6,0))) -> 0
C15: =IF(B15='Parâmetros Gerais'!$I$4,'Parâmetros Gerais'!$F$4,IF(B15='Parâmetros Gerais'!$I$5,'Parâmetros Gerais'!$F$5,IF(B15='Parâmetros Gerais'!$I$6,'Parâmetros Gerais'!$F$6,0))) -> 0
C16: =IF(B16='Parâmetros Gerais'!$I$4,'Parâmetros Gerais'!$F$4,IF(B16='Parâmetros Gerais'!$I$5,'Parâmetros Gerais'!$F$5,IF(B16='Parâmetros Gerais'!$I$6,'Parâmetros Gerais'!$F$6,0))) -> 0
C17: =IF(B17='Parâmetros Gerais'!$I$4,'Parâmetros Gerais'!$F$4,IF(B17='Parâmetros Gerais'!$I$5,'Parâmetros Gerais'!$F$5,IF(B17='Parâmetros Gerais'!$I$6,'Parâmetros Gerais'!$F$6,0))) -> 0
C18: =IF(B18='Parâmetros Gerais'!$I$4,'Parâmetros Gerais'!$F$4,IF(B18='Parâmetros Gerais'!$I$5,'Parâmetros Gerais'!$F$5,IF(B18='Parâmetros Gerais'!$I$6,'Parâmetros Gerais'!$F$6,0))) -> 0
C19: =IF(B19='Parâmetros Gerais'!$I$4,'Parâmetros Gerais'!$F$4,IF(B19='Parâmetros Gerais'!$I$5,'Parâmetros Gerais'!$F$5,IF(B19='Parâmetros Gerais'!$I$6,'Parâmetros Gerais'!$F$6,0))) -> 0
C20: =IF(B20='Parâmetros Gerais'!$I$4,'Parâmetros Gerais'!$F$4,IF(B20='Parâmetros Gerais'!$I$5,'Parâmetros Gerais'!$F$5,IF(B20='Parâmetros Gerais'!$I$6,'Parâmetros Gerais'!$F$6,0))) -> 0
C21: =IF(B21='Parâmetros Gerais'!$I$4,'Parâmetros Gerais'!$F$4,IF(B21='Parâmetros Gerais'!$I$5,'Parâmetros Gerais'!$F$5,IF(B21='Parâmetros Gerais'!$I$6,'Parâmetros Gerais'!$F$6,0))) -> 0
C22: =IF(B22='Parâmetros Gerais'!$I$4,'Parâmetros Gerais'!$F$4,IF(B22='Parâmetros Gerais'!$I$5,'Parâmetros Gerais'!$F$5,IF(B22='Parâmetros Gerais'!$I$6,'Parâmetros Gerais'!$F$6,0))) -> 0
D23: =SUM(D8:D22) -> 0 | E23: 0 | F23: 0 | G23: 0 | H23: 0 | I23: 0 | J23: 0 | K23: 0 | L23: 0 | M23: 0 | N23: 0 | O23: 0 | P23: 0 | Q23: 0 | R23: 0 | S23: 0 | T23: 0 | U23: 0 | V23: 0 | W23: 0 | X23: 0 | Y23: 0 | Z23: 0 | AA23: 0 | AB23: 0 | AC23: 0 | AD23: 0 | AE23: 0 | AF23: 0 | AG23: 0
A24: Insumos | D24: =$C$25*D25+$C$26*D26+$C$27*D27+$C$28*D28+$C$29*D29+$C$30*D30+$C$31*D31+$C$32*D32+$C$33*D33+$C$34*D34+$C$35*D35+$C$36*D36+$C$37*D37+$C$38*D38+$C$39*D39+$C$40*D40+$C$41*D41+$C$42*D42+$C$43*D43+$C$44*D44 -> 0 | E24: =$C$25*E25+$C$26*E26+$C$27*E27+$C$28*E28+$C$29*E29+$C$30*E30+$C$31*E31+$C$32*E32+$C$33*E33+$C$34*E34+$C$35*E35+$C$36*E36+$C$37*E37+$C$38*E38+$C$39*E39+$C$40*E40+$C$41*E41+$C$42*E42+$C$43*E43+$C$44*E44 -> 0 | F24: 0 | G24: 0 | H24: 0 | I24: 0 | J24: 0 | K24: 0 | L24: 0 | M24: 0 | N24: 0 | O24: 0 | P24: 0 | Q24: 0 | R24: 0 | S24: 0 | T24: 0 | U24: 0 | V24: 0 | W24: 0 | X24: 0 | Y24: 0 | Z24: 0 | AA24: 0 | AB24: 0 | AC24: 0 | AD24: 0 | AE24: 0 | AF24: 0 | AG24: 0

Sheet Resultados Fin
A1: ='Parâmetros Gerais'!A1 -> Análise Financeira de Sistemas Produtivos Integrados (V. 4.16 11/2016)
A2: Resultados Financeiros
B4: Relativo | C4: Total | D4: Preparo | E4: 1 | F4: 2 | G4: 3 | H4: 4 | I4: 5 | J4: 6 | K4: 7 | L4: 8 | M4: 9 | N4: 10 | O4: 11 | P4: 12 | Q4: 13 | R4: 14 | S4: 15 | T4: 16 | U4: 17 | V4: 18 | W4: 19 | X4: 20 | Y4: 21 | Z4: 22 | AA4: 23 | AB4: 24 | AC4: 25 | AD4: 26 | AE4: 27 | AF4: 28 | AG4: 29 | AH4: 30
A6: Custos TOTAIS | C6: =SUM(D6:AH6) -> 0 | D6: =D8+D38 -> 0 | E6: 0 | F6: 0 | G6: 0 | H6: 0 | I6: 0 | J6: 0 | K6: 0 | L6: 0 | M6: 0 | N6: 0 | O6: 0 | P6: 0 | Q6: 0 | R6: 0 | S6: 0 | T6: 0 | U6: 0 | V6: 0 | W6: 0 | X6: 0 | Y6: 0 | Z6: 0 | AA6: 0 | AB6: 0 | AC6: 0 | AD6: 0 | AE6: 0 | AF6: 0 | AG6: 0 | AH6: 0
A8: Custos de mão de obra | B8: =C8/$C$6 ->  | C8: =SUM(D8:AH8) -> 0 | D8: =D10+D12 -> 0 | E8: =SUM(E13:E36) -> 0 | F8: 0 | G8: 0 | H8: 0 | I8: 0 | J8: 0 | K8: 0 | L8: 0 | M8: 0 | N8: 0 | O8: 0 | P8: 0 | Q8: 0 | R8: 0 | S8: 0 | T8: 0 | U8: 0 | V8: 0 | W8: 0 | X8: 0 | Y8: 0 | Z8: 0 | AA8: 0 | AB8: 0 | AC8: 0 | AD8: 0 | AE8: 0 | AF8: 0 | AG8: 0 | AH8: 0
A10: Preparo e Atividades Gerais | D10: ='Preparo e Gerais'!D6 -> 0 | E10: ='Preparo e Gerais'!E6 -> 0 | F10: ='Preparo e Gerais'!F6 -> 0 | G10: ='Preparo e Gerais'!G6 -> 0 | H10: ='Preparo e Gerais'!H6 -> 0 | I10: ='Preparo e Gerais'!I6 -> 0 | J10: ='Preparo e Gerais'!J6 -> 0 | K10: ='Preparo e Gerais'!K6 -> 0 | L10: ='Preparo e Gerais'!L6 -> 0 | M10: ='Preparo e Gerais'!M6 -> 0 | N10: ='Preparo e Gerais'!N6 -> 0 | O10: ='Preparo e Gerais'!O6 -> 0 | P10: ='Preparo e Gerais'!P6 -> 0 | Q10: ='Preparo e Gerais'!Q6 -> 0 | R10: ='Preparo e Gerais'!R6 -> 0 | S10: ='Preparo e Gerais'!S6 -> 0 | T10: ='Preparo e Gerais'!T6 -> 0 | U10: ='Preparo e Gerais'!U6 -> 0 | V10: ='Preparo e Gerais'!V6 -> 0 | W10: ='Preparo e Gerais'!W6 -> 0 | X10: ='Preparo e Gerais'!X6 -> 0 | Y10: ='Preparo e Gerais'!Y6 -> 0 | Z10: ='Preparo e Gerais'!Z6 -> 0 | AA10: ='Preparo e Gerais'!AA6 -> 0 | AB10: ='Preparo e Gerais'!AB6 -> 0 | AC10: ='Preparo e Gerais'!AC6 -> 0 | AD10: ='Preparo e Gerais'!AD6 -> 0 | AE10: ='Preparo e Gerais'!AE6 -> 0 | AF10: ='Preparo e Gerais'!AF6 -> 0 | AG10: ='Preparo e Gerais'!AG6 -> 0 | AH10: ='Preparo e Gerais'!AH6 -> 0
A12: Produtos
A13: =IF(LEN('Parâmetros Gerais'!B14)=0," ",'Parâmetros Gerais'!B14) -> latex | B13: =IF(C13<>0,C13/$C$8,0) -> 0 | C13: =SUM(D13:AH13) -> 0 | E13: =latex!D7+(E10*'Rateio Custos'!D6) -> 0 | F13: =latex!E7+(F10*'Rateio Custos'!E6) -> 0 | G13: =latex!F7+(G10*'Rateio Custos'!F6) -> 0 | H13: =latex!G7+(H10*'Rateio Custos'!G6) -> 0 | I13: =latex!H7+(I10*'Rateio Custos'!H6) -> 0 | J13: =latex!I7+(J10*'Rateio Custos'!I6) -> 0 | K13: =latex!J7+(K10*'Rateio Custos'!J6) -> 0 | L13: =latex!K7+(L10*'Rateio Custos'!K6) -> 0 | M13: =latex!L7+(M10*'Rateio Custos'!L6) -> 0 | N13: =latex!M7+(N10*'Rateio Custos'!M6) -> 0 | O13: =latex!N7+(O10*'Rateio Custos'!N6) -> 0 | P13: =latex!O7+(P10*'Rateio Custos'!O6) -> 0 | Q13: =latex!P7+(Q10*'Rateio Custos'!P6) -> 0 | R13: =latex!Q7+(R10*'Rateio Custos'!Q6) -> 0 | S13: =latex!R7+(S10*'Rateio Custos'!R6) -> 0 | T13: =latex!S7+(T10*'Rateio Custos'!S6) -> 0 | U13: =latex!T7+(U10*'Rateio Custos'!T6) -> 0 | V13: =latex!U7+(V10*'Rateio Custos'!U6) -> 0 | W13: =latex!V7+(W10*'Rateio Custos'!V6) -> 0 | X13: =latex!W7+(X10*'Rateio Custos'!W6) -> 0 | Y13: =latex!X7+(Y10*'Rateio Custos'!X6) -> 0 | Z13: =latex!Y7+(Z10*'Rateio Custos'!Y6) -> 0 | AA13: =latex!Z7+(AA10*'Rateio Custos'!Z6) -> 0 | AB13: =latex!AA7+(AB10*'Rateio Custos'!AA6) -> 0 | AC13: =latex!AB7+(AC10*'Rateio Custos'!AB6) -> 0 | AD13: =latex!AC7+(AD10*'Rateio Custos'!AC6) -> 0 | AE13: =latex!AD7+(AE10*'Rateio Custos'!AD6) -> 0 | AF13: =latex!AE7+(AF10*'Rateio Custos'!AE6) -> 0 | AG13: =latex!AF7+(AG10*'Rateio Custos'!AF6) -> 0 | AH13: =latex!AG7+(AH10*'Rateio Custos'!AG6) -> 0
A14: =IF(LEN('Parâmetros Gerais'!B15)=0," ",'Parâmetros Gerais'!B15) -> fruto genipapo | B14: 0 | C14: 0 | E14: ='fruto genipapo'!D7+(E10*'Rateio Custos'!D7) -> 0 | F14: ='fruto genipapo'!E7+(F10*'Rateio Custos'!E7) -> 0 | G14: ='fruto genipapo'!F7+(G10*'Rateio Custos'!F7) -> 0 | H14: ='fruto genipapo'!G7+(H10*'Rateio Custos'!G7) -> 0 | I14: ='fruto genipapo'!H7+(I10*'Rateio Custos'!H7) -> 0 | J14: ='fruto genipapo'!I7+(J10*'Rateio Custos'!I7) -> 0 | K14: ='fruto genipapo'!J7+(K10*'Rateio Custos'!J7) -> 0 | L14: ='fruto genipapo'!K7+(L10*'Rateio Custos'!K7) -> 0 | M14: ='fruto genipapo'!L7+(M10*'Rateio Custos'!L7) -> 0 | N14: ='fruto genipapo'!M7+(N10*'Rateio Custos'!M7) -> 0 | O14: ='fruto genipapo'!N7+(O10*'Rateio Custos'!N7) -> 0 | P14: ='fruto genipapo'!O7+(P10*'Rateio Custos'!O7) -> 0 | Q14: ='fruto genipapo'!P7+(Q10*'Rateio Custos'!P7) -> 0 | R14: ='fruto genipapo'!Q7+(R10*'Rateio Custos'!Q7) -> 0 | S14: ='fruto genipapo'!R7+(S10*'Rateio Custos'!R7) -> 0 | T14: ='fruto genipapo'!S7+(T10*'Rateio Custos'!S7) -> 0 | U14: ='fruto genipapo'!T7+(U10*'Rateio Custos'!T7) -> 0 | V14: ='fruto genipapo'!U7+(V10*'Rateio Custos'!U7) -> 0 | W14: ='fruto genipapo'!V7+(W10*'Rateio Custos'!V7) -> 0 | X14: ='fruto genipapo'!W7+(X10*'Rateio Custos'!W7) -> 0 | Y14: ='fruto genipapo'!X7+(Y10*'Rateio Custos'!X7) -> 0 | Z14: ='fruto genipapo'!Y7+(Z10*'Rateio Custos'!Y7) -> 0 | AA14: ='fruto genipapo'!Z7+(AA10*'Rateio Custos'!Z7) -> 0 | AB14: ='fruto genipapo'!AA7+(AB10*'Rateio Custos'!AA7) -> 0 | AC14: ='fruto genipapo'!AB7+(AC10*'Rateio Custos'!AB7) -> 0 | AD14: ='fruto genipapo'!AC7+(AD10*'Rateio Custos'!AC7) -> 0 | AE14: ='fruto genipapo'!AD7+(AE10*'Rateio Custos'!AD7) -> 0 | AF14: ='fruto genipapo'!AE7+(AF10*'Rateio Custos'!AE7) -> 0 | AG14: ='fruto genipapo'!AF7+(AG10*'Rateio Custos'!AF7) -> 0 | AH14: ='fruto genipapo'!AG7+(AH10*'Rateio Custos'!AG7) -> 0
A15: =IF(LEN('Parâmetros Gerais'!B16)=0," ",'Parâmetros Gerais'!B16) -> fruto araçauna | B15: 0 | C15: 0 | E15: ='fruto araçauna'!D7+(E10*'Rateio Custos'!D8) -> 0 | F15: ='fruto araçauna'!E7+(F10*'Rateio Custos'!E8) -> 0 | G15: ='fruto araçauna'!F7+(G10*'Rateio Custos'!F8) -> 0 | H15: ='fruto araçauna'!G7+(H10*'Rateio Custos'!G8) -> 0 | I15: ='fruto araçauna'!H7+(I10*'Rateio Custos'!H8) -> 0 | J15: ='fruto araçauna'!I7+(J10*'Rateio Custos'!I8) -> 0 | K15: ='fruto araçauna'!J7+(K10*'Rateio Custos'!J8) -> 0 | L15: ='fruto araçauna'!K7+(L10*'Rateio Custos'!K8) -> 0 | M15: ='fruto araçauna'!L7+(M10*'Rateio Custos'!L8) -> 0 | N15: ='fruto araçauna'!M7+(N10*'Rateio Custos'!M8) -> 0 | O15: ='fruto araçauna'!N7+(O10*'Rateio Custos'!N8) -> 0 | P15: ='fruto araçauna'!O7+(P10*'Rateio Custos'!O8) -> 0 | Q15: ='fruto araçauna'!P7+(Q10*'Rateio Custos'!P8) -> 0 | R15: ='fruto araçauna'!Q7+(R10*'Rateio Custos'!Q8) -> 0 | S15: ='fruto araçauna'!R7+(S10*'Rateio Custos'!R8) -> 0 | T15: ='fruto araçauna'!S7+(T10*'Rateio Custos'!S8) -> 0 | U15: ='fruto araçauna'!T7+(U10*'Rateio Custos'!T8) -> 0 | V15: ='fruto araçauna'!U7+(V10*'Rateio Custos'!U8) -> 0 | W15: ='fruto araçauna'!V7+(W10*'Rateio Custos'!V8) -> 0 | X15: ='fruto araçauna'!W7+(X10*'Rateio Custos'!W8) -> 0 | Y15: ='fruto araçauna'!X7+(Y10*'Rateio Custos'!X8) -> 0 | Z15: ='fruto araçauna'!Y7+(Z10*'Rateio Custos'!Y8) -> 0 | AA15: ='fruto araçauna'!Z7+(AA10*'Rateio Custos'!Z8) -> 0 | AB15: ='fruto araçauna'!AA7+(AB10*'Rateio Custos'!AA8) -> 0 | AC15: ='fruto araçauna'!AB7+(AC10*'Rateio Custos'!AB8) -> 0 | AD15: ='fruto araçauna'!AC7+(AD10*'Rateio Custos'!AC8) -> 0 | AE15: ='fruto araçauna'!AD7+(AE10*'Rateio Custos'!AD8) -> 0 | AF15: ='fruto araçauna'!AE7+(AF10*'Rateio Custos'!AE8) -> 0 | AG15: ='fruto araçauna'!AF7+(AG10*'Rateio Custos'!AF8) -> 0 | AH15: ='fruto araçauna'!AG7+(AH10*'Rateio Custos'!AG8) -> 0
A16: =IF(LEN('Parâmetros Gerais'!B17)=0," ",'Parâmetros Gerais'!B17) -> fruto pitanga | B16: 0 | C16: 0 | E16: ='fruto pitanga'!D7+(E10*'Rateio Custos'!D9) -> 0 | F16: ='fruto pitanga'!E7+(F10*'Rateio Custos'!E9) -> 0 | G16: ='fruto pitanga'!F7+(G10*'Rateio Custos'!F9) -> 0 | H16: ='fruto pitanga'!G7+(H10*'Rateio Custos'!G9) -> 0 | I16: ='fruto pitanga'!H7+(I10*'Rateio Custos'!H9) -> 0 | J16: ='fruto pitanga'!I7+(J10*'Rateio Custos'!I9) -> 0 | K16: ='fruto pitanga'!J7+(K10*'Rateio Custos'!J9) -> 0 | L16: ='fruto pitanga'!K7+(L10*'Rateio Custos'!K9) -> 0 | M16: ='fruto pitanga'!L7+(M10*'Rateio Custos'!L9) -> 0 | N16: ='fruto pitanga'!M7+(N10*'Rateio Custos'!M9) -> 0 | O16: ='fruto pitanga'!N7+(O10*'Rateio Custos'!N9) -> 0 | P16: ='fruto pitanga'!O7+(P10*'Rateio Custos'!O9) -> 0 | Q16: ='fruto pitanga'!P7+(Q10*'Rateio Custos'!P9) -> 0 | R16: ='fruto pitanga'!Q7+(R10*'Rateio Custos'!Q9) -> 0 | S16: ='fruto pitanga'!R7+(S10*'Rateio Custos'!R9) -> 0 | T16: ='fruto pitanga'!S7+(T10*'Rateio Custos'!S9) -> 0 | U16: ='fruto pitanga'!T7+(U10*'Rateio Custos'!T9) -> 0 | V16: ='fruto pitanga'!U7+(V10*'Rateio Custos'!U9) -> 0 | W16: ='fruto pitanga'!V7+(W10*'Rateio Custos'!V9) -> 0 | X16: ='fruto pitanga'!W7+(X10*'Rateio Custos'!W9) -> 0 | Y16: ='fruto pitanga'!X7+(Y10*'Rateio Custos'!X9) -> 0 | Z16: ='fruto pitanga'!Y7+(Z10*'Rateio Custos'!Y9) -> 0 | AA16: ='fruto pitanga'!Z7+(AA10*'Rateio Custos'!Z9) -> 0 | AB16: ='fruto pitanga'!AA7+(AB10*'Rateio Custos'!AA9) -> 0 | AC16: ='fruto pitanga'!AB7+(AC10*'Rateio Custos'!AB9) -> 0 | AD16: ='fruto pitanga'!AC7+(AD10*'Rateio Custos'!AC9) -> 0 | AE16: ='fruto pitanga'!AD7+(AE10*'Rateio Custos'!AD9) -> 0 | AF16: ='fruto pitanga'!AE7+(AF10*'Rateio Custos'!AE9) -> 0 | AG16: ='fruto pitanga'!AF7+(AG10*'Rateio Custos'!AF9) -> 0 | AH16: ='fruto pitanga'!AG7+(AH10*'Rateio Custos'!AG9) -> 0
A17: =IF(LEN('Parâmetros Gerais'!B18)=0," ",'Parâmetros Gerais'!B18) -> castanha sapucaia | B17: 0 | C17: 0 | E17: =Castanha!D7+(E10*'Rateio Custos'!D10) -> 0 | F17: =Castanha!E7+(F10*'Rateio Custos'!E10) -> 0 | G17: =Castanha!F7+(G10*'Rateio Custos'!F10) -> 0 | H17: =Castanha!G7+(H10*'Rateio Custos'!G10) -> 0 | I17: =Castanha!H7+(I10*'Rateio Custos'!H10) -> 0 | J17: =Castanha!I7+(J10*'Rateio Custos'!I10) -> 0 | K17: =Castanha!J7+(K10*'Rateio Custos'!J10) -> 0 | L17: =Castanha!K7+(L10*'Rateio Custos'!K10) -> 0 | M17: =Castanha!L7+(M10*'Rateio Custos'!L10) -> 0 | N17: =Castanha!M7+(N10*'Rateio Custos'!M10) -> 0 | O17: =Castanha!N7+(O10*'Rateio Custos'!N10) -> 0 | P17: =Castanha!O7+(P10*'Rateio Custos'!O10) -> 0 | Q17: =Castanha!P7+(Q10*'Rateio Custos'!P10) -> 0 | R17: =Castanha!Q7+(R10*'Rateio Custos'!Q10) -> 0 | S17: =Castanha!R7+(S10*'Rateio Custos'!R10) -> 0 | T17: =Castanha!S7+(T10*'Rateio Custos'!S10) -> 0 | U17: =Castanha!T7+(U10*'Rateio Custos'!T10) -> 0 | V17: =Castanha!U7+(V10*'Rateio Custos'!U10) -> 0 | W17: =Castanha!V7+(W10*'Rateio Custos'!V10) -> 0 | X17: =Castanha!W7+(X10*'Rateio Custos'!W10) -> 0 | Y17: =Castanha!X7+(Y10*'Rateio Custos'!X10) -> 0 | Z17: =Castanha!Y7+(Z10*'Rateio Custos'!Y10) -> 0 | AA17: =Castanha!Z7+(AA10*'Rateio Custos'!Z10) -> 0 | AB17: =Castanha!AA7+(AB10*'Rateio Custos'!AA10) -> 0 | AC17: =Castanha!AB7+(AC10*'Rateio Custos'!AB10) -> 0 | AD17: =Castanha!AC7+(AD10*'Rateio Custos'!AC10) -> 0 | AE17: =Castanha!AD7+(AE10*'Rateio Custos'!AD10) -> 0 | AF17: =Castanha!AE7+(AF10*'Rateio Custos'!AE10) -> 0 | AG17: =Castanha!AF7+(AG10*'Rateio Custos'!AF10) -> 0 | AH17: =Castanha!AG7+(AH10*'Rateio Custos'!AG10) -> 0
A18: =IF(LEN('Parâmetros Gerais'!B19)=0," ",'Parâmetros Gerais'!B19) -> fruto cajá | B18: 0 | C18: =SUM(D18:AH18) -> 0 | E18: ='fruto cajá'!D7+(E10*'Rateio Custos'!D11) -> 0 | F18: ='fruto cajá'!E7+(F10*'Rateio Custos'!E11) -> 0 | G18: ='fruto cajá'!F7+(G10*'Rateio Custos'!F11) -> 0 | H18: ='fruto cajá'!G7+(H10*'Rateio Custos'!G11) -> 0 | I18: ='fruto cajá'!H7+(I10*'Rateio Custos'!H11) -> 0 | J18: ='fruto cajá'!I7+(J10*'Rateio Custos'!I11) -> 0 | K18: ='fruto cajá'!J7+(K10*'Rateio Custos'!J11) -> 0 | L18: ='fruto cajá'!K7+(L10*'Rateio Custos'!K11) -> 0 | M18: ='fruto cajá'!L7+(M10*'Rateio Custos'!L11) -> 0 | N18: ='fruto cajá'!M7+(N10*'Rateio Custos'!M11) -> 0 | O18: ='fruto cajá'!N7+(O10*'Rateio Custos'!N11) -> 0 | P18: ='fruto cajá'!O7+(P10*'Rateio Custos'!O11) -> 0 | Q18: ='fruto cajá'!P7+(Q10*'Rateio Custos'!P11) -> 0 | R18: ='fruto cajá'!Q7+(R10*'Rateio Custos'!Q11) -> 0 | S18: ='fruto cajá'!R7+(S10*'Rateio Custos'!R11) -> 0 | T18: ='fruto cajá'!S7+(T10*'Rateio Custos'!S11) -> 0 | U18: ='fruto cajá'!T7+(U10*'Rateio Custos'!T11) -> 0 | V18: ='fruto cajá'!U7+(V10*'Rateio Custos'!U11) -> 0 | W18: ='fruto cajá'!V7+(W10*'Rateio Custos'!V11) -> 0 | X18: ='fruto cajá'!W7+(X10*'Rateio Custos'!W11) -> 0 | Y18: ='fruto cajá'!X7+(Y10*'Rateio Custos'!X11) -> 0 | Z18: ='fruto cajá'!Y7+(Z10*'Rateio Custos'!Y11) -> 0 | AA18: ='fruto cajá'!Z7+(AA10*'Rateio Custos'!Z11) -> 0 | AB18: ='fruto cajá'!AA7+(AB10*'Rateio Custos'!AA11) -> 0 | AC18: ='fruto cajá'!AB7+(AC10*'Rateio Custos'!AB11) -> 0 | AD18: ='fruto cajá'!AC7+(AD10*'Rateio Custos'!AC11) -> 0 | AE18: ='fruto cajá'!AD7+(AE10*'Rateio Custos'!AD11) -> 0 | AF18: ='fruto cajá'!AE7+(AF10*'Rateio Custos'!AE11) -> 0 | AG18: ='fruto cajá'!AF7+(AG10*'Rateio Custos'!AF11) -> 0 | AH18: ='fruto cajá'!AG7+(AH10*'Rateio Custos'!AG11) -> 0
A19: =IF(LEN('Parâmetros Gerais'!B20)=0," ",'Parâmetros Gerais'!B20) -> semente urucum | B19: 0 | C19: 0 | E19: ='semente urucum'!D7+(E10*'Rateio Custos'!D12) -> 0 | F19: ='semente urucum'!E7+(F10*'Rateio Custos'!E12) -> 0 | G19: ='semente urucum'!F7+(G10*'Rateio Custos'!F12) -> 0 | H19: ='semente urucum'!G7+(H10*'Rateio Custos'!G12) -> 0 | I19: ='semente urucum'!H7+(I10*'Rateio Custos'!H12) -> 0 | J19: ='semente urucum'!I7+(J10*'Rateio Custos'!I12) -> 0 | K19: ='semente urucum'!J7+(K10*'Rateio Custos'!J12) -> 0 | L19: ='semente urucum'!K7+(L10*'Rateio Custos'!K12) -> 0 | M19: ='semente urucum'!L7+(M10*'Rateio Custos'!L12) -> 0 | N19: ='semente urucum'!M7+(N10*'Rateio Custos'!M12) -> 0 | O19: ='semente urucum'!N7+(O10*'Rateio Custos'!N12) -> 0 | P19: ='semente urucum'!O7+(P10*'Rateio Custos'!O12) -> 0 | Q19: ='semente urucum'!P7+(Q10*'Rateio Custos'!P12) -> 0 | R19: ='semente urucum'!Q7+(R10*'Rateio Custos'!Q12) -> 0 | S19: ='semente urucum'!R7+(S10*'Rateio Custos'!R12) -> 0 | T19: ='semente urucum'!S7+(T10*'Rateio Custos'!S12) -> 0 | U19: ='semente urucum'!T7+(U10*'Rateio Custos'!T12) -> 0 | V19: ='semente urucum'!U7+(V10*'Rateio Custos'!U12) -> 0 | W19: ='semente urucum'!V7+(W10*'Rateio Custos'!V12) -> 0 | X19: ='semente urucum'!W7+(X10*'Rateio Custos'!W12) -> 0 | Y19: ='semente urucum'!X7+(Y10*'Rateio Custos'!X12) -> 0 | Z19: ='semente urucum'!Y7+(Z10*'Rateio Custos'!Y12) -> 0 | AA19: ='semente urucum'!Z7+(AA10*'Rateio Custos'!Z12) -> 0 | AB19: ='semente urucum'!AA7+(AB10*'Rateio Custos'!AA12) -> 0 | AC19: ='semente urucum'!AB7+(AC10*'Rateio Custos'!AB12) -> 0 | AD19: ='semente urucum'!AC7+(AD10*'Rateio Custos'!AC12) -> 0 | AE19: ='semente urucum'!AD7+(AE10*'Rateio Custos'!AD12) -> 0 | AF19: ='semente urucum'!AE7+(AF10*'Rateio Custos'!AE12) -> 0 | AG19: ='semente urucum'!AF7+(AG10*'Rateio Custos'!AF12) -> 0 | AH19: ='semente urucum'!AG7+(AH10*'Rateio Custos'!AG12) -> 0
A20: =IF(LEN('Parâmetros Gerais'!B21)=0," ",'Parâmetros Gerais'!B21) -> semente aroeira | B20: 0 | C20: 0 | E20: ='semente aroeira'!D7+(E10*'Rateio Custos'!D13) -> 0 | F20: ='semente aroeira'!E7+(F10*'Rateio Custos'!E13) -> 0 | G20: ='semente aroeira'!F7+(G10*'Rateio Custos'!F13) -> 0 | H20: ='semente aroeira'!G7+(H10*'Rateio Custos'!G13) -> 0 | I20: ='semente aroeira'!H7+(I10*'Rateio Custos'!H13) -> 0 | J20: ='semente aroeira'!I7+(J10*'Rateio Custos'!I13) -> 0 | K20: ='semente aroeira'!J7+(K10*'Rateio Custos'!J13) -> 0 | L20: ='semente aroeira'!K7+(L10*'Rateio Custos'!K13) -> 0 | M20: ='semente aroeira'!L7+(M10*'Rateio Custos'!L13) -> 0 | N20: ='semente aroeira'!M7+(N10*'Rateio Custos'!M13) -> 0 | O20: ='semente aroeira'!N7+(O10*'Rateio Custos'!N13) -> 0 | P20: ='semente aroeira'!O7+(P10*'Rateio Custos'!O13) -> 0 | Q20: ='semente aroeira'!P7+(Q10*'Rateio Custos'!P13) -> 0 | R20: ='semente aroeira'!Q7+(R10*'Rateio Custos'!Q13) -> 0 | S20: ='semente aroeira'!R7+(S10*'Rateio Custos'!R13) -> 0 | T20: ='semente aroeira'!S7+(T10*'Rateio Custos'!S13) -> 0 | U20: ='semente aroeira'!T7+(U10*'Rateio Custos'!T13) -> 0 | V20: ='semente aroeira'!U7+(V10*'Rateio Custos'!U13) -> 0 | W20: ='semente aroeira'!V7+(W10*'Rateio Custos'!V13) -> 0 | X20: ='semente aroeira'!W7+(X10*'Rateio Custos'!W13) -> 0 | Y20: ='semente aroeira'!X7+(Y10*'Rateio Custos'!X13) -> 0 | Z20: ='semente aroeira'!Y7+(Z10*'Rateio Custos'!Y13) -> 0 | AA20: ='semente aroeira'!Z7+(AA10*'Rateio Custos'!Z13) -> 0 | AB20: ='semente aroeira'!AA7+(AB10*'Rateio Custos'!AA13) -> 0 | AC20: ='semente aroeira'!AB7+(AC10*'Rateio Custos'!AB13) -> 0 | AD20: ='semente aroeira'!AC7+(AD10*'Rateio Custos'!AC13) -> 0 | AE20: ='semente aroeira'!AD7+(AE10*'Rateio Custos'!AD13) -> 0 | AF20: ='semente aroeira'!AE7+(AF10*'Rateio Custos'!AE13) -> 0 | AG20: ='semente aroeira'!AF7+(AG10*'Rateio Custos'!AF13) -> 0 | AH20: ='semente aroeira'!AG7+(AH10*'Rateio Custos'!AG13) -> 0
A21: =IF(LEN('Parâmetros Gerais'!B22)=0," ",'Parâmetros Gerais'!B22) -> raiz mandioca | B21: 0 | C21: 0 | E21: ='raiz mandioca'!D7+(E10*'Rateio Custos'!D14) -> 0 | F21: ='raiz mandioca'!E7+(F10*'Rateio Custos'!E14) -> 0 | G21: ='raiz mandioca'!F7+(G10*'Rateio Custos'!F14) -> 0 | H21: ='raiz mandioca'!G7+(H10*'Rateio Custos'!G14) -> 0 | I21: ='raiz mandioca'!H7+(I10*'Rateio Custos'!H14) -> 0 | J21: ='raiz mandioca'!I7+(J10*'Rateio Custos'!I14) -> 0 | K21: ='raiz mandioca'!J7+(K10*'Rateio Custos'!J14) -> 0 | L21: ='raiz mandioca'!K7+(L10*'Rateio Custos'!K14) -> 0 | M21: ='raiz mandioca'!L7+(M10*'Rateio Custos'!L14) -> 0 | N21: ='raiz mandioca'!M7+(N10*'Rateio Custos'!M14) -> 0 | O21: ='raiz mandioca'!N7+(O10*'Rateio Custos'!N14) -> 0 | P21: ='raiz mandioca'!O7+(P10*'Rateio Custos'!O14) -> 0 | Q21: ='raiz mandioca'!P7+(Q10*'Rateio Custos'!P14) -> 0 | R21: ='raiz mandioca'!Q7+(R10*'Rateio Custos'!Q14) -> 0 | S21: ='raiz mandioca'!R7+(S10*'Rateio Custos'!R14) -> 0 | T21: ='raiz mandioca'!S7+(T10*'Rateio Custos'!S14) -> 0 | U21: ='raiz mandioca'!T7+(U10*'Rateio Custos'!T14) -> 0 | V21: ='raiz mandioca'!U7+(V10*'Rateio Custos'!U14) -> 0 | W21: ='raiz mandioca'!V7+(W10*'Rateio Custos'!V14) -> 0 | X21: ='raiz mandioca'!W7+(X10*'Rateio Custos'!W14) -> 0 | Y21: ='raiz mandioca'!X7+(Y10*'Rateio Custos'!X14) -> 0 | Z21: ='raiz mandioca'!Y7+(Z10*'Rateio Custos'!Y14) -> 0 | AA21: ='raiz mandioca'!Z7+(AA10*'Rateio Custos'!Z14) -> 0 | AB21: ='raiz mandioca'!AA7+(AB10*'Rateio Custos'!AA14) -> 0 | AC21: ='raiz mandioca'!AB7+(AC10*'Rateio Custos'!AB14) -> 0 | AD21: ='raiz mandioca'!AC7+(AD10*'Rateio Custos'!AC14) -> 0 | AE21: ='raiz mandioca'!AD7+(AE10*'Rateio Custos'!AD14) -> 0 | AF21: ='raiz mandioca'!AE7+(AF10*'Rateio Custos'!AE14) -> 0 | AG21: ='raiz mandioca'!AF7+(AG10*'Rateio Custos'!AF14) -> 0 | AH21: ='raiz mandioca'!AG7+(AH10*'Rateio Custos'!AG14) -> 0
A22: =IF(LEN('Parâmetros Gerais'!B23)=0," ",'Parâmetros Gerais'!B23) -> fruto abacaxi | B22: =IF(C22<>0,C22/$C$8,0) -> 0 | C22: =SUM(D22:AH22) -> 0 | E22: =abacaxi!D7+(E10*'Rateio Custos'!D15) -> 0 | F22: =abacaxi!E7+(F10*'Rateio Custos'!E15) -> 0 | G22: =abacaxi!F7+(G10*'Rateio Custos'!F15) -> 0 | H22: =abacaxi!G7+(H10*'Rateio Custos'!G15) -> 0 | I22: =abacaxi!H7+(I10*'Rateio Custos'!H15) -> 0 | J22: =abacaxi!I7+(J10*'Rateio Custos'!I15) -> 0 | K22: =abacaxi!J7+(K10*'Rateio Custos'!J15) -> 0 | L22: =abacaxi!K7+(L10*'Rateio Custos'!K15) -> 0 | M22: =abacaxi!L7+(M10*'Rateio Custos'!L15) -> 0 | N22: =abacaxi!M7+(N10*'Rateio Custos'!M15) -> 0 | O22: =abacaxi!N7+(O10*'Rateio Custos'!N15) -> 0 | P22: =abacaxi!O7+(P10*'Rateio Custos'!O15) -> 0 | Q22: =abacaxi!P7+(Q10*'Rateio Custos'!P15) -> 0 | R22: =abacaxi!Q7+(R10*'Rateio Custos'!Q15) -> 0 | S22: =abacaxi!R7+(S10*'Rateio Custos'!R15) -> 0 | T22: =abacaxi!S7+(T10*'Rateio Custos'!S15) -> 0 | U22: =abacaxi!T7+(U10*'Rateio Custos'!T15) -> 0 | V22: =abacaxi!U7+(V10*'Rateio Custos'!U15) -> 0 | W22: =abacaxi!V7+(W10*'Rateio Custos'!V15) -> 0 | X22: =abacaxi!W7+(X10*'Rateio Custos'!W15) -> 0 | Y22: =abacaxi!X7+(Y10*'Rateio Custos'!X15) -> 0 | Z22: =abacaxi!Y7+(Z10*'Rateio Custos'!Y15) -> 0 | AA22: =abacaxi!Z7+(AA10*'Rateio Custos'!Z15) -> 0 | AB22: =abacaxi!AA7+(AB10*'Rateio Custos'!AA15) -> 0 | AC22: =abacaxi!AB7+(AC10*'Rateio Custos'!AB15) -> 0 | AD22: =abacaxi!AC7+(AD10*'Rateio Custos'!AC15) -> 0 | AE22: =abacaxi!AD7+(AE10*'Rateio Custos'!AD15) -> 0 | AF22: =abacaxi!AE7+(AF10*'Rateio Custos'!AE15) -> 0 | AG22: =abacaxi!AF7+(AG10*'Rateio Custos'!AF15) -> 0 | AH22: =abacaxi!AG7+(AH10*'Rateio Custos'!AG15) -> 0
A23: =IF(LEN('Parâmetros Gerais'!B24)=0," ",'Parâmetros Gerais'!B24) -> espigas milho | B23: 0 | C23: 0 | E23: =espigas!D7+(E10*'Rateio Custos'!D16) -> 0 | F23: =espigas!E7+(F10*'Rateio Custos'!E16) -> 0 | G23: =espigas!F7+(G10*'Rateio Custos'!F16) -> 0 | H23: =espigas!G7+(H10*'Rateio Custos'!G16) -> 0 | I23: =espigas!H7+(I10*'Rateio Custos'!H16) -> 0 | J23: =espigas!I7+(J10*'Rateio Custos'!I16) -> 0 | K23: =espigas!J7+(K10*'Rateio Custos'!J16) -> 0 | L23: =espigas!K7+(L10*'Rateio Custos'!K16) -> 0 | M23: =espigas!L7+(M10*'Rateio Custos'!L16) -> 0 | N23: =espigas!M7+(N10*'Rateio Custos'!M16) -> 0 | O23: =espigas!N7+(O10*'Rateio Custos'!N16) -> 0 | P23: =espigas!O7+(P10*'Rateio Custos'!O16) -> 0 | Q23: =espigas!P7+(Q10*'Rateio Custos'!P16) -> 0 | R23: =espigas!Q7+(R10*'Rateio Custos'!Q16) -> 0 | S23: =espigas!R7+(S10*'Rateio Custos'!R16) -> 0 | T23: =espigas!S7+(T10*'Rateio Custos'!S16) -> 0 | U23: =espigas!T7+(U10*'Rateio Custos'!T16) -> 0 | V23: =espigas!U7+(V10*'Rateio Custos'!U16) -> 0 | W23: =espigas!V7+(W10*'Rateio Custos'!V16) -> 0 | X23: =espigas!W7+(X10*'Rateio Custos'!W16) -> 0 | Y23: =espigas!X7+(Y10*'Rateio Custos'!X16) -> 0 | Z23: =espigas!Y7+(Z10*'Rateio Custos'!Y16) -> 0 | AA23: =espigas!Z7+(AA10*'Rateio Custos'!Z16) -> 0 | AB23: =espigas!AA7+(AB10*'Rateio Custos'!AA16) -> 0 | AC23: =espigas!AB7+(AC10*'Rateio Custos'!AB16) -> 0 | AD23: =espigas!AC7+(AD10*'Rateio Custos'!AC16) -> 0 | AE23: =espigas!AD7+(AE10*'Rateio Custos'!AD16) -> 0 | AF23: =espigas!AE7+(AF10*'Rateio Custos'!AE16) -> 0 | AG23: =espigas!AF7+(AG10*'Rateio Custos'!AF16) -> 0 | AH23: =espigas!AG7+(AH10*'Rateio Custos'!AG16) -> 0
A24: =IF(LEN('Parâmetros Gerais'!B25)=0," ",'Parâmetros Gerais'!B25) -> estaca sansão do campo | B24: 0 | C24: 0 | E24: ='semente caupi'!D7+(E10*'Rateio Custos'!D17) -> 0 | F24: ='semente caupi'!E7+(F10*'Rateio Custos'!E17) -> 0 | G24: ='semente caupi'!F7+(G10*'Rateio Custos'!F17) -> 0 | H24: ='semente caupi'!G7+(H10*'Rateio Custos'!G17) -> 0 | I24: ='semente caupi'!H7+(I10*'Rateio Custos'!H17) -> 0 | J24: ='semente caupi'!I7+(J10*'Rateio Custos'!I17) -> 0 | K24: ='semente caupi'!J7+(K10*'Rateio Custos'!J17) -> 0 | L24: ='semente caupi'!K7+(L10*'Rateio Custos'!K17) -> 0 | M24: ='semente caupi'!L7+(M10*'Rateio Custos'!L17) -> 0 | N24: ='semente caupi'!M7+(N10*'Rateio Custos'!M17) -> 0 | O24: ='semente caupi'!N7+(O10*'Rateio Custos'!N17) -> 0 | P24: ='semente caupi'!O7+(P10*'Rateio Custos'!O17) -> 0 | Q24: ='semente caupi'!P7+(Q10*'Rateio Custos'!P17) -> 0 | R24: ='semente caupi'!Q7+(R10*'Rateio Custos'!Q17) -> 0 | S24: ='semente caupi'!R7+(S10*'Rateio Custos'!R17) -> 0 | T24: ='semente caupi'!S7+(T10*'Rateio Custos'!S17) -> 0 | U24: ='semente caupi'!T7+(U10*'Rateio Custos'!T17) -> 0 | V24: ='semente caupi'!U7+(V10*'Rateio Custos'!U17) -> 0 | W24: ='semente caupi'!V7+(W10*'Rateio Custos'!V17) -> 0 | X24: ='semente caupi'!W7+(X10*'Rateio Custos'!W17) -> 0 | Y24: ='semente caupi'!X7+(Y10*'Rateio Custos'!X17) -> 0 | Z24: ='semente caupi'!Y7+(Z10*'Rateio Custos'!Y17) -> 0 | AA24: ='semente caupi'!Z7+(AA10*'Rateio Custos'!Z17) -> 0 | AB24: ='semente caupi'!AA7+(AB10*'Rateio Custos'!AA17) -> 0 | AC24: ='semente caupi'!AB7+(AC10*'Rateio Custos'!AB17) -> 0 | AD24: ='semente caupi'!AC7+(AD10*'Rateio Custos'!AC17) -> 0 | AE24: ='semente caupi'!AD7+(AE10*'Rateio Custos'!AD17) -> 0 | AF24: ='semente caupi'!AE7+(AF10*'Rateio Custos'!AE17) -> 0 | AG24: ='semente caupi'!AF7+(AG10*'Rateio Custos'!AF17) -> 0 | AH24: ='semente caupi'!AG7+(AH10*'Rateio Custos'!AG17) -> 0
A25: =IF(LEN('Parâmetros Gerais'!B26)=0," ",'Parâmetros Gerais'!B26) -> madeira madeira nova | B25: 0 | C25: 0 | E25: =biomassa!D7+(E10*'Rateio Custos'!D18) -> 0 | F25: =biomassa!E7+(F10*'Rateio Custos'!E18) -> 0 | G25: =biomassa!F7+(G10*'Rateio Custos'!F18) -> 0 | H25: =biomassa!G7+(H10*'Rateio Custos'!G18) -> 0 | I25: =biomassa!H7+(I10*'Rateio Custos'!H18) -> 0 | J25: =biomassa!I7+(J10*'Rateio Custos'!I18) -> 0 | K25: =biomassa!J7+(K10*'Rateio Custos'!J18) -> 0 | L25: =biomassa!K7+(L10*'Rateio Custos'!K18) -> 0 | M25: =biomassa!L7+(M10*'Rateio Custos'!L18) -> 0 | N25: =biomassa!M7+(N10*'Rateio Custos'!M18) -> 0 | O25: =biomassa!N7+(O10*'Rateio Custos'!N18) -> 0 | P25: =biomassa!O7+(P10*'Rateio Custos'!O18) -> 0 | Q25: =biomassa!P7+(Q10*'Rateio Custos'!P18) -> 0 | R25: =biomassa!Q7+(R10*'Rateio Custos'!Q18) -> 0 | S25: =biomassa!R7+(S10*'Rateio Custos'!R18) -> 0 | T25: =biomassa!S7+(T10*'Rateio Custos'!S18) -> 0 | U25: =biomassa!T7+(U10*'Rateio Custos'!T18) -> 0 | V25: =biomassa!U7+(V10*'Rateio Custos'!U18) -> 0 | W25: =biomassa!V7+(W10*'Rateio Custos'!V18) -> 0 | X25: =biomassa!W7+(X10*'Rateio Custos'!W18) -> 0 | Y25: =biomassa!X7+(Y10*'Rateio Custos'!X18) -> 0 | Z25: =biomassa!Y7+(Z10*'Rateio Custos'!Y18) -> 0 | AA25: =biomassa!Z7+(AA10*'Rateio Custos'!Z18) -> 0 | AB25: =biomassa!AA7+(AB10*'Rateio Custos'!AA18) -> 0 | AC25: =biomassa!AB7+(AC10*'Rateio Custos'!AB18) -> 0 | AD25: =biomassa!AC7+(AD10*'Rateio Custos'!AC18) -> 0 | AE25: =biomassa!AD7+(AE10*'Rateio Custos'!AD18) -> 0 | AF25: =biomassa!AE7+(AF10*'Rateio Custos'!AE18) -> 0 | AG25: =biomassa!AF7+(AG10*'Rateio Custos'!AF18) -> 0 | AH25: =biomassa!AG7+(AH10*'Rateio Custos'!AG18) -> 0
A26: =IF(LEN('Parâmetros Gerais'!B27)=0," ",'Parâmetros Gerais'!B27) -> lenha fedegoso | B26: 0 | C26: 0 | E26: =madeira!D7+(E10*'Rateio Custos'!D19) -> 0 | F26: =madeira!E7+(F10*'Rateio Custos'!E19) -> 0 | G26: =madeira!F7+(G10*'Rateio Custos'!F19) -> 0 | H26: =madeira!G7+(H10*'Rateio Custos'!G19) -> 0 | I26: =madeira!H7+(I10*'Rateio Custos'!H19) -> 0 | J26: =madeira!I7+(J10*'Rateio Custos'!I19) -> 0 | K26: =madeira!J7+(K10*'Rateio Custos'!J19) -> 0 | L26: =madeira!K7+(L10*'Rateio Custos'!K19) -> 0 | M26: =madeira!L7+(M10*'Rateio Custos'!L19) -> 0 | N26: =madeira!M7+(N10*'Rateio Custos'!M19) -> 0 | O26: =madeira!N7+(O10*'Rateio Custos'!N19) -> 0 | P26: =madeira!O7+(P10*'Rateio Custos'!O19) -> 0 | Q26: =madeira!P7+(Q10*'Rateio Custos'!P19) -> 0 | R26: =madeira!Q7+(R10*'Rateio Custos'!Q19) -> 0 | S26: =madeira!R7+(S10*'Rateio Custos'!R19) -> 0 | T26: =madeira!S7+(T10*'Rateio Custos'!S19) -> 0 | U26: =madeira!T7+(U10*'Rateio Custos'!T19) -> 0 | V26: =madeira!U7+(V10*'Rateio Custos'!U19) -> 0 | W26: =madeira!V7+(W10*'Rateio Custos'!V19) -> 0 | X26: =madeira!W7+(X10*'Rateio Custos'!W19) -> 0 | Y26: =madeira!X7+(Y10*'Rateio Custos'!X19) -> 0 | Z26: =madeira!Y7+(Z10*'Rateio Custos'!Y19) -> 0 | AA26: =madeira!Z7+(AA10*'Rateio Custos'!Z19) -> 0 | AB26: =madeira!AA7+(AB10*'Rateio Custos'!AA19) -> 0 | AC26: =madeira!AB7+(AC10*'Rateio Custos'!AB19) -> 0 | AD26: =madeira!AC7+(AD10*'Rateio Custos'!AC19) -> 0 | AE26: =madeira!AD7+(AE10*'Rateio Custos'!AD19) -> 0 | AF26: =madeira!AE7+(AF10*'Rateio Custos'!AE19) -> 0 | AG26: =madeira!AF7+(AG10*'Rateio Custos'!AF19) -> 0 | AH26: =madeira!AG7+(AH10*'Rateio Custos'!AG19) -> 0
A27: =IF(LEN('Parâmetros Gerais'!B28)=0," ",'Parâmetros Gerais'!B28) -> estaca pau d'alho | B27: 0 | C27: 0 | E27: ='Produto 15'!D7+(E10*'Rateio Custos'!D20) -> 0 | F27: ='Produto 15'!E7+(F10*'Rateio Custos'!E20) -> 0 | G27: ='Produto 15'!F7+(G10*'Rateio Custos'!F20) -> 0 | H27: ='Produto 15'!G7+(H10*'Rateio Custos'!G20) -> 0 | I27: ='Produto 15'!H7+(I10*'Rateio Custos'!H20) -> 0 | J27: ='Produto 15'!I7+(J10*'Rateio Custos'!I20) -> 0 | K27: ='Produto 15'!J7+(K10*'Rateio Custos'!J20) -> 0 | L27: ='Produto 15'!K7+(L10*'Rateio Custos'!K20) -> 0 | M27: ='Produto 15'!L7+(M10*'Rateio Custos'!L20) -> 0 | N27: ='Produto 15'!M7+(N10*'Rateio Custos'!M20) -> 0 | O27: ='Produto 15'!N7+(O10*'Rateio Custos'!N20) -> 0 | P27: ='Produto 15'!O7+(P10*'Rateio Custos'!O20) -> 0 | Q27: ='Produto 15'!P7+(Q10*'Rateio Custos'!P20) -> 0 | R27: ='Produto 15'!Q7+(R10*'Rateio Custos'!Q20) -> 0 | S27: ='Produto 15'!R7+(S10*'Rateio Custos'!R20) -> 0 | T27: ='Produto 15'!S7+(T10*'Rateio Custos'!S20) -> 0 | U27: ='Produto 15'!T7+(U10*'Rateio Custos'!T20) -> 0 | V27: ='Produto 15'!U7+(V10*'Rateio Custos'!U20) -> 0 | W27: ='Produto 15'!V7+(W10*'Rateio Custos'!V20) -> 0 | X27: ='Produto 15'!W7+(X10*'Rateio Custos'!W20) -> 0 | Y27: ='Produto 15'!X7+(Y10*'Rateio Custos'!X20) -> 0 | Z27: ='Produto 15'!Y7+(Z10*'Rateio Custos'!Y20) -> 0 | AA27: ='Produto 15'!Z7+(AA10*'Rateio Custos'!Z20) -> 0 | AB27: ='Produto 15'!AA7+(AB10*'Rateio Custos'!AA20) -> 0 | AC27: ='Produto 15'!AB7+(AC10*'Rateio Custos'!AB20) -> 0 | AD27: ='Produto 15'!AC7+(AD10*'Rateio Custos'!AC20) -> 0 | AE27: ='Produto 15'!AD7+(AE10*'Rateio Custos'!AD20) -> 0 | AF27: ='Produto 15'!AE7+(AF10*'Rateio Custos'!AE20) -> 0 | AG27: ='Produto 15'!AF7+(AG10*'Rateio Custos'!AF20) -> 0 | AH27: ='Produto 15'!AG7+(AH10*'Rateio Custos'!AG20) -> 0
A28: =IF(LEN('Parâmetros Gerais'!B29)=0," ",'Parâmetros Gerais'!B29) -> caixotaria boleira | B28: 0 | C28: 0 | E28: ='Produto 16'!D7+(E10*'Rateio Custos'!D21) -> 0 | F28: ='Produto 16'!E7+(F10*'Rateio Custos'!E21) -> 0 | G28: ='Produto 16'!F7+(G10*'Rateio Custos'!F21) -> 0 | H28: ='Produto 16'!G7+(H10*'Rateio Custos'!G21) -> 0 | I28: ='Produto 16'!H7+(I10*'Rateio Custos'!H21) -> 0 | J28: ='Produto 16'!I7+(J10*'Rateio Custos'!I21) -> 0 | K28: ='Produto 16'!J7+(K10*'Rateio Custos'!J21) -> 0 | L28: ='Produto 16'!K7+(L10*'Rateio Custos'!K21) -> 0 | M28: ='Produto 16'!L7+(M10*'Rateio Custos'!L21) -> 0 | N28: ='Produto 16'!M7+(N10*'Rateio Custos'!M21) -> 0 | O28: ='Produto 16'!N7+(O10*'Rateio Custos'!N21) -> 0 | P28: ='Produto 16'!O7+(P10*'Rateio Custos'!O21) -> 0 | Q28: ='Produto 16'!P7+(Q10*'Rateio Custos'!P21) -> 0 | R28: ='Produto 16'!Q7+(R10*'Rateio Custos'!Q21) -> 0 | S28: ='Produto 16'!R7+(S10*'Rateio Custos'!R21) -> 0 | T28: ='Produto 16'!S7+(T10*'Rateio Custos'!S21) -> 0 | U28: ='Produto 16'!T7+(U10*'Rateio Custos'!T21) -> 0 | V28: ='Produto 16'!U7+(V10*'Rateio Custos'!U21) -> 0 | W28: ='Produto 16'!V7+(W10*'Rateio Custos'!V21) -> 0 | X28: ='Produto 16'!W7+(X10*'Rateio Custos'!W21) -> 0 | Y28: ='Produto 16'!X7+(Y10*'Rateio Custos'!X21) -> 0 | Z28: ='Produto 16'!Y7+(Z10*'Rateio Custos'!Y21) -> 0 | AA28: ='Produto 16'!Z7+(AA10*'Rateio Custos'!Z21) -> 0 | AB28: ='Produto 16'!AA7+(AB10*'Rateio Custos'!AA21) -> 0 | AC28: ='Produto 16'!AB7+(AC10*'Rateio Custos'!AB21) -> 0 | AD28: ='Produto 16'!AC7+(AD10*'Rateio Custos'!AC21) -> 0 | AE28: ='Produto 16'!AD7+(AE10*'Rateio Custos'!AD21) -> 0 | AF28: ='Produto 16'!AE7+(AF10*'Rateio Custos'!AE21) -> 0 | AG28: ='Produto 16'!AF7+(AG10*'Rateio Custos'!AF21) -> 0 | AH28: ='Produto 16'!AG7+(AH10*'Rateio Custos'!AG21) -> 0
A29: =IF(LEN('Parâmetros Gerais'!B30)=0," ",'Parâmetros Gerais'!B30) -> madeira angico roxo | B29: =IF(C29<>0,C29/$C$8,0) -> 0 | C29: =SUM(D29:AH29) -> 0 | E29: ='Produto 17'!D7+(E10*'Rateio Custos'!D22) -> 0 | F29: ='Produto 17'!E7+(F10*'Rateio Custos'!E22) -> 0 | G29: ='Produto 17'!F7+(G10*'Rateio Custos'!F22) -> 0 | H29: ='Produto 17'!G7+(H10*'Rateio Custos'!G22) -> 0 | I29: ='Produto 17'!H7+(I10*'Rateio Custos'!H22) -> 0 | J29: ='Produto 17'!I7+(J10*'Rateio Custos'!I22) -> 0 | K29: ='Produto 17'!J7+(K10*'Rateio Custos'!J22) -> 0 | L29: ='Produto 17'!K7+(L10*'Rateio Custos'!K22) -> 0 | M29: ='Produto 17'!L7+(M10*'Rateio Custos'!L22) -> 0 | N29: ='Produto 17'!M7+(N10*'Rateio Custos'!M22) -> 0 | O29: ='Produto 17'!N7+(O10*'Rateio Custos'!N22) -> 0 | P29: ='Produto 17'!O7+(P10*'Rateio Custos'!O22) -> 0 | Q29: ='Produto 17'!P7+(Q10*'Rateio Custos'!P22) -> 0 | R29: ='Produto 17'!Q7+(R10*'Rateio Custos'!Q22) -> 0 | S29: ='Produto 17'!R7+(S10*'Rateio Custos'!R22) -> 0 | T29: ='Produto 17'!S7+(T10*'Rateio Custos'!S22) -> 0 | U29: ='Produto 17'!T7+(U10*'Rateio Custos'!T22) -> 0 | V29: ='Produto 17'!U7+(V10*'Rateio Custos'!U22) -> 0 | W29: ='Produto 17'!V7+(W10*'Rateio Custos'!V22) -> 0 | X29: ='Produto 17'!W7+(X10*'Rateio Custos'!W22) -> 0 | Y29: ='Produto 17'!X7+(Y10*'Rateio Custos'!X22) -> 0 | Z29: ='Produto 17'!Y7+(Z10*'Rateio Custos'!Y22) -> 0 | AA29: ='Produto 17'!Z7+(AA10*'Rateio Custos'!Z22) -> 0 | AB29: ='Produto 17'!AA7+(AB10*'Rateio Custos'!AA22) -> 0 | AC29: ='Produto 17'!AB7+(AC10*'Rateio Custos'!AB22) -> 0 | AD29: ='Produto 17'!AC7+(AD10*'Rateio Custos'!AC22) -> 0 | AE29: ='Produto 17'!AD7+(AE10*'Rateio Custos'!AD22) -> 0 | AF29: ='Produto 17'!AE7+(AF10*'Rateio Custos'!AE22) -> 0 | AG29: ='Produto 17'!AF7+(AG10*'Rateio Custos'!AF22) -> 0 | AH29: ='Produto 17'!AG7+(AH10*'Rateio Custos'!AG22) -> 0
A30: =IF(LEN('Parâmetros Gerais'!B31)=0," ",'Parâmetros Gerais'!B31) -> madeira ipê roxo | B30: 0 | C30: 0 | E30: ='Produto 18'!D7+(E10*'Rateio Custos'!D23) -> 0 | F30: ='Produto 18'!E7+(F10*'Rateio Custos'!E23) -> 0 | G30: ='Produto 18'!F7+(G10*'Rateio Custos'!F23) -> 0 | H30: ='Produto 18'!G7+(H10*'Rateio Custos'!G23) -> 0 | I30: ='Produto 18'!H7+(I10*'Rateio Custos'!H23) -> 0 | J30: ='Produto 18'!I7+(J10*'Rateio Custos'!I23) -> 0 | K30: ='Produto 18'!J7+(K10*'Rateio Custos'!J23) -> 0 | L30: ='Produto 18'!K7+(L10*'Rateio Custos'!K23) -> 0 | M30: ='Produto 18'!L7+(M10*'Rateio Custos'!L23) -> 0 | N30: ='Produto 18'!M7+(N10*'Rateio Custos'!M23) -> 0 | O30: ='Produto 18'!N7+(O10*'Rateio Custos'!N23) -> 0 | P30: ='Produto 18'!O7+(P10*'Rateio Custos'!O23) -> 0 | Q30: ='Produto 18'!P7+(Q10*'Rateio Custos'!P23) -> 0 | R30: ='Produto 18'!Q7+(R10*'Rateio Custos'!Q23) -> 0 | S30: ='Produto 18'!R7+(S10*'Rateio Custos'!R23) -> 0 | T30: ='Produto 18'!S7+(T10*'Rateio Custos'!S23) -> 0 | U30: ='Produto 18'!T7+(U10*'Rateio Custos'!T23) -> 0 | V30: ='Produto 18'!U7+(V10*'Rateio Custos'!U23) -> 0 | W30: ='Produto 18'!V7+(W10*'Rateio Custos'!V23) -> 0 | X30: ='Produto 18'!W7+(X10*'Rateio Custos'!W23) -> 0 | Y30: ='Produto 18'!X7+(Y10*'Rateio Custos'!X23) -> 0 | Z30: ='Produto 18'!Y7+(Z10*'Rateio Custos'!Y23) -> 0 | AA30: ='Produto 18'!Z7+(AA10*'Rateio Custos'!Z23) -> 0 | AB30: ='Produto 18'!AA7+(AB10*'Rateio Custos'!AA23) -> 0 | AC30: ='Produto 18'!AB7+(AC10*'Rateio Custos'!AB23) -> 0 | AD30: ='Produto 18'!AC7+(AD10*'Rateio Custos'!AC23) -> 0 | AE30: ='Produto 18'!AD7+(AE10*'Rateio Custos'!AD23) -> 0 | AF30: ='Produto 18'!AE7+(AF10*'Rateio Custos'!AE23) -> 0 | AG30: ='Produto 18'!AF7+(AG10*'Rateio Custos'!AF23) -> 0 | AH30: ='Produto 18'!AG7+(AH10*'Rateio Custos'!AG23) -> 0
A31: =IF(LEN('Parâmetros Gerais'!B32)=0," ",'Parâmetros Gerais'!B32) -> madeira ipê amarelo | B31: 0 | C31: 0 | E31: ='Produto 19'!D7+(E10*'Rateio Custos'!D24) -> 0 | F31: ='Produto 19'!E7+(F10*'Rateio Custos'!E24) -> 0 | G31: ='Produto 19'!F7+(G10*'Rateio Custos'!F24) -> 0 | H31: ='Produto 19'!G7+(H10*'Rateio Custos'!G24) -> 0 | I31: ='Produto 19'!H7+(I10*'Rateio Custos'!H24) -> 0 | J31: ='Produto 19'!I7+(J10*'Rateio Custos'!I24) -> 0 | K31: ='Produto 19'!J7+(K10*'Rateio Custos'!J24) -> 0 | L31: ='Produto 19'!K7+(L10*'Rateio Custos'!K24) -> 0 | M31: ='Produto 19'!L7+(M10*'Rateio Custos'!L24) -> 0 | N31: ='Produto 19'!M7+(N10*'Rateio Custos'!M24) -> 0 | O31: ='Produto 19'!N7+(O10*'Rateio Custos'!N24) -> 0 | P31: ='Produto 19'!O7+(P10*'Rateio Custos'!O24) -> 0 | Q31: ='Produto 19'!P7+(Q10*'Rateio Custos'!P24) -> 0 | R31: ='Produto 19'!Q7+(R10*'Rateio Custos'!Q24) -> 0 | S31: ='Produto 19'!R7+(S10*'Rateio Custos'!R24) -> 0 | T31: ='Produto 19'!S7+(T10*'Rateio Custos'!S24) -> 0 | U31: ='Produto 19'!T7+(U10*'Rateio Custos'!T24) -> 0 | V31: ='Produto 19'!U7+(V10*'Rateio Custos'!U24) -> 0 | W31: ='Produto 19'!V7+(W10*'Rateio Custos'!V24) -> 0 | X31: ='Produto 19'!W7+(X10*'Rateio Custos'!W24) -> 0 | Y31: ='Produto 19'!X7+(Y10*'Rateio Custos'!X24) -> 0 | Z31: ='Produto 19'!Y7+(Z10*'Rateio Custos'!Y24) -> 0 | AA31: ='Produto 19'!Z7+(AA10*'Rateio Custos'!Z24) -> 0 | AB31: ='Produto 19'!AA7+(AB10*'Rateio Custos'!AA24) -> 0 | AC31: ='Produto 19'!AB7+(AC10*'Rateio Custos'!AB24) -> 0 | AD31: ='Produto 19'!AC7+(AD10*'Rateio Custos'!AC24) -> 0 | AE31: ='Produto 19'!AD7+(AE10*'Rateio Custos'!AD24) -> 0 | AF31: ='Produto 19'!AE7+(AF10*'Rateio Custos'!AE24) -> 0 | AG31: ='Produto 19'!AF7+(AG10*'Rateio Custos'!AF24) -> 0 | AH31: ='Produto 19'!AG7+(AH10*'Rateio Custos'!AG24) -> 0
A32: =IF(LEN('Parâmetros Gerais'!B33)=0," ",'Parâmetros Gerais'!B33) -> madeira gonçalo alves | B32: 0 | C32: 0 | E32: ='Produto 20'!D7+(E10*'Rateio Custos'!D25) -> 0 | F32: ='Produto 20'!E7+(F10*'Rateio Custos'!E25) -> 0 | G32: ='Produto 20'!F7+(G10*'Rateio Custos'!F25) -> 0 | H32: ='Produto 20'!G7+(H10*'Rateio Custos'!G25) -> 0 | I32: ='Produto 20'!H7+(I10*'Rateio Custos'!H25) -> 0 | J32: ='Produto 20'!I7+(J10*'Rateio Custos'!I25) -> 0 | K32: ='Produto 20'!J7+(K10*'Rateio Custos'!J25) -> 0 | L32: ='Produto 20'!K7+(L10*'Rateio Custos'!K25) -> 0 | M32: ='Produto 20'!L7+(M10*'Rateio Custos'!L25) -> 0 | N32: ='Produto 20'!M7+(N10*'Rateio Custos'!M25) -> 0 | O32: ='Produto 20'!N7+(O10*'Rateio Custos'!N25) -> 0 | P32: ='Produto 20'!O7+(P10*'Rateio Custos'!O25) -> 0 | Q32: ='Produto 20'!P7+(Q10*'Rateio Custos'!P25) -> 0 | R32: ='Produto 20'!Q7+(R10*'Rateio Custos'!Q25) -> 0 | S32: ='Produto 20'!R7+(S10*'Rateio Custos'!R25) -> 0 | T32: ='Produto 20'!S7+(T10*'Rateio Custos'!S25) -> 0 | U32: ='Produto 20'!T7+(U10*'Rateio Custos'!T25) -> 0 | V32: ='Produto 20'!U7+(V10*'Rateio Custos'!U25) -> 0 | W32: ='Produto 20'!V7+(W10*'Rateio Custos'!V25) -> 0 | X32: ='Produto 20'!W7+(X10*'Rateio Custos'!W25) -> 0 | Y32: ='Produto 20'!X7+(Y10*'Rateio Custos'!X25) -> 0 | Z32: ='Produto 20'!Y7+(Z10*'Rateio Custos'!Y25) -> 0 | AA32: ='Produto 20'!Z7+(AA10*'Rateio Custos'!Z25) -> 0 | AB32: ='Produto 20'!AA7+(AB10*'Rateio Custos'!AA25) -> 0 | AC32: ='Produto 20'!AB7+(AC10*'Rateio Custos'!AB25) -> 0 | AD32: ='Produto 20'!AC7+(AD10*'Rateio Custos'!AC25) -> 0 | AE32: ='Produto 20'!AD7+(AE10*'Rateio Custos'!AD25) -> 0 | AF32: ='Produto 20'!AE7+(AF10*'Rateio Custos'!AE25) -> 0 | AG32: ='Produto 20'!AF7+(AG10*'Rateio Custos'!AF25) -> 0 | AH32: ='Produto 20'!AG7+(AH10*'Rateio Custos'!AG25) -> 0
A33: =IF(LEN('Parâmetros Gerais'!B34)=0," ",'Parâmetros Gerais'!B34) -> madeira vinhatico | B33: 0 | C33: 0 | E33: ='Produto 21'!D7+(E10*'Rateio Custos'!D26) -> 0 | F33: ='Produto 21'!E7+(F10*'Rateio Custos'!E26) -> 0 | G33: ='Produto 21'!F7+(G10*'Rateio Custos'!F26) -> 0 | H33: ='Produto 21'!G7+(H10*'Rateio Custos'!G26) -> 0 | I33: ='Produto 21'!H7+(I10*'Rateio Custos'!H26) -> 0 | J33: ='Produto 21'!I7+(J10*'Rateio Custos'!I26) -> 0 | K33: ='Produto 21'!J7+(K10*'Rateio Custos'!J26) -> 0 | L33: ='Produto 21'!K7+(L10*'Rateio Custos'!K26) -> 0 | M33: ='Produto 21'!L7+(M10*'Rateio Custos'!L26) -> 0 | N33: ='Produto 21'!M7+(N10*'Rateio Custos'!M26) -> 0 | O33: ='Produto 21'!N7+(O10*'Rateio Custos'!N26) -> 0 | P33: ='Produto 21'!O7+(P10*'Rateio Custos'!O26) -> 0 | Q33: ='Produto 21'!P7+(Q10*'Rateio Custos'!P26) -> 0 | R33: ='Produto 21'!Q7+(R10*'Rateio Custos'!Q26) -> 0 | S33: ='Produto 21'!R7+(S10*'Rateio Custos'!R26) -> 0 | T33: ='Produto 21'!S7+(T10*'Rateio Custos'!S26) -> 0 | U33: ='Produto 21'!T7+(U10*'Rateio Custos'!T26) -> 0 | V33: ='Produto 21'!U7+(V10*'Rateio Custos'!U26) -> 0 | W33: ='Produto 21'!V7+(W10*'Rateio Custos'!V26) -> 0 | X33: ='Produto 21'!W7+(X10*'Rateio Custos'!W26) -> 0 | Y33: ='Produto 21'!X7+(Y10*'Rateio Custos'!X26) -> 0 | Z33: ='Produto 21'!Y7+(Z10*'Rateio Custos'!Y26) -> 0 | AA33: ='Produto 21'!Z7+(AA10*'Rateio Custos'!Z26) -> 0 | AB33: ='Produto 21'!AA7+(AB10*'Rateio Custos'!AA26) -> 0 | AC33: ='Produto 21'!AB7+(AC10*'Rateio Custos'!AB26) -> 0 | AD33: ='Produto 21'!AC7+(AD10*'Rateio Custos'!AC26) -> 0 | AE33: ='Produto 21'!AD7+(AE10*'Rateio Custos'!AD26) -> 0 | AF33: ='Produto 21'!AE7+(AF10*'Rateio Custos'!AE26) -> 0 | AG33: ='Produto 21'!AF7+(AG10*'Rateio Custos'!AF26) -> 0 | AH33: ='Produto 21'!AG7+(AH10*'Rateio Custos'!AG26) -> 0
A34: =IF(LEN('Parâmetros Gerais'!B35)=0," ",'Parâmetros Gerais'!B35) -> madeira jequitiba | B34: 0 | C34: 0 | E34: ='Produto 22'!D7+(E10*'Rateio Custos'!D27) -> 0 | F34: ='Produto 22'!E7+(F10*'Rateio Custos'!E27) -> 0 | G34: ='Produto 22'!F7+(G10*'Rateio Custos'!F27) -> 0 | H34: ='Produto 22'!G7+(H10*'Rateio Custos'!G27) -> 0 | I34: ='Produto 22'!H7+(I10*'Rateio Custos'!H27) -> 0 | J34: ='Produto 22'!I7+(J10*'Rateio Custos'!I27) -> 0 | K34: ='Produto 22'!J7+(K10*'Rateio Custos'!J27) -> 0 | L34: ='Produto 22'!K7+(L10*'Rateio Custos'!K27) -> 0 | M34: ='Produto 22'!L7+(M10*'Rateio Custos'!L27) -> 0 | N34: ='Produto 22'!M7+(N10*'Rateio Custos'!M27) -> 0 | O34: ='Produto 22'!N7+(O10*'Rateio Custos'!N27) -> 0 | P34: ='Produto 22'!O7+(P10*'Rateio Custos'!O27) -> 0 | Q34: ='Produto 22'!P7+(Q10*'Rateio Custos'!P27) -> 0 | R34: ='Produto 22'!Q7+(R10*'Rateio Custos'!Q27) -> 0 | S34: ='Produto 22'!R7+(S10*'Rateio Custos'!R27) -> 0 | T34: ='Produto 22'!S7+(T10*'Rateio Custos'!S27) -> 0 | U34: ='Produto 22'!T7+(U10*'Rateio Custos'!T27) -> 0 | V34: ='Produto 22'!U7+(V10*'Rateio Custos'!U27) -> 0 | W34: ='Produto 22'!V7+(W10*'Rateio Custos'!V27) -> 0 | X34: ='Produto 22'!W7+(X10*'Rateio Custos'!W27) -> 0 | Y34: ='Produto 22'!X7+(Y10*'Rateio Custos'!X27) -> 0 | Z34: ='Produto 22'!Y7+(Z10*'Rateio Custos'!Y27) -> 0 | AA34: ='Produto 22'!Z7+(AA10*'Rateio Custos'!Z27) -> 0 | AB34: ='Produto 22'!AA7+(AB10*'Rateio Custos'!AA27) -> 0 | AC34: ='Produto 22'!AB7+(AC10*'Rateio Custos'!AB27) -> 0 | AD34: ='Produto 22'!AC7+(AD10*'Rateio Custos'!AC27) -> 0 | AE34: ='Produto 22'!AD7+(AE10*'Rateio Custos'!AD27) -> 0 | AF34: ='Produto 22'!AE7+(AF10*'Rateio Custos'!AE27) -> 0 | AG34: ='Produto 22'!AF7+(AG10*'Rateio Custos'!AF27) -> 0 | AH34: ='Produto 22'!AG7+(AH10*'Rateio Custos'!AG27) -> 0
A35: =IF(LEN('Parâmetros Gerais'!B36)=0," ",'Parâmetros Gerais'!B36) -> biomassa | B35: 0 | C35: 0 | E35: ='Produto 23'!D7+(E10*'Rateio Custos'!D28) -> 0 | F35: ='Produto 23'!E7+(F10*'Rateio Custos'!E28) -> 0 | G35: ='Produto 23'!F7+(G10*'Rateio Custos'!F28) -> 0 | H35: ='Produto 23'!G7+(H10*'Rateio Custos'!G28) -> 0 | I35: ='Produto 23'!H7+(I10*'Rateio Custos'!H28) -> 0 | J35: ='Produto 23'!I7+(J10*'Rateio Custos'!I28) -> 0 | K35: ='Produto 23'!J7+(K10*'Rateio Custos'!J28) -> 0 | L35: ='Produto 23'!K7+(L10*'Rateio Custos'!K28) -> 0 | M35: ='Produto 23'!L7+(M10*'Rateio Custos'!L28) -> 0 | N35: ='Produto 23'!M7+(N10*'Rateio Custos'!M28) -> 0 | O35: ='Produto 23'!N7+(O10*'Rateio Custos'!N28) -> 0 | P35: ='Produto 23'!O7+(P10*'Rateio Custos'!O28) -> 0 | Q35: ='Produto 23'!P7+(Q10*'Rateio Custos'!P28) -> 0 | R35: ='Produto 23'!Q7+(R10*'Rateio Custos'!Q28) -> 0 | S35: ='Produto 23'!R7+(S10*'Rateio Custos'!R28) -> 0 | T35: ='Produto 23'!S7+(T10*'Rateio Custos'!S28) -> 0 | U35: ='Produto 23'!T7+(U10*'Rateio Custos'!T28) -> 0 | V35: ='Produto 23'!U7+(V10*'Rateio Custos'!U28) -> 0 | W35: ='Produto 23'!V7+(W10*'Rateio Custos'!V28) -> 0 | X35: ='Produto 23'!W7+(X10*'Rateio Custos'!W28) -> 0 | Y35: ='Produto 23'!X7+(Y10*'Rateio Custos'!X28) -> 0 | Z35: ='Produto 23'!Y7+(Z10*'Rateio Custos'!Y28) -> 0 | AA35: ='Produto 23'!Z7+(AA10*'Rateio Custos'!Z28) -> 0 | AB35: ='Produto 23'!AA7+(AB10*'Rateio Custos'!AA28) -> 0 | AC35: ='Produto 23'!AB7+(AC10*'Rateio Custos'!AB28) -> 0 | AD35: ='Produto 23'!AC7+(AD10*'Rateio Custos'!AC28) -> 0 | AE35: ='Produto 23'!AD7+(AE10*'Rateio Custos'!AD28) -> 0 | AF35: ='Produto 23'!AE7+(AF10*'Rateio Custos'!AE28) -> 0 | AG35: ='Produto 23'!AF7+(AG10*'Rateio Custos'!AF28) -> 0 | AH35: ='Produto 23'!AG7+(AH10*'Rateio Custos'!AG28) -> 0
A36: =IF(LEN('Parâmetros Gerais'!B37)=0," ",'Parâmetros Gerais'!B37) -> grão caupi | B36: =IF(C36<>0,C36/$C$8,0) -> 0 | C36: =SUM(D36:AH36) -> 0 | E36: ='Produto 24'!D7+(E10*'Rateio Custos'!D29) -> 0 | F36: ='Produto 24'!E7+(F10*'Rateio Custos'!E29) -> 0 | G36: ='Produto 24'!F7+(G10*'Rateio Custos'!F29) -> 0 | H36: ='Produto 24'!G7+(H10*'Rateio Custos'!G29) -> 0 | I36: ='Produto 24'!H7+(I10*'Rateio Custos'!H29) -> 0 | J36: ='Produto 24'!I7+(J10*'Rateio Custos'!I29) -> 0 | K36: ='Produto 24'!J7+(K10*'Rateio Custos'!J29) -> 0 | L36: ='Produto 24'!K7+(L10*'Rateio Custos'!K29) -> 0 | M36: ='Produto 24'!L7+(M10*'Rateio Custos'!L29) -> 0 | N36: ='Produto 24'!M7+(N10*'Rateio Custos'!M29) -> 0 | O36: ='Produto 24'!N7+(O10*'Rateio Custos'!N29) -> 0 | P36: ='Produto 24'!O7+(P10*'Rateio Custos'!O29) -> 0 | Q36: ='Produto 24'!P7+(Q10*'Rateio Custos'!P29) -> 0 | R36: ='Produto 24'!Q7+(R10*'Rateio Custos'!Q29) -> 0 | S36: ='Produto 24'!R7+(S10*'Rateio Custos'!R29) -> 0 | T36: ='Produto 24'!S7+(T10*'Rateio Custos'!S29) -> 0 | U36: ='Produto 24'!T7+(U10*'Rateio Custos'!T29) -> 0 | V36: ='Produto 24'!U7+(V10*'Rateio Custos'!U29) -> 0 | W36: ='Produto 24'!V7+(W10*'Rateio Custos'!V29) -> 0 | X36: ='Produto 24'!W7+(X10*'Rateio Custos'!W29) -> 0 | Y36: ='Produto 24'!X7+(Y10*'Rateio Custos'!X29) -> 0 | Z36: ='Produto 24'!Y7+(Z10*'Rateio Custos'!Y29) -> 0 | AA36: ='Produto 24'!Z7+(AA10*'Rateio Custos'!Z29) -> 0 | AB36: ='Produto 24'!AA7+(AB10*'Rateio Custos'!AA29) -> 0 | AC36: ='Produto 24'!AB7+(AC10*'Rateio Custos'!AB29) -> 0 | AD36: ='Produto 24'!AC7+(AD10*'Rateio Custos'!AC29) -> 0 | AE36: ='Produto 24'!AD7+(AE10*'Rateio Custos'!AD29) -> 0 | AF36: ='Produto 24'!AE7+(AF10*'Rateio Custos'!AE29) -> 0 | AG36: ='Produto 24'!AF7+(AG10*'Rateio Custos'!AF29) -> 0 | AH36: ='Produto 24'!AG7+(AH10*'Rateio Custos'!AG29) -> 0
A38: Custos de Insumos | B38: =C38/$C$6 ->  | C38: =SUM(D38:AH38) -> 0 | D38: =D40 -> 0 | E38: =SUM(E43:E66) -> 0 | F38: 0 | G38: 0 | H38: 0 | I38: 0 | J38: 0 | K38: 0 | L38: 0 | M38: 0 | N38: 0 | O38: 0 | P38: 0 | Q38: 0 | R38: 0 | S38: 0 | T38: 0 | U38: 0 | V38: 0 | W38: 0 | X38: 0 | Y38: 0 | Z38: 0 | AA38: 0 | AB38: 0 | AC38: 0 | AD38: 0 | AE38: 0 | AF38: 0 | AG38: 0 | AH38: 0
A40: Preparo e Insumos Gerais | D40: ='Preparo e Gerais'!D20 -> 0 | E40: ='Preparo e Gerais'!E20 -> 0 | F40: ='Preparo e Gerais'!F20 -> 0 | G40: ='Preparo e Gerais'!G20 -> 0 | H40: ='Preparo e Gerais'!H20 -> 0 | I40: ='Preparo e Gerais'!I20 -> 0 | J40: ='Preparo e Gerais'!J20 -> 0 | K40: ='Preparo e Gerais'!K20 -> 0 | L40: ='Preparo e Gerais'!L20 -> 0 | M40: ='Preparo e Gerais'!M20 -> 0 | N40: ='Preparo e Gerais'!N20 -> 0 | O40: ='Preparo e Gerais'!O20 -> 0 | P40: ='Preparo e Gerais'!P20 -> 0 | Q40: ='Preparo e Gerais'!Q20 -> 0 | R40: ='Preparo e Gerais'!R20 -> 0 | S40: ='Preparo e Gerais'!S20 -> 0 | T40: ='Preparo e Gerais'!T20 -> 0 | U40: ='Preparo e Gerais'!U20 -> 0 | V40: ='Preparo e Gerais'!V20 -> 0 | W40: ='Preparo e Gerais'!W20 -> 0 | X40: ='Preparo e Gerais'!X20 -> 0 | Y40: ='Preparo e Gerais'!Y20 -> 0 | Z40: ='Preparo e Gerais'!Z20 -> 0 | AA40: ='Preparo e Gerais'!AA20 -> 0 | AB40: ='Preparo e Gerais'!AB20 -> 0 | AC40: ='Preparo e Gerais'!AC20 -> 0 | AD40: ='Preparo e Gerais'!AD20 -> 0 | AE40: ='Preparo e Gerais'!AE20 -> 0 | AF40: ='Preparo e Gerais'!AF20 -> 0 | AG40: ='Preparo e Gerais'!AG20 -> 0 | AH40: ='Preparo e Gerais'!AH20 -> 0
A42: Produtos
A43: =IF(LEN('Parâmetros Gerais'!B14)=0," ",'Parâmetros Gerais'!B14) -> latex | B43: =IF(C43<>0,C43/$C$38,0) -> 0 | C43: =SUM(D43:AH43) -> 0 | E43: =latex!D24+(E40*Descrição!$P$13) -> 0 | F43: =latex!E24+(F40*Descrição!$P$13) -> 0 | G43: =latex!F24+(G40*Descrição!$P$13) -> 0 | H43: =latex!G24+(H40*Descrição!$P$13) -> 0 | I43: =latex!H24+(I40*Descrição!$P$13) -> 0 | J43: =latex!I24+(J40*Descrição!$P$13) -> 0 | K43: =latex!J24+(K40*Descrição!$P$13) -> 0 | L43: =latex!K24+(L40*Descrição!$P$13) -> 0 | M43: =latex!L24+(M40*Descrição!$P$13) -> 0 | N43: =latex!M24+(N40*Descrição!$P$13) -> 0 | O43: =latex!N24+(O40*Descrição!$P$13) -> 0 | P43: =latex!O24+(P40*Descrição!$P$13) -> 0 | Q43: =latex!P24+(Q40*Descrição!$P$13) -> 0 | R43: =latex!Q24+(R40*Descrição!$P$13) -> 0 | S43: =latex!R24+(S40*Descrição!$P$13) -> 0 | T43: =latex!S24+(T40*Descrição!$P$13) -> 0 | U43: =latex!T24+(U40*Descrição!$P$13) -> 0 | V43: =latex!U24+(V40*Descrição!$P$13) -> 0 | W43: =latex!V24+(W40*Descrição!$P$13) -> 0 | X43: =latex!W24+(X40*Descrição!$P$13) -> 0 | Y43: =latex!X24+(Y40*Descrição!$P$13) -> 0 | Z43: =latex!Y24+(Z40*Descrição!$P$13) -> 0 | AA43: =latex!Z24+(AA40*Descrição!$P$13) -> 0 | AB43: =latex!AA24+(AB40*Descrição!$P$13) -> 0 | AC43: =latex!AB24+(AC40*Descrição!$P$13) -> 0 | AD43: =latex!AC24+(AD40*Descrição!$P$13) -> 0 | AE43: =latex!AD24+(AE40*Descrição!$P$13) -> 0 | AF43: =latex!AE24+(AF40*Descrição!$P$13) -> 0 | AG43: =latex!AF24+(AG40*Descrição!$P$13) -> 0 | AH43: =latex!AG24+(AH40*Descrição!$P$13) -> 0
A44: =IF(LEN('Parâmetros Gerais'!B15)=0," ",'Parâmetros Gerais'!B15) -> fruto genipapo | B44: =IF(C44<>0,C44/$C$38,0) -> 0 | C44: 0 | E44: ='fruto genipapo'!D24+(E40*Descrição!$P$14) -> 0 | F44: ='fruto genipapo'!E24+(F40*Descrição!$P$14) -> 0 | G44: ='fruto genipapo'!F24+(G40*Descrição!$P$14) -> 0 | H44: ='fruto genipapo'!G24+(H40*Descrição!$P$14) -> 0 | I44: ='fruto genipapo'!H24+(I40*Descrição!$P$14) -> 0 | J44: ='fruto genipapo'!I24+(J40*Descrição!$P$14) -> 0 | K44: ='fruto genipapo'!J24+(K40*Descrição!$P$14) -> 0 | L44: ='fruto genipapo'!K24+(L40*Descrição!$P$14) -> 0 | M44: ='fruto genipapo'!L24+(M40*Descrição!$P$14) -> 0 | N44: ='fruto genipapo'!M24+(N40*Descrição!$P$14) -> 0 | O44: ='fruto genipapo'!N24+(O40*Descrição!$P$14) -> 0 | P44: ='fruto genipapo'!O24+(P40*Descrição!$P$14) -> 0 | Q44: ='fruto genipapo'!P24+(Q40*Descrição!$P$14) -> 0 | R44: ='fruto genipapo'!Q24+(R40*Descrição!$P$14) -> 0 | S44: ='fruto genipapo'!R24+(S40*Descrição!$P$14) -> 0 | T44: ='fruto genipapo'!S24+(T40*Descrição!$P$14) -> 0 | U44: ='fruto genipapo'!T24+(U40*Descrição!$P$14) -> 0 | V44: ='fruto genipapo'!U24+(V40*Descrição!$P$14) -> 0 | W44: ='fruto genipapo'!V24+(W40*Descrição!$P$14) -> 0 | X44: ='fruto genipapo'!W24+(X40*Descrição!$P$14) -> 0 | Y44: ='fruto genipapo'!X24+(Y40*Descrição!$P$14) -> 0 | Z44: ='fruto genipapo'!Y24+(Z40*Descrição!$P$14) -> 0 | AA44: ='fruto genipapo'!Z24+(AA40*Descrição!$P$14) -> 0 | AB44: ='fruto genipapo'!AA24+(AB40*Descrição!$P$14) -> 0 | AC44: ='fruto genipapo'!AB24+(AC40*Descrição!$P$14) -> 0 | AD44: ='fruto genipapo'!AC24+(AD40*Descrição!$P$14) -> 0 | AE44: ='fruto genipapo'!AD24+(AE40*Descrição!$P$14) -> 0 | AF44: ='fruto genipapo'!AE24+(AF40*Descrição!$P$14) -> 0 | AG44: ='fruto genipapo'!AF24+(AG40*Descrição!$P$14) -> 0 | AH44: ='fruto genipapo'!AG24+(AH40*Descrição!$P$14) -> 0
A45: =IF(LEN('Parâmetros Gerais'!B16)=0," ",'Parâmetros Gerais'!B16) -> fruto araçauna | B45: 0 | C45: 0 | E45: ='fruto araçauna'!D24+(E40*Descrição!$P$15) -> 0 | F45: ='fruto araçauna'!E24+(F40*Descrição!$P$15) -> 0 | G45: ='fruto araçauna'!F24+(G40*Descrição!$P$15) -> 0 | H45: ='fruto araçauna'!G24+(H40*Descrição!$P$15) -> 0 | I45: ='fruto araçauna'!H24+(I40*Descrição!$P$15) -> 0 | J45: ='fruto araçauna'!I24+(J40*Descrição!$P$15) -> 0 | K45: ='fruto araçauna'!J24+(K40*Descrição!$P$15) -> 0 | L45: ='fruto araçauna'!K24+(L40*Descrição!$P$15) -> 0 | M45: ='fruto araçauna'!L24+(M40*Descrição!$P$15) -> 0 | N45: ='fruto araçauna'!M24+(N40*Descrição!$P$15) -> 0 | O45: ='fruto araçauna'!N24+(O40*Descrição!$P$15) -> 0 | P45: ='fruto araçauna'!O24+(P40*Descrição!$P$15) -> 0 | Q45: ='fruto araçauna'!P24+(Q40*Descrição!$P$15) -> 0 | R45: ='fruto araçauna'!Q24+(R40*Descrição!$P$15) -> 0 | S45: ='fruto araçauna'!R24+(S40*Descrição!$P$15) -> 0 | T45: ='fruto araçauna'!S24+(T40*Descrição!$P$15) -> 0 | U45: ='fruto araçauna'!T24+(U40*Descrição!$P$15) -> 0 | V45: ='fruto araçauna'!U24+(V40*Descrição!$P$15) -> 0 | W45: ='fruto araçauna'!V24+(W40*Descrição!$P$15) -> 0 | X45: ='fruto araçauna'!W24+(X40*Descrição!$P$15) -> 0 | Y45: ='fruto araçauna'!X24+(Y40*Descrição!$P$15) -> 0 | Z45: ='fruto araçauna'!Y24+(Z40*Descrição!$P$15) -> 0 | AA45: ='fruto araçauna'!Z24+(AA40*Descrição!$P$15) -> 0 | AB45: ='fruto araçauna'!AA24+(AB40*Descrição!$P$15) -> 0 | AC45: ='fruto araçauna'!AB24+(AC40*Descrição!$P$15) -> 0 | AD45: ='fruto araçauna'!AC24+(AD40*Descrição!$P$15) -> 0 | AE45: ='fruto araçauna'!AD24+(AE40*Descrição!$P$15) -> 0 | AF45: ='fruto araçauna'!AE24+(AF40*Descrição!$P$15) -> 0 | AG45: ='fruto araçauna'!AF24+(AG40*Descrição!$P$15) -> 0 | AH45: ='fruto araçauna'!AG24+(AH40*Descrição!$P$15) -> 0
A46: =IF(LEN('Parâmetros Gerais'!B17)=0," ",'Parâmetros Gerais'!B17) -> fruto pitanga | B46: 0 | C46: 0 | E46: ='fruto pitanga'!D24+(E40*Descrição!$P$16) -> 0 | F46: ='fruto pitanga'!E24+(F40*Descrição!$P$16) -> 0 | G46: ='fruto pitanga'!F24+(G40*Descrição!$P$16) -> 0 | H46: ='fruto pitanga'!G24+(H40*Descrição!$P$16) -> 0 | I46: ='fruto pitanga'!H24+(I40*Descrição!$P$16) -> 0 | J46: ='fruto pitanga'!I24+(J40*Descrição!$P$16) -> 0 | K46: ='fruto pitanga'!J24+(K40*Descrição!$P$16) -> 0 | L46: ='fruto pitanga'!K24+(L40*Descrição!$P$16) -> 0 | M46: ='fruto pitanga'!L24+(M40*Descrição!$P$16) -> 0 | N46: ='fruto pitanga'!M24+(N40*Descrição!$P$16) -> 0 | O46: ='fruto pitanga'!N24+(O40*Descrição!$P$16) -> 0 | P46: ='fruto pitanga'!O24+(P40*Descrição!$P$16) -> 0 | Q46: ='fruto pitanga'!P24+(Q40*Descrição!$P$16) -> 0 | R46: ='fruto pitanga'!Q24+(R40*Descrição!$P$16) -> 0 | S46: ='fruto pitanga'!R24+(S40*Descrição!$P$16) -> 0 | T46: ='fruto pitanga'!S24+(T40*Descrição!$P$16) -> 0 | U46: ='fruto pitanga'!T24+(U40*Descrição!$P$16) -> 0 | V46: ='fruto pitanga'!U24+(V40*Descrição!$P$16) -> 0 | W46: ='fruto pitanga'!V24+(W40*Descrição!$P$16) -> 0 | X46: ='fruto pitanga'!W24+(X40*Descrição!$P$16) -> 0 | Y46: ='fruto pitanga'!X24+(Y40*Descrição!$P$16) -> 0 | Z46: ='fruto pitanga'!Y24+(Z40*Descrição!$P$16) -> 0 | AA46: ='fruto pitanga'!Z24+(AA40*Descrição!$P$16) -> 0 | AB46: ='fruto pitanga'!AA24+(AB40*Descrição!$P$16) -> 0 | AC46: ='fruto pitanga'!AB24+(AC40*Descrição!$P$16) -> 0 | AD46: ='fruto pitanga'!AC24+(AD40*Descrição!$P$16) -> 0 | AE46: ='fruto pitanga'!AD24+(AE40*Descrição!$P$16) -> 0 | AF46: ='fruto pitanga'!AE24+(AF40*Descrição!$P$16) -> 0 | AG46: ='fruto pitanga'!AF24+(AG40*Descrição!$P$16) -> 0 | AH46: ='fruto pitanga'!AG24+(AH40*Descrição!$P$16) -> 0
A47: =IF(LEN('Parâmetros Gerais'!B18)=0," ",'Parâmetros Gerais'!B18) -> castanha sapucaia | B47: 0 | C47: 0 | E47: =Castanha!D24+(E40*Descrição!$P$17) -> 0 | F47: =Castanha!E24+(F40*Descrição!$P$17) -> 0 | G47: =Castanha!F24+(G40*Descrição!$P$17) -> 0 | H47: =Castanha!G24+(H40*Descrição!$P$17) -> 0 | I47: =Castanha!H24+(I40*Descrição!$P$17) -> 0 | J47: =Castanha!I24+(J40*Descrição!$P$17) -> 0 | K47: =Castanha!J24+(K40*Descrição!$P$17) -> 0 | L47: =Castanha!K24+(L40*Descrição!$P$17) -> 0 | M47: =Castanha!L24+(M40*Descrição!$P$17) -> 0 | N47: =Castanha!M24+(N40*Descrição!$P$17) -> 0 | O47: =Castanha!N24+(O40*Descrição!$P$17) -> 0 | P47: =Castanha!O24+(P40*Descrição!$P$17) -> 0 | Q47: =Castanha!P24+(Q40*Descrição!$P$17) -> 0 | R47: =Castanha!Q24+(R40*Descrição!$P$17) -> 0 | S47: =Castanha!R24+(S40*Descrição!$P$17) -> 0 | T47: =Castanha!S24+(T40*Descrição!$P$17) -> 0 | U47: =Castanha!T24+(U40*Descrição!$P$17) -> 0 | V47: =Castanha!U24+(V40*Descrição!$P$17) -> 0 | W47: =Castanha!V24+(W40*Descrição!$P$17) -> 0 | X47: =Castanha!W24+(X40*Descrição!$P$17) -> 0 | Y47: =Castanha!X24+(Y40*Descrição!$P$17) -> 0 | Z47: =Castanha!Y24+(Z40*Descrição!$P$17) -> 0 | AA47: =Castanha!Z24+(AA40*Descrição!$P$17) -> 0 | AB47: =Castanha!AA24+(AB40*Descrição!$P$17) -> 0 | AC47: =Castanha!AB24+(AC40*Descrição!$P$17) -> 0 | AD47: =Castanha!AC24+(AD40*Descrição!$P$17) -> 0 | AE47: =Castanha!AD24+(AE40*Descrição!$P$17) -> 0 | AF47: =Castanha!AE24+(AF40*Descrição!$P$17) -> 0 | AG47: =Castanha!AF24+(AG40*Descrição!$P$17) -> 0 | AH47: =Castanha!AG24+(AH40*Descrição!$P$17) -> 0
A48: =IF(LEN('Parâmetros Gerais'!B19)=0," ",'Parâmetros Gerais'!B19) -> fruto cajá | B48: 0 | C48: =SUM(D48:AH48) -> 0 | E48: ='fruto cajá'!D24+(E40*Descrição!$P$18) -> 0 | F48: ='fruto cajá'!E24+(F40*Descrição!$P$18) -> 0 | G48: ='fruto cajá'!F24+(G40*Descrição!$P$18) -> 0 | H48: ='fruto cajá'!G24+(H40*Descrição!$P$18) -> 0 | I48: ='fruto cajá'!H24+(I40*Descrição!$P$18) -> 0 | J48: ='fruto cajá'!I24+(J40*Descrição!$P$18) -> 0 | K48: ='fruto cajá'!J24+(K40*Descrição!$P$18) -> 0 | L48: ='fruto cajá'!K24+(L40*Descrição!$P$18) -> 0 | M48: ='fruto cajá'!L24+(M40*Descrição!$P$18) -> 0 | N48: ='fruto cajá'!M24+(N40*Descrição!$P$18) -> 0 | O48: ='fruto cajá'!N24+(O40*Descrição!$P$18) -> 0 | P48: ='fruto cajá'!O24+(P40*Descrição!$P$18) -> 0 | Q48: ='fruto cajá'!P24+(Q40*Descrição!$P$18) -> 0 | R48: ='fruto cajá'!Q24+(R40*Descrição!$P$18) -> 0 | S48: ='fruto cajá'!R24+(S40*Descrição!$P$18) -> 0 | T48: ='fruto cajá'!S24+(T40*Descrição!$P$18) -> 0 | U48: ='fruto cajá'!T24+(U40*Descrição!$P$18) -> 0 | V48: ='fruto cajá'!U24+(V40*Descrição!$P$18) -> 0 | W48: ='fruto cajá'!V24+(W40*Descrição!$P$18) -> 0 | X48: ='fruto cajá'!W24+(X40*Descrição!$P$18) -> 0 | Y48: ='fruto cajá'!X24+(Y40*Descrição!$P$18) -> 0 | Z48: ='fruto cajá'!Y24+(Z40*Descrição!$P$18) -> 0 | AA48: ='fruto cajá'!Z24+(AA40*Descrição!$P$18) -> 0 | AB48: ='fruto cajá'!AA24+(AB40*Descrição!$P$18) -> 0 | AC48: ='fruto cajá'!AB24+(AC40*Descrição!$P$18) -> 0 | AD48: ='fruto cajá'!AC24+(AD40*Descrição!$P$18) -> 0 | AE48: ='fruto cajá'!AD24+(AE40*Descrição!$P$18) -> 0 | AF48: ='fruto cajá'!AE24+(AF40*Descrição!$P$18) -> 0 | AG48: ='fruto cajá'!AF24+(AG40*Descrição!$P$18) -> 0 | AH48: ='fruto cajá'!AG24+(AH40*Descrição!$P$18) -> 0
A49: =IF(LEN('Parâmetros Gerais'!B20)=0," ",'Parâmetros Gerais'!B20) -> semente urucum | B49: 0 | C49: 0 | E49: ='semente urucum'!D24+(E40*Descrição!$P$19) -> 0 | F49: ='semente urucum'!E24+(F40*Descrição!$P$19) -> 0 | G49: ='semente urucum'!F24+(G40*Descrição!$P$19) -> 0 | H49: ='semente urucum'!G24+(H40*Descrição!$P$19) -> 0 | I49: ='semente urucum'!H24+(I40*Descrição!$P$19) -> 0 | J49: ='semente urucum'!I24+(J40*Descrição!$P$19) -> 0 | K49: ='semente urucum'!J24+(K40*Descrição!$P$19) -> 0 | L49: ='semente urucum'!K24+(L40*Descrição!$P$19) -> 0 | M49: ='semente urucum'!L24+(M40*Descrição!$P$19) -> 0 | N49: ='semente urucum'!M24+(N40*Descrição!$P$19) -> 0 | O49: ='semente urucum'!N24+(O40*Descrição!$P$19) -> 0 | P49: ='semente urucum'!O24+(P40*Descrição!$P$19) -> 0 | Q49: ='semente urucum'!P24+(Q40*Descrição!$P$19) -> 0 | R49: ='semente urucum'!Q24+(R40*Descrição!$P$19) -> 0 | S49: ='semente urucum'!R24+(S40*Descrição!$P$19) -> 0 | T49: ='semente urucum'!S24+(T40*Descrição!$P$19) -> 0 | U49: ='semente urucum'!T24+(U40*Descrição!$P$19) -> 0 | V49: ='semente urucum'!U24+(V40*Descrição!$P$19) -> 0 | W49: ='semente urucum'!V24+(W40*Descrição!$P$19) -> 0 | X49: ='semente urucum'!W24+(X40*Descrição!$P$19) -> 0 | Y49: ='semente urucum'!X24+(Y40*Descrição!$P$19) -> 0 | Z49: ='semente urucum'!Y24+(Z40*Descrição!$P$19) -> 0 | AA49: ='semente urucum'!Z24+(AA40*Descrição!$P$19) -> 0 | AB49: ='semente urucum'!AA24+(AB40*Descrição!$P$19) -> 0 | AC49: ='semente urucum'!AB24+(AC40*Descrição!$P$19) -> 0 | AD49: ='semente urucum'!AC24+(AD40*Descrição!$P$19) -> 0 | AE49: ='semente urucum'!AD24+(AE40*Descrição!$P$19) -> 0 | AF49: ='semente urucum'!AE24+(AF40*Descrição!$P$19) -> 0 | AG49: ='semente urucum'!AF24+(AG40*Descrição!$P$19) -> 0 | AH49: ='semente urucum'!AG24+(AH40*Descrição!$P$19) -> 0
A50: =IF(LEN('Parâmetros Gerais'!B21)=0," ",'Parâmetros Gerais'!B21) -> semente aroeira | B50: 0 | C50: 0 | E50: ='semente aroeira'!D24+(E40*Descrição!$P$20) -> 0 | F50: ='semente aroeira'!E24+(F40*Descrição!$P$20) -> 0 | G50: ='semente aroeira'!F24+(G40*Descrição!$P$20) -> 0 | H50: ='semente aroeira'!G24+(H40*Descrição!$P$20) -> 0 | I50: ='semente aroeira'!H24+(I40*Descrição!$P$20) -> 0 | J50: ='semente aroeira'!I24+(J40*Descrição!$P$20) -> 0 | K50: ='semente aroeira'!J24+(K40*Descrição!$P$20) -> 0 | L50: ='semente aroeira'!K24+(L40*Descrição!$P$20) -> 0 | M50: ='semente aroeira'!L24+(M40*Descrição!$P$20) -> 0 | N50: ='semente aroeira'!M24+(N40*Descrição!$P$20) -> 0 | O50: ='semente aroeira'!N24+(O40*Descrição!$P$20) -> 0 | P50: ='semente aroeira'!O24+(P40*Descrição!$P$20) -> 0 | Q50: ='semente aroeira'!P24+(Q40*Descrição!$P$20) -> 0 | R50: ='semente aroeira'!Q24+(R40*Descrição!$P$20) -> 0 | S50: ='semente aroeira'!R24+(S40*Descrição!$P$20) -> 0 | T50: ='semente aroeira'!S24+(T40*Descrição!$P$20) -> 0 | U50: ='semente aroeira'!T24+(U40*Descrição!$P$20) -> 0 | V50: ='semente aroeira'!U24+(V40*Descrição!$P$20) -> 0 | W50: ='semente aroeira'!V24+(W40*Descrição!$P$20) -> 0 | X50: ='semente aroeira'!W24+(X40*Descrição!$P$20) -> 0 | Y50: ='semente aroeira'!X24+(Y40*Descrição!$P$20) -> 0 | Z50: ='semente aroeira'!Y24+(Z40*Descrição!$P$20) -> 0 | AA50: ='semente aroeira'!Z24+(AA40*Descrição!$P$20) -> 0 | AB50: ='semente aroeira'!AA24+(AB40*Descrição!$P$20) -> 0 | AC50: ='semente aroeira'!AB24+(AC40*Descrição!$P$20) -> 0 | AD50: ='semente aroeira'!AC24+(AD40*Descrição!$P$20) -> 0 | AE50: ='semente aroeira'!AD24+(AE40*Descrição!$P$20) -> 0 | AF50: ='semente aroeira'!AE24+(AF40*Descrição!$P$20) -> 0 | AG50: ='semente aroeira'!AF24+(AG40*Descrição!$P$20) -> 0 | AH50: ='semente aroeira'!AG24+(AH40*Descrição!$P$20) -> 0
A51: =IF(LEN('Parâmetros Gerais'!B22)=0," ",'Parâmetros Gerais'!B22) -> raiz mandioca | B51: 0 | C51: 0 | E51: ='raiz mandioca'!D24+(E40*Descrição!$P$21) -> 0 | F51: ='raiz mandioca'!E24+(F40*Descrição!$P$21) -> 0 | G51: ='raiz mandioca'!F24+(G40*Descrição!$P$21) -> 0 | H51: ='raiz mandioca'!G24+(H40*Descrição!$P$21) -> 0 | I51: ='raiz mandioca'!H24+(I40*Descrição!$P$21) -> 0 | J51: ='raiz mandioca'!I24+(J40*Descrição!$P$21) -> 0 | K51: ='raiz mandioca'!J24+(K40*Descrição!$P$21) -> 0 | L51: ='raiz mandioca'!K24+(L40*Descrição!$P$21) -> 0 | M51: ='raiz mandioca'!L24+(M40*Descrição!$P$21) -> 0 | N51: ='raiz mandioca'!M24+(N40*Descrição!$P$21) -> 0 | O51: ='raiz mandioca'!N24+(O40*Descrição!$P$21) -> 0 | P51: ='raiz mandioca'!O24+(P40*Descrição!$P$21) -> 0 | Q51: ='raiz mandioca'!P24+(Q40*Descrição!$P$21) -> 0 | R51: ='raiz mandioca'!Q24+(R40*Descrição!$P$21) -> 0 | S51: ='raiz mandioca'!R24+(S40*Descrição!$P$21) -> 0 | T51: ='raiz mandioca'!S24+(T40*Descrição!$P$21) -> 0 | U51: ='raiz mandioca'!T24+(U40*Descrição!$P$21) -> 0 | V51: ='raiz mandioca'!U24+(V40*Descrição!$P$21) -> 0 | W51: ='raiz mandioca'!V24+(W40*Descrição!$P$21) -> 0 | X51: ='raiz mandioca'!W24+(X40*Descrição!$P$21) -> 0 | Y51: ='raiz mandioca'!X24+(Y40*Descrição!$P$21) -> 0 | Z51: ='raiz mandioca'!Y24+(Z40*Descrição!$P$21) -> 0 | AA51: ='raiz mandioca'!Z24+(AA40*Descrição!$P$21) -> 0 | AB51: ='raiz mandioca'!AA24+(AB40*Descrição!$P$21) -> 0 | AC51: ='raiz mandioca'!AB24+(AC40*Descrição!$P$21) -> 0 | AD51: ='raiz mandioca'!AC24+(AD40*Descrição!$P$21) -> 0 | AE51: ='raiz mandioca'!AD24+(AE40*Descrição!$P$21) -> 0 | AF51: ='raiz mandioca'!AE24+(AF40*Descrição!$P$21) -> 0 | AG51: ='raiz mandioca'!AF24+(AG40*Descrição!$P$21) -> 0 | AH51: ='raiz mandioca'!AG24+(AH40*Descrição!$P$21) -> 0
A52: =IF(LEN('Parâmetros Gerais'!B23)=0," ",'Parâmetros Gerais'!B23) -> fruto abacaxi | B52: 0 | C52: =SUM(D52:AH52) -> 0 | E52: =abacaxi!D24+(E40*Descrição!$P$22) -> 0 | F52: =abacaxi!E24+(F40*Descrição!$P$22) -> 0 | G52: =abacaxi!F24+(G40*Descrição!$P$22) -> 0 | H52: =abacaxi!G24+(H40*Descrição!$P$22) -> 0 | I52: =abacaxi!H24+(I40*Descrição!$P$22) -> 0 | J52: =abacaxi!I24+(J40*Descrição!$P$22) -> 0 | K52: =abacaxi!J24+(K40*Descrição!$P$22) -> 0 | L52: =abacaxi!K24+(L40*Descrição!$P$22) -> 0 | M52: =abacaxi!L24+(M40*Descrição!$P$22) -> 0 | N52: =abacaxi!M24+(N40*Descrição!$P$22) -> 0 | O52: =abacaxi!N24+(O40*Descrição!$P$22) -> 0 | P52: =abacaxi!O24+(P40*Descrição!$P$22) -> 0 | Q52: =abacaxi!P24+(Q40*Descrição!$P$22) -> 0 | R52: =abacaxi!Q24+(R40*Descrição!$P$22) -> 0 | S52: =abacaxi!R24+(S40*Descrição!$P$22) -> 0 | T52: =abacaxi!S24+(T40*Descrição!$P$22) -> 0 | U52: =abacaxi!T24+(U40*Descrição!$P$22) -> 0 | V52: =abacaxi!U24+(V40*Descrição!$P$22) -> 0 | W52: =abacaxi!V24+(W40*Descrição!$P$22) -> 0 | X52: =abacaxi!W24+(X40*Descrição!$P$22) -> 0 | Y52: =abacaxi!X24+(Y40*Descrição!$P$22) -> 0 | Z52: =abacaxi!Y24+(Z40*Descrição!$P$22) -> 0 | AA52: =abacaxi!Z24+(AA40*Descrição!$P$22) -> 0 | AB52: =abacaxi!AA24+(AB40*Descrição!$P$22) -> 0 | AC52: =abacaxi!AB24+(AC40*Descrição!$P$22) -> 0 | AD52: =abacaxi!AC24+(AD40*Descrição!$P$22) -> 0 | AE52: =abacaxi!AD24+(AE40*Descrição!$P$22) -> 0 | AF52: =abacaxi!AE24+(AF40*Descrição!$P$22) -> 0 | AG52: =abacaxi!AF24+(AG40*Descrição!$P$22) -> 0 | AH52: =abacaxi!AG24+(AH40*Descrição!$P$22) -> 0
A53: =IF(LEN('Parâmetros Gerais'!B24)=0," ",'Parâmetros Gerais'!B24) -> espigas milho | B53: 0 | C53: 0 | E53: =espigas!D24+(E40*Descrição!$P$23) -> 0 | F53: =espigas!E24+(F40*Descrição!$P$23) -> 0 | G53: =espigas!F24+(G40*Descrição!$P$23) -> 0 | H53: =espigas!G24+(H40*Descrição!$P$23) -> 0 | I53: =espigas!H24+(I40*Descrição!$P$23) -> 0 | J53: =espigas!I24+(J40*Descrição!$P$23) -> 0 | K53: =espigas!J24+(K40*Descrição!$P$23) -> 0 | L53: =espigas!K24+(L40*Descrição!$P$23) -> 0 | M53: =espigas!L24+(M40*Descrição!$P$23) -> 0 | N53: =espigas!M24+(N40*Descrição!$P$23) -> 0 | O53: =espigas!N24+(O40*Descrição!$P$23) -> 0 | P53: =espigas!O24+(P40*Descrição!$P$23) -> 0 | Q53: =espigas!P24+(Q40*Descrição!$P$23) -> 0 | R53: =espigas!Q24+(R40*Descrição!$P$23) -> 0 | S53: =espigas!R24+(S40*Descrição!$P$23) -> 0 | T53: =espigas!S24+(T40*Descrição!$P$23) -> 0 | U53: =espigas!T24+(U40*Descrição!$P$23) -> 0 | V53: =espigas!U24+(V40*Descrição!$P$23) -> 0 | W53: =espigas!V24+(W40*Descrição!$P$23) -> 0 | X53: =espigas!W24+(X40*Descrição!$P$23) -> 0 | Y53: =espigas!X24+(Y40*Descrição!$P$23) -> 0 | Z53: =espigas!Y24+(Z40*Descrição!$P$23) -> 0 | AA53: =espigas!Z24+(AA40*Descrição!$P$23) -> 0 | AB53: =espigas!AA24+(AB40*Descrição!$P$23) -> 0 | AC53: =espigas!AB24+(AC40*Descrição!$P$23) -> 0 | AD53: =espigas!AC24+(AD40*Descrição!$P$23) -> 0 | AE53: =espigas!AD24+(AE40*Descrição!$P$23) -> 0 | AF53: =espigas!AE24+(AF40*Descrição!$P$23) -> 0 | AG53: =espigas!AF24+(AG40*Descrição!$P$23) -> 0 | AH53: =espigas!AG24+(AH40*Descrição!$P$23) -> 0
A54: =IF(LEN('Parâmetros Gerais'!B25)=0," ",'Parâmetros Gerais'!B25) -> estaca sansão do campo | B54: 0 | C54: 0 | E54: ='semente caupi'!D24+(E40*Descrição!$P$24) -> 0 | F54: ='semente caupi'!E24+(F40*Descrição!$P$24) -> 0 | G54: ='semente caupi'!F24+(G40*Descrição!$P$24) -> 0 | H54: ='semente caupi'!G24+(H40*Descrição!$P$24) -> 0 | I54: ='semente caupi'!H24+(I40*Descrição!$P$24) -> 0 | J54: ='semente caupi'!I24+(J40*Descrição!$P$24) -> 0 | K54: ='semente caupi'!J24+(K40*Descrição!$P$24) -> 0 | L54: ='semente caupi'!K24+(L40*Descrição!$P$24) -> 0 | M54: ='semente caupi'!L24+(M40*Descrição!$P$24) -> 0 | N54: ='semente caupi'!M24+(N40*Descrição!$P$24) -> 0 | O54: ='semente caupi'!N24+(O40*Descrição!$P$24) -> 0 | P54: ='semente caupi'!O24+(P40*Descrição!$P$24) -> 0 | Q54: ='semente caupi'!P24+(Q40*Descrição!$P$24) -> 0 | R54: ='semente caupi'!Q24+(R40*Descrição!$P$24) -> 0 | S54: ='semente caupi'!R24+(S40*Descrição!$P$24) -> 0 | T54: ='semente caupi'!S24+(T40*Descrição!$P$24) -> 0 | U54: ='semente caupi'!T24+(U40*Descrição!$P$24) -> 0 | V54: ='semente caupi'!U24+(V40*Descrição!$P$24) -> 0 | W54: ='semente caupi'!V24+(W40*Descrição!$P$24) -> 0 | X54: ='semente caupi'!W24+(X40*Descrição!$P$24) -> 0 | Y54: ='semente caupi'!X24+(Y40*Descrição!$P$24) -> 0 | Z54: ='semente caupi'!Y24+(Z40*Descrição!$P$24) -> 0 | AA54: ='semente caupi'!Z24+(AA40*Descrição!$P$24) -> 0 | AB54: ='semente caupi'!AA24+(AB40*Descrição!$P$24) -> 0 | AC54: ='semente caupi'!AB24+(AC40*Descrição!$P$24) -> 0 | AD54: ='semente caupi'!AC24+(AD40*Descrição!$P$24) -> 0 | AE54: ='semente caupi'!AD24+(AE40*Descrição!$P$24) -> 0 | AF54: ='semente caupi'!AE24+(AF40*Descrição!$P$24) -> 0 | AG54: ='semente caupi'!AF24+(AG40*Descrição!$P$24) -> 0 | AH54: ='semente caupi'!AG24+(AH40*Descrição!$P$24) -> 0
A55: =IF(LEN('Parâmetros Gerais'!B26)=0," ",'Parâmetros Gerais'!B26) -> madeira madeira nova | B55: 0 | C55: 0 | E55: =biomassa!D24+(E40*Descrição!$P$25) -> 0 | F55: =biomassa!E24+(F40*Descrição!$P$25) -> 0 | G55: =biomassa!F24+(G40*Descrição!$P$25) -> 0 | H55: =biomassa!G24+(H40*Descrição!$P$25) -> 0 | I55: =biomassa!H24+(I40*Descrição!$P$25) -> 0 | J55: =biomassa!I24+(J40*Descrição!$P$25) -> 0 | K55: =biomassa!J24+(K40*Descrição!$P$25) -> 0 | L55: =biomassa!K24+(L40*Descrição!$P$25) -> 0 | M55: =biomassa!L24+(M40*Descrição!$P$25) -> 0 | N55: =biomassa!M24+(N40*Descrição!$P$25) -> 0 | O55: =biomassa!N24+(O40*Descrição!$P$25) -> 0 | P55: =biomassa!O24+(P40*Descrição!$P$25) -> 0 | Q55: =biomassa!P24+(Q40*Descrição!$P$25) -> 0 | R55: =biomassa!Q24+(R40*Descrição!$P$25) -> 0 | S55: =biomassa!R24+(S40*Descrição!$P$25) -> 0 | T55: =biomassa!S24+(T40*Descrição!$P$25) -> 0 | U55: =biomassa!T24+(U40*Descrição!$P$25) -> 0 | V55: =biomassa!U24+(V40*Descrição!$P$25) -> 0 | W55: =biomassa!V24+(W40*Descrição!$P$25) -> 0 | X55: =biomassa!W24+(X40*Descrição!$P$25) -> 0 | Y55: =biomassa!X24+(Y40*Descrição!$P$25) -> 0 | Z55: =biomassa!Y24+(Z40*Descrição!$P$25) -> 0 | AA55: =biomassa!Z24+(AA40*Descrição!$P$25) -> 0 | AB55: =biomassa!AA24+(AB40*Descrição!$P$25) -> 0 | AC55: =biomassa!AB24+(AC40*Descrição!$P$25) -> 0 | AD55: =biomassa!AC24+(AD40*Descrição!$P$25) -> 0 | AE55: =biomassa!AD24+(AE40*Descrição!$P$25) -> 0 | AF55: =biomassa!AE24+(AF40*Descrição!$P$25) -> 0 | AG55: =biomassa!AF24+(AG40*Descrição!$P$25) -> 0 | AH55: =biomassa!AG24+(AH40*Descrição!$P$25) -> 0
A56: =IF(LEN('Parâmetros Gerais'!B27)=0," ",'Parâmetros Gerais'!B27) -> lenha fedegoso | B56: 0 | C56: 0 | E56: =madeira!D24+(E40*Descrição!$P$26) -> 0 | F56: =madeira!E24+(F40*Descrição!$P$26) -> 0 | G56: =madeira!F24+(G40*Descrição!$P$26) -> 0 | H56: =madeira!G24+(H40*Descrição!$P$26) -> 0 | I56: =madeira!H24+(I40*Descrição!$P$26) -> 0 | J56: =madeira!I24+(J40*Descrição!$P$26) -> 0 | K56: =madeira!J24+(K40*Descrição!$P$26) -> 0 | L56: =madeira!K24+(L40*Descrição!$P$26) -> 0 | M56: =madeira!L24+(M40*Descrição!$P$26) -> 0 | N56: =madeira!M24+(N40*Descrição!$P$26) -> 0 | O56: =madeira!N24+(O40*Descrição!$P$26) -> 0 | P56: =madeira!O24+(P40*Descrição!$P$26) -> 0 | Q56: =madeira!P24+(Q40*Descrição!$P$26) -> 0 | R56: =madeira!Q24+(R40*Descrição!$P$26) -> 0 | S56: =madeira!R24+(S40*Descrição!$P$26) -> 0 | T56: =madeira!S24+(T40*Descrição!$P$26) -> 0 | U56: =madeira!T24+(U40*Descrição!$P$26) -> 0 | V56: =madeira!U24+(V40*Descrição!$P$26) -> 0 | W56: =madeira!V24+(W40*Descrição!$P$26) -> 0 | X56: =madeira!W24+(X40*Descrição!$P$26) -> 0 | Y56: =madeira!X24+(Y40*Descrição!$P$26) -> 0 | Z56: =madeira!Y24+(Z40*Descrição!$P$26) -> 0 | AA56: =madeira!Z24+(AA40*Descrição!$P$26) -> 0 | AB56: =madeira!AA24+(AB40*Descrição!$P$26) -> 0 | AC56: =madeira!AB24+(AC40*Descrição!$P$26) -> 0 | AD56: =madeira!AC24+(AD40*Descrição!$P$26) -> 0 | AE56: =madeira!AD24+(AE40*Descrição!$P$26) -> 0 | AF56: =madeira!AE24+(AF40*Descrição!$P$26) -> 0 | AG56: =madeira!AF24+(AG40*Descrição!$P$26) -> 0 | AH56: =madeira!AG24+(AH40*Descrição!$P$26) -> 0
A57: =IF(LEN('Parâmetros Gerais'!B28)=0," ",'Parâmetros Gerais'!B28) -> estaca pau d'alho | B57: 0 | C57: 0 | E57: ='Produto 15'!D24+(E40*Descrição!$P$27) -> 0 | F57: ='Produto 15'!E24+(F40*Descrição!$P$27) -> 0 | G57: ='Produto 15'!F24+(G40*Descrição!$P$27) -> 0 | H57: ='Produto 15'!G24+(H40*Descrição!$P$27) -> 0 | I57: ='Produto 15'!H24+(I40*Descrição!$P$27) -> 0 | J57: ='Produto 15'!I24+(J40*Descrição!$P$27) -> 0 | K57: ='Produto 15'!J24+(K40*Descrição!$P$27) -> 0 | L57: ='Produto 15'!K24+(L40*Descrição!$P$27) -> 0 | M57: ='Produto 15'!L24+(M40*Descrição!$P$27) -> 0 | N57: ='Produto 15'!M24+(N40*Descrição!$P$27) -> 0 | O57: ='Produto 15'!N24+(O40*Descrição!$P$27) -> 0 | P57: ='Produto 15'!O24+(P40*Descrição!$P$27) -> 0 | Q57: ='Produto 15'!P24+(Q40*Descrição!$P$27) -> 0 | R57: ='Produto 15'!Q24+(R40*Descrição!$P$27) -> 0 | S57: ='Produto 15'!R24+(S40*Descrição!$P$27) -> 0 | T57: ='Produto 15'!S24+(T40*Descrição!$P$27) -> 0 | U57: ='Produto 15'!T24+(U40*Descrição!$P$27) -> 0 | V57: ='Produto 15'!U24+(V40*Descrição!$P$27) -> 0 | W57: ='Produto 15'!V24+(W40*Descrição!$P$27) -> 0 | X57: ='Produto 15'!W24+(X40*Descrição!$P$27) -> 0 | Y57: ='Produto 15'!X24+(Y40*Descrição!$P$27) -> 0 | Z57: ='Produto 15'!Y24+(Z40*Descrição!$P$27) -> 0 | AA57: ='Produto 15'!Z24+(AA40*Descrição!$P$27) -> 0 | AB57: ='Produto 15'!AA24+(AB40*Descrição!$P$27) -> 0 | AC57: ='Produto 15'!AB24+(AC40*Descrição!$P$27) -> 0 | AD57: ='Produto 15'!AC24+(AD40*Descrição!$P$27) -> 0 | AE57: ='Produto 15'!AD24+(AE40*Descrição!$P$27) -> 0 | AF57: ='Produto 15'!AE24+(AF40*Descrição!$P$27) -> 0 | AG57: ='Produto 15'!AF24+(AG40*Descrição!$P$27) -> 0 | AH57: ='Produto 15'!AG24+(AH40*Descrição!$P$27) -> 0
A58: =IF(LEN('Parâmetros Gerais'!B29)=0," ",'Parâmetros Gerais'!B29) -> caixotaria boleira | B58: 0 | C58: 0 | E58: ='Produto 16'!D24+(E40*Descrição!$P$28) -> 0 | F58: ='Produto 16'!E24+(F40*Descrição!$P$28) -> 0 | G58: ='Produto 16'!F24+(G40*Descrição!$P$28) -> 0 | H58: ='Produto 16'!G24+(H40*Descrição!$P$28) -> 0 | I58: ='Produto 16'!H24+(I40*Descrição!$P$28) -> 0 | J58: ='Produto 16'!I24+(J40*Descrição!$P$28) -> 0 | K58: ='Produto 16'!J24+(K40*Descrição!$P$28) -> 0 | L58: ='Produto 16'!K24+(L40*Descrição!$P$28) -> 0 | M58: ='Produto 16'!L24+(M40*Descrição!$P$28) -> 0 | N58: ='Produto 16'!M24+(N40*Descrição!$P$28) -> 0 | O58: ='Produto 16'!N24+(O40*Descrição!$P$28) -> 0 | P58: ='Produto 16'!O24+(P40*Descrição!$P$28) -> 0 | Q58: ='Produto 16'!P24+(Q40*Descrição!$P$28) -> 0 | R58: ='Produto 16'!Q24+(R40*Descrição!$P$28) -> 0 | S58: ='Produto 16'!R24+(S40*Descrição!$P$28) -> 0 | T58: ='Produto 16'!S24+(T40*Descrição!$P$28) -> 0 | U58: ='Produto 16'!T24+(U40*Descrição!$P$28) -> 0 | V58: ='Produto 16'!U24+(V40*Descrição!$P$28) -> 0 | W58: ='Produto 16'!V24+(W40*Descrição!$P$28) -> 0 | X58: ='Produto 16'!W24+(X40*Descrição!$P$28) -> 0 | Y58: ='Produto 16'!X24+(Y40*Descrição!$P$28) -> 0 | Z58: ='Produto 16'!Y24+(Z40*Descrição!$P$28) -> 0 | AA58: ='Produto 16'!Z24+(AA40*Descrição!$P$28) -> 0 | AB58: ='Produto 16'!AA24+(AB40*Descrição!$P$28) -> 0 | AC58: ='Produto 16'!AB24+(AC40*Descrição!$P$28) -> 0 | AD58: ='Produto 16'!AC24+(AD40*Descrição!$P$28) -> 0 | AE58: ='Produto 16'!AD24+(AE40*Descrição!$P$28) -> 0 | AF58: ='Produto 16'!AE24+(AF40*Descrição!$P$28) -> 0 | AG58: ='Produto 16'!AF24+(AG40*Descrição!$P$28) -> 0 | AH58: ='Produto 16'!AG24+(AH40*Descrição!$P$28) -> 0
A59: =IF(LEN('Parâmetros Gerais'!B30)=0," ",'Parâmetros Gerais'!B30) -> madeira angico roxo | B59: 0 | C59: =SUM(D59:AH59) -> 0 | E59: ='Produto 17'!D24+(E40*Descrição!$P$29) -> 0 | F59: ='Produto 17'!E24+(F40*Descrição!$P$29) -> 0 | G59: ='Produto 17'!F24+(G40*Descrição!$P$29) -> 0 | H59: ='Produto 17'!G24+(H40*Descrição!$P$29) -> 0 | I59: ='Produto 17'!H24+(I40*Descrição!$P$29) -> 0 | J59: ='Produto 17'!I24+(J40*Descrição!$P$29) -> 0 | K59: ='Produto 17'!J24+(K40*Descrição!$P$29) -> 0 | L59: ='Produto 17'!K24+(L40*Descrição!$P$29) -> 0 | M59: ='Produto 17'!L24+(M40*Descrição!$P$29) -> 0 | N59: ='Produto 17'!M24+(N40*Descrição!$P$29) -> 0 | O59: ='Produto 17'!N24+(O40*Descrição!$P$29) -> 0 | P59: ='Produto 17'!O24+(P40*Descrição!$P$29) -> 0 | Q59: ='Produto 17'!P24+(Q40*Descrição!$P$29) -> 0 | R59: ='Produto 17'!Q24+(R40*Descrição!$P$29) -> 0 | S59: ='Produto 17'!R24+(S40*Descrição!$P$29) -> 0 | T59: ='Produto 17'!S24+(T40*Descrição!$P$29) -> 0 | U59: ='Produto 17'!T24+(U40*Descrição!$P$29) -> 0 | V59: ='Produto 17'!U24+(V40*Descrição!$P$29) -> 0 | W59: ='Produto 17'!V24+(W40*Descrição!$P$29) -> 0 | X59: ='Produto 17'!W24+(X40*Descrição!$P$29) -> 0 | Y59: ='Produto 17'!X24+(Y40*Descrição!$P$29) -> 0 | Z59: ='Produto 17'!Y24+(Z40*Descrição!$P$29) -> 0 | AA59: ='Produto 17'!Z24+(AA40*Descrição!$P$29) -> 0 | AB59: ='Produto 17'!AA24+(AB40*Descrição!$P$29) -> 0 | AC59: ='Produto 17'!AB24+(AC40*Descrição!$P$29) -> 0 | AD59: ='Produto 17'!AC24+(AD40*Descrição!$P$29) -> 0 | AE59: ='Produto 17'!AD24+(AE40*Descrição!$P$29) -> 0 | AF59: ='Produto 17'!AE24+(AF40*Descrição!$P$29) -> 0 | AG59: ='Produto 17'!AF24+(AG40*Descrição!$P$29) -> 0 | AH59: ='Produto 17'!AG24+(AH40*Descrição!$P$29) -> 0
A60: =IF(LEN('Parâmetros Gerais'!B31)=0," ",'Parâmetros Gerais'!B31) -> madeira ipê roxo | B60: 0 | C60: 0 | E60: ='Produto 18'!D24+(E40*Descrição!$P$30) -> 0 | F60: ='Produto 18'!E24+(F40*Descrição!$P$30) -> 0 | G60: ='Produto 18'!F24+(G40*Descrição!$P$30) -> 0 | H60: ='Produto 18'!G24+(H40*Descrição!$P$30) -> 0 | I60: ='Produto 18'!H24+(I40*Descrição!$P$30) -> 0 | J60: ='Produto 18'!I24+(J40*Descrição!$P$30) -> 0 | K60: ='Produto 18'!J24+(K40*Descrição!$P$30) -> 0 | L60: ='Produto 18'!K24+(L40*Descrição!$P$30) -> 0 | M60: ='Produto 18'!L24+(M40*Descrição!$P$30) -> 0 | N60: ='Produto 18'!M24+(N40*Descrição!$P$30) -> 0 | O60: ='Produto 18'!N24+(O40*Descrição!$P$30) -> 0 | P60: ='Produto 18'!O24+(P40*Descrição!$P$30) -> 0 | Q60: ='Produto 18'!P24+(Q40*Descrição!$P$30) -> 0 | R60: ='Produto 18'!Q24+(R40*Descrição!$P$30) -> 0 | S60: ='Produto 18'!R24+(S40*Descrição!$P$30) -> 0 | T60: ='Produto 18'!S24+(T40*Descrição!$P$30) -> 0 | U60: ='Produto 18'!T24+(U40*Descrição!$P$30) -> 0 | V60: ='Produto 18'!U24+(V40*Descrição!$P$30) -> 0 | W60: ='Produto 18'!V24+(W40*Descrição!$P$30) -> 0 | X60: ='Produto 18'!W24+(X40*Descrição!$P$30) -> 0 | Y60: ='Produto 18'!X24+(Y40*Descrição!$P$30) -> 0 | Z60: ='Produto 18'!Y24+(Z40*Descrição!$P$30) -> 0 | AA60: ='Produto 18'!Z24+(AA40*Descrição!$P$30) -> 0 | AB60: ='Produto 18'!AA24+(AB40*Descrição!$P$30) -> 0 | AC60: ='Produto 18'!AB24+(AC40*Descrição!$P$30) -> 0 | AD60: ='Produto 18'!AC24+(AD40*Descrição!$P$30) -> 0 | AE60: ='Produto 18'!AD24+(AE40*Descrição!$P$30) -> 0 | AF60: ='Produto 18'!AE24+(AF40*Descrição!$P$30) -> 0 | AG60: ='Produto 18'!AF24+(AG40*Descrição!$P$30) -> 0 | AH60: ='Produto 18'!AG24+(AH40*Descrição!$P$30) -> 0
A61: =IF(LEN('Parâmetros Gerais'!B32)=0," ",'Parâmetros Gerais'!B32) -> madeira ipê amarelo | B61: 0 | C61: 0 | E61: ='Produto 19'!D24+(E40*Descrição!$P$31) -> 0 | F61: ='Produto 19'!E24+(F40*Descrição!$P$31) -> 0 | G61: ='Produto 19'!F24+(G40*Descrição!$P$31) -> 0 | H61: ='Produto 19'!G24+(H40*Descrição!$P$31) -> 0 | I61: ='Produto 19'!H24+(I40*Descrição!$P$31) -> 0 | J61: ='Produto 19'!I24+(J40*Descrição!$P$31) -> 0 | K61: ='Produto 19'!J24+(K40*Descrição!$P$31) -> 0 | L61: ='Produto 19'!K24+(L40*Descrição!$P$31) -> 0 | M61: ='Produto 19'!L24+(M40*Descrição!$P$31) -> 0 | N61: ='Produto 19'!M24+(N40*Descrição!$P$31) -> 0 | O61: ='Produto 19'!N24+(O40*Descrição!$P$31) -> 0 | P61: ='Produto 19'!O24+(P40*Descrição!$P$31) -> 0 | Q61: ='Produto 19'!P24+(Q40*Descrição!$P$31) -> 0 | R61: ='Produto 19'!Q24+(R40*Descrição!$P$31) -> 0 | S61: ='Produto 19'!R24+(S40*Descrição!$P$31) -> 0 | T61: ='Produto 19'!S24+(T40*Descrição!$P$31) -> 0 | U61: ='Produto 19'!T24+(U40*Descrição!$P$31) -> 0 | V61: ='Produto 19'!U24+(V40*Descrição!$P$31) -> 0 | W61: ='Produto 19'!V24+(W40*Descrição!$P$31) -> 0 | X61: ='Produto 19'!W24+(X40*Descrição!$P$31) -> 0 | Y61: ='Produto 19'!X24+(Y40*Descrição!$P$31) -> 0 | Z61: ='Produto 19'!Y24+(Z40*Descrição!$P$31) -> 0 | AA61: ='Produto 19'!Z24+(AA40*Descrição!$P$31) -> 0 | AB61: ='Produto 19'!AA24+(AB40*Descrição!$P$31) -> 0 | AC61: ='Produto 19'!AB24+(AC40*Descrição!$P$31) -> 0 | AD61: ='Produto 19'!AC24+(AD40*Descrição!$P$31) -> 0 | AE61: ='Produto 19'!AD24+(AE40*Descrição!$P$31) -> 0 | AF61: ='Produto 19'!AE24+(AF40*Descrição!$P$31) -> 0 | AG61: ='Produto 19'!AF24+(AG40*Descrição!$P$31) -> 0 | AH61: ='Produto 19'!AG24+(AH40*Descrição!$P$31) -> 0
A62: =IF(LEN('Parâmetros Gerais'!B33)=0," ",'Parâmetros Gerais'!B33) -> madeira gonçalo alves | B62: 0 | C62: 0 | E62: ='Produto 20'!D24+(E40*Descrição!$P$32) -> 0 | F62: ='Produto 20'!E24+(F40*Descrição!$P$32) -> 0 | G62: ='Produto 20'!F24+(G40*Descrição!$P$32) -> 0 | H62: ='Produto 20'!G24+(H40*Descrição!$P$32) -> 0 | I62: ='Produto 20'!H24+(I40*Descrição!$P$32) -> 0 | J62: ='Produto 20'!I24+(J40*Descrição!$P$32) -> 0 | K62: ='Produto 20'!J24+(K40*Descrição!$P$32) -> 0 | L62: ='Produto 20'!K24+(L40*Descrição!$P$32) -> 0 | M62: ='Produto 20'!L24+(M40*Descrição!$P$32) -> 0 | N62: ='Produto 20'!M24+(N40*Descrição!$P$32) -> 0 | O62: ='Produto 20'!N24+(O40*Descrição!$P$32) -> 0 | P62: ='Produto 20'!O24+(P40*Descrição!$P$32) -> 0 | Q62: ='Produto 20'!P24+(Q40*Descrição!$P$32) -> 0 | R62: ='Produto 20'!Q24+(R40*Descrição!$P$32) -> 0 | S62: ='Produto 20'!R24+(S40*Descrição!$P$32) -> 0 | T62: ='Produto 20'!S24+(T40*Descrição!$P$32) -> 0 | U62: ='Produto 20'!T24+(U40*Descrição!$P$32) -> 0 | V62: ='Produto 20'!U24+(V40*Descrição!$P$32) -> 0 | W62: ='Produto 20'!V24+(W40*Descrição!$P$32) -> 0 | X62: ='Produto 20'!W24+(X40*Descrição!$P$32) -> 0 | Y62: ='Produto 20'!X24+(Y40*Descrição!$P$32) -> 0 | Z62: ='Produto 20'!Y24+(Z40*Descrição!$P$32) -> 0 | AA62: ='Produto 20'!Z24+(AA40*Descrição!$P$32) -> 0 | AB62: ='Produto 20'!AA24+(AB40*Descrição!$P$32) -> 0 | AC62: ='Produto 20'!AB24+(AC40*Descrição!$P$32) -> 0 | AD62: ='Produto 20'!AC24+(AD40*Descrição!$P$32) -> 0 | AE62: ='Produto 20'!AD24+(AE40*Descrição!$P$32) -> 0 | AF62: ='Produto 20'!AE24+(AF40*Descrição!$P$32) -> 0 | AG62: ='Produto 20'!AF24+(AG40*Descrição!$P$32) -> 0 | AH62: ='Produto 20'!AG24+(AH40*Descrição!$P$32) -> 0
A63: =IF(LEN('Parâmetros Gerais'!B34)=0," ",'Parâmetros Gerais'!B34) -> madeira vinhatico | B63: 0 | C63: 0 | E63: ='Produto 21'!D24+(E40*Descrição!$P$33) -> 0 | F63: ='Produto 21'!E24+(F40*Descrição!$P$33) -> 0 | G63: ='Produto 21'!F24+(G40*Descrição!$P$33) -> 0 | H63: ='Produto 21'!G24+(H40*Descrição!$P$33) -> 0 | I63: ='Produto 21'!H24+(I40*Descrição!$P$33) -> 0 | J63: ='Produto 21'!I24+(J40*Descrição!$P$33) -> 0 | K63: ='Produto 21'!J24+(K40*Descrição!$P$33) -> 0 | L63: ='Produto 21'!K24+(L40*Descrição!$P$33) -> 0 | M63: ='Produto 21'!L24+(M40*Descrição!$P$33) -> 0 | N63: ='Produto 21'!M24+(N40*Descrição!$P$33) -> 0 | O63: ='Produto 21'!N24+(O40*Descrição!$P$33) -> 0 | P63: ='Produto 21'!O24+(P40*Descrição!$P$33) -> 0 | Q63: ='Produto 21'!P24+(Q40*Descrição!$P$33) -> 0 | R63: ='Produto 21'!Q24+(R40*Descrição!$P$33) -> 0 | S63: ='Produto 21'!R24+(S40*Descrição!$P$33) -> 0 | T63: ='Produto 21'!S24+(T40*Descrição!$P$33) -> 0 | U63: ='Produto 21'!T24+(U40*Descrição!$P$33) -> 0 | V63: ='Produto 21'!U24+(V40*Descrição!$P$33) -> 0 | W63: ='Produto 21'!V24+(W40*Descrição!$P$33) -> 0 | X63: ='Produto 21'!W24+(X40*Descrição!$P$33) -> 0 | Y63: ='Produto 21'!X24+(Y40*Descrição!$P$33) -> 0 | Z63: ='Produto 21'!Y24+(Z40*Descrição!$P$33) -> 0 | AA63: ='Produto 21'!Z24+(AA40*Descrição!$P$33) -> 0 | AB63: ='Produto 21'!AA24+(AB40*Descrição!$P$33) -> 0 | AC63: ='Produto 21'!AB24+(AC40*Descrição!$P$33) -> 0 | AD63: ='Produto 21'!AC24+(AD40*Descrição!$P$33) -> 0 | AE63: ='Produto 21'!AD24+(AE40*Descrição!$P$33) -> 0 | AF63: ='Produto 21'!AE24+(AF40*Descrição!$P$33) -> 0 | AG63: ='Produto 21'!AF24+(AG40*Descrição!$P$33) -> 0 | AH63: ='Produto 21'!AG24+(AH40*Descrição!$P$33) -> 0
A64: =IF(LEN('Parâmetros Gerais'!B35)=0," ",'Parâmetros Gerais'!B35) -> madeira jequitiba | B64: 0 | C64: 0 | E64: ='Produto 22'!D24+(E40*Descrição!$P$34) -> 0 | F64: ='Produto 22'!E24+(F40*Descrição!$P$34) -> 0 | G64: ='Produto 22'!F24+(G40*Descrição!$P$34) -> 0 | H64: ='Produto 22'!G24+(H40*Descrição!$P$34) -> 0 | I64: ='Produto 22'!H24+(I40*Descrição!$P$34) -> 0 | J64: ='Produto 22'!I24+(J40*Descrição!$P$34) -> 0 | K64: ='Produto 22'!J24+(K40*Descrição!$P$34) -> 0 | L64: ='Produto 22'!K24+(L40*Descrição!$P$34) -> 0 | M64: ='Produto 22'!L24+(M40*Descrição!$P$34) -> 0 | N64: ='Produto 22'!M24+(N40*Descrição!$P$34) -> 0 | O64: ='Produto 22'!N24+(O40*Descrição!$P$34) -> 0 | P64: ='Produto 22'!O24+(P40*Descrição!$P$34) -> 0 | Q64: ='Produto 22'!P24+(Q40*Descrição!$P$34) -> 0 | R64: ='Produto 22'!Q24+(R40*Descrição!$P$34) -> 0 | S64: ='Produto 22'!R24+(S40*Descrição!$P$34) -> 0 | T64: ='Produto 22'!S24+(T40*Descrição!$P$34) -> 0 | U64: ='Produto 22'!T24+(U40*Descrição!$P$34) -> 0 | V64: ='Produto 22'!U24+(V40*Descrição!$P$34) -> 0 | W64: ='Produto 22'!V24+(W40*Descrição!$P$34) -> 0 | X64: ='Produto 22'!W24+(X40*Descrição!$P$34) -> 0 | Y64: ='Produto 22'!X24+(Y40*Descrição!$P$34) -> 0 | Z64: ='Produto 22'!Y24+(Z40*Descrição!$P$34) -> 0 | AA64: ='Produto 22'!Z24+(AA40*Descrição!$P$34) -> 0 | AB64: ='Produto 22'!AA24+(AB40*Descrição!$P$34) -> 0 | AC64: ='Produto 22'!AB24+(AC40*Descrição!$P$34) -> 0 | AD64: ='Produto 22'!AC24+(AD40*Descrição!$P$34) -> 0 | AE64: ='Produto 22'!AD24+(AE40*Descrição!$P$34) -> 0 | AF64: ='Produto 22'!AE24+(AF40*Descrição!$P$34) -> 0 | AG64: ='Produto 22'!AF24+(AG40*Descrição!$P$34) -> 0 | AH64: ='Produto 22'!AG24+(AH40*Descrição!$P$34) -> 0
A65: =IF(LEN('Parâmetros Gerais'!B36)=0," ",'Parâmetros Gerais'!B36) -> biomassa | B65: 0 | C65: 0 | E65: ='Produto 23'!D24+(E40*Descrição!$P$35) -> 0 | F65: ='Produto 23'!E24+(F40*Descrição!$P$35) -> 0 | G65: ='Produto 23'!F24+(G40*Descrição!$P$35) -> 0 | H65: ='Produto 23'!G24+(H40*Descrição!$P$35) -> 0 | I65: ='Produto 23'!H24+(I40*Descrição!$P$35) -> 0 | J65: ='Produto 23'!I24+(J40*Descrição!$P$35) -> 0 | K65: ='Produto 23'!J24+(K40*Descrição!$P$35) -> 0 | L65: ='Produto 23'!K24+(L40*Descrição!$P$35) -> 0 | M65: ='Produto 23'!L24+(M40*Descrição!$P$35) -> 0 | N65: ='Produto 23'!M24+(N40*Descrição!$P$35) -> 0 | O65: ='Produto 23'!N24+(O40*Descrição!$P$35) -> 0 | P65: ='Produto 23'!O24+(P40*Descrição!$P$35) -> 0 | Q65: ='Produto 23'!P24+(Q40*Descrição!$P$35) -> 0 | R65: ='Produto 23'!Q24+(R40*Descrição!$P$35) -> 0 | S65: ='Produto 23'!R24+(S40*Descrição!$P$35) -> 0 | T65: ='Produto 23'!S24+(T40*Descrição!$P$35) -> 0 | U65: ='Produto 23'!T24+(U40*Descrição!$P$35) -> 0 | V65: ='Produto 23'!U24+(V40*Descrição!$P$35) -> 0 | W65: ='Produto 23'!V24+(W40*Descrição!$P$35) -> 0 | X65: ='Produto 23'!W24+(X40*Descrição!$P$35) -> 0 | Y65: ='Produto 23'!X24+(Y40*Descrição!$P$35) -> 0 | Z65: ='Produto 23'!Y24+(Z40*Descrição!$P$35) -> 0 | AA65: ='Produto 23'!Z24+(AA40*Descrição!$P$35) -> 0 | AB65: ='Produto 23'!AA24+(AB40*Descrição!$P$35) -> 0 | AC65: ='Produto 23'!AB24+(AC40*Descrição!$P$35) -> 0 | AD65: ='Produto 23'!AC24+(AD40*Descrição!$P$35) -> 0 | AE65: ='Produto 23'!AD24+(AE40*Descrição!$P$35) -> 0 | AF65: ='Produto 23'!AE24+(AF40*Descrição!$P$35) -> 0 | AG65: ='Produto 23'!AF24+(AG40*Descrição!$P$35) -> 0 | AH65: ='Produto 23'!AG24+(AH40*Descrição!$P$35) -> 0
A66: =IF(LEN('Parâmetros Gerais'!B37)=0," ",'Parâmetros Gerais'!B37) -> grão caupi | B66: 0 | C66: =SUM(D66:AH66) -> 0 | E66: ='Produto 24'!D24+(E40*Descrição!$P$36) -> 0 | F66: ='Produto 24'!E24+(F40*Descrição!$P$36) -> 0 | G66: ='Produto 24'!F24+(G40*Descrição!$P$36) -> 0 | H66: ='Produto 24'!G24+(H40*Descrição!$P$36) -> 0 | I66: ='Produto 24'!H24+(I40*Descrição!$P$36) -> 0 | J66: ='Produto 24'!I24+(J40*Descrição!$P$36) -> 0 | K66: ='Produto 24'!J24+(K40*Descrição!$P$36) -> 0 | L66: ='Produto 24'!K24+(L40*Descrição!$P$36) -> 0 | M66: ='Produto 24'!L24+(M40*Descrição!$P$36) -> 0 | N66: ='Produto 24'!M24+(N40*Descrição!$P$36) -> 0 | O66: ='Produto 24'!N24+(O40*Descrição!$P$36) -> 0 | P66: ='Produto 24'!O24+(P40*Descrição!$P$36) -> 0 | Q66: ='Produto 24'!P24+(Q40*Descrição!$P$36) -> 0 | R66: ='Produto 24'!Q24+(R40*Descrição!$P$36) -> 0 | S66: ='Produto 24'!R24+(S40*Descrição!$P$36) -> 0 | T66: ='Produto 24'!S24+(T40*Descrição!$P$36) -> 0 | U66: ='Produto 24'!T24+(U40*Descrição!$P$36) -> 0 | V66: ='Produto 24'!U24+(V40*Descrição!$P$36) -> 0 | W66: ='Produto 24'!V24+(W40*Descrição!$P$36) -> 0 | X66: ='Produto 24'!W24+(X40*Descrição!$P$36) -> 0 | Y66: ='Produto 24'!X24+(Y40*Descrição!$P$36) -> 0 | Z66: ='Produto 24'!Y24+(Z40*Descrição!$P$36) -> 0 | AA66: ='Produto 24'!Z24+(AA40*Descrição!$P$36) -> 0 | AB66: ='Produto 24'!AA24+(AB40*Descrição!$P$36) -> 0 | AC66: ='Produto 24'!AB24+(AC40*Descrição!$P$36) -> 0 | AD66: ='Produto 24'!AC24+(AD40*Descrição!$P$36) -> 0 | AE66: ='Produto 24'!AD24+(AE40*Descrição!$P$36) -> 0 | AF66: ='Produto 24'!AE24+(AF40*Descrição!$P$36) -> 0 | AG66: ='Produto 24'!AF24+(AG40*Descrição!$P$36) -> 0 | AH66: ='Produto 24'!AG24+(AH40*Descrição!$P$36) -> 0
A68: Receitas | C68: =SUM(D68:AH68) -> 259094 | D68: =SUM(D71:D93) -> 0 | E68: 4275 | F68: 20420 | G68: 7300 | H68: 11264 | I68: 12080 | J68: 5060 | K68: 3669.5 | L68: 4839 | M68: 4165 | N68: 5758.5 | O68: 4358.5 | P68: 8418.5 | Q68: 9542.5 | R68: 13838.5 | S68: 21794.5 | T68: 20194.5 | U68: 20194.5 | V68: 20890.5 | W68: 20890.5 | X68: 40140.5 | Y68: 0 | Z68: 0 | AA68: 0 | AB68: 0 | AC68: 0 | AD68: 0 | AE68: 0 | AF68: 0 | AG68: 0 | AH68: 0
A70: Culturas
A71: =IF(LEN('Parâmetros Gerais'!B14)=0," ",'Parâmetros Gerais'!B14) -> latex | B71: =IF(C71<>0,C71/$C$68,0) -> 0.04734575096 | C71: =SUM(D71:AH71) -> 12267 | E71: ='Parâmetros Gerais'!$F$14*Produção!D6 -> 0 | F71: ='Parâmetros Gerais'!$F$14*Produção!E6 -> 0 | G71: ='Parâmetros Gerais'!$F$14*Produção!F6 -> 0 | H71: ='Parâmetros Gerais'!$F$14*Produção!G6 -> 0 | I71: ='Parâmetros Gerais'!$F$14*Produção!H6 -> 0 | J71: ='Parâmetros Gerais'!$F$14*Produção!I6 -> 0 | K71: ='Parâmetros Gerais'!$F$14*Produção!J6 -> 319.5 | L71: ='Parâmetros Gerais'!$F$14*Produção!K6 -> 639 | M71: ='Parâmetros Gerais'!$F$14*Produção!L6 -> 765 | N71: ='Parâmetros Gerais'!$F$14*Produção!M6 -> 958.5 | O71: ='Parâmetros Gerais'!$F$14*Produção!N6 -> 958.5 | P71: ='Parâmetros Gerais'!$F$14*Produção!O6 -> 958.5 | Q71: ='Parâmetros Gerais'!$F$14*Produção!P6 -> 958.5 | R71: ='Parâmetros Gerais'!$F$14*Produção!Q6 -> 958.5 | S71: ='Parâmetros Gerais'!$F$14*Produção!R6 -> 958.5 | T71: ='Parâmetros Gerais'!$F$14*Produção!S6 -> 958.5 | U71: ='Parâmetros Gerais'!$F$14*Produção!T6 -> 958.5 | V71: ='Parâmetros Gerais'!$F$14*Produção!U6 -> 958.5 | W71: ='Parâmetros Gerais'!$F$14*Produção!V6 -> 958.5 | X71: ='Parâmetros Gerais'!$F$14*Produção!W6 -> 958.5 | Y71: ='Parâmetros Gerais'!$F$14*Produção!X6 -> 0 | Z71: ='Parâmetros Gerais'!$F$14*Produção!Y6 -> 0 | AA71: ='Parâmetros Gerais'!$F$14*Produção!Z6 -> 0 | AB71: ='Parâmetros Gerais'!$F$14*Produção!AA6 -> 0 | AC71: ='Parâmetros Gerais'!$F$14*Produção!AB6 -> 0 | AD71: ='Parâmetros Gerais'!$F$14*Produção!AC6 -> 0 | AE71: ='Parâmetros Gerais'!$F$14*Produção!AD6 -> 0 | AF71: ='Parâmetros Gerais'!$F$14*Produção!AE6 -> 0 | AG71: ='Parâmetros Gerais'!$F$14*Produção!AF6 -> 0 | AH71: ='Parâmetros Gerais'!$F$14*Produção!AG6 -> 0
A72: =IF(LEN('Parâmetros Gerais'!B15)=0," ",'Parâmetros Gerais'!B15) -> fruto genipapo | B72: =IF(C72<>0,C72/$C$68,0) -> 0.1647587362 | C72: =SUM(D72:AH72) -> 42688 | E72: ='Parâmetros Gerais'!$F$15*Produção!D7 -> 0 | F72: ='Parâmetros Gerais'!$F$15*Produção!E7 -> 0 | G72: ='Parâmetros Gerais'!$F$15*Produção!F7 -> 0 | H72: ='Parâmetros Gerais'!$F$15*Produção!G7 -> 0 | I72: ='Parâmetros Gerais'!$F$15*Produção!H7 -> 0 | J72: ='Parâmetros Gerais'!$F$15*Produção!I7 -> 0 | K72: ='Parâmetros Gerais'!$F$15*Produção!J7 -> 0 | L72: ='Parâmetros Gerais'!$F$15*Produção!K7 -> 0 | M72: ='Parâmetros Gerais'!$F$15*Produção!L7 -> 0 | N72: ='Parâmetros Gerais'!$F$15*Produção!M7 -> 0 | O72: ='Parâmetros Gerais'!$F$15*Produção!N7 -> 0 | P72: ='Parâmetros Gerais'!$F$15*Produção!O7 -> 2320 | Q72: ='Parâmetros Gerais'!$F$15*Produção!P7 -> 2784 | R72: ='Parâmetros Gerais'!$F$15*Produção!Q7 -> 3480 | S72: ='Parâmetros Gerais'!$F$15*Produção!R7 -> 5336 | T72: ='Parâmetros Gerais'!$F$15*Produção!S7 -> 5336 | U72: ='Parâmetros Gerais'!$F$15*Produção!T7 -> 5336 | V72: ='Parâmetros Gerais'!$F$15*Produção!U7 -> 6032 | W72: ='Parâmetros Gerais'!$F$15*Produção!V7 -> 6032 | X72: ='Parâmetros Gerais'!$F$15*Produção!W7 -> 6032 | Y72: ='Parâmetros Gerais'!$F$15*Produção!X7 -> 0 | Z72: ='Parâmetros Gerais'!$F$15*Produção!Y7 -> 0 | AA72: ='Parâmetros Gerais'!$F$15*Produção!Z7 -> 0 | AB72: ='Parâmetros Gerais'!$F$15*Produção!AA7 -> 0 | AC72: ='Parâmetros Gerais'!$F$15*Produção!AB7 -> 0 | AD72: ='Parâmetros Gerais'!$F$15*Produção!AC7 -> 0 | AE72: ='Parâmetros Gerais'!$F$15*Produção!AD7 -> 0 | AF72: ='Parâmetros Gerais'!$F$15*Produção!AE7 -> 0 | AG72: ='Parâmetros Gerais'!$F$15*Produção!AF7 -> 0 | AH72: ='Parâmetros Gerais'!$F$15*Produção!AG7 -> 0
A73: =IF(LEN('Parâmetros Gerais'!B16)=0," ",'Parâmetros Gerais'!B16) -> fruto araçauna | B73: 0.01512964407 | C73: 3920 | E73: ='Parâmetros Gerais'!$F$16*Produção!D8 -> 0 | F73: ='Parâmetros Gerais'!$F$16*Produção!E8 -> 0 | G73: ='Parâmetros Gerais'!$F$16*Produção!F8 -> 920 | H73: ='Parâmetros Gerais'!$F$16*Produção!G8 -> 920 | I73: ='Parâmetros Gerais'!$F$16*Produção!H8 -> 1160 | J73: ='Parâmetros Gerais'!$F$16*Produção!I8 -> 920 | K73: ='Parâmetros Gerais'!$F$16*Produção!J8 -> 0 | L73: ='Parâmetros Gerais'!$F$16*Produção!K8 -> 0 | M73: ='Parâmetros Gerais'!$F$16*Produção!L8 -> 0 | N73: ='Parâmetros Gerais'!$F$16*Produção!M8 -> 0 | O73: ='Parâmetros Gerais'!$F$16*Produção!N8 -> 0 | P73: ='Parâmetros Gerais'!$F$16*Produção!O8 -> 0 | Q73: ='Parâmetros Gerais'!$F$16*Produção!P8 -> 0 | R73: ='Parâmetros Gerais'!$F$16*Produção!Q8 -> 0 | S73: ='Parâmetros Gerais'!$F$16*Produção!R8 -> 0 | T73: ='Parâmetros Gerais'!$F$16*Produção!S8 -> 0 | U73: ='Parâmetros Gerais'!$F$16*Produção!T8 -> 0 | V73: ='Parâmetros Gerais'!$F$16*Produção!U8 -> 0 | W73: ='Parâmetros Gerais'!$F$16*Produção!V8 -> 0 | X73: ='Parâmetros Gerais'!$F$16*Produção!W8 -> 0 | Y73: ='Parâmetros Gerais'!$F$16*Produção!X8 -> 0 | Z73: ='Parâmetros Gerais'!$F$16*Produção!Y8 -> 0 | AA73: ='Parâmetros Gerais'!$F$16*Produção!Z8 -> 0 | AB73: ='Parâmetros Gerais'!$F$16*Produção!AA8 -> 0 | AC73: ='Parâmetros Gerais'!$F$16*Produção!AB8 -> 0 | AD73: ='Parâmetros Gerais'!$F$16*Produção!AC8 -> 0 | AE73: ='Parâmetros Gerais'!$F$16*Produção!AD8 -> 0 | AF73: ='Parâmetros Gerais'!$F$16*Produção!AE8 -> 0 | AG73: ='Parâmetros Gerais'!$F$16*Produção!AF8 -> 0 | AH73: ='Parâmetros Gerais'!$F$16*Produção!AG8 -> 0
A74: =IF(LEN('Parâmetros Gerais'!B17)=0," ",'Parâmetros Gerais'!B17) -> fruto pitanga | B74: 0.01539981628 | C74: 3990 | E74: ='Parâmetros Gerais'!$F$17*Produção!D9 -> 0 | F74: ='Parâmetros Gerais'!$F$17*Produção!E9 -> 570 | G74: ='Parâmetros Gerais'!$F$17*Produção!F9 -> 1140 | H74: ='Parâmetros Gerais'!$F$17*Produção!G9 -> 1140 | I74: ='Parâmetros Gerais'!$F$17*Produção!H9 -> 1140 | J74: ='Parâmetros Gerais'!$F$17*Produção!I9 -> 0 | K74: ='Parâmetros Gerais'!$F$17*Produção!J9 -> 0 | L74: ='Parâmetros Gerais'!$F$17*Produção!K9 -> 0 | M74: ='Parâmetros Gerais'!$F$17*Produção!L9 -> 0 | N74: ='Parâmetros Gerais'!$F$17*Produção!M9 -> 0 | O74: ='Parâmetros Gerais'!$F$17*Produção!N9 -> 0 | P74: ='Parâmetros Gerais'!$F$17*Produção!O9 -> 0 | Q74: ='Parâmetros Gerais'!$F$17*Produção!P9 -> 0 | R74: ='Parâmetros Gerais'!$F$17*Produção!Q9 -> 0 | S74: ='Parâmetros Gerais'!$F$17*Produção!R9 -> 0 | T74: ='Parâmetros Gerais'!$F$17*Produção!S9 -> 0 | U74: ='Parâmetros Gerais'!$F$17*Produção!T9 -> 0 | V74: ='Parâmetros Gerais'!$F$17*Produção!U9 -> 0 | W74: ='Parâmetros Gerais'!$F$17*Produção!V9 -> 0 | X74: ='Parâmetros Gerais'!$F$17*Produção!W9 -> 0 | Y74: ='Parâmetros Gerais'!$F$17*Produção!X9 -> 0 | Z74: ='Parâmetros Gerais'!$F$17*Produção!Y9 -> 0 | AA74: ='Parâmetros Gerais'!$F$17*Produção!Z9 -> 0 | AB74: ='Parâmetros Gerais'!$F$17*Produção!AA9 -> 0 | AC74: ='Parâmetros Gerais'!$F$17*Produção!AB9 -> 0 | AD74: ='Parâmetros Gerais'!$F$17*Produção!AC9 -> 0 | AE74: ='Parâmetros Gerais'!$F$17*Produção!AD9 -> 0 | AF74: ='Parâmetros Gerais'!$F$17*Produção!AE9 -> 0 | AG74: ='Parâmetros Gerais'!$F$17*Produção!AF9 -> 0 | AH74: ='Parâmetros Gerais'!$F$17*Produção!AG9 -> 0
